Workbook

Sheet Instructions
B7: ="Farm Gross Margin Guide -"&TEXT(m_year,"0000") -> Farm Gross Margin Guide -2022
B8: This spreadsheet can take a few moments to load
B9: PLEASE NOTE:THIS VERSION WILL ONLY WORK WITH EXCEL VERSIONS 2007 & ABOVE FOR WINDOWS ONLY. It will not work with Excel for Mac, Ipad, Android, tablets etc.
B11: Before You Start
B12: Before you start you will need to enable macros.
B13: This may appear as a Security Warning at the top of your page. To do this, click on “Enable Content”.
B14: Clicking “Enable Content” allows you to enter data into the Excel Worksheet.
B22: You may also see a message about "PROTECTED VIEW". Please click "Enable Editing".
B29: Yellow cells = data entry (some yellow cells contain formulas, these usually represent default
B30: values but may be over written. To revert back to the default value formula click the blue 'Reset…'
B31: link next to the cell.
B32: Blue cells contain formulas, are protected and can not be overwritten.
B33: Red cell = crop / pasture area.
B46: Start in the “Main” sheet and select the “Crop Types” (including pastures) you want to use, then the “Rainfall Zone”
B47: and “Machinery Treatment Method”. Selecting the “Crop Types” will open up new sheets for each crop type chosen.
B48: Click on the individual sheets and make the necessary changes.
B49: To compare two different rotations go to the “Main” sheet and select “Compare Crop Rotations” (top left).
B50: This will open a new list of “Crop Types”. Select a new list. If there are crop types with the same gross
B51: margin in Rotation 1 and 2, “click” the copy button to copy the information you have entered (Rotation 1)
B52: to the new sheet (Rotation 2). For new crop types the information will need to be adjusted as required.
B53: Use the “Livestock Gross Margin” file to generate the income for the pasture options.
B54: The “Summary” sheet compares the outputs of the two different rotations.
B55: In the “Summary” sheet Overhead or Fixed costs can be added to quickly come up with a
B56: Profit and Loss Statement for the business.
B90: For technical support or to report errors/omissions regarding this spreadsheet please
B91: email Michael Wurst at:
C92: michael.wurst@sa.gov.au

Sheet Main
C3: ="FARM GROSS MARGIN GUIDE - "&TEXT(m_year,"0000") -> FARM GROSS MARGIN GUIDE - 2022 | L3: ="Version-"&TEXT(MODEL_VERSION,"0.0") -> Version-7.0
C6: by clicking checkboxes or All or None buttons | F6: by clicking checkboxes or All or None buttons | K6: if more than one rainfall zone is required, please save a separate copy of this spreadsheet.
B7: FALSE | C7: Wheat | F7: Wheat | H7: FALSE | K7: LOW (<350mm)
B8: FALSE | C8: Faba Beans | F8: Faba Beans | H8: FALSE | K8: MEDIUM (350-400mm)
B9: FALSE | C9: Canola Clearfield | F9: Canola Clearfield | H9: FALSE | K9: HIGH (>400MM)
B10: FALSE | C10: Canola Conventional | F10: Canola Conventional | H10: FALSE
B11: FALSE | C11: Canola RoundUp Ready | F11: Canola RoundUp Ready | H11: FALSE
B12: FALSE | C12: Canola Tri Tolerant | F12: Canola Tri Tolerant | H12: FALSE
B13: FALSE | C13: Kabuli Chickpeas | F13: Kabuli Chickpeas | H13: FALSE
B14: FALSE | C14: Durum | F14: Durum | H14: FALSE
B15: FALSE | C15: Export Oaten Hay | F15: Export Oaten Hay | H15: FALSE
B16: FALSE | C16: Feed Barley | F16: Feed Barley | H16: FALSE
B17: FALSE | C17: Field Peas | F17: Field Peas | H17: FALSE | K17: Contract Rates for Machinery Ops
B18: FALSE | C18: Lupins | F18: Lupins | H18: FALSE | K18: Variable costs (Fuel and Repairs) only
B19: FALSE | C19: Malt Barley | F19: Malt Barley | H19: FALSE
B20: FALSE | C20: Milling Oats | F20: Milling Oats | H20: FALSE
B21: FALSE | C21: Lentils | F21: Lentils | H21: FALSE
B22: FALSE | C22: Lentils IMI Tolerant | F22: Lentils IMI Tolerant | H22: FALSE
B23: FALSE | C23: Triticale | F23: Triticale | H23: FALSE
B24: FALSE | C24: Vetch | F24: Vetch | H24: FALSE
B25: FALSE | C25: Sown Pasture | F25: Sown Pasture | H25: FALSE
B26: FALSE | C26: Self Regen Pasture | F26: Self Regen Pasture | H26: FALSE
B27: FALSE | C27: Lucerne Pasture Cereal Zone | F27: Lucerne Pasture Cereal Zone | H27: FALSE
B28: FALSE | C28: Lucerne Pasture High Rainfall | F28: Lucerne Pasture High Rainfall | H28: FALSE
B29: FALSE | C29: Phalaris Sub Cereal Zone | F29: Phalaris Sub Cereal Zone | H29: FALSE
B30: FALSE | C30: Phalaris Sub HR Grazing | F30: Phalaris Sub HR Grazing | H30: FALSE
B31: FALSE | H31: FALSE
B32: FALSE | H32: FALSE
B33: FALSE | H33: FALSE

Sheet Excel References (hidden)
B3: vlookup array formulas in individual sheets | C3: http://chandoo.org/wp/2014/10/28/multi-condition-vlookup/
B5: Or this embed word doc

Sheet Data_Main (hidden)
B4: Year | C4: 2022 | D4: Enter
B5: Year_Long | C5: =m_year&"/"&m_year+1 -> 2022/2023 | D5: Calculated
B6: Year_Short | C6: =RIGHT(m_year,2)&"/"&RIGHT(m_year,2)+1 -> 22/23 | D6: Calculated
B7: Selected Rainfall Zone | C7: =CHOOSE(rng_rainfall,"Low","Medium","High") ->  | D7: Calculated
B8: show_disclaimer | C8: TRUE | D8: Enter
B9: MODEL VERSION | C9: 7
B10: Rotation Type | C10: 1 | D10: Calculated
B16: Crop_Type
B17: Wheat
B18: Faba Beans
B19: Canola Clearfield
B20: Canola Conventional
B21: Canola Tri Tolerant
B22: Canola Roundup Ready
B23: Kabuli Chickpeas
B24: Durum
B25: Export Oaten Hay
B26: Feed Barley
B27: Field Peas
B28: Lupins
B29: Malt Barley
B30: Milling Oats
B31: Lentils
B32: Lentils IMI Tolerant
B33: Triticale
B34: Vetch
B35: Sown Pasture
B36: Self Regen Pasture
B37: Lucerne Pasture Cereal
B38: Lucerne Pasture Grazing
B39: Phalaris Sub Pasture Cereal
B40: Phalaris Sub Grazing

Sheet Data_Sheets (hidden)
B10: Sheet | C10: State(show to keep sheet visible or blank to hide)
B11: Instructions | C11: Show
B12: Main | C12: Show
B13: Excel References
B14: Data_Main
B15: Data_Sheets | C15: Show
B16: GM_INFO
B17: GM Crib
B18: DV_TABLES
B19: Summary GM figures
B20: Summary | C20: Show
B21: CROP SHEETS>> | C21: Show
B22: WHEAT
B23: WHEAT R2
B24: BEANS
B25: BEANS R2
B26: CANOLA CLEARFIELD
B27: CANOLA CLEARFIELD R2
B28: CANOLA ROUNDUP READY
B29: CANOLA ROUNDUP READY R2
B30: CANOLA CONVENTIONAL
B31: CANOLA CONVENTIONAL R2
B32: CANOLA TRITOLERANT
B33: CANOLA TRITOLERANT R2
B34: CHICKPEAS
B35: CHICKPEAS R2
B36: DURUM
B37: DURUM R2
B38: EXPORT OATEN HAY
B39: EXPORT OATEN HAY R2
B40: FEED BARLEY
B41: FEED BARLEY R2
B42: PEAS
B43: PEAS R2
B44: LUPINS
B45: LUPINS R2
B46: MALT BARLEY
B47: MALT BARLEY R2
B48: MILLING OATS
B49: MILLING OATS R2
B50: LENTILS
B51: LENTILS R2
B52: TRITICALE
B53: TRITICALE R2
B54: VETCH
B55: VETCH R2
B56: LENTILS IMI TOLERANT
B57: LENTILS IMI TOLERANT R2
B58: SOWN PASTURE
B59: SOWN PASTURE R2
B60: SELF REGEN PASTURE
B61: SELF REGEN PASTURE R2
B62: LUCERNE PASTURE CEREAL
B63: LUCERNE PASTURE CEREAL R2
B64: LUCERNE PASTURE GRAZING
B65: LUCERNE PASTURE GRAZING R2
B66: PHALARIS SUB PASTURE CEREAL
B67: PHALARIS SUB PASTURE CEREAL R2
B68: PHALARIS SUB PASTURE GRAZING
B69: PHALARIS SUB PASTURE GRAZING R2

Sheet GM_INFO (hidden)
B1: G.M. LINK SHEET
B3: GRDC Levy % | C3: 0.01
B4: Summer Weed Control | C4: 40
B11: ="Machinery Cost Information - " & TEXT(m_year,"0000") -> Machinery Cost Information - 2022
B14: Repairs & Maintenance - as a % of new value (shown below).
B15: Lubrication costs | C15: 0.05 | D15: of fuel cost.
B17: Table not used | J17: Costs per Hectare
B18: Machine | C18: New Value $ | D18: Life-hrs | E18: Work Efficiency % | F18: Work Rate ha/hr | G18: Fuel Use l/hr | H18: RM % New Value | I18: Hrs use pa | J18: R&M | K18: Fuel | L18: Lube | M18: Total
B19: Tractor (220 kW) | C19: 230000 | D19: 8000 | F19: 1 | H19: 0.02 | I19: 500 | J19: =C19*(H19*100)/100/I19/tbl_machinery[[#This Row],[Work Rate ha/hr]] -> 9.2 | K19: Cost per Hr | L19: Cost per Hr | M19: =J19+K19+L19 -> 
B20: Tractor (90 kW) | C20: 150000 | D20: 8000 | F20: 1 | H20: 0.02 | I20: 500 | J20: =C20*(H20*100)/100/I20/tbl_machinery[[#This Row],[Work Rate ha/hr]] -> 6 | K20: Cost per Hr | L20: Cost per Hr
B21: S.P. header (9 m) | C21: 600000 | D21: 2500 | E21: 0.85 | F21: 7 | G21: 45 | H21: 0.025 | I21: 250 | J21: =C21*(H21*100)/100/I21/tbl_machinery[[#This Row],[Work Rate ha/hr]] -> 8.571428571 | K21: =G21*$F$582/F21 -> 4.692857143 | L21: =K21*var_lube_factor -> 0.2346428571 | M21: 13.49892857
B22: S.P. header (9 m)(peas) | C22: 600000 | D22: 2500 | E22: 0.7 | F22: 5 | G22: 45 | H22: 0.04 | I22: 250 | J22: =C22*(H22*100)/100/I22/tbl_machinery[[#This Row],[Work Rate ha/hr]] -> 19.2 | K22: 6.57 | L22: 0.3285 | M22: 26.0985
B23: SP header(9m) beans, chicks, lupins) | C23: 600000 | D23: 2500 | E23: 0.7 | F23: 6 | G23: 45 | H23: 0.03 | I23: 250 | J23: =C23*(H23*100)/100/I23/tbl_machinery[[#This Row],[Work Rate ha/hr]] -> 12 | K23: 5.475 | L23: 0.27375 | M23: 17.74875
B24: Airseeder (12m) | C24: 250000 | D24: 2000 | E24: 0.8 | F24: 7.5 | G24: 40 | H24: 0.02 | I24: 250 | J24: =C24*(H24*100)/100/I24/tbl_machinery[[#This Row],[Work Rate ha/hr]] -> 2.666666667 | K24: 3.893333333 | L24: 0.1946666667 | M24: 6.754666667
B25: Boomspray (30 m) | C25: 120000 | D25: 1500 | E25: 0.75 | F25: 40 | G25: 18 | H25: 0.02 | I25: 150 | J25: =C25*(H25*100)/100/I25/tbl_machinery[[#This Row],[Work Rate ha/hr]] -> 0.4 | K25: 0.3285 | L25: 0.016425 | M25: 0.744925
B26: Roller (6 m) | C26: 12000 | D26: 5000 | E26: 0.9 | F26: 10 | G26: 18 | H26: 0.01 | I26: 20 | J26: =C26*(H26*100)/100/I26/tbl_machinery[[#This Row],[Work Rate ha/hr]] -> 0.6 | K26: 1.314 | L26: 0.0657 | M26: 1.9797
B27: Mower-conditioner (5m) | C27: 60000 | D27: 2000 | E27: 0.8 | F27: 4 | G27: 12 | H27: 0.02 | I27: 100 | J27: =C27*(H27*100)/100/I27/tbl_machinery[[#This Row],[Work Rate ha/hr]] -> 3 | K27: 2.19 | L27: =K27/10 -> 0.219 | M27: 5.409
B31: FEED & OTHER COSTS | C31: water | E31: 2.5 | F31: /DSE
C32: Veh fuel, R&M | E32: 1 | F32: /DSE
C33: other | E33: 0.5 | F33: /DSE
C34: hay | E34: 180 | F34: /tonne incl freight
C35: Feed Cereal grain | E35: 200 | F35: /tonne incl freight
C36: lupins | E36: 300 | F36: /tonne incl freight
B39: CHEMICALS | H39: RATES>>>>
B40: Name | C40: Rainfall | D40: Type | E40: Category | F40: Units | G40: Cost | H40: Wheat | I40: Faba Beans | J40: Canola Clearfield | K40: Canola Conventional | L40: Canola Tri Tolerant | M40: Canola Roundup Ready | N40: Kabuli Chickpeas | O40: Durum | P40: Export Oaten Hay | Q40: Feed Barley | R40: Field Peas | S40: Lupins | T40: Malt Barley | U40: Milling Oats | V40: Lentils | W40: Lentils IMI Tolerant | X40: Triticale | Y40: Vetch | Z40: Sown Pasture | AA40: Self Regen Pasture | AB40: Lucerne Pasture Cereal | AC40: Lucerne Pasture Grazing | AD40: Phalaris Sub Pasture Cereal | AE40: Phalaris Sub Grazing | AF40: Adjuvant Desc | AG40: Adjuvant Cost/ha
B41: 2,4-D Amine (625g/l) | C41: LOW | D41: Chemical | E41: Herbicide-Post Emergent | F41: litre | G41: 8.7 | Q41: 1.2 | T41: 1.2
B42: 2,4-D Amine (625g/l) | C42: MEDIUM | D42: Chemical | E42: Herbicide-Post Emergent | F42: litre | G42: 8.7
B43: 2,4-D Amine (625g/l) | C43: HIGH | D43: Chemical | E43: Herbicide-Post Emergent | F43: litre | G43: 8.7 | O43: 1.2
B44: 2,4-D LV Ester (680g/l) | C44: LOW | D44: Chemical | F44: litre | G44: 11.8
B45: 2,4-D LV Ester (680g/l) | C45: MEDIUM | D45: Chemical | F45: litre | G45: 11.8
B46: 2,4-D LV Ester (680g/l) | C46: HIGH | D46: Chemical | F46: litre | G46: 11.8
B47: Achieve® WG | C47: LOW | D47: Chemical | E47: Herbicide-Post Emergent | F47: kg | G47: 53.6 | AF47: Surfactant | AG47: 4.01
B48: Achieve® WG | C48: MEDIUM | D48: Chemical | E48: Herbicide-Post Emergent | F48: kg | G48: 53.6 | X48: 0.4 | AF48: Surfactant | AG48: 4.01
B49: Achieve® WG | C49: HIGH | D49: Chemical | E49: Herbicide-Post Emergent | F49: kg | G49: 53.6 | X49: 0.4 | AF49: Surfactant | AG49: 4.01
B50: Adigor® | C50: LOW | D50: Chemical | F50: litre | G50: 10
B51: Adigor® | C51: MEDIUM | D51: Chemical | F51: litre | G51: 10
B52: Adigor® | C52: HIGH | D52: Chemical | F52: litre | G52: 10
B53: Affinity® | C53: LOW | D53: Chemical | E53: Herbicide-Post Emergent | F53: litre | G53: 140
B54: Affinity® | C54: MEDIUM | D54: Chemical | E54: Herbicide-Post Emergent | F54: litre | G54: 140 | H54: 0.1 | O54: 0.1 | Q54: 0.1 | T54: 0.1
B55: Affinity® | C55: HIGH | D55: Chemical | E55: Herbicide-Post Emergent | F55: litre | G55: 140 | H55: 0.1 | O55: 0.1 | Q55: 0.1 | T55: 0.1
B56: Affirm | C56: LOW | D56: Chemical | E56: Insecticide | F56: litre | G56: 75 | J56: 0 | K56: 0 | L56: 0 | M56: 0
B57: Affirm | C57: MEDIUM | D57: Chemical | E57: Insecticide | F57: litre | G57: 75 | J57: 0.3 | K57: 0.3 | L57: 0.3 | M57: 0.3
B58: Affirm | C58: HIGH | D58: Chemical | E58: Insecticide | F58: litre | G58: 75 | J58: 0.3 | K58: 0.3 | L58: 0.3 | M58: 0.3
B59: Alpha-cypermethrin 16g/L | C59: LOW | D59: Chemical | E59: Insecticide | F59: litre | G59: 8.5
B60: Alpha-cypermethrin 16g/L | C60: MEDIUM | D60: Chemical | E60: Insecticide | F60: litre | G60: 8.5
B61: Alpha-cypermethrin 16g/L | C61: HIGH | D61: Chemical | E61: Insecticide | F61: litre | G61: 8.5
B62: Amistar® | C62: LOW | D62: Chemical | E62: Fungicide | F62: litre | G62: 12.5
B63: Amistar® | C63: MEDIUM | D63: Chemical | E63: Fungicide | F63: litre | G63: 12.5 | Q63: 0.4 | T63: 0.4
B64: Amistar® | C64: HIGH | D64: Chemical | E64: Fungicide | F64: litre | G64: 12.5 | H64: 0.4 | Q64: 0.4 | T64: 0.4
B65: Amistar Xtra | C65: LOW | D65: Chemical | E65: Fungicide | F65: litre | G65: 36.23
B66: Amistar Xtra | C66: MEDIUM | D66: Chemical | E66: Fungicide | F66: litre | G66: 36.23 | Q66: 0.4 | T66: 0.4
B67: Amistar Xtra | C67: HIGH | D67: Chemical | E67: Fungicide | F67: litre | G67: 36.23 | H67: 0.4 | Q67: 0.4 | T67: 0.4
B68: Aphid Control | J68: 4 | K68: 4 | L68: 4
B69: Apron® XL 350 ES | C69: LOW | D69: Chemical | E69: Fungicide | F69: litre | G69: 455
B70: Apron® XL 350 ES | C70: MEDIUM | D70: Chemical | E70: Fungicide | F70: litre | G70: 455
B71: Apron® XL 350 ES | C71: HIGH | D71: Chemical | E71: Fungicide | F71: litre | G71: 455
B72: Aptitude® | C72: LOW | D72: Chemical | F72: kg | G72: 59.76
B73: Aptitude® | C73: MEDIUM | D73: Chemical | F73: kg | G73: 59.76
B74: Aptitude® | C74: HIGH | D74: Chemical | F74: kg | G74: 59.76
B75: Atlantis® (mesosulfuron 30g/L) | C75: LOW | D75: Chemical | E75: Herbicide-Post Emergent | F75: litre | G75: 100.34
B76: Atlantis® (mesosulfuron 30g/L) | C76: MEDIUM | D76: Chemical | E76: Herbicide-Post Emergent | F76: litre | G76: 100.34
B77: Atlantis® (mesosulfuron 30g/L) | C77: HIGH | D77: Chemical | E77: Herbicide-Post Emergent | F77: litre | G77: 100.34
B78: Atrazine (900 gm/litre) | C78: LOW | D78: Chemical | E78: Herbicide-Pre Emergent | F78: litre | G78: 15.2
B79: Atrazine (900 gm/litre) | C79: MEDIUM | D79: Chemical | E79: Herbicide-Pre Emergent | F79: litre | G79: 15.2
B80: Atrazine (900 gm/litre) | C80: HIGH | D80: Chemical | E80: Herbicide-Pre Emergent | F80: litre | G80: 15.2
B81: Atrazine 900g/kg | C81: LOW | D81: Chemical | E81: Herbicide-Pre Emergent | F81: kg | G81: 15.2 | I81: 0.83 | L81: 1.1 | S81: 0.83
B82: Atrazine 900g/kg | C82: MEDIUM | D82: Chemical | E82: Herbicide-Pre Emergent | F82: kg | G82: 15.2 | I82: 0.83 | L82: 1.1 | S82: 0.83
B83: Atrazine 900g/kg | C83: HIGH | D83: Chemical | E83: Herbicide-Pre Emergent | F83: kg | G83: 15.2 | I83: 0.83 | L83: 1.1 | S83: 0.83
B84: Aviator X-Pro® | C84: LOW | D84: Chemical | E84: Fungicide | F84: litre | G84: 54.5 | N84: 0
B85: Aviator X-Pro® | C85: MEDIUM | D85: Chemical | E85: Fungicide | F85: litre | G85: 54.5 | N85: 0.6
B86: Aviator X-Pro® | C86: HIGH | D86: Chemical | E86: Fungicide | F86: litre | G86: 54.5 | N86: 1.2
B87: Axial® | C87: LOW | D87: Chemical | E87: Herbicide-Post Emergent | F87: litre | G87: 73.5
B88: Axial® | C88: MEDIUM | D88: Chemical | E88: Herbicide-Post Emergent | F88: litre | G88: 73.5
B89: Axial® | C89: HIGH | D89: Chemical | E89: Herbicide-Post Emergent | F89: litre | G89: 73.5
B90: Balance ® | C90: LOW | D90: Chemical | E90: Herbicide-Pre Emergent | F90: gram | G90: 0.12 | N90: 75
B91: Balance ® | C91: MEDIUM | D91: Chemical | E91: Herbicide-Pre Emergent | F91: gram | G91: 0.12 | N91: 100
B92: Balance ® | C92: HIGH | D92: Chemical | E92: Herbicide-Pre Emergent | F92: gram | G92: 0.12 | N92: 100
B93: Banjo® | C93: LOW | D93: Chemical | E93: Herbicide-Post Emergent | F93: litre | G93: 5.5
B94: Banjo® | C94: MEDIUM | D94: Chemical | E94: Herbicide-Post Emergent | F94: litre | G94: 5.5
B95: Banjo® | C95: HIGH | D95: Chemical | E95: Herbicide-Post Emergent | F95: litre | G95: 5.5
B96: Bifenthrin 250g/L (Talstar®) | C96: LOW | D96: Chemical | E96: Insecticide | F96: litre | G96: 32.5 | J96: 0.04 | K96: 0.04 | L96: 0.04 | M96: 0.04 | S96: 0.04
B97: Bifenthrin 250g/L (Talstar®) | C97: MEDIUM | D97: Chemical | E97: Insecticide | F97: litre | G97: 32.5 | J97: 0.04 | K97: 0.04 | L97: 0.04 | M97: 0.04 | S97: 0.04
B98: Bifenthrin 250g/L (Talstar®) | C98: HIGH | D98: Chemical | E98: Insecticide | F98: litre | G98: 32.5 | J98: 0.04 | K98: 0.04 | L98: 0.04 | M98: 0.04 | S98: 0.04
B99: Boxer Gold® | C99: LOW | D99: Chemical | E99: Herbicide-Pre Emergent | F99: litre | G99: 10.6
B100: Boxer Gold® | C100: MEDIUM | D100: Chemical | E100: Herbicide-Pre Emergent | F100: litre | G100: 10.6 | O100: 2.5 | Q100: 2.5 | T100: 2.5
B101: Boxer Gold® | C101: HIGH | D101: Chemical | E101: Herbicide-Pre Emergent | F101: litre | G101: 10.6 | O101: 2.5 | Q101: 2.5 | T101: 2.5
B102: Broadstrike® | C102: LOW | D102: Chemical | E102: Herbicide-Post Emergent | F102: gram | G102: 0.35 | AB102: 25 | AC102: 25 | AF102: Oil | AG102: 3.65625
B103: Broadstrike® | C103: MEDIUM | D103: Chemical | E103: Herbicide-Post Emergent | F103: gram | G103: 0.35 | V103: 25 | AA103: 25 | AB103: 25 | AC103: 25 | AF103: Oil | AG103: 3.65625
B104: Broadstrike® | C104: HIGH | D104: Chemical | E104: Herbicide-Post Emergent | F104: gram | G104: 0.35 | V104: 25 | AA104: 50 | AB104: 25 | AC104: 25 | AF104: Oil | AG104: 3.65625
B105: Bromoxynil /MCPA | C105: LOW | D105: Chemical | E105: Herbicide-Post Emergent | F105: litre | G105: 16.25
B106: Bromoxynil /MCPA | C106: MEDIUM | D106: Chemical | E106: Herbicide-Post Emergent | F106: litre | G106: 16.25
B107: Bromoxynil /MCPA | C107: HIGH | D107: Chemical | E107: Herbicide-Post Emergent | F107: litre | G107: 16.25
B108: Bromoxynil 200 | C108: LOW | D108: Chemical | E108: Herbicide-Post Emergent | F108: litre | G108: 13.4 | AD108: 1.5 | AE108: 1.5 | AF108: Wetter | AG108: 0.0675
B109: Bromoxynil 200 | C109: MEDIUM | D109: Chemical | E109: Herbicide-Post Emergent | F109: litre | G109: 13.4 | AD109: 1.5 | AE109: 1.5 | AF109: Wetter | AG109: 0.0675
B110: Bromoxynil 200 | C110: HIGH | D110: Chemical | E110: Herbicide-Post Emergent | F110: litre | G110: 13.4 | AD110: 1.5 | AE110: 1.5 | AF110: Wetter | AG110: 0.0675
B111: Butisan | C111: LOW | D111: Chemical | F111: litre | G111: 39
B112: Butisan | C112: MEDIUM | D112: Chemical | F112: litre | G112: 39
B113: Butisan | C113: HIGH | D113: Chemical | F113: litre | G113: 39
B114: Cadence® (700gm/Kg Dicamba) | C114: LOW | D114: Chemical | E114: Herbicide-Post Emergent | F114: kg | G114: 39
B115: Cadence® (700gm/Kg Dicamba) | C115: MEDIUM | D115: Chemical | E115: Herbicide-Post Emergent | F115: kg | G115: 39
B116: Cadence® (700gm/Kg Dicamba) | C116: HIGH | D116: Chemical | E116: Herbicide-Post Emergent | F116: kg | G116: 39
B117: Carbendazim 500g/kg | C117: LOW | D117: Chemical | E117: Fungicide | F117: kg | G117: 13.55 | N117: 0.5 | V117: 0.5 | W117: 0.5
B118: Carbendazim 500g/kg | C118: MEDIUM | D118: Chemical | E118: Fungicide | F118: kg | G118: 13.55 | I118: 0.5 | N118: 0.5 | V118: 1 | W118: 1
B119: Carbendazim 500g/kg | C119: HIGH | D119: Chemical | E119: Fungicide | F119: kg | G119: 13.55 | I119: 1 | N119: 0.5 | V119: 1 | W119: 1
B120: Carfentrazone 400g/L (Hammer) | C120: LOW | D120: Chemical | E120: Herbicide-Pre Emergent | F120: litre | G120: 149.5 | H120: 0.02 | I120: 0.02 | J120: 0.02 | K120: 0.02 | L120: 0.02 | M120: 0.02 | N120: 0.02 | O120: 0.02 | P120: 0.02 | Q120: 0.02 | R120: 0.02 | S120: 0.02 | T120: 0.02 | U120: 0.02 | V120: 0.02 | W120: 0.02 | X120: 0.02 | Y120: 0.02 | Z120: 0.02 | AB120: 0.02 | AC120: 0.02 | AD120: 0.02 | AE120: 0.02
B121: Carfentrazone 400g/L (Hammer) | C121: MEDIUM | D121: Chemical | E121: Herbicide-Pre Emergent | F121: litre | G121: 149.5 | H121: 0.02 | I121: 0.02 | J121: 0.02 | K121: 0.02 | L121: 0.02 | M121: 0.02 | N121: 0.02 | O121: 0.02 | P121: 0.02 | Q121: 0.02 | R121: 0.02 | S121: 0.02 | T121: 0.02 | U121: 0.02 | V121: 0.02 | W121: 0.02 | X121: 0.02 | Y121: 0.02 | Z121: 0.02 | AB121: 0.02 | AC121: 0.02 | AD121: 0.02 | AE121: 0.02
B122: Carfentrazone 400g/L (Hammer) | C122: HIGH | D122: Chemical | E122: Herbicide-Pre Emergent | F122: litre | G122: 149.5 | H122: 0.02 | I122: 0.02 | J122: 0.02 | K122: 0.02 | L122: 0.02 | M122: 0.02 | N122: 0.02 | O122: 0.02 | P122: 0.02 | Q122: 0.02 | R122: 0.02 | S122: 0.02 | T122: 0.02 | U122: 0.02 | V122: 0.02 | W122: 0.02 | X122: 0.02 | Y122: 0.02 | Z122: 0.02 | AB122: 0.02 | AC122: 0.02 | AD122: 0.02 | AE122: 0.02
B123: Chlorothalonil 720g/L | C123: LOW | D123: Chemical | E123: Fungicide | F123: litre | G123: 13.4 | N123: 2 | W123: 0.8
B124: Chlorothalonil 720g/L | C124: MEDIUM | D124: Chemical | E124: Fungicide | F124: litre | G124: 13.4 | N124: 2 | V124: 1.6 | W124: 1.6
B125: Chlorothalonil 720g/L | C125: HIGH | D125: Chemical | E125: Fungicide | F125: litre | G125: 13.4 | N125: 2 | V125: 2.4 | W125: 2.4
B126: Chlorpyrifos 500g/L | C126: LOW | D126: Chemical | E126: Insecticide | F126: litre | G126: 12.3 | I126: 0.14 | J126: 0.5 | K126: 0.5 | L126: 0.5 | M126: 0.5 | N126: 0.14
B127: Chlorpyrifos 500g/L | C127: MEDIUM | D127: Chemical | E127: Insecticide | F127: litre | G127: 12.3 | I127: 0.14 | J127: 0.5 | K127: 0.5 | L127: 0.5 | M127: 0.5 | N127: 0.14
B128: Chlorpyrifos 500g/L | C128: HIGH | D128: Chemical | E128: Insecticide | F128: litre | G128: 12.3 | I128: 0.14 | J128: 0.5 | K128: 0.5 | L128: 0.5 | M128: 0.5 | N128: 0.14
B129: Chlorsulfuron 750g/kg (Glean) | C129: LOW | D129: Chemical | E129: Herbicide-Pre Emergent | F129: gram | G129: 0.08
B130: Chlorsulfuron 750g/kg (Glean) | C130: MEDIUM | D130: Chemical | E130: Herbicide-Pre Emergent | F130: gram | G130: 0.08
B131: Chlorsulfuron 750g/kg (Glean) | C131: HIGH | D131: Chemical | E131: Herbicide-Pre Emergent | F131: gram | G131: 0.08
B132: Clethodim (360g/L) | C132: LOW | D132: Chemical | E132: Herbicide-Post Emergent | F132: litre | G132: 19.4 | I132: 0.33 | J132: 0.33 | K132: 0.33 | L132: 0.33 | N132: 0.33 | R132: 0.33 | S132: 0.33 | V132: 0.33 | W132: 0.33 | Y132: 0.33 | Z132: 0.33 | AA132: 0.33 | AF132: Oil | AG132: 3.65625
B133: Clethodim (360g/L) | C133: MEDIUM | D133: Chemical | E133: Herbicide-Post Emergent | F133: litre | G133: 19.4 | I133: 0.33 | J133: 0.33 | K133: 0.33 | L133: 0.33 | N133: 0.33 | R133: 0.33 | S133: 0.33 | V133: 0.33 | W133: 0.33 | Y133: 0.33 | Z133: 0.33 | AA133: 0.33 | AF133: Oil | AG133: 3.65625
B134: Clethodim (360g/L) | C134: HIGH | D134: Chemical | E134: Herbicide-Post Emergent | F134: litre | G134: 19.4 | I134: 0.33 | J134: 0.33 | K134: 0.33 | L134: 0.33 | M134: 0.33 | N134: 0.33 | R134: 0.33 | S134: 0.33 | V134: 0.33 | W134: 0.33 | Y134: 0.33 | Z134: 0.33 | AA134: 0.33 | AF134: Oil | AG134: 3.65625
B135: Clethodim (360g/L) + Wetter | C135: LOW | D135: Chemical | E135: Herbicide-Post Emergent | F135: litre | G135: 19.4 | I135: 0.33 | J135: 0.33 | K135: 0.33 | L135: 0.33 | N135: 0.33 | R135: 0.33 | S135: 0.33 | V135: 0.33 | W135: 0.33 | Y135: 0.33 | Z135: 0.33 | AA135: 0.33 | AF135: Wetter | AG135: 0.0675
B136: Clethodim (360g/L) + Wetter | C136: MEDIUM | D136: Chemical | E136: Herbicide-Post Emergent | F136: litre | G136: 19.4 | I136: 0.33 | J136: 0.33 | K136: 0.33 | L136: 0.33 | N136: 0.33 | R136: 0.33 | S136: 0.33 | V136: 0.33 | W136: 0.33 | Y136: 0.33 | Z136: 0.33 | AA136: 0.33 | AF136: Wetter | AG136: 0.0675
B137: Clethodim (360g/L) + Wetter | C137: HIGH | D137: Chemical | E137: Herbicide-Post Emergent | F137: litre | G137: 19.4 | I137: 0.33 | J137: 0.33 | K137: 0.33 | L137: 0.33 | M137: 0.33 | N137: 0.33 | R137: 0.33 | S137: 0.33 | V137: 0.33 | W137: 0.33 | Y137: 0.33 | Z137: 0.33 | AA137: 0.33 | AF137: Wetter | AG137: 0.0675
B138: Clopyralid 300g/L (Lontrel® Advanced) | C138: LOW | D138: Chemical | E138: Herbicide-Post Emergent | F138: litre | G138: 42 | H138: 0.075 | J138: 0.25 | K138: 0.25 | L138: 0.25 | O138: 0.075 | Q138: 0.075 | T138: 0.04 | X138: 0.04
B139: Clopyralid 300g/L (Lontrel® Advanced) | C139: MEDIUM | D139: Chemical | E139: Herbicide-Post Emergent | F139: litre | G139: 42 | J139: 0.25 | K139: 0.25 | L139: 0.25 | X139: 0.04
B140: Clopyralid 300g/L (Lontrel® Advanced) | C140: HIGH | D140: Chemical | E140: Herbicide-Post Emergent | F140: litre | G140: 42 | J140: 0.25 | K140: 0.25 | L140: 0.25 | X140: 0.04
B141: Cogito® | C141: LOW | D141: Chemical | E141: Fungicide | F141: litre | G141: 23.75 | Q141: 0.25 | T141: 0.25
B142: Cogito® | C142: MEDIUM | D142: Chemical | E142: Fungicide | F142: litre | G142: 23.75
B143: Cogito® | C143: HIGH | D143: Chemical | E143: Fungicide | F143: litre | G143: 23.75 | Q143: 0.25 | T143: 0.25
B144: Cruiser 350 | C144: LOW | D144: Chemical | E144: Insecticide | F144: litre | G144: 45
B145: Cruiser 350 | C145: MEDIUM | D145: Chemical | E145: Insecticide | F145: litre | G145: 45
B146: Cruiser 350 | C146: HIGH | D146: Chemical | E146: Insecticide | F146: litre | G146: 45
B147: Diflufenican (Brodal) | C147: LOW | D147: Chemical | E147: Herbicide-Post Emergent | F147: litre | G147: 45 | R147: 0.15 | V147: 0.15
B148: Diflufenican (Brodal) | C148: MEDIUM | D148: Chemical | E148: Herbicide-Post Emergent | F148: litre | G148: 45 | R148: 0.15 | V148: 0.15
B149: Diflufenican (Brodal) | C149: HIGH | D149: Chemical | E149: Herbicide-Post Emergent | F149: litre | G149: 45 | R149: 0.15 | V149: 0.15
B150: Dimethoate 400g/L | C150: LOW | D150: Chemical | E150: Insecticide | F150: litre | G150: 16.5 | I150: 0.5 | R150: 0.1 | V150: 0.4 | W150: 0.4 | Y150: 0.4 | Z150: 0.4 | AA150: 0.085 | AB150: 0.1 | AC150: 0.1 | AD150: 0.1 | AE150: 0.1
B151: Dimethoate 400g/L | C151: MEDIUM | D151: Chemical | E151: Insecticide | F151: litre | G151: 16.5 | I151: 0.5 | R151: 0.1 | V151: 0.4 | W151: 0.4 | Y151: 0.4 | Z151: 0.4 | AA151: 0.085 | AB151: 0.1 | AC151: 0.1 | AD151: 0.1 | AE151: 0.1
B152: Dimethoate 400g/L | C152: HIGH | D152: Chemical | E152: Insecticide | F152: litre | G152: 16.5 | I152: 0.5 | R152: 0.1 | V152: 0.4 | W152: 0.4 | Y152: 0.4 | Z152: 0.4 | AA152: 0.085 | AB152: 0.1 | AC152: 0.1 | AD152: 0.1 | AE152: 0.1
B153: Dimethoate 400g/L (2) | C153: LOW | D153: Chemical | E153: Insecticide | F153: litre | G153: 16.5 | AC153: 0.375 | AD153: 0.1 | AE153: 0.1
B154: Dimethoate 400g/L (2) | C154: MEDIUM | D154: Chemical | E154: Insecticide | F154: litre | G154: 16.5 | Z154: 0.1 | AC154: 0.375 | AD154: 0.1 | AE154: 0.1
B155: Dimethoate 400g/L (2) | C155: HIGH | D155: Chemical | E155: Insecticide | F155: litre | G155: 16.5 | Z155: 0.1 | AB155: 0.375 | AC155: 0.375 | AD155: 0.1 | AE155: 0.1
B156: Diuron 900 gm a.i. granules | C156: LOW | D156: Chemical | E156: Herbicide-Pre Emergent | F156: kg | G156: 18.75 | P156: 0.4 | U156: 0.4 | AB156: 1 | AC156: 1
B157: Diuron 900 gm a.i. granules | C157: MEDIUM | D157: Chemical | E157: Herbicide-Pre Emergent | F157: kg | G157: 18.75 | P157: 0.4 | U157: 0.4 | AB157: 1 | AC157: 1
B158: Diuron 900 gm a.i. granules | C158: HIGH | D158: Chemical | E158: Herbicide-Pre Emergent | F158: kg | G158: 18.75 | P158: 0.4 | U158: 0.4 | AB158: 1 | AC158: 1
B159: dummy | C159: LOW | H159: 0 | I159: 0 | J159: 0 | K159: 0 | L159: 0 | N159: 0 | O159: 0 | P159: 0 | Q159: 0 | R159: 0 | S159: 0 | T159: 0 | U159: 0 | V159: 0 | X159: 0 | Y159: 0
B160: dummy | C160: MEDIUM | H160: 0 | I160: 0 | J160: 0 | K160: 0 | L160: 0 | N160: 0 | O160: 0 | P160: 0 | Q160: 0 | R160: 0 | S160: 0 | T160: 0 | U160: 0 | V160: 0 | X160: 0 | Y160: 0
B161: dummy | C161: HIGH | H161: 0 | I161: 0 | J161: 0 | K161: 0 | L161: 0 | N161: 0 | O161: 0 | P161: 0 | Q161: 0 | R161: 0 | S161: 0 | T161: 0 | U161: 0 | V161: 0 | X161: 0 | Y161: 0
B162: Epoxiconazole 125g/L | C162: LOW | D162: Chemical | E162: Fungicide | F162: litre | G162: 30
B163: Epoxiconazole 125g/L | C163: MEDIUM | D163: Chemical | E163: Fungicide | F163: litre | G163: 30 | H163: 0.5
B164: Epoxiconazole 125g/L | C164: HIGH | D164: Chemical | E164: Fungicide | F164: litre | G164: 30 | H164: 0.5
B165: Factor® (butroxydim 250g/kg) | C165: LOW | D165: Chemical | E165: Herbicide-Post Emergent | F165: gram | G165: 0.13
B166: Factor® (butroxydim 250g/kg) | C166: MEDIUM | D166: Chemical | E166: Herbicide-Post Emergent | F166: gram | G166: 0.13
B167: Factor® (butroxydim 250g/kg) | C167: HIGH | D167: Chemical | E167: Herbicide-Post Emergent | F167: gram | G167: 0.13 | I167: 180 | N167: 180 | R167: 180 | S167: 180 | V167: 180 | W167: 180 | Y167: 180
B168: Flight® | C168: LOW | D168: Chemical | F168: litre | G168: 31.25
B169: Flight® | C169: MEDIUM | D169: Chemical | F169: litre | G169: 31.25
B170: Flight® | C170: HIGH | D170: Chemical | F170: litre | G170: 31.25
A171: THIS APPEARS IN BOTH THE CHEM | B171: Flutriafol (500g/l) | C171: LOW | D171: Chemical | E171: Fungicide | F171: litre | G171: 45
A172: AND SEEDS TABLES. SO BE CAREFUL | B172: Flutriafol (500g/l) | C172: MEDIUM | D172: Chemical | E172: Fungicide | F172: litre | G172: 45
A173: WHEN UPDATING PRICES! | B173: Flutriafol (500g/l) | C173: HIGH | D173: Chemical | E173: Fungicide | F173: litre | G173: 45
B174: Flutriafol (on fert) | C174: LOW | D174: Chemical | E174: Fungicide | F174: litre | G174: 45 | H174: 0.2 | J174: 0.2 | K174: 0.2 | L174: 0.2
B175: Flutriafol (on fert) | C175: MEDIUM | D175: Chemical | E175: Fungicide | F175: litre | G175: 45 | H175: 0.2 | J175: 0.2 | K175: 0.2 | L175: 0.2
B176: Flutriafol (on fert) | C176: HIGH | D176: Chemical | E176: Fungicide | F176: litre | G176: 45 | H176: 0.2 | J176: 0.2 | K176: 0.2 | L176: 0.2
B177: Glypho (pre-harvest) | C177: LOW | D177: Chemical | E177: Herbicide-Pre Emergent | F177: litre | G177: 15 | J177: 2 | K177: 2 | L177: 2
B178: Glypho (pre-harvest) | C178: MEDIUM | D178: Chemical | E178: Herbicide-Pre Emergent | F178: litre | G178: 15 | J178: 2 | K178: 2 | L178: 2 | M178: 1.2
B179: Glypho (pre-harvest) | C179: HIGH | D179: Chemical | E179: Herbicide-Pre Emergent | F179: litre | G179: 15 | J179: 2 | K179: 2 | L179: 2 | M179: 1.2
B180: Glyphosate 450g/L | C180: LOW | D180: Chemical | E180: Herbicide-Pre Emergent | F180: litre | G180: 13
B181: Glyphosate 450g/L | C181: MEDIUM | D181: Chemical | E181: Herbicide-Pre Emergent | F181: litre | G181: 13
B182: Glyphosate 450g/L | C182: HIGH | D182: Chemical | E182: Herbicide-Pre Emergent | F182: litre | G182: 13
B183: Glyphosate 540g/L | C183: LOW | D183: Chemical | E183: Herbicide-Pre Emergent | F183: litre | G183: 15 | H183: 1.2 | I183: 1.2 | J183: 1.2 | K183: 1.2 | L183: 1.2 | M183: 1.2 | N183: 1.2 | O183: 1.2 | P183: 1.2 | Q183: 1.2 | R183: 1.2 | S183: 1.2 | T183: 1.2 | U183: 1.2 | V183: 1.2 | W183: 1.2 | X183: 1.2 | Y183: 1.2 | Z183: 1.2 | AB183: 1.2 | AC183: 1.2 | AD183: 1.2 | AE183: 1.2
B184: Glyphosate 540g/L | C184: MEDIUM | D184: Chemical | E184: Herbicide-Pre Emergent | F184: litre | G184: 15 | H184: 1.2 | I184: 1.2 | J184: 1.2 | K184: 1.2 | L184: 1.2 | M184: 1.2 | N184: 1.2 | O184: 1.2 | P184: 1.2 | Q184: 1.2 | R184: 1.2 | S184: 1.2 | T184: 1.2 | U184: 1.2 | V184: 1.2 | W184: 1.2 | X184: 1.2 | Y184: 1.2 | Z184: 1.2 | AB184: 1.2 | AC184: 1.2 | AD184: 1.2 | AE184: 1.2
B185: Glyphosate 540g/L | C185: HIGH | D185: Chemical | E185: Herbicide-Pre Emergent | F185: litre | G185: 15 | H185: 1.2 | I185: 1.2 | J185: 1.2 | K185: 1.2 | L185: 1.2 | M185: 1.2 | N185: 1.2 | O185: 1.2 | P185: 1.2 | Q185: 1.2 | R185: 1.2 | S185: 1.2 | T185: 1.2 | U185: 1.2 | V185: 1.2 | W185: 1.2 | X185: 1.2 | Y185: 1.2 | Z185: 1.2 | AB185: 1.2 | AC185: 1.2 | AD185: 1.2 | AE185: 1.2
B186: Glyphosate 540g/L (desiccant) | C186: LOW | D186: Chemical | E186: Herbicide-Post Emergent | F186: litre | G186: 15 | Z186: 1.5
B187: Glyphosate 540g/L (desiccant) | C187: MEDIUM | D187: Chemical | E187: Herbicide-Post Emergent | F187: litre | G187: 15 | Z187: 1.5
B188: Glyphosate 540g/L (desiccant) | C188: HIGH | D188: Chemical | E188: Herbicide-Post Emergent | F188: litre | G188: 15 | Z188: 1.5
B189: Glyphosate 540g/L Pre cutting | C189: LOW | D189: Chemical | E189: Herbicide-Pre Emergent | F189: litre | G189: 15 | I189: 1.2 | P189: 2
B190: Glyphosate 540g/L Pre cutting | C190: MEDIUM | D190: Chemical | E190: Herbicide-Pre Emergent | F190: litre | G190: 15 | I190: 1.2 | P190: 2.5
B191: Glyphosate 540g/L Pre cutting | C191: HIGH | D191: Chemical | E191: Herbicide-Pre Emergent | F191: litre | G191: 15 | I191: 1.2 | P191: 2.5
B192: Haloxyfop 520g/L (Verdict) | C192: LOW | D192: Chemical | E192: Herbicide-Post Emergent | F192: litre | G192: 46.95 | I192: 0.04 | J192: 0.075 | K192: 0.04 | L192: 0.04 | N192: 0.04 | R192: 0.04 | S192: 0.04 | V192: 0.04 | W192: 0.04 | Y192: 0.04 | Z192: 0.075 | AA192: 0.075 | AB192: 0.075 | AC192: 0.075
B193: Haloxyfop 520g/L (Verdict) | C193: MEDIUM | D193: Chemical | E193: Herbicide-Post Emergent | F193: litre | G193: 46.95 | I193: 0.08 | J193: 0.075 | K193: 0.04 | L193: 0.04 | N193: 0.04 | R193: 0.04 | S193: 0.04 | V193: 0.04 | W193: 0.04 | Y193: 0.04 | Z193: 0.075 | AA193: 0.075 | AB193: 0.075 | AC193: 0.075
B194: Haloxyfop 520g/L (Verdict) | C194: HIGH | D194: Chemical | E194: Herbicide-Post Emergent | F194: litre | G194: 46.95 | J194: 0.075 | K194: 0.04 | L194: 0.04 | Z194: 0.075 | AA194: 0.075 | AB194: 0.075 | AC194: 0.075
B195: Adjuvant | C195: LOW | D195: Chemical | E195: Herbicide-Post Emergent | F195: litre | G195: 5.6 | J195: 0.375
B196: Adjuvant | C196: MEDIUM | D196: Chemical | E196: Herbicide-Post Emergent | F196: litre | G196: 5.6 | J196: 0.375
B197: Adjuvant | C197: HIGH | D197: Chemical | E197: Herbicide-Post Emergent | F197: litre | G197: 5.6 | J197: 0.375
B198: Hot-up® | C198: LOW | D198: Chemical | E198: Adjuvant | F198: litre | G198: 4.94
B199: Hot-up® | C199: MEDIUM | D199: Chemical | E199: Adjuvant | F199: litre | G199: 4.94
B200: Hot-up® | C200: HIGH | D200: Chemical | E200: Adjuvant | F200: litre | G200: 4.94
B201: Imazethapyr 700g/kg | C201: LOW | D201: Chemical | E201: Herbicide-Pre Emergent | F201: kg | G201: 102 | W201: 0.07
B202: Imazethapyr 700g/kg | C202: MEDIUM | D202: Chemical | E202: Herbicide-Pre Emergent | F202: kg | G202: 102 | W202: 0.07
B203: Imazethapyr 700g/kg | C203: HIGH | D203: Chemical | E203: Herbicide-Pre Emergent | F203: kg | G203: 102 | W203: 0.07
B204: Imidacloprid 600 g/L | C204: LOW | D204: Chemical | E204: Insecticide | F204: litre | G204: 43.65
B205: Imidacloprid 600 g/L | C205: MEDIUM | D205: Chemical | E205: Insecticide | F205: litre | G205: 43.65
B206: Imidacloprid 600 g/L | C206: HIGH | D206: Chemical | E206: Insecticide | F206: litre | G206: 43.65
B207: Imidan® | C207: LOW | D207: Chemical | E207: Insecticide | F207: litre | G207: 15.5
B208: Imidan® | C208: MEDIUM | D208: Chemical | E208: Insecticide | F208: litre | G208: 15.5
B209: Imidan® | C209: HIGH | D209: Chemical | E209: Insecticide | F209: litre | G209: 15.5
B210: Intervix® | C210: LOW | D210: Chemical | E210: Herbicide-Post Emergent | F210: litre | G210: 31 | J210: 0.4 | W210: 0.75
B211: Intervix® | C211: MEDIUM | D211: Chemical | E211: Herbicide-Post Emergent | F211: litre | G211: 31 | J211: 0.6 | W211: 0.75
B212: Intervix® | C212: HIGH | D212: Chemical | E212: Herbicide-Post Emergent | F212: litre | G212: 31 | J212: 0.6 | W212: 0.75
B213: Intervix® 1 | C213: LOW | D213: Chemical | E213: Herbicide-Post Emergent | F213: litre | G213: 31 | J213: 0.4 | W213: 0.75 | AF213: Hasten | AG213: =6.75*0.375 -> 2.53125
B214: Intervix® 1 | C214: MEDIUM | D214: Chemical | E214: Herbicide-Post Emergent | F214: litre | G214: 31 | J214: 0.6 | W214: 0.75 | AF214: Hasten | AG214: 2.53125
B215: Intervix® 1 | C215: HIGH | D215: Chemical | E215: Herbicide-Post Emergent | F215: litre | G215: 31 | J215: 0.6 | W215: 0.75 | AF215: Hasten | AG215: 2.53125
... 434 more rows

Sheet GM Crib (hidden)
A1: This sheet takes the total GM/HA at the bottom of each sheet and compares it. Useful to make sure the R2 versions of each sheet agree to the R1 versions
A2: When the model is unpopulated the variances should all be zero
A3: GM/HA (row 162) | F3: GM/HA (row 162) | K3: GM/HA (row 162)
A4: Sheet | B4: LOW | C4: MED | D4: HIGH | F4: Sheet | G4: LOW | H4: MED | I4: HIGH | K4: Sheet | L4: LOW | M4: MED | N4: HIGH
A5: WHEAT | B5: =INDIRECT("'"&$A5&"'!l162") -> 359.7719 | C5: =INDIRECT("'"&$A5&"'!o162") -> 559.42654 | D5: =INDIRECT("'"&$A5&"'!r162") -> 819.62934 | F5: EXPORT OATEN HAY | G5: =INDIRECT("'"&$F5&"'!l162") -> 549.565 | H5: =INDIRECT("'"&$F5&"'!o162") -> 896.11625 | I5: =INDIRECT("'"&$F5&"'!r162") -> 1038.535 | K5: VETCH | L5: =INDIRECT("'"&$K5&"'!l162") -> 183.22175 | M5: =INDIRECT("'"&$K5&"'!o162") -> 444.24175 | N5: =INDIRECT("'"&$K5&"'!r162") -> 708.21975
A6: WHEAT R2 | B6: =INDIRECT("'"&$A6&"'!l162") -> 359.7719 | C6: =INDIRECT("'"&$A6&"'!o162") -> 559.42654 | D6: =INDIRECT("'"&$A6&"'!r162") -> 819.62934 | F6: EXPORT OATEN HAY R2 | G6: =INDIRECT("'"&$F6&"'!l162") -> 549.565 | H6: =INDIRECT("'"&$F6&"'!o162") -> 896.11625 | I6: =INDIRECT("'"&$F6&"'!r162") -> 1038.535 | K6: VETCH R2 | L6: =INDIRECT("'"&$K6&"'!l162") -> 183.22175 | M6: =INDIRECT("'"&$K6&"'!o162") -> 444.24175 | N6: =INDIRECT("'"&$K6&"'!r162") -> 708.21975
A7: VAR | B7: =B6-B5 -> 0 | C7: 0 | D7: 0 | F7: VAR | G7: =G6-G5 -> 0 | H7: =H6-H5 -> 0 | I7: =I6-I5 -> 0 | K7: VAR | L7: =L6-L5 -> 0 | M7: =M6-M5 -> 0 | N7: =N6-N5 -> 0
A9: BEANS | B9: =INDIRECT("'"&$A9&"'!l162") -> 125.00975 | C9: =INDIRECT("'"&$A9&"'!o162") -> 437.30675 | D9: =INDIRECT("'"&$A9&"'!r162") -> 967.72775 | F9: FEED BARLEY | G9: =INDIRECT("'"&$F9&"'!l162") -> 135.4624 | H9: =INDIRECT("'"&$F9&"'!o162") -> 298.315 | I9: =INDIRECT("'"&$F9&"'!r162") -> 460.33425 | K9: LENTILS IMI TOLERANT | L9: =INDIRECT("'"&$K9&"'!l162") -> 247.91675 | M9: =INDIRECT("'"&$K9&"'!o162") -> 647.53975 | N9: =INDIRECT("'"&$K9&"'!r162") -> 1034.88775
A10: BEANS R2 | B10: =INDIRECT("'"&$A10&"'!l162") -> 125.00975 | C10: =INDIRECT("'"&$A10&"'!o162") -> 437.30675 | D10: =INDIRECT("'"&$A10&"'!r162") -> 967.72775 | F10: FEED BARLEY R2 | G10: =INDIRECT("'"&$F10&"'!l162") -> 135.4624 | H10: =INDIRECT("'"&$F10&"'!o162") -> 298.315 | I10: =INDIRECT("'"&$F10&"'!r162") -> 460.33425 | K10: LENTILS IMI TOLERANT R2 | L10: =INDIRECT("'"&$K10&"'!l162") -> 247.91675 | M10: =INDIRECT("'"&$K10&"'!o162") -> 647.53975 | N10: =INDIRECT("'"&$K10&"'!r162") -> 1034.88775
A11: VAR | B11: =B10-B9 -> 0 | C11: =C10-C9 -> 0 | D11: =D10-D9 -> 0 | F11: VAR | G11: =G10-G9 -> 0 | H11: =H10-H9 -> 0 | I11: =I10-I9 -> 0 | K11: VAR | L11: =L10-L9 -> 0 | M11: =M10-M9 -> 0 | N11: =N10-N9 -> 0
A13: CANOLA CLEARFIELD | B13: =INDIRECT("'"&$A13&"'!l162") -> 101.08225 | C13: =INDIRECT("'"&$A13&"'!o162") -> 407.06975 | D13: =INDIRECT("'"&$A13&"'!r162") -> 744.69475 | F13: PEAS | G13: =INDIRECT("'"&$F13&"'!l162") -> 160.4175 | H13: =INDIRECT("'"&$F13&"'!o162") -> 401.8485 | I13: =INDIRECT("'"&$F13&"'!r162") -> 631.609 | K13: SOWN PASTURE | L13: =INDIRECT("'"&$K13&"'!l162") -> 107.9805 | M13: =INDIRECT("'"&$K13&"'!o162") -> 265.1805 | N13: =INDIRECT("'"&$K13&"'!r162") -> 520.2805
A14: CANOLA CLEARFIELD R2 | B14: =INDIRECT("'"&$A14&"'!l162") -> 101.08225 | C14: =INDIRECT("'"&$A14&"'!o162") -> 407.06975 | D14: =INDIRECT("'"&$A14&"'!r162") -> 744.69475 | F14: PEAS R2 | G14: =INDIRECT("'"&$F14&"'!l162") -> 160.4175 | H14: =INDIRECT("'"&$F14&"'!o162") -> 401.8485 | I14: =INDIRECT("'"&$F14&"'!r162") -> 631.609 | K14: SOWN PASTURE R2 | L14: =INDIRECT("'"&$K14&"'!l162") -> 107.9805 | M14: =INDIRECT("'"&$K14&"'!o162") -> 265.1805 | N14: =INDIRECT("'"&$K14&"'!r162") -> 520.2805
A15: VAR | B15: =B14-B13 -> 0 | C15: =C14-C13 -> 0 | D15: =D14-D13 -> 0 | F15: VAR | G15: =G14-G13 -> 0 | H15: =H14-H13 -> 0 | I15: =I14-I13 -> 0 | K15: VAR | L15: =L14-L13 -> 0 | M15: =M14-M13 -> 0 | N15: =N14-N13 -> 0
A17: CANOLA ROUNDUP READY | B17: =INDIRECT("'"&$A17&"'!l162") -> 154.718 | C17: =INDIRECT("'"&$A17&"'!o162") -> 402.575 | D17: =INDIRECT("'"&$A17&"'!r162") -> 710.941 | F17: LUPINS | G17: =INDIRECT("'"&$F17&"'!l162") -> 101.98125 | H17: =INDIRECT("'"&$F17&"'!o162") -> 259.62125 | I17: =INDIRECT("'"&$F17&"'!r162") -> 428.73925 | K17: SELF REGEN PASTURE | L17: =INDIRECT("'"&$K17&"'!l162") -> 172.618 | M17: =INDIRECT("'"&$K17&"'!o162") -> 325.868 | N17: =INDIRECT("'"&$K17&"'!r162") -> 579.118
A18: CANOLA ROUNDUP READY R2 | B18: =INDIRECT("'"&$A18&"'!l162") -> 154.718 | C18: =INDIRECT("'"&$A18&"'!o162") -> 402.575 | D18: =INDIRECT("'"&$A18&"'!r162") -> 710.941 | F18: LUPINS R2 | G18: =INDIRECT("'"&$F18&"'!l162") -> 101.98125 | H18: =INDIRECT("'"&$F18&"'!o162") -> 259.62125 | I18: =INDIRECT("'"&$F18&"'!r162") -> 428.73925 | K18: SELF REGEN PASTURE R2 | L18: =INDIRECT("'"&$K18&"'!l162") -> 172.618 | M18: =INDIRECT("'"&$K18&"'!o162") -> 325.868 | N18: =INDIRECT("'"&$K18&"'!r162") -> 579.118
A19: VAR | B19: =B18-B17 -> 0 | C19: =C18-C17 -> 0 | D19: =D18-D17 -> 0 | F19: VAR | G19: =G18-G17 -> 0 | H19: =H18-H17 -> 0 | I19: =I18-I17 -> 0 | K19: VAR | L19: =L18-L17 -> 0 | M19: =M18-M17 -> 0 | N19: =N18-N17 -> 0
A21: CANOLA CONVENTIONAL | B21: =INDIRECT("'"&$A21&"'!l162") -> 148.89175 | C21: =INDIRECT("'"&$A21&"'!o162") -> 496.26675 | D21: =INDIRECT("'"&$A21&"'!r162") -> 833.89175 | F21: MALT BARLEY | G21: =INDIRECT("'"&$F21&"'!l162") -> 168.0484 | H21: =INDIRECT("'"&$F21&"'!o162") -> 354.139 | I21: =INDIRECT("'"&$F21&"'!r162") -> 544.59025 | K21: LUCERNE PASTURE CEREAL | L21: =INDIRECT("'"&$K21&"'!l162") -> 0 | M21: =INDIRECT("'"&$K21&"'!o162") -> 0 | N21: =INDIRECT("'"&$K21&"'!r162") -> 0
A22: CANOLA CONVENTIONAL R2 | B22: =INDIRECT("'"&$A22&"'!l162") -> 148.89175 | C22: =INDIRECT("'"&$A22&"'!o162") -> 496.26675 | D22: =INDIRECT("'"&$A22&"'!r162") -> 833.89175 | F22: MALT BARLEY R2 | G22: =INDIRECT("'"&$F22&"'!l162") -> 168.0484 | H22: =INDIRECT("'"&$F22&"'!o162") -> 354.139 | I22: =INDIRECT("'"&$F22&"'!r162") -> 544.59025 | K22: LUCERNE PASTURE CEREAL R2 | L22: =INDIRECT("'"&$K22&"'!l162") -> 0 | M22: =INDIRECT("'"&$K22&"'!o162") -> 0 | N22: =INDIRECT("'"&$K22&"'!r162") -> 0
A23: VAR | B23: =B22-B21 -> 0 | C23: =C22-C21 -> 0 | D23: =D22-D21 -> 0 | F23: VAR | G23: =G22-G21 -> 0 | H23: =H22-H21 -> 0 | I23: =I22-I21 -> 0 | K23: VAR | L23: =L22-L21 -> 0 | M23: =M22-M21 -> 0 | N23: =N22-N21 -> 0
A25: CANOLA TRITOLERANT | B25: =INDIRECT("'"&$A25&"'!l162") -> 61.04675 | C25: =INDIRECT("'"&$A25&"'!o162") -> 353.29675 | D25: =INDIRECT("'"&$A25&"'!r162") -> 706.17175 | F25: MILLING OATS | G25: =INDIRECT("'"&$F25&"'!l162") -> 128.7695 | H25: =INDIRECT("'"&$F25&"'!o162") -> 328.9776 | I25: =INDIRECT("'"&$F25&"'!r162") -> 464.4462 | K25: LUCERNE PASTURE GRAZING | L25: =INDIRECT("'"&$K25&"'!l162") -> 0 | M25: =INDIRECT("'"&$K25&"'!o162") -> 0 | N25: =INDIRECT("'"&$K25&"'!r162") -> 0
A26: CANOLA TRITOLERANT R2 | B26: =INDIRECT("'"&$A26&"'!l162") -> 61.04675 | C26: =INDIRECT("'"&$A26&"'!o162") -> 353.29675 | D26: =INDIRECT("'"&$A26&"'!r162") -> 706.17175 | F26: MILLING OATS R2 | G26: =INDIRECT("'"&$F26&"'!l162") -> 128.7695 | H26: =INDIRECT("'"&$F26&"'!o162") -> 328.9776 | I26: =INDIRECT("'"&$F26&"'!r162") -> 464.4462 | K26: LUCERNE PASTURE GRAZING R2 | L26: =INDIRECT("'"&$K26&"'!l162") -> 0 | M26: =INDIRECT("'"&$K26&"'!o162") -> 0 | N26: =INDIRECT("'"&$K26&"'!r162") -> 0
A27: VAR | B27: =B26-B25 -> 0 | C27: =C26-C25 -> 0 | D27: =D26-D25 -> 0 | F27: VAR | G27: =G26-G25 -> 0 | H27: =H26-H25 -> 0 | I27: =I26-I25 -> 0 | K27: VAR | L27: =L26-L25 -> 0 | M27: =M26-M25 -> 0 | N27: =N26-N25 -> 0
A29: CHICKPEAS | B29: =INDIRECT("'"&$A29&"'!l162") -> 209.61475 | C29: =INDIRECT("'"&$A29&"'!o162") -> 435.05475 | D29: =INDIRECT("'"&$A29&"'!r162") -> 714.47075 | F29: LENTILS | G29: =INDIRECT("'"&$F29&"'!l162") -> 321.32675 | H29: =INDIRECT("'"&$F29&"'!o162") -> 781.71975 | I29: =INDIRECT("'"&$F29&"'!r162") -> 1233.49775 | K29: PHALARIS SUB PASTURE CEREAL | L29: =INDIRECT("'"&$K29&"'!l162") -> 552.1048 | M29: =INDIRECT("'"&$K29&"'!o162") -> 552.1048 | N29: =INDIRECT("'"&$K29&"'!r162") -> 550.5048
A30: CHICKPEAS R2 | B30: =INDIRECT("'"&$A30&"'!l162") -> 209.61475 | C30: =INDIRECT("'"&$A30&"'!o162") -> 435.05475 | D30: =INDIRECT("'"&$A30&"'!r162") -> 714.47075 | F30: LENTILS R2 | G30: =INDIRECT("'"&$F30&"'!l162") -> 321.32675 | H30: =INDIRECT("'"&$F30&"'!o162") -> 781.71975 | I30: =INDIRECT("'"&$F30&"'!r162") -> 1233.49775 | K30: PHALARIS SUB PASTURE CEREAL R2 | L30: =INDIRECT("'"&$K30&"'!l162") -> 552.1048 | M30: =INDIRECT("'"&$K30&"'!o162") -> 552.1048 | N30: =INDIRECT("'"&$K30&"'!r162") -> 550.5048
A31: VAR | B31: =B30-B29 -> 0 | C31: =C30-C29 -> 0 | D31: =D30-D29 -> 0 | F31: VAR | G31: =G30-G29 -> 0 | H31: =H30-H29 -> 0 | I31: =I30-I29 -> 0 | K31: VAR | L31: =L30-L29 -> 0 | M31: =M30-M29 -> 0 | N31: =N30-N29 -> 0
A33: DURUM | B33: =INDIRECT("'"&$A33&"'!l162") -> 403.8667 | C33: =INDIRECT("'"&$A33&"'!o162") -> 860.18035 | D33: =INDIRECT("'"&$A33&"'!r162") -> 1387.91015 | F33: TRITICALE | G33: =INDIRECT("'"&$F33&"'!l162") -> 72.0525 | H33: =INDIRECT("'"&$F33&"'!o162") -> 201.9525 | I33: =INDIRECT("'"&$F33&"'!r162") -> 336.4475 | K33: PHALARIS SUB PASTURE GRAZING | L33: =INDIRECT("'"&$K33&"'!l162") -> 810.0248 | M33: =INDIRECT("'"&$K33&"'!o162") -> 810.0248 | N33: =INDIRECT("'"&$K33&"'!r162") -> 808.4248
A34: DURUM R2 | B34: =INDIRECT("'"&$A34&"'!l162") -> 403.8667 | C34: =INDIRECT("'"&$A34&"'!o162") -> 860.18035 | D34: =INDIRECT("'"&$A34&"'!r162") -> 1387.91015 | F34: TRITICALE R2 | G34: =INDIRECT("'"&$F34&"'!l162") -> 72.0525 | H34: =INDIRECT("'"&$F34&"'!o162") -> 201.9525 | I34: =INDIRECT("'"&$F34&"'!r162") -> 336.4475 | K34: PHALARIS SUB PASTURE GRAZING R2 | L34: =INDIRECT("'"&$K34&"'!l162") -> 810.0248 | M34: =INDIRECT("'"&$K34&"'!o162") -> 810.0248 | N34: =INDIRECT("'"&$K34&"'!r162") -> 808.4248
A35: VAR | B35: =B34-B33 -> 0 | C35: =C34-C33 -> 0 | D35: =D34-D33 -> 0 | F35: VAR | G35: =G34-G33 -> 0 | H35: =H34-H33 -> 0 | I35: =I34-I33 -> 0 | K35: VAR | L35: =L34-L33 -> 0 | M35: =M34-M33 -> 0 | N35: =N34-N33 -> 0

Sheet DV_TABLES (hidden)
B3: Fertiliser
B4: Name
B5: DAP + Urea 24:16
B6: DAP + Urea 28:13
B7: DAP + Urea 32:10
B8: DAP 18:20
B9: DAP Plus 2% Zn
B10: Flutriafol (on fert)
B11: Granulock Z 11:22:0:4 plus 1% Zinc
B12: Lime
B13: MAP 10:22
B14: Sulphate of Ammonia
B15: Superphosphate
B16: Trace Elements
B17: Urea
B21: Seed Data
B22: Name
B23: Apron® XL 350 ES
B24: Baytan® T Flowable
B25: EverGol® Energy
B26: Flutriafol (500g/l)
B27: Innoculant
B28: P-Pickel
B29: Rancona Dimension®
B30: Seed
B31: Seed Grading
B32: Seed Treatment(1) Smuts and Bunts
B33: Seed Treatment(2) Systiva Seed Dressing
B34: Seed Treatment(3) Aphid Control
B35: Uniform®
B36: Veto® 25C Flowable
B37: Vibrance®
B41: CHEMICALS-HERBICIDES
B42: Name
B44: 2,4-D Amine (625g/l)
B45: 2,4-D LV Ester (680g/l)
B46: Achieve® WG
B47: Adigor®
B48: Adjuvant
B49: Affinity®
B50: Aptitude®
B51: Atlantis® (mesosulfuron 30g/L)
B52: Atrazine (900 gm/litre)
B53: Atrazine 900g/kg
B54: Axial®
B55: Balance ®
B56: Banjo®
B57: Boxer Gold®
B58: Broadstrike®
B59: Bromoxynil /MCPA
B60: Bromoxynil 200
B61: Butisan
B62: Cadence® (700gm/Kg Dicamba)
B63: Carfentrazone 400g/L (Hammer)
B64: Chlorsulfuron 750g/kg (Glean)
B65: Clethodim (360g/L)
B66: Clethodim (360g/L) + Wetter
B67: Clopyralid 300g/L (Lontrel® Advanced)
B68: Crusader®
B69: Diflufenican (Brodal)
B70: Diuron 900 gm a.i. granules
B71: Factor® (butroxydim 250g/kg)
B72: Flight®
B73: Glypho (pre-harvest)
B74: Glyphosate 450g/L
B75: Glyphosate 540g/L
B76: Glyphosate 540g/L (desiccant)
B77: Glyphosate 540g/L Pre cutting
B78: Haloxyfop 520g/L (Verdict)
B79: Imazethapyr 700g/kg
B80: Intervix®
B81: Intervix® 1
B82: Luximax
B83: M.C.P.A. LVE
B84: MCPA Amine (750g/L)
B85: Metribuzin 750 gm/kg
B86: Metsulfuron methyl
B87: Overwatch
B88: Oxyfluorfen 240g/L
B89: Paradigm®
B90: Paraquat
B91: Pixxaro
B92: Precept®
B93: Propyzamide (500 g/L)
B94: Prosulfocarb
B95: Quizalofop 200g/L
B96: Raptor
B97: Reglone®
B98: Rexade® (New formulation of Crusader®)
B99: Roundup Ready 540
B100: Roundup Ready PL with Plantshield
B101: Sakura®
B102: Sentry®
B103: Sharpen®
B104: Simazine Granules
B105: S-metolachlor 960g/L (Dual®Gold)
B106: Sprayseed®
B107: Starane® Advanced (fluroxypyr 333g/L)
B108: Talinor
B109: Terbyne® 875
B110: Tigrex®
B111: Topik® EC
B112: Tri-allate 500g/L
B113: Triasulfuron 750g/kg (Logran)
B114: Triclopyr 600g/L
B115: Triclopyr 755g/L
B116: Trifluralin 480g/L
B117: Valor®
B118: Velocity®
B126: CHEMICALS-FUNGICIDES
B127: NAME
B129: Amistar®
B130: Amistar Xtra
B131: Apron® XL 350 ES
B132: Aviator X-Pro®
B133: Baytan® T Flowable
B134: Carbendazim 500g/kg
B135: Chlorothalonil 720g/L
B136: Cogito®
B137: Epoxiconazole 125g/L
B138: EverGol® Energy
B139: Flutriafol (on fert)
B140: Flutriafol (500g/l)
B141: Mancozeb 750g/kg
B142: P-Pickel T
B143: Pontiac®
B144: Procymidone 500g/L
B145: Propiconazole 250g/L
B146: Prosaro®
B147: Rancona Dimension®
B148: Systiva®
B149: Tazer® Xpert
B150: Tebuconazole 430
B151: Uniform®
B152: Veritas®
B153: Veto® 25C Flowable
B154: Vibrance®
B159: CHEMICAL-INSECTICIDES
B160: NAME
B162: Affirm
B163: Alpha-cypermethrin 16g/L
B164: Bifenthrin 250g/L (Talstar®)
B165: Chlorpyrifos 500g/L
B166: Cruiser 350
B167: Dimethoate 400g/L
B168: Dimethoate 400g/L (2)
B169: Glyphosate 540g/L Pre cutting
B170: Imidacloprid 600 g/L
B171: Imidan®
B172: Lambda-cyhalothrin (Karate Zeon) 1st
B173: Lambda-cyhalothrin (Karate Zeon) 2nd
B174: Omethoate 400g/L
B175: Pirimicarb 500g/kg
B176: Pyrinex® Super
B177: Sumi-Alpha® Flex
B178: Transform
B179: Trojan®

Sheet Summary GM figures (hidden)
A1: =m_year&" GROSS MARGIN ESTIMATES" -> 2022 GROSS MARGIN ESTIMATES | L1: COMMODITY PRICES HISTORICAL DATA
A2: ="The tables below summarise the anticipated gross margins for all crops for "&m_year -> The tables below summarise the anticipated gross margins for all crops for 2022 | L2: Historical commodity price data and trends can be used as a guide in assessing average returns over time and also the variability of those returns for any given commodity.
L4: ="NOTE: "&Year_Short&" Forecast Grain Prices: Forecast grain prices for "&Year_Short&" are affected by the value of the Australian Dollar, world consumption, and Australian and other major grain exporting countries production. Future pricing is uncertain and caution is needed with projections." -> NOTE: 22/23 Forecast Grain Prices: Forecast grain prices for 22/23 are affected by the value of the Australian Dollar, world consumption, and Australian and other major grain exporting countries production. Future pricing is uncertain and caution is needed with projections.
A5: THIS TABLE NOT USED | T5: PRICES (usually prices will be the same across rainfall zones. For some crops however these are different)
A6: CROPPING | M6: Not Used | P6: Not Used | Q6: Not Used | R6: Not Used | S6: =m_year -> 2022 | T6: LOW | Y6: MEDIUM | AD6: HIGH | AI6: YIELD SPREAD (Factors)
A7: Commodity $/ha | B7: Low | C7: Medium | D7: High | L7: Commodity | M7: Current_LOW | N7: Current_MED | O7: Current_HIGH | P7: notused1 | Q7: notused2 | R7: notused3 | S7: notused4 | T7: Price_Low_Poor | U7: Price_Low_Below Average | V7: Price_Low_Average | W7: Price_Low_Above Average | X7: Price_Low_Very Good | Y7: Price_Medium_Poor | Z7: Price_Medium_Below Average | AA7: Price_Medium_Average | AB7: Price_Medium_Above Average | AC7: Price_Medium_Very Good | AD7: Price_High_Poor | AE7: Price_High_Below Average | AF7: Price_High_Average | AG7: Price_High_Above Average | AH7: Price_High_Very Good | AI7: Low_Poor | AJ7: Low_Below Average | AK7: Low_Average | AL7: Low_Above Average | AM7: Low_Very Good | AN7: Medium_Poor | AO7: Medium_Below Average | AP7: Medium_Average | AQ7: Medium_Above Average | AR7: Medium_Very Good | AS7: High_Poor | AT7: High_Below Average | AU7: High_Average | AV7: High_Above Average | AW7: High_Very Good
A8: APW Wheat | L8: Wheat | T8: 250 | U8: 275 | V8: 350 | W8: 325 | X8: 350 | Y8: 250 | Z8: 275 | AA8: 350 | AB8: 325 | AC8: 350 | AD8: 250 | AE8: 275 | AF8: 350 | AG8: 325 | AH8: 350 | AI8: 0.5 | AJ8: 1.2 | AK8: 1.8 | AL8: 2.5 | AM8: 3.5 | AN8: 1 | AO8: 2 | AP8: 3.2 | AQ8: 4 | AR8: 5 | AS8: 2.5 | AT8: 3.5 | AU8: 4.8 | AV8: 5.5 | AW8: 6.5
A9: Durum | L9: Durum | T9: 300 | U9: 350 | V9: 550 | W9: 450 | X9: 500 | Y9: 300 | Z9: 350 | AA9: 550 | AB9: 450 | AC9: 500 | AD9: 300 | AE9: 350 | AF9: 550 | AG9: 450 | AH9: 500 | AI9: 0.5 | AJ9: 0.8 | AK9: 1.4 | AL9: 2 | AM9: 2.8 | AN9: 1 | AO9: 1.5 | AP9: 2.7 | AQ9: 3.5 | AR9: 4.5 | AS9: 2 | AT9: 3 | AU9: 4 | AV9: 6 | AW9: 7
A10: Malt Barley | L10: Malt Barley | T10: 170 | U10: 200 | V10: 280 | W10: 270 | X10: 300 | Y10: 170 | Z10: 200 | AA10: 280 | AB10: 270 | AC10: 300 | AD10: 170 | AE10: 200 | AF10: 280 | AG10: 270 | AH10: 300 | AI10: 0.5 | AJ10: 1.2 | AK10: 1.8 | AL10: 2.5 | AM10: 3.5 | AN10: 1 | AO10: 2 | AP10: 3.2 | AQ10: 4 | AR10: 5 | AS10: 2.5 | AT10: 3.5 | AU10: 4.8 | AV10: 5.5 | AW10: 6.5
A11: Feed Barley | L11: Feed Barley | T11: 150 | U11: 200 | V11: 260 | W11: 300 | X11: 350 | Y11: 150 | Z11: 200 | AA11: 260 | AB11: 300 | AC11: 350 | AD11: 150 | AE11: 200 | AF11: 260 | AG11: 300 | AH11: 350 | AI11: 0.5 | AJ11: 1.2 | AK11: 1.8 | AL11: 2.5 | AM11: 3.5 | AN11: 1 | AO11: 2 | AP11: 3.2 | AQ11: 4 | AR11: 5 | AS11: 2.5 | AT11: 3.5 | AU11: 4.8 | AV11: 5.5 | AW11: 6.5
A12: Milling Oats | L12: Milling Oats | T12: 150 | U12: 200 | V12: 275 | W12: 300 | X12: 350 | Y12: 150 | Z12: 200 | AA12: 275 | AB12: 300 | AC12: 350 | AD12: 150 | AE12: 200 | AF12: 275 | AG12: 300 | AH12: 350 | AI12: 0.2 | AJ12: 0.5 | AK12: 1.5 | AL12: 2.5 | AM12: 3.5 | AN12: 1 | AO12: 2 | AP12: 2.8 | AQ12: 4 | AR12: 5 | AS12: 2 | AT12: 3 | AU12: 4 | AV12: 5 | AW12: 6
A13: Triticale | L13: Triticale | T13: 180 | U13: 220 | V13: 250 | W13: 300 | X13: 340 | Y13: 180 | Z13: 220 | AA13: 250 | AB13: 300 | AC13: 340 | AD13: 180 | AE13: 220 | AF13: 250 | AG13: 300 | AH13: 340 | AI13: 0.5 | AJ13: 1 | AK13: 1.4 | AL13: 2 | AM13: 3 | AN13: 1 | AO13: 1.6 | AP13: 2.6 | AQ13: 3.2 | AR13: 4 | AS13: 1.5 | AT13: 2.5 | AU13: 3.7 | AV13: 4.5 | AW13: 5.5
A14: Oaten Hay | L14: Vetch | T14: 400 | U14: 450 | V14: 500 | W14: 550 | X14: 600 | Y14: 400 | Z14: 450 | AA14: 500 | AB14: 550 | AC14: 600 | AD14: 400 | AE14: 450 | AF14: 500 | AG14: 550 | AH14: 600 | AI14: 0.2 | AJ14: 0.3 | AK14: 0.8 | AL14: 1.2 | AM14: 2 | AN14: 0.5 | AO14: 1 | AP14: 1.5 | AQ14: 2.5 | AR14: 3 | AS14: 0.8 | AT14: 1.5 | AU14: 2.2 | AV14: 3 | AW14: 3.2
A15: Grain Vetch | L15: Lupins | T15: 300 | U15: 350 | V15: 350 | W15: 450 | X15: 500 | Y15: 300 | Z15: 350 | AA15: 350 | AB15: 450 | AC15: 500 | AD15: 300 | AE15: 350 | AF15: 350 | AG15: 450 | AH15: 500 | AI15: 0.3 | AJ15: 0.5 | AK15: 1 | AL15: 1.5 | AM15: 2 | AN15: 0.3 | AO15: 0.5 | AP15: 1.7 | AQ15: 2 | AR15: 2.5 | AS15: 1 | AT15: 1.8 | AU15: 2.4 | AV15: 3 | AW15: 3.5
A16: Lupins | L16: Lentils | T16: 400 | U16: 500 | V16: 700 | W16: 700 | X16: 800 | Y16: 400 | Z16: 500 | AA16: 700 | AB16: 700 | AC16: 800 | AD16: 400 | AE16: 500 | AF16: 700 | AG16: 700 | AH16: 800 | AI16: 0.3 | AJ16: 0.6 | AK16: 0.9 | AL16: 1.1 | AM16: 1.5 | AN16: 0.8 | AO16: 1 | AP16: 1.7 | AQ16: 2.2 | AR16: 3 | AS16: 1.2 | AT16: 2 | AU16: 2.5 | AV16: 3.5 | AW16: 4
A17: Lentils | L17: Lentils IMI Tolerant | T17: 400 | U17: 500 | V17: 700 | W17: 700 | X17: 800 | Y17: 400 | Z17: 500 | AA17: 700 | AB17: 700 | AC17: 800 | AD17: 400 | AE17: 500 | AF17: 700 | AG17: 700 | AH17: 800 | AI17: 0.3 | AJ17: 0.5 | AK17: 0.8 | AL17: 1.1 | AM17: 1.5 | AN17: 0.8 | AO17: 1 | AP17: 1.5 | AQ17: 2 | AR17: 3 | AS17: 0.8 | AT17: 1.5 | AU17: 2.2 | AV17: 3 | AW17: 3.5
A18: Field Peas | L18: Field Peas | T18: 300 | U18: 350 | V18: 450 | W18: 450 | X18: 500 | Y18: 300 | Z18: 350 | AA18: 450 | AB18: 450 | AC18: 500 | AD18: 300 | AE18: 350 | AF18: 450 | AG18: 450 | AH18: 500 | AI18: 0.5 | AJ18: 0.75 | AK18: 1 | AL18: 1.5 | AM18: 2 | AN18: 1 | AO18: 1.3 | AP18: 1.7 | AQ18: 2 | AR18: 2.5 | AS18: 1.5 | AT18: 2 | AU18: 2.5 | AV18: 3 | AW18: 3.5
A19: Faba Beans | L19: Faba Beans | T19: 300 | U19: 350 | V19: 550 | W19: 450 | X19: 500 | Y19: 300 | Z19: 350 | AA19: 550 | AB19: 450 | AC19: 500 | AD19: 300 | AE19: 350 | AF19: 550 | AG19: 450 | AH19: 500 | AI19: 0.4 | AJ19: 0.6 | AK19: 0.8 | AL19: 1.5 | AM19: 2 | AN19: 1 | AO19: 1.2 | AP19: 1.6 | AQ19: 2 | AR19: 2.5 | AS19: 1 | AT19: 2 | AU19: 2.8 | AV19: 3.5 | AW19: 4
A20: Chickpeas (Kabuli) | L20: Kabuli Chickpeas | T20: 500 | U20: 600 | V20: 800 | W20: 800 | X20: 900 | Y20: 500 | Z20: 600 | AA20: 800 | AB20: 800 | AC20: 900 | AD20: 500 | AE20: 600 | AF20: 800 | AG20: 800 | AH20: 900 | AI20: 0.4 | AJ20: 0.6 | AK20: 0.7 | AL20: 1.2 | AM20: 1.8 | AN20: 0.5 | AO20: 0.8 | AP20: 1.1 | AQ20: 1.8 | AR20: 2.3 | AS20: 1 | AT20: 1.5 | AU20: 1.6 | AV20: 2.5 | AW20: 3
A21: Canola- Conv | L21: Export Oaten Hay | T21: 250 | U21: 270 | V21: 290 | W21: 310 | X21: 330 | Y21: 225 | Z21: 245 | AA21: 265 | AB21: 285 | AC21: 305 | AD21: 190 | AE21: 210 | AF21: 230 | AG21: 260 | AH21: 290 | AI21: 1.5 | AJ21: 2.5 | AK21: 3.2 | AL21: 4 | AM21: 4.5 | AN21: 2 | AO21: 3.5 | AP21: 5.5 | AQ21: 7.5 | AR21: 8 | AS21: 4 | AT21: 6 | AU21: 8 | AV21: 10 | AW21: 12
A22: Canola-TT | L22: Canola Clearfield | T22: 650 | U22: 700 | V22: 750 | W22: 800 | X22: 850 | Y22: 650 | Z22: 700 | AA22: 750 | AB22: 800 | AC22: 850 | AD22: 650 | AE22: 700 | AF22: 750 | AG22: 800 | AH22: 850 | AI22: 0.3 | AJ22: 0.5 | AK22: 0.75 | AL22: 1.1 | AM22: 1.5 | AN22: 0.7 | AO22: 1 | AP22: 1.4 | AQ22: 2 | AR22: 2.5 | AS22: 1 | AT22: 1.5 | AU22: 2.1 | AV22: 2.5 | AW22: 2.7
A23: Canola-Clear | L23: Canola Conventional | T23: 650 | U23: 700 | V23: 750 | W23: 800 | X23: 850 | Y23: 650 | Z23: 700 | AA23: 750 | AB23: 800 | AC23: 850 | AD23: 650 | AE23: 700 | AF23: 750 | AG23: 800 | AH23: 850 | AI23: 0.3 | AJ23: 0.5 | AK23: 0.8 | AL23: 1.1 | AM23: 1.5 | AN23: 0.7 | AO23: 1 | AP23: 1.5 | AQ23: 2 | AR23: 2.5 | AS23: 1 | AT23: 1.5 | AU23: 2.2 | AV23: 2.7 | AW23: 3
L24: Canola Roundup Ready | T24: 620 | U24: 670 | V24: 720 | W24: 770 | X24: 820 | Y24: 620 | Z24: 670 | AA24: 720 | AB24: 770 | AC24: 820 | AD24: 620 | AE24: 670 | AF24: 720 | AG24: 770 | AH24: 820 | AI24: 0.3 | AJ24: 0.5 | AK24: 0.75 | AL24: 1.1 | AM24: 1.5 | AN24: 0.7 | AO24: 1 | AP24: 1.4 | AQ24: 2 | AR24: 2.5 | AS24: 1 | AT24: 1.5 | AU24: 2.1 | AV24: 2.7 | AW24: 3
L25: Canola Tri Tolerant | T25: 650 | U25: 700 | V25: 750 | W25: 800 | X25: 850 | Y25: 650 | Z25: 700 | AA25: 750 | AB25: 800 | AC25: 850 | AD25: 650 | AE25: 700 | AF25: 750 | AG25: 800 | AH25: 850 | AI25: 0.3 | AJ25: 0.5 | AK25: 0.7 | AL25: 1.1 | AM25: 1.5 | AN25: 0.7 | AO25: 1 | AP25: 1.3 | AQ25: 2 | AR25: 2.5 | AS25: 1 | AT25: 1.5 | AU25: 2 | AV25: 2.5 | AW25: 3
L26: Sown Pasture | T26: 55 | U26: 60 | V26: 65 | W26: 70 | X26: 75 | Y26: 55 | Z26: 60 | AA26: 65 | AB26: 70 | AC26: 75 | AD26: 60 | AE26: 65 | AF26: 75 | AG26: 75 | AH26: 80 | AI26: 2 | AJ26: 3 | AK26: 4 | AL26: 6 | AM26: 8 | AN26: 3 | AO26: 5 | AP26: 7 | AQ26: 8 | AR26: 9 | AS26: 4 | AT26: 7 | AU26: 10 | AV26: 11 | AW26: 12
L27: Self Regen Pasture | T27: 55 | U27: 60 | V27: 65 | W27: 70 | X27: 75 | Y27: 55 | Z27: 60 | AA27: 65 | AB27: 70 | AC27: 75 | AD27: 60 | AE27: 65 | AF27: 75 | AG27: 75 | AH27: 80 | AI27: 2 | AJ27: 3 | AK27: 4 | AL27: 6 | AM27: 8 | AN27: 3 | AO27: 5 | AP27: 7 | AQ27: 8 | AR27: 9 | AS27: 4 | AT27: 7 | AU27: 10 | AV27: 11 | AW27: 12
L28: Lucerne Pasture Cereal | T28: 55 | U28: 60 | V28: 65 | W28: 70 | X28: 75 | Y28: 55 | Z28: 60 | AA28: 65 | AB28: 70 | AC28: 75 | AD28: 60 | AE28: 65 | AF28: 75 | AG28: 75 | AH28: 80 | AI28: 2 | AJ28: 4 | AK28: 6 | AL28: 8 | AM28: 10 | AN28: 2 | AO28: 4 | AP28: 6 | AQ28: 8 | AR28: 10 | AS28: 5 | AT28: 7 | AU28: 9 | AV28: 11 | AW28: 13
L29: Lucerne Pasture Grazing | T29: 60 | U29: 65 | V29: 75 | W29: 75 | X29: 80 | Y29: 60 | Z29: 65 | AA29: 75 | AB29: 75 | AC29: 80 | AD29: 60 | AE29: 65 | AF29: 75 | AG29: 75 | AH29: 80 | AI29: 7 | AJ29: 9 | AK29: 11 | AL29: 13 | AM29: 14 | AN29: 7 | AO29: 9 | AP29: 11 | AQ29: 13 | AR29: 14 | AS29: 7 | AT29: 9 | AU29: 11 | AV29: 13 | AW29: 14
L30: Phalaris Sub Pasture Cereal | T30: 60 | U30: 65 | V30: 75 | W30: 75 | X30: 80 | Y30: 60 | Z30: 65 | AA30: 75 | AB30: 75 | AC30: 80 | AD30: 60 | AE30: 65 | AF30: 75 | AG30: 75 | AH30: 80 | AI30: 6 | AJ30: 8 | AK30: 10 | AL30: 12 | AM30: 14 | AN30: 6 | AO30: 8 | AP30: 10 | AQ30: 12 | AR30: 14 | AS30: 6 | AT30: 8 | AU30: 10 | AV30: 12 | AW30: 14
L31: Phalaris Sub Grazing | T31: 60 | U31: 65 | V31: 75 | W31: 75 | X31: 80 | Y31: 60 | Z31: 65 | AA31: 75 | AB31: 75 | AC31: 80 | AD31: 60 | AE31: 65 | AF31: 75 | AG31: 75 | AH31: 80 | AI31: 8 | AJ31: 10 | AK31: 14 | AL31: 14 | AM31: 16 | AN31: 8 | AO31: 10 | AP31: 14 | AQ31: 14 | AR31: 16 | AS31: 8 | AT31: 10 | AU31: 14 | AV31: 14 | AW31: 16

Sheet Summary
B2: ="GROSS MARGINS SUMMARY - "&TEXT(m_year,"0000") -> GROSS MARGINS SUMMARY - 2022
B3: =var_rain&" Rainfall Zone" -> 
D4: Gross Margin | F4: Income | H4: Seed | J4: Fertiliser | L4: Chemicals | N4: Operations | P4: Total Var Costs
B5: ="Crop "&IF(var_rotationtype=2,"-Rotation 1","") -> Crop | C5: Area
B6: Wheat | C6: =(WHEAT!U6)*(rng_APW_Wheat_DATA_SHEET) -> 0 | D6: =(SUM(WHEAT!L162)*(rng_rainfall=1)+SUM(WHEAT!O162)*(rng_rainfall=2)+SUM(WHEAT!R162)*(rng_rainfall=3))*(rng_APW_Wheat_DATA_SHEET) -> 0 | E6: =(WHEAT!U162)*(rng_APW_Wheat_DATA_SHEET) -> 0 | F6: =(SUM(WHEAT!L11)*(rng_rainfall=1)+SUM(WHEAT!O11)*(rng_rainfall=2)+SUM(WHEAT!R11)*(rng_rainfall=3))*(rng_APW_Wheat_DATA_SHEET) -> 0 | G6: =(WHEAT!U11)*(rng_APW_Wheat_DATA_SHEET) -> 0 | H6: =(SUM(WHEAT!L14:L34)*(rng_rainfall=1)+SUM(WHEAT!O14:O34)*(rng_rainfall=2)+SUM(WHEAT!R14:R34)*(rng_rainfall=3))*(rng_APW_Wheat_DATA_SHEET) -> 0 | I6: =(SUM(WHEAT!U14:U34))*(rng_APW_Wheat_DATA_SHEET) -> 0 | J6: =(SUM(WHEAT!L37:L53)*(rng_rainfall=1)+SUM(WHEAT!O37:O53)*(rng_rainfall=2)+SUM(WHEAT!R37:R53)*(rng_rainfall=3))*(rng_APW_Wheat_DATA_SHEET) -> 0 | K6: =(SUM(WHEAT!U37:U53))*(rng_APW_Wheat_DATA_SHEET) -> 0 | L6: =(SUM(WHEAT!L57:L128)*(rng_rainfall=1)+SUM(WHEAT!O57:O128)*(rng_rainfall=2)+SUM(WHEAT!R57:R128)*(rng_rainfall=3))*(rng_APW_Wheat_DATA_SHEET) -> 0 | M6: =(SUM(WHEAT!U57:U128))*(rng_APW_Wheat_DATA_SHEET) -> 0 | N6: =(SUM(WHEAT!L131:L157)*(rng_rainfall=1)+SUM(WHEAT!O131:O157)*(rng_rainfall=2)++SUM(WHEAT!R131:R157)*(rng_rainfall=3))*(rng_APW_Wheat_DATA_SHEET) ->  | O6: =(SUM(WHEAT!U131:U157))*(rng_APW_Wheat_DATA_SHEET) ->  | P6: =SUM(N6,L6,J6,H6) ->  | Q6: =(SUM(O6,M6,K6,I6))*(rng_APW_Wheat_DATA_SHEET) -> 
B7: Durum | C7: =(DURUM!U6)*(rng_Durum_DATA_SHEET) -> 0 | D7: =(SUM(DURUM!L162)*(rng_rainfall=1)+SUM(DURUM!O162)*(rng_rainfall=2)+SUM(DURUM!R162)*(rng_rainfall=3))*(rng_Durum_DATA_SHEET) -> 0 | E7: =(DURUM!U162)*(rng_Durum_DATA_SHEET) -> 0 | F7: =(SUM(DURUM!L11)*(rng_rainfall=1)+SUM(DURUM!O11)*(rng_rainfall=2)+SUM(DURUM!R11)*(rng_rainfall=3))*(rng_Durum_DATA_SHEET) -> 0 | G7: =(DURUM!U11)*(rng_Durum_DATA_SHEET) -> 0 | H7: =(SUM(DURUM!L14:L34)*(rng_rainfall=1)+SUM(DURUM!O14:O34)*(rng_rainfall=2)+SUM(DURUM!R14:R34)*(rng_rainfall=3))*(rng_Durum_DATA_SHEET) -> 0 | I7: =(SUM(DURUM!U14:U34))*(rng_Durum_DATA_SHEET) -> 0 | J7: =(SUM(DURUM!L37:L53)*(rng_rainfall=1)+SUM(DURUM!O37:O53)*(rng_rainfall=2)+SUM(DURUM!R37:R53)*(rng_rainfall=3))*(rng_Durum_DATA_SHEET) -> 0 | K7: =(SUM(DURUM!U37:U53))*(rng_Durum_DATA_SHEET) -> 0 | L7: =(SUM(DURUM!L57:L128)*(rng_rainfall=1)+SUM(DURUM!O57:O128)*(rng_rainfall=2)+SUM(DURUM!R57:R128)*(rng_rainfall=3))*(rng_Durum_DATA_SHEET) -> 0 | M7: =(SUM(DURUM!U57:U128))*(rng_Durum_DATA_SHEET) -> 0 | N7: =(SUM(DURUM!L131:L157)*(rng_rainfall=1)+SUM(DURUM!O131:O157)*(rng_rainfall=2)++SUM(DURUM!R131:R157)*(rng_rainfall=3))*(rng_Durum_DATA_SHEET) ->  | O7: =(SUM(DURUM!U131:U157))*(rng_Durum_DATA_SHEET) ->  | Q7: =(SUM(O7,M7,K7,I7))*(rng_Durum_DATA_SHEET) -> 
B8: Malt Barley | C8: =('MALT BARLEY'!U6)*(rng_Malt_Barley_DATA_SHEET) -> 0 | D8: =(SUM('MALT BARLEY'!L162)*(rng_rainfall=1)+SUM('MALT BARLEY'!O162)*(rng_rainfall=2)+SUM('MALT BARLEY'!R162)*(rng_rainfall=3))*(rng_Malt_Barley_DATA_SHEET) -> 0 | E8: =('MALT BARLEY'!U162)*(rng_Malt_Barley_DATA_SHEET) -> 0 | F8: =(SUM('MALT BARLEY'!L11)*(rng_rainfall=1)+SUM('MALT BARLEY'!O11)*(rng_rainfall=2)+SUM('MALT BARLEY'!R11)*(rng_rainfall=3))*(rng_Malt_Barley_DATA_SHEET) -> 0 | G8: =('MALT BARLEY'!U11)*(rng_Malt_Barley_DATA_SHEET) -> 0 | H8: =(SUM('MALT BARLEY'!L14:L34)*(rng_rainfall=1)+SUM('MALT BARLEY'!O14:O34)*(rng_rainfall=2)+SUM('MALT BARLEY'!R14:R34)*(rng_rainfall=3))*(rng_Malt_Barley_DATA_SHEET) -> 0 | I8: =(SUM('MALT BARLEY'!U14:U34))*(rng_Malt_Barley_DATA_SHEET) -> 0 | J8: =(SUM('MALT BARLEY'!L37:L53)*(rng_rainfall=1)+SUM('MALT BARLEY'!O37:O53)*(rng_rainfall=2)+SUM('MALT BARLEY'!R37:R53)*(rng_rainfall=3))*(rng_Malt_Barley_DATA_SHEET) -> 0 | K8: =(SUM('MALT BARLEY'!U37:U53))*(rng_Malt_Barley_DATA_SHEET) -> 0 | L8: =(SUM('MALT BARLEY'!L57:L128)*(rng_rainfall=1)+SUM('MALT BARLEY'!O57:O128)*(rng_rainfall=2)+SUM('MALT BARLEY'!R57:R128)*(rng_rainfall=3))*(rng_Malt_Barley_DATA_SHEET) -> 0 | M8: =(SUM('MALT BARLEY'!U57:U128))*(rng_Malt_Barley_DATA_SHEET) -> 0 | N8: =(SUM('MALT BARLEY'!L131:L157)*(rng_rainfall=1)+SUM('MALT BARLEY'!O131:O157)*(rng_rainfall=2)++SUM('MALT BARLEY'!R131:R157)*(rng_rainfall=3))*(rng_Malt_Barley_DATA_SHEET) ->  | O8: =(SUM('MALT BARLEY'!U131:U157))*(rng_Malt_Barley_DATA_SHEET) ->  | Q8: =(SUM(O8,M8,K8,I8))*(rng_Malt_Barley_DATA_SHEET) -> 
B9: Feed Barley | C9: =('FEED BARLEY'!U6)*(rng_Feed_Barley_DATA_SHEET) -> 0 | D9: =(SUM('FEED BARLEY'!L162)*(rng_rainfall=1)+SUM('FEED BARLEY'!O162)*(rng_rainfall=2)+SUM('FEED BARLEY'!R162)*(rng_rainfall=3))*(rng_Feed_Barley_DATA_SHEET) -> 0 | E9: =('FEED BARLEY'!U162)*(rng_Feed_Barley_DATA_SHEET) -> 0 | F9: =(SUM('FEED BARLEY'!L11)*(rng_rainfall=1)+SUM('FEED BARLEY'!O11)*(rng_rainfall=2)+SUM('FEED BARLEY'!R11)*(rng_rainfall=3))*(rng_Feed_Barley_DATA_SHEET) -> 0 | G9: =('FEED BARLEY'!U11)*(rng_Feed_Barley_DATA_SHEET) -> 0 | H9: =(SUM('FEED BARLEY'!L14:L34)*(rng_rainfall=1)+SUM('FEED BARLEY'!O14:O34)*(rng_rainfall=2)+SUM('FEED BARLEY'!R14:R34)*(rng_rainfall=3))*(rng_Feed_Barley_DATA_SHEET) -> 0 | I9: =(SUM('FEED BARLEY'!U14:U34))*(rng_Feed_Barley_DATA_SHEET) -> 0 | J9: =(SUM('FEED BARLEY'!L37:L53)*(rng_rainfall=1)+SUM('FEED BARLEY'!O37:O53)*(rng_rainfall=2)+SUM('FEED BARLEY'!R37:R53)*(rng_rainfall=3))*(rng_Feed_Barley_DATA_SHEET) -> 0 | K9: =(SUM('FEED BARLEY'!U37:U53))*(rng_Feed_Barley_DATA_SHEET) -> 0 | L9: =(SUM('FEED BARLEY'!L57:L128)*(rng_rainfall=1)+SUM('FEED BARLEY'!O57:O128)*(rng_rainfall=2)+SUM('FEED BARLEY'!R57:R128)*(rng_rainfall=3))*(rng_Feed_Barley_DATA_SHEET) -> 0 | M9: =(SUM('FEED BARLEY'!U57:U128))*(rng_Feed_Barley_DATA_SHEET) -> 0 | N9: =(SUM('FEED BARLEY'!L131:L157)*(rng_rainfall=1)+SUM('FEED BARLEY'!O131:O157)*(rng_rainfall=2)++SUM('FEED BARLEY'!R131:R157)*(rng_rainfall=3))*(rng_Feed_Barley_DATA_SHEET) ->  | O9: =(SUM('FEED BARLEY'!U131:U157))*(rng_Feed_Barley_DATA_SHEET) ->  | Q9: =(SUM(O9,M9,K9,I9))*(rng_Feed_Barley_DATA_SHEET) -> 
B10: Milling Oats | C10: =('MILLING OATS'!U6)*(rng_Milling_DATA_SHEET) -> 0 | D10: =(SUM('MILLING OATS'!L162)*(rng_rainfall=1)+SUM('MILLING OATS'!O162)*(rng_rainfall=2)+SUM('MILLING OATS'!R162)*(rng_rainfall=3))*(rng_Milling_DATA_SHEET) -> 0 | E10: =('MILLING OATS'!U162)*(rng_Milling_DATA_SHEET) -> 0 | F10: =(SUM('MILLING OATS'!L11)*(rng_rainfall=1)+SUM('MILLING OATS'!O11)*(rng_rainfall=2)+SUM('MILLING OATS'!R11)*(rng_rainfall=3))*(rng_Milling_DATA_SHEET) -> 0 | G10: =('MILLING OATS'!U11)*(rng_Milling_DATA_SHEET) -> 0 | H10: =(SUM('MILLING OATS'!L14:L34)*(rng_rainfall=1)+SUM('MILLING OATS'!O14:O34)*(rng_rainfall=2)+SUM('MILLING OATS'!R14:R34)*(rng_rainfall=3))*(rng_Milling_DATA_SHEET) -> 0 | I10: =(SUM('MILLING OATS'!U14:U34))*(rng_Milling_DATA_SHEET) -> 0 | J10: =(SUM('MILLING OATS'!L37:L53)*(rng_rainfall=1)+SUM('MILLING OATS'!O37:O53)*(rng_rainfall=2)+SUM('MILLING OATS'!R37:R53)*(rng_rainfall=3))*(rng_Milling_DATA_SHEET) -> 0 | K10: =(SUM('MILLING OATS'!U37:U53))*(rng_Milling_DATA_SHEET) -> 0 | L10: =(SUM('MILLING OATS'!L57:L128)*(rng_rainfall=1)+SUM('MILLING OATS'!O57:O128)*(rng_rainfall=2)+SUM('MILLING OATS'!R57:R128)*(rng_rainfall=3))*(rng_Milling_DATA_SHEET) -> 0 | M10: =(SUM('MILLING OATS'!U57:U128))*(rng_Milling_DATA_SHEET) -> 0 | N10: =(SUM('MILLING OATS'!L131:L157)*(rng_rainfall=1)+SUM('MILLING OATS'!O131:O157)*(rng_rainfall=2)++SUM('MILLING OATS'!R131:R157)*(rng_rainfall=3))*(rng_Milling_DATA_SHEET) ->  | O10: =(SUM('MILLING OATS'!U131:U157))*(rng_Milling_DATA_SHEET) ->  | Q10: =(SUM(O10,M10,K10,I10))*(rng_Milling_DATA_SHEET) -> 
B11: Triticale | C11: =(TRITICALE!U6)*(rng_Triticale_DATA_SHEET) -> 0 | D11: =(SUM(TRITICALE!L162)*(rng_rainfall=1)+SUM(TRITICALE!O162)*(rng_rainfall=2)+SUM(TRITICALE!R162)*(rng_rainfall=3))*(rng_Triticale_DATA_SHEET) -> 0 | E11: =(TRITICALE!U162)*(rng_Triticale_DATA_SHEET) -> 0 | F11: =(SUM(TRITICALE!L11)*(rng_rainfall=1)+SUM(TRITICALE!O11)*(rng_rainfall=2)+SUM(TRITICALE!R11)*(rng_rainfall=3))*(rng_Triticale_DATA_SHEET) -> 0 | G11: =(TRITICALE!U11)*(rng_Triticale_DATA_SHEET) -> 0 | H11: =(SUM(TRITICALE!L14:L34)*(rng_rainfall=1)+SUM(TRITICALE!O14:O34)*(rng_rainfall=2)+SUM(TRITICALE!R14:R34)*(rng_rainfall=3))*(rng_Triticale_DATA_SHEET) -> 0 | I11: =(SUM(TRITICALE!U14:U34))*(rng_Triticale_DATA_SHEET) -> 0 | J11: =(SUM(TRITICALE!L37:L53)*(rng_rainfall=1)+SUM(TRITICALE!O37:O53)*(rng_rainfall=2)+SUM(TRITICALE!R37:R53)*(rng_rainfall=3))*(rng_Triticale_DATA_SHEET) -> 0 | K11: =(SUM(TRITICALE!U37:U53))*(rng_Triticale_DATA_SHEET) -> 0 | L11: =(SUM(TRITICALE!L57:L128)*(rng_rainfall=1)+SUM(TRITICALE!O57:O128)*(rng_rainfall=2)+SUM(TRITICALE!R57:R128)*(rng_rainfall=3))*(rng_Triticale_DATA_SHEET) -> 0 | M11: =(SUM(TRITICALE!U57:U128))*(rng_Triticale_DATA_SHEET) -> 0 | N11: =(SUM(TRITICALE!L131:L157)*(rng_rainfall=1)+SUM(TRITICALE!O131:O157)*(rng_rainfall=2)++SUM(TRITICALE!R131:R157)*(rng_rainfall=3))*(rng_Triticale_DATA_SHEET) ->  | O11: =(SUM(TRITICALE!U131:U157))*(rng_Triticale_DATA_SHEET) ->  | Q11: =(SUM(O11,M11,K11,I11))*(rng_Triticale_DATA_SHEET) -> 
B12: Export Oaten Hay | C12: =('EXPORT OATEN HAY'!U6)*(rng_Export_DATA_SHEET) -> 0 | D12: =(SUM('EXPORT OATEN HAY'!L162)*(rng_rainfall=1)+SUM('EXPORT OATEN HAY'!O162)*(rng_rainfall=2)+SUM('EXPORT OATEN HAY'!R162)*(rng_rainfall=3))*(rng_Export_DATA_SHEET) -> 0 | E12: =('EXPORT OATEN HAY'!U162)*(rng_Export_DATA_SHEET) -> 0 | F12: =(SUM('EXPORT OATEN HAY'!L11)*(rng_rainfall=1)+SUM('EXPORT OATEN HAY'!O11)*(rng_rainfall=2)+SUM('EXPORT OATEN HAY'!R11)*(rng_rainfall=3))*(rng_Export_DATA_SHEET) -> 0 | G12: =('EXPORT OATEN HAY'!U11)*(rng_Export_DATA_SHEET) -> 0 | H12: =(SUM('EXPORT OATEN HAY'!L14:L34)*(rng_rainfall=1)+SUM('EXPORT OATEN HAY'!O14:O34)*(rng_rainfall=2)+SUM('EXPORT OATEN HAY'!R14:R34)*(rng_rainfall=3))*(rng_Export_DATA_SHEET) -> 0 | I12: =(SUM('EXPORT OATEN HAY'!U14:U34))*(rng_Export_DATA_SHEET) -> 0 | J12: =(SUM('EXPORT OATEN HAY'!L37:L53)*(rng_rainfall=1)+SUM('EXPORT OATEN HAY'!O37:O53)*(rng_rainfall=2)+SUM('EXPORT OATEN HAY'!R37:R53)*(rng_rainfall=3))*(rng_Export_DATA_SHEET) -> 0 | K12: =(SUM('EXPORT OATEN HAY'!U37:U53))*(rng_Export_DATA_SHEET) -> 0 | L12: =(SUM('EXPORT OATEN HAY'!L57:L128)*(rng_rainfall=1)+SUM('EXPORT OATEN HAY'!O57:O128)*(rng_rainfall=2)+SUM('EXPORT OATEN HAY'!R57:R128)*(rng_rainfall=3))*(rng_Export_DATA_SHEET) -> 0 | M12: =(SUM('EXPORT OATEN HAY'!U57:U128))*(rng_Export_DATA_SHEET) -> 0 | N12: =(SUM('EXPORT OATEN HAY'!L131:L157)*(rng_rainfall=1)+SUM('EXPORT OATEN HAY'!O131:O157)*(rng_rainfall=2)++SUM('EXPORT OATEN HAY'!R131:R157)*(rng_rainfall=3))*(rng_Export_DATA_SHEET) ->  | O12: =(SUM('EXPORT OATEN HAY'!U131:U157))*(rng_Export_DATA_SHEET) ->  | Q12: =(SUM(O12,M12,K12,I12))*(rng_Export_DATA_SHEET) -> 
B13: Vetch | C13: =(VETCH!U6)*(rng_Vetch_DATA_SHEET) -> 0 | D13: =(SUM(VETCH!L162)*(rng_rainfall=1)+SUM(VETCH!O162)*(rng_rainfall=2)+SUM(VETCH!R162)*(rng_rainfall=3))*(rng_Vetch_DATA_SHEET) -> 0 | E13: =(VETCH!U162)*(rng_Vetch_DATA_SHEET) -> 0 | F13: =(SUM(VETCH!L11)*(rng_rainfall=1)+SUM(VETCH!O11)*(rng_rainfall=2)+SUM(VETCH!R11)*(rng_rainfall=3))*(rng_Vetch_DATA_SHEET) -> 0 | G13: =(VETCH!U11)*(rng_Vetch_DATA_SHEET) -> 0 | H13: =(SUM(VETCH!L14:L34)*(rng_rainfall=1)+SUM(VETCH!O14:O34)*(rng_rainfall=2)+SUM(VETCH!R14:R34)*(rng_rainfall=3))*(rng_Vetch_DATA_SHEET) -> 0 | I13: =(SUM(VETCH!U14:U34))*(rng_Vetch_DATA_SHEET) -> 0 | J13: =(SUM(VETCH!L37:L53)*(rng_rainfall=1)+SUM(VETCH!O37:O53)*(rng_rainfall=2)+SUM(VETCH!R37:R53)*(rng_rainfall=3))*(rng_Vetch_DATA_SHEET) -> 0 | K13: =(SUM(VETCH!U37:U53))*(rng_Vetch_DATA_SHEET) -> 0 | L13: =(SUM(VETCH!L57:L128)*(rng_rainfall=1)+SUM(VETCH!O57:O128)*(rng_rainfall=2)+SUM(VETCH!R57:R128)*(rng_rainfall=3))*(rng_Vetch_DATA_SHEET) -> 0 | M13: =(SUM(VETCH!U57:U128))*(rng_Vetch_DATA_SHEET) -> 0 | N13: =(SUM(VETCH!L131:L157)*(rng_rainfall=1)+SUM(VETCH!O131:O157)*(rng_rainfall=2)++SUM(VETCH!R131:R157)*(rng_rainfall=3))*(rng_Vetch_DATA_SHEET) ->  | O13: =(SUM(VETCH!U131:U157))*(rng_Vetch_DATA_SHEET) ->  | Q13: =(SUM(O13,M13,K13,I13))*(rng_Vetch_DATA_SHEET) -> 
B14: Lupins | C14: =(LUPINS!U6)*(rng_Lupins_DATA_SHEET) -> 0 | D14: =(SUM(LUPINS!L162)*(rng_rainfall=1)+SUM(LUPINS!O162)*(rng_rainfall=2)+SUM(LUPINS!R162)*(rng_rainfall=3))*(rng_Lupins_DATA_SHEET) -> 0 | E14: =(LUPINS!U162)*(rng_Lupins_DATA_SHEET) -> 0 | F14: =(SUM(LUPINS!L11)*(rng_rainfall=1)+SUM(LUPINS!O11)*(rng_rainfall=2)+SUM(LUPINS!R11)*(rng_rainfall=3))*(rng_Lupins_DATA_SHEET) -> 0 | G14: =(LUPINS!U11)*(rng_Lupins_DATA_SHEET) -> 0 | H14: =(SUM(LUPINS!L14:L34)*(rng_rainfall=1)+SUM(LUPINS!O14:O34)*(rng_rainfall=2)+SUM(LUPINS!R14:R34)*(rng_rainfall=3))*(rng_Lupins_DATA_SHEET) -> 0 | I14: =(SUM(LUPINS!U14:U34))*(rng_Lupins_DATA_SHEET) -> 0 | J14: =(SUM(LUPINS!L37:L53)*(rng_rainfall=1)+SUM(LUPINS!O37:O53)*(rng_rainfall=2)+SUM(LUPINS!R37:R53)*(rng_rainfall=3))*(rng_Lupins_DATA_SHEET) -> 0 | K14: =(SUM(LUPINS!U37:U53))*(rng_Lupins_DATA_SHEET) -> 0 | L14: =(SUM(LUPINS!L57:L128)*(rng_rainfall=1)+SUM(LUPINS!O57:O128)*(rng_rainfall=2)+SUM(LUPINS!R57:R128)*(rng_rainfall=3))*(rng_Lupins_DATA_SHEET) -> 0 | M14: =(SUM(LUPINS!U57:U128))*(rng_Lupins_DATA_SHEET) -> 0 | N14: =(SUM(LUPINS!L131:L157)*(rng_rainfall=1)+SUM(LUPINS!O131:O157)*(rng_rainfall=2)++SUM(LUPINS!R131:R157)*(rng_rainfall=3))*(rng_Lupins_DATA_SHEET) ->  | O14: =(SUM(LUPINS!U131:U157))*(rng_Lupins_DATA_SHEET) ->  | Q14: =(SUM(O14,M14,K14,I14))*(rng_Lupins_DATA_SHEET) -> 
B15: Lentils | C15: =(LENTILS!U6)*(rng_lentils_DATA_SHEET) -> 0 | D15: =(SUM(LENTILS!L162)*(rng_rainfall=1)+SUM(LENTILS!O162)*(rng_rainfall=2)+SUM(LENTILS!R162)*(rng_rainfall=3))*(rng_lentils_DATA_SHEET) -> 0 | E15: =(LENTILS!U162)*(rng_lentils_DATA_SHEET) -> 0 | F15: =(SUM(LENTILS!L11)*(rng_rainfall=1)+SUM(LENTILS!O11)*(rng_rainfall=2)+SUM(LENTILS!R11)*(rng_rainfall=3))*(rng_lentils_DATA_SHEET) -> 0 | G15: =(LENTILS!U11)*(rng_lentils_DATA_SHEET) -> 0 | H15: =(SUM(LENTILS!L14:L34)*(rng_rainfall=1)+SUM(LENTILS!O14:O34)*(rng_rainfall=2)+SUM(LENTILS!R14:R34)*(rng_rainfall=3))*(rng_lentils_DATA_SHEET) -> 0 | I15: =(SUM(LENTILS!U14:U34))*(rng_lentils_DATA_SHEET) -> 0 | J15: =(SUM(LENTILS!L37:L53)*(rng_rainfall=1)+SUM(LENTILS!O37:O53)*(rng_rainfall=2)+SUM(LENTILS!R37:R53)*(rng_rainfall=3))*(rng_lentils_DATA_SHEET) -> 0 | K15: =(SUM(LENTILS!U37:U53))*(rng_lentils_DATA_SHEET) -> 0 | L15: =(SUM(LENTILS!L57:L128)*(rng_rainfall=1)+SUM(LENTILS!O57:O128)*(rng_rainfall=2)+SUM(LENTILS!R57:R128)*(rng_rainfall=3))*(rng_lentils_DATA_SHEET) -> 0 | M15: =(SUM(LENTILS!U57:U128))*(rng_lentils_DATA_SHEET) -> 0 | N15: =(SUM(LENTILS!L131:L157)*(rng_rainfall=1)+SUM(LENTILS!O131:O157)*(rng_rainfall=2)++SUM(LENTILS!R131:R157)*(rng_rainfall=3))*(rng_lentils_DATA_SHEET) ->  | O15: =(SUM(LENTILS!U131:U157))*(rng_lentils_DATA_SHEET) ->  | Q15: =(SUM(O15,M15,K15,I15))*(rng_lentils_DATA_SHEET) -> 
B16: Lentils IMI Tolerant | C16: =('LENTILS IMI TOLERANT'!U6)*(rng_lentils_imi_DATA_SHEET) -> 0 | D16: =(SUM('LENTILS IMI TOLERANT'!L162)*(rng_rainfall=1)+SUM('LENTILS IMI TOLERANT'!O162)*(rng_rainfall=2)+SUM('LENTILS IMI TOLERANT'!R162)*(rng_rainfall=3))*(rng_lentils_imi_DATA_SHEET) -> 0 | E16: =('LENTILS IMI TOLERANT'!U162)*(rng_lentils_imi_DATA_SHEET) -> 0 | F16: =(SUM('LENTILS IMI TOLERANT'!L11)*(rng_rainfall=1)+SUM('LENTILS IMI TOLERANT'!O11)*(rng_rainfall=2)+SUM('LENTILS IMI TOLERANT'!R11)*(rng_rainfall=3))*(rng_lentils_imi_DATA_SHEET) -> 0 | G16: =('LENTILS IMI TOLERANT'!U11)*(rng_lentils_imi_DATA_SHEET) -> 0 | H16: =(SUM('LENTILS IMI TOLERANT'!L14:L34)*(rng_rainfall=1)+SUM('LENTILS IMI TOLERANT'!O14:O34)*(rng_rainfall=2)+SUM('LENTILS IMI TOLERANT'!R14:R34)*(rng_rainfall=3))*(rng_lentils_imi_DATA_SHEET) -> 0 | I16: =(SUM('LENTILS IMI TOLERANT'!U14:U34))*(rng_lentils_imi_DATA_SHEET) -> 0 | J16: =(SUM('LENTILS IMI TOLERANT'!L37:L53)*(rng_rainfall=1)+SUM('LENTILS IMI TOLERANT'!O37:O53)*(rng_rainfall=2)+SUM('LENTILS IMI TOLERANT'!R37:R53)*(rng_rainfall=3))*(rng_lentils_imi_DATA_SHEET) -> 0 | K16: =(SUM('LENTILS IMI TOLERANT'!U37:U53))*(rng_lentils_imi_DATA_SHEET) -> 0 | L16: =(SUM('LENTILS IMI TOLERANT'!L57:L128)*(rng_rainfall=1)+SUM('LENTILS IMI TOLERANT'!O57:O128)*(rng_rainfall=2)+SUM('LENTILS IMI TOLERANT'!R57:R128)*(rng_rainfall=3))*(rng_lentils_imi_DATA_SHEET) -> 0 | M16: =(SUM('LENTILS IMI TOLERANT'!U57:U128))*(rng_lentils_imi_DATA_SHEET) -> 0 | N16: =(SUM('LENTILS IMI TOLERANT'!L131:L157)*(rng_rainfall=1)+SUM('LENTILS IMI TOLERANT'!O131:O157)*(rng_rainfall=2)++SUM('LENTILS IMI TOLERANT'!R131:R157)*(rng_rainfall=3))*(rng_lentils_imi_DATA_SHEET) ->  | O16: =(SUM('LENTILS IMI TOLERANT'!U131:U157))*(rng_lentils_imi_DATA_SHEET) ->  | P16: =SUM(N16,L16,J16,H16) ->  | Q16: =(SUM(O16,M16,K16,I16))*(rng_lentils_imi_DATA_SHEET) -> 
B17: Field Peas | C17: =(PEAS!U6)*(rng_Field_Peas_DATA_SHEET) -> 0 | D17: =(SUM(PEAS!L162)*(rng_rainfall=1)+SUM(PEAS!O162)*(rng_rainfall=2)+SUM(PEAS!R162)*(rng_rainfall=3))*(rng_Field_Peas_DATA_SHEET) -> 0 | E17: =(PEAS!U162)*(rng_Field_Peas_DATA_SHEET) -> 0 | F17: =(SUM(PEAS!L11)*(rng_rainfall=1)+SUM(PEAS!O11)*(rng_rainfall=2)+SUM(PEAS!R11)*(rng_rainfall=3))*(rng_Field_Peas_DATA_SHEET) -> 0 | G17: =(PEAS!U11)*(rng_Field_Peas_DATA_SHEET) -> 0 | H17: =(SUM(PEAS!L14:L34)*(rng_rainfall=1)+SUM(PEAS!O14:O34)*(rng_rainfall=2)+SUM(PEAS!R14:R34)*(rng_rainfall=3))*(rng_Field_Peas_DATA_SHEET) -> 0 | I17: =(SUM(PEAS!U14:U34))*(rng_Field_Peas_DATA_SHEET) -> 0 | J17: =(SUM(PEAS!L37:L53)*(rng_rainfall=1)+SUM(PEAS!O37:O53)*(rng_rainfall=2)+SUM(PEAS!R37:R53)*(rng_rainfall=3))*(rng_Field_Peas_DATA_SHEET) -> 0 | K17: =(SUM(PEAS!U37:U53))*(rng_Field_Peas_DATA_SHEET) -> 0 | L17: =(SUM(PEAS!L57:L128)*(rng_rainfall=1)+SUM(PEAS!O57:O128)*(rng_rainfall=2)+SUM(PEAS!R57:R128)*(rng_rainfall=3))*(rng_Field_Peas_DATA_SHEET) -> 0 | M17: =(SUM(PEAS!U57:U128))*(rng_Field_Peas_DATA_SHEET) -> 0 | N17: =(SUM(PEAS!L131:L157)*(rng_rainfall=1)+SUM(PEAS!O131:O157)*(rng_rainfall=2)++SUM(PEAS!R131:R157)*(rng_rainfall=3))*(rng_Field_Peas_DATA_SHEET) ->  | O17: =(SUM(PEAS!U131:U157))*(rng_Field_Peas_DATA_SHEET) ->  | Q17: =(SUM(O17,M17,K17,I17))*(rng_Field_Peas_DATA_SHEET) -> 
B18: Faba Beans | C18: =(BEANS!U6)*(rng_Beans_DATA_SHEET) -> 0 | D18: =(SUM(BEANS!L162)*(rng_rainfall=1)+SUM(BEANS!O162)*(rng_rainfall=2)+SUM(BEANS!R162)*(rng_rainfall=3))*(rng_Beans_DATA_SHEET) -> 0 | E18: =(BEANS!U162)*(rng_Beans_DATA_SHEET) -> 0 | F18: =(SUM(BEANS!L11)*(rng_rainfall=1)+SUM(BEANS!O11)*(rng_rainfall=2)+SUM(BEANS!R11)*(rng_rainfall=3))*(rng_Beans_DATA_SHEET) -> 0 | G18: =(BEANS!U11)*(rng_Beans_DATA_SHEET) -> 0 | H18: =(SUM(BEANS!L14:L34)*(rng_rainfall=1)+SUM(BEANS!O14:O34)*(rng_rainfall=2)+SUM(BEANS!R14:R34)*(rng_rainfall=3))*(rng_Beans_DATA_SHEET) -> 0 | I18: =(SUM(BEANS!U14:U34))*(rng_Beans_DATA_SHEET) -> 0 | J18: =(SUM(BEANS!L37:L53)*(rng_rainfall=1)+SUM(BEANS!O37:O53)*(rng_rainfall=2)+SUM(BEANS!R37:R53)*(rng_rainfall=3))*(rng_Beans_DATA_SHEET) -> 0 | K18: =(SUM(BEANS!U37:U53))*(rng_Beans_DATA_SHEET) -> 0 | L18: =(SUM(BEANS!L57:L128)*(rng_rainfall=1)+SUM(BEANS!O57:O128)*(rng_rainfall=2)+SUM(BEANS!R57:R128)*(rng_rainfall=3))*(rng_Beans_DATA_SHEET) -> 0 | M18: =(SUM(BEANS!U57:U128))*(rng_Beans_DATA_SHEET) -> 0 | N18: =(SUM(BEANS!L131:L157)*(rng_rainfall=1)+SUM(BEANS!O131:O157)*(rng_rainfall=2)++SUM(BEANS!R131:R157)*(rng_rainfall=3))*(rng_Beans_DATA_SHEET) ->  | O18: =(SUM(BEANS!U131:U157))*(rng_Beans_DATA_SHEET) ->  | Q18: =(SUM(O18,M18,K18,I18))*(rng_Beans_DATA_SHEET) -> 
B19: Kabuli Chickpeas | C19: =(CHICKPEAS!U6)*(rng_Chickpeas_DATA_SHEET) -> 0 | D19: =(SUM(CHICKPEAS!L162)*(rng_rainfall=1)+SUM(CHICKPEAS!O162)*(rng_rainfall=2)+SUM(CHICKPEAS!R162)*(rng_rainfall=3))*(rng_Chickpeas_DATA_SHEET) -> 0 | E19: =(CHICKPEAS!U162)*(rng_Chickpeas_DATA_SHEET) -> 0 | F19: =(SUM(CHICKPEAS!L11)*(rng_rainfall=1)+SUM(CHICKPEAS!O11)*(rng_rainfall=2)+SUM(CHICKPEAS!R11)*(rng_rainfall=3))*(rng_Chickpeas_DATA_SHEET) -> 0 | G19: =(CHICKPEAS!U11)*(rng_Chickpeas_DATA_SHEET) -> 0 | H19: =(SUM(CHICKPEAS!L14:L34)*(rng_rainfall=1)+SUM(CHICKPEAS!O14:O34)*(rng_rainfall=2)+SUM(CHICKPEAS!R14:R34)*(rng_rainfall=3))*(rng_Chickpeas_DATA_SHEET) -> 0 | I19: =(SUM(CHICKPEAS!U14:U34))*(rng_Chickpeas_DATA_SHEET) -> 0 | J19: =(SUM(CHICKPEAS!L37:L53)*(rng_rainfall=1)+SUM(CHICKPEAS!O37:O53)*(rng_rainfall=2)+SUM(CHICKPEAS!R37:R53)*(rng_rainfall=3))*(rng_Chickpeas_DATA_SHEET) -> 0 | K19: =(SUM(CHICKPEAS!U37:U53))*(rng_Chickpeas_DATA_SHEET) -> 0 | L19: =(SUM(CHICKPEAS!L57:L128)*(rng_rainfall=1)+SUM(CHICKPEAS!O57:O128)*(rng_rainfall=2)+SUM(CHICKPEAS!R57:R128)*(rng_rainfall=3))*(rng_Chickpeas_DATA_SHEET) -> 0 | M19: =(SUM(CHICKPEAS!U57:U128))*(rng_Chickpeas_DATA_SHEET) -> 0 | N19: =(SUM(CHICKPEAS!L131:L157)*(rng_rainfall=1)+SUM(CHICKPEAS!O131:O157)*(rng_rainfall=2)++SUM(CHICKPEAS!R131:R157)*(rng_rainfall=3))*(rng_Chickpeas_DATA_SHEET) ->  | O19: =(SUM(CHICKPEAS!U131:U157))*(rng_Chickpeas_DATA_SHEET) ->  | Q19: =(SUM(O19,M19,K19,I19))*(rng_Chickpeas_DATA_SHEET) -> 
B20: Canola Clearfield | C20: =('CANOLA CLEARFIELD'!U6)*(rng_Canola_Clear_DATA_SHEET) -> 0 | D20: =(SUM('CANOLA CLEARFIELD'!L162)*(rng_rainfall=1)+SUM('CANOLA CLEARFIELD'!O162)*(rng_rainfall=2)+SUM('CANOLA CLEARFIELD'!R162)*(rng_rainfall=3))*(rng_Canola_Clear_DATA_SHEET) -> 0 | E20: =('CANOLA CLEARFIELD'!U162)*(rng_Canola_Clear_DATA_SHEET) -> 0 | F20: =(SUM('CANOLA CLEARFIELD'!L11)*(rng_rainfall=1)+SUM('CANOLA CLEARFIELD'!O11)*(rng_rainfall=2)+SUM('CANOLA CLEARFIELD'!R11)*(rng_rainfall=3))*(rng_Canola_Clear_DATA_SHEET) -> 0 | G20: =('CANOLA CLEARFIELD'!U11)*(rng_Canola_Clear_DATA_SHEET) -> 0 | H20: =(SUM('CANOLA CLEARFIELD'!L14:L34)*(rng_rainfall=1)+SUM('CANOLA CLEARFIELD'!O14:O34)*(rng_rainfall=2)+SUM('CANOLA CLEARFIELD'!R14:R34)*(rng_rainfall=3))*(rng_Canola_Clear_DATA_SHEET) -> 0 | I20: =(SUM('CANOLA CLEARFIELD'!U14:U34))*(rng_Canola_Clear_DATA_SHEET) -> 0 | J20: =(SUM('CANOLA CLEARFIELD'!L37:L53)*(rng_rainfall=1)+SUM('CANOLA CLEARFIELD'!O37:O53)*(rng_rainfall=2)+SUM('CANOLA CLEARFIELD'!R37:R53)*(rng_rainfall=3))*(rng_Canola_Clear_DATA_SHEET) -> 0 | K20: =(SUM('CANOLA CLEARFIELD'!U37:U53))*(rng_Canola_Clear_DATA_SHEET) -> 0 | L20: =(SUM('CANOLA CLEARFIELD'!L57:L128)*(rng_rainfall=1)+SUM('CANOLA CLEARFIELD'!O57:O128)*(rng_rainfall=2)+SUM('CANOLA CLEARFIELD'!R57:R128)*(rng_rainfall=3))*(rng_Canola_Clear_DATA_SHEET) -> 0 | M20: =(SUM('CANOLA CLEARFIELD'!U57:U128))*(rng_Canola_Clear_DATA_SHEET) -> 0 | N20: =(SUM('CANOLA CLEARFIELD'!L131:L157)*(rng_rainfall=1)+SUM('CANOLA CLEARFIELD'!O131:O157)*(rng_rainfall=2)++SUM('CANOLA CLEARFIELD'!R131:R157)*(rng_rainfall=3))*(rng_Canola_Clear_DATA_SHEET) ->  | O20: =(SUM('CANOLA CLEARFIELD'!U131:U157))*(rng_Canola_Clear_DATA_SHEET) ->  | Q20: =(SUM(O20,M20,K20,I20))*(rng_Canola_Clear_DATA_SHEET) -> 
B21: Canola Conventional | C21: =('CANOLA CONVENTIONAL'!U6)*(rng_Canola_Conv_DATA_SHEET) -> 0 | D21: =(SUM('CANOLA CONVENTIONAL'!L162)*(rng_rainfall=1)+SUM('CANOLA CONVENTIONAL'!O162)*(rng_rainfall=2)+SUM('CANOLA CONVENTIONAL'!R162)*(rng_rainfall=3))*(rng_Canola_Conv_DATA_SHEET) -> 0 | E21: =('CANOLA CONVENTIONAL'!U162)*(rng_Canola_Conv_DATA_SHEET) -> 0 | F21: =(SUM('CANOLA CONVENTIONAL'!L11)*(rng_rainfall=1)+SUM('CANOLA CONVENTIONAL'!O11)*(rng_rainfall=2)+SUM('CANOLA CONVENTIONAL'!R11)*(rng_rainfall=3))*(rng_Canola_Conv_DATA_SHEET) -> 0 | G21: =('CANOLA CONVENTIONAL'!U11)*(rng_Canola_Conv_DATA_SHEET) -> 0 | H21: =(SUM('CANOLA CONVENTIONAL'!L14:L34)*(rng_rainfall=1)+SUM('CANOLA CONVENTIONAL'!O14:O34)*(rng_rainfall=2)+SUM('CANOLA CONVENTIONAL'!R14:R34)*(rng_rainfall=3))*(rng_Canola_Conv_DATA_SHEET) -> 0 | I21: =(SUM('CANOLA CONVENTIONAL'!U14:U34))*(rng_Canola_Conv_DATA_SHEET) -> 0 | J21: =(SUM('CANOLA CONVENTIONAL'!L37:L53)*(rng_rainfall=1)+SUM('CANOLA CONVENTIONAL'!O37:O53)*(rng_rainfall=2)+SUM('CANOLA CONVENTIONAL'!R37:R53)*(rng_rainfall=3))*(rng_Canola_Conv_DATA_SHEET) -> 0 | K21: =(SUM('CANOLA CONVENTIONAL'!U37:U53))*(rng_Canola_Conv_DATA_SHEET) -> 0 | L21: =(SUM('CANOLA CONVENTIONAL'!L57:L128)*(rng_rainfall=1)+SUM('CANOLA CONVENTIONAL'!O57:O128)*(rng_rainfall=2)+SUM('CANOLA CONVENTIONAL'!R57:R128)*(rng_rainfall=3))*(rng_Canola_Conv_DATA_SHEET) -> 0 | M21: =(SUM('CANOLA CONVENTIONAL'!U57:U128))*(rng_Canola_Conv_DATA_SHEET) -> 0 | N21: =(SUM('CANOLA CONVENTIONAL'!L131:L157)*(rng_rainfall=1)+SUM('CANOLA CONVENTIONAL'!O131:O157)*(rng_rainfall=2)++SUM('CANOLA CONVENTIONAL'!R131:R157)*(rng_rainfall=3))*(rng_Canola_Conv_DATA_SHEET) ->  | O21: =(SUM('CANOLA CONVENTIONAL'!U131:U157))*(rng_Canola_Conv_DATA_SHEET) ->  | Q21: =(SUM(O21,M21,K21,I21))*(rng_Canola_Conv_DATA_SHEET) -> 
B22: Canola RoundUp Ready | C22: =('CANOLA ROUNDUP READY'!U6)*(rng_Canola_Round_DATA_SHEET) -> 0 | D22: =(SUM('CANOLA ROUNDUP READY'!L162)*(rng_rainfall=1)+SUM('CANOLA ROUNDUP READY'!O162)*(rng_rainfall=2)+SUM('CANOLA ROUNDUP READY'!R162)*(rng_rainfall=3))*(rng_Canola_Round_DATA_SHEET) -> 0 | E22: =('CANOLA ROUNDUP READY'!U162)*(rng_Canola_Round_DATA_SHEET) -> 0 | F22: =(SUM('CANOLA ROUNDUP READY'!L11)*(rng_rainfall=1)+SUM('CANOLA ROUNDUP READY'!O11)*(rng_rainfall=2)+SUM('CANOLA ROUNDUP READY'!R11)*(rng_rainfall=3))*(rng_Canola_Round_DATA_SHEET) -> 0 | G22: =('CANOLA ROUNDUP READY'!U11)*(rng_Canola_Round_DATA_SHEET) -> 0 | H22: =(SUM('CANOLA ROUNDUP READY'!L14:L34)*(rng_rainfall=1)+SUM('CANOLA ROUNDUP READY'!O14:O34)*(rng_rainfall=2)+SUM('CANOLA ROUNDUP READY'!R15:R35)*(rng_rainfall=3))*(rng_Canola_Round_DATA_SHEET) -> 0 | I22: =(SUM('CANOLA ROUNDUP READY'!U14:U34))*(rng_Canola_Round_DATA_SHEET) -> 0 | J22: =(SUM('CANOLA ROUNDUP READY'!L37:L53)*(rng_rainfall=1)+SUM('CANOLA ROUNDUP READY'!O37:O53)*(rng_rainfall=2)+SUM('CANOLA ROUNDUP READY'!R37:R53)*(rng_rainfall=3))*(rng_Canola_Round_DATA_SHEET) -> 0 | K22: =(SUM('CANOLA ROUNDUP READY'!U37:U53))*(rng_Canola_Round_DATA_SHEET) -> 0 | L22: =(SUM('CANOLA ROUNDUP READY'!L57:L118)*(rng_rainfall=1)+SUM('CANOLA ROUNDUP READY'!O57:O118)*(rng_rainfall=2)+SUM('CANOLA ROUNDUP READY'!R57:R118)*(rng_rainfall=3))*(rng_Canola_Round_DATA_SHEET) -> 0 | M22: =(SUM('CANOLA ROUNDUP READY'!U57:U128))*(rng_Canola_Round_DATA_SHEET) -> 0 | N22: =(SUM('CANOLA ROUNDUP READY'!L131:L156)*(rng_rainfall=1)+SUM('CANOLA ROUNDUP READY'!O131:O156)*(rng_rainfall=2)++SUM('CANOLA ROUNDUP READY'!R131:R156)*(rng_rainfall=3))*(rng_Canola_Round_DATA_SHEET) ->  | O22: =(SUM('CANOLA ROUNDUP READY'!U132:U157))*(rng_Canola_Round_DATA_SHEET) ->  | P22: =SUM(N22,L22,J22,H22) ->  | Q22: =(SUM(O22,M22,K22,I22))*(rng_Canola_Round_DATA_SHEET) -> 
B23: Canola Tri Tolerant | C23: =('CANOLA TRITOLERANT'!U6)*(rng_Canola_Tri_DATA_SHEET) -> 0 | D23: =(SUM('CANOLA TRITOLERANT'!L162)*(rng_rainfall=1)+SUM('CANOLA TRITOLERANT'!O162)*(rng_rainfall=2)+SUM('CANOLA TRITOLERANT'!R162)*(rng_rainfall=3))*(rng_Canola_Tri_DATA_SHEET) -> 0 | E23: =('CANOLA TRITOLERANT'!U162)*(rng_Canola_Tri_DATA_SHEET) -> 0 | F23: =(SUM('CANOLA TRITOLERANT'!L11)*(rng_rainfall=1)+SUM('CANOLA TRITOLERANT'!O11)*(rng_rainfall=2)+SUM('CANOLA TRITOLERANT'!R11)*(rng_rainfall=3))*(rng_Canola_Tri_DATA_SHEET) -> 0 | G23: =('CANOLA TRITOLERANT'!U11)*(rng_Canola_Tri_DATA_SHEET) -> 0 | H23: =(SUM('CANOLA TRITOLERANT'!L14:L34)*(rng_rainfall=1)+SUM('CANOLA TRITOLERANT'!O14:O34)*(rng_rainfall=2)+SUM('CANOLA TRITOLERANT'!R14:R34)*(rng_rainfall=3))*(rng_Canola_Tri_DATA_SHEET) -> 0 | I23: =(SUM('CANOLA TRITOLERANT'!U14:U34))*(rng_Canola_Tri_DATA_SHEET) -> 0 | J23: =(SUM('CANOLA TRITOLERANT'!L37:L53)*(rng_rainfall=1)+SUM('CANOLA TRITOLERANT'!O37:O53)*(rng_rainfall=2)+SUM('CANOLA TRITOLERANT'!R37:R53)*(rng_rainfall=3))*(rng_Canola_Tri_DATA_SHEET) -> 0 | K23: =(SUM('CANOLA TRITOLERANT'!U37:U53))*(rng_Canola_Tri_DATA_SHEET) -> 0 | L23: =(SUM('CANOLA TRITOLERANT'!L57:L128)*(rng_rainfall=1)+SUM('CANOLA TRITOLERANT'!O57:O128)*(rng_rainfall=2)+SUM('CANOLA TRITOLERANT'!R57:R128)*(rng_rainfall=3))*(rng_Canola_Tri_DATA_SHEET) -> 0 | M23: =(SUM('CANOLA TRITOLERANT'!U57:U128))*(rng_Canola_Tri_DATA_SHEET) -> 0 | N23: =(SUM('CANOLA TRITOLERANT'!L131:L157)*(rng_rainfall=1)+SUM('CANOLA TRITOLERANT'!O131:O157)*(rng_rainfall=2)++SUM('CANOLA TRITOLERANT'!R131:R157)*(rng_rainfall=3))*(rng_Canola_Tri_DATA_SHEET) ->  | O23: =(SUM('CANOLA TRITOLERANT'!U131:U157))*(rng_Canola_Tri_DATA_SHEET) ->  | P23: =SUM(N23,L23,J23,H23) ->  | Q23: =(SUM(O23,M23,K23,I23))*(rng_Canola_Tri_DATA_SHEET) -> 
B24: Sown Pasture | C24: =('SOWN PASTURE'!U6)*(rng_sown_pasture_DATA_SHEET) -> 0 | D24: =(SUM('SOWN PASTURE'!L162)*(rng_rainfall=1)+SUM('SOWN PASTURE'!O162)*(rng_rainfall=2)+SUM('SOWN PASTURE'!R162)*(rng_rainfall=3))*(rng_sown_pasture_DATA_SHEET) -> 0 | E24: =('SOWN PASTURE'!U162)*(rng_sown_pasture_DATA_SHEET) -> 0 | F24: =(SUM('SOWN PASTURE'!L11)*(rng_rainfall=1)+SUM('SOWN PASTURE'!O11)*(rng_rainfall=2)+SUM('SOWN PASTURE'!R11)*(rng_rainfall=3))*(rng_sown_pasture_DATA_SHEET) -> 0 | G24: =('SOWN PASTURE'!U11)*(rng_sown_pasture_DATA_SHEET) -> 0 | H24: =(SUM('SOWN PASTURE'!L14:L34)*(rng_rainfall=1)+SUM('SOWN PASTURE'!O14:O34)*(rng_rainfall=2)+SUM('SOWN PASTURE'!R14:R34)*(rng_rainfall=3))*(rng_sown_pasture_DATA_SHEET) -> 0 | I24: =(SUM('SOWN PASTURE'!U14:U34))*(rng_sown_pasture_DATA_SHEET) -> 0 | J24: =(SUM('SOWN PASTURE'!L37:L53)*(rng_rainfall=1)+SUM('SOWN PASTURE'!O37:O53)*(rng_rainfall=2)+SUM('SOWN PASTURE'!R37:R53)*(rng_rainfall=3))*(rng_sown_pasture_DATA_SHEET) -> 0 | K24: =(SUM('SOWN PASTURE'!U37:U53))*(rng_sown_pasture_DATA_SHEET) -> 0 | L24: =(SUM('SOWN PASTURE'!L57:L128)*(rng_rainfall=1)+SUM('SOWN PASTURE'!O57:O128)*(rng_rainfall=2)+SUM('SOWN PASTURE'!R57:R128)*(rng_rainfall=3))*(rng_sown_pasture_DATA_SHEET) -> 0 | M24: =(SUM('SOWN PASTURE'!U57:U128))*(rng_sown_pasture_DATA_SHEET) -> 0 | N24: =(SUM('SOWN PASTURE'!L131:L157)*(rng_rainfall=1)+SUM('SOWN PASTURE'!O131:O157)*(rng_rainfall=2)++SUM('SOWN PASTURE'!R131:R157)*(rng_rainfall=3))*(rng_sown_pasture_DATA_SHEET) ->  | O24: =(SUM('SOWN PASTURE'!U131:U157))*(rng_sown_pasture_DATA_SHEET) ->  | Q24: =(SUM(O24,M24,K24,I24))*(rng_sown_pasture_DATA_SHEET) -> 
B25: Self Regen Pasture | C25: =('SELF REGEN PASTURE'!U$6)*(rng_self_regen_DATA_SHEET) -> 0 | D25: =(SUM('SELF REGEN PASTURE'!L$162)*(rng_rainfall=1)+SUM('SELF REGEN PASTURE'!O$162)*(rng_rainfall=2)+SUM('SELF REGEN PASTURE'!R$162)*(rng_rainfall=3))*(rng_self_regen_DATA_SHEET) -> 0 | E25: =('SELF REGEN PASTURE'!U$162)*(rng_self_regen_DATA_SHEET) -> 0 | F25: =(SUM('SELF REGEN PASTURE'!L$11)*(rng_rainfall=1)+SUM('SELF REGEN PASTURE'!O$11)*(rng_rainfall=2)+SUM('SELF REGEN PASTURE'!R$11)*(rng_rainfall=3))*(rng_self_regen_DATA_SHEET) -> 0 | G25: =('SELF REGEN PASTURE'!U$11)*(rng_self_regen_DATA_SHEET) -> 0 | H25: =(SUM('SELF REGEN PASTURE'!L$14:L$34)*(rng_rainfall=1)+SUM('SELF REGEN PASTURE'!O$14:O$34)*(rng_rainfall=2)+SUM('SELF REGEN PASTURE'!R$14:R$34)*(rng_rainfall=3))*(rng_self_regen_DATA_SHEET) -> 0 | I25: =(SUM('SELF REGEN PASTURE'!U$14:U$34))*(rng_self_regen_DATA_SHEET) -> 0 | J25: =(SUM('SELF REGEN PASTURE'!L$37:L$53)*(rng_rainfall=1)+SUM('SELF REGEN PASTURE'!O$37:O$53)*(rng_rainfall=2)+SUM('SELF REGEN PASTURE'!R$37:R$53)*(rng_rainfall=3))*(rng_self_regen_DATA_SHEET) -> 0 | K25: =(SUM('SELF REGEN PASTURE'!U$37:U$53))*(rng_self_regen_DATA_SHEET) -> 0 | L25: =(SUM('SELF REGEN PASTURE'!L$57:L$128)*(rng_rainfall=1)+SUM('SELF REGEN PASTURE'!O$57:O$128)*(rng_rainfall=2)+SUM('SELF REGEN PASTURE'!R$57:R$128)*(rng_rainfall=3))*(rng_self_regen_DATA_SHEET) -> 0 | M25: =(SUM('SELF REGEN PASTURE'!U$57:U$128))*(rng_self_regen_DATA_SHEET) -> 0 | N25: =(SUM('SELF REGEN PASTURE'!L$131:L$157)*(rng_rainfall=1)+SUM('SELF REGEN PASTURE'!O$131:O$157)*(rng_rainfall=2)++SUM('SELF REGEN PASTURE'!R$131:R$157)*(rng_rainfall=3))*(rng_self_regen_DATA_SHEET) ->  | O25: =(SUM('SELF REGEN PASTURE'!U$131:U$157))*(rng_self_regen_DATA_SHEET) ->  | Q25: =(SUM(O25,M25,K25,I25))*(rng_self_regen_DATA_SHEET) -> 
B26: Lucerne Pasture Cereal | C26: =('LUCERNE PASTURE CEREAL'!U6)*(rng_LUC_CEREAL_DATA_SHEET) -> 0 | D26: =(SUM('LUCERNE PASTURE CEREAL'!L$163)*(rng_rainfall=1)+SUM('LUCERNE PASTURE CEREAL'!O$163)*(rng_rainfall=2)+SUM('LUCERNE PASTURE CEREAL'!R$163)*(rng_rainfall=3))*(rng_LUC_CEREAL_DATA_SHEET) -> 0 | E26: =('LUCERNE PASTURE CEREAL'!U$163)*(rng_LUC_CEREAL_DATA_SHEET) -> 0 | F26: =(SUM('LUCERNE PASTURE CEREAL'!L$11)*(rng_rainfall=1)+SUM('LUCERNE PASTURE CEREAL'!O$11)*(rng_rainfall=2)+SUM('LUCERNE PASTURE CEREAL'!R$11)*(rng_rainfall=3))*(rng_LUC_CEREAL_DATA_SHEET) -> 0 | G26: =('LUCERNE PASTURE CEREAL'!U$11)*(rng_LUC_CEREAL_DATA_SHEET) -> 0 | H26: =(SUM('LUCERNE PASTURE CEREAL'!L$14:L$34)*(rng_rainfall=1)+SUM('LUCERNE PASTURE CEREAL'!O$14:O$34)*(rng_rainfall=2)+SUM('LUCERNE PASTURE CEREAL'!R$14:R$34)*(rng_rainfall=3))*(rng_LUC_CEREAL_DATA_SHEET) -> 0 | I26: =(SUM('LUCERNE PASTURE CEREAL'!U$14:U$34))*(rng_LUC_CEREAL_DATA_SHEET) -> 0 | J26: =(SUM('LUCERNE PASTURE CEREAL'!L$37:L$53)*(rng_rainfall=1)+SUM('LUCERNE PASTURE CEREAL'!O$37:O$53)*(rng_rainfall=2)+SUM('LUCERNE PASTURE CEREAL'!R$37:R$53)*(rng_rainfall=3))*(rng_LUC_CEREAL_DATA_SHEET) -> 0 | K26: =(SUM('LUCERNE PASTURE CEREAL'!U$37:U$53))*(rng_LUC_CEREAL_DATA_SHEET) -> 0 | L26: =(SUM('LUCERNE PASTURE CEREAL'!L$57:L$129)*(rng_rainfall=1)+SUM('LUCERNE PASTURE CEREAL'!O$57:O$129)*(rng_rainfall=2)+SUM('LUCERNE PASTURE CEREAL'!R$57:R$129)*(rng_rainfall=3))*(rng_LUC_CEREAL_DATA_SHEET) -> 0 | M26: =(SUM('LUCERNE PASTURE CEREAL'!U$57:U$129))*(rng_LUC_CEREAL_DATA_SHEET) -> 0 | N26: =(SUM('LUCERNE PASTURE CEREAL'!L$132:L$158)*(rng_rainfall=1)+SUM('LUCERNE PASTURE CEREAL'!O$132:O$158)*(rng_rainfall=2)++SUM('LUCERNE PASTURE CEREAL'!R$132:R$158)*(rng_rainfall=3))*(rng_LUC_CEREAL_DATA_SHEET) ->  | O26: =(SUM('LUCERNE PASTURE CEREAL'!U$132:U$158))*(rng_LUC_CEREAL_DATA_SHEET) ->  | P26: =SUM(N26,L26,J26,H26) ->  | Q26: =(SUM(O26,M26,K26,I26))*(rng_LUC_CEREAL_DATA_SHEET) -> 
B27: Lucerne Pasture Grazing | C27: =('LUCERNE PASTURE GRAZING'!U6)*(rng_LUC_GRAZ_DATA_SHEET) -> 0 | D27: =(SUM('LUCERNE PASTURE GRAZING'!L$163)*(rng_rainfall=1)+SUM('LUCERNE PASTURE GRAZING'!O$163)*(rng_rainfall=2)+SUM('LUCERNE PASTURE GRAZING'!R$163)*(rng_rainfall=3))*(rng_LUC_GRAZ_DATA_SHEET) -> 0 | E27: =('LUCERNE PASTURE GRAZING'!U$163)*(rng_LUC_GRAZ_DATA_SHEET) -> 0 | F27: =(SUM('LUCERNE PASTURE GRAZING'!L$11)*(rng_rainfall=1)+SUM('LUCERNE PASTURE GRAZING'!O$11)*(rng_rainfall=2)+SUM('LUCERNE PASTURE GRAZING'!R$11)*(rng_rainfall=3))*(rng_LUC_GRAZ_DATA_SHEET) -> 0 | G27: =('LUCERNE PASTURE GRAZING'!U$11)*(rng_LUC_GRAZ_DATA_SHEET) -> 0 | H27: =(SUM('LUCERNE PASTURE GRAZING'!L$14:L$34)*(rng_rainfall=1)+SUM('LUCERNE PASTURE GRAZING'!O$14:O$34)*(rng_rainfall=2)+SUM('LUCERNE PASTURE GRAZING'!R$14:R$34)*(rng_rainfall=3))*(rng_LUC_GRAZ_DATA_SHEET) -> 0 | I27: =(SUM('LUCERNE PASTURE GRAZING'!U$14:U$34))*(rng_LUC_GRAZ_DATA_SHEET) -> 0 | J27: =(SUM('LUCERNE PASTURE GRAZING'!L$37:L$53)*(rng_rainfall=1)+SUM('LUCERNE PASTURE GRAZING'!O$37:O$53)*(rng_rainfall=2)+SUM('LUCERNE PASTURE GRAZING'!R$37:R$53)*(rng_rainfall=3))*(rng_LUC_GRAZ_DATA_SHEET) -> 0 | K27: =(SUM('LUCERNE PASTURE GRAZING'!U$37:U$53))*(rng_LUC_GRAZ_DATA_SHEET) -> 0 | L27: =(SUM('LUCERNE PASTURE GRAZING'!L$57:L$129)*(rng_rainfall=1)+SUM('LUCERNE PASTURE GRAZING'!O$57:O$129)*(rng_rainfall=2)+SUM('LUCERNE PASTURE GRAZING'!R$57:R$129)*(rng_rainfall=3))*(rng_LUC_GRAZ_DATA_SHEET) -> 0 | M27: =(SUM('LUCERNE PASTURE GRAZING'!U$57:U$129))*(rng_LUC_GRAZ_DATA_SHEET) -> 0 | N27: =(SUM('LUCERNE PASTURE GRAZING'!L$132:L$158)*(rng_rainfall=1)+SUM('LUCERNE PASTURE GRAZING'!O$132:O$158)*(rng_rainfall=2)++SUM('LUCERNE PASTURE GRAZING'!R$132:R$158)*(rng_rainfall=3))*(rng_LUC_GRAZ_DATA_SHEET) ->  | O27: =(SUM('LUCERNE PASTURE GRAZING'!U$132:U$158))*(rng_LUC_GRAZ_DATA_SHEET) ->  | Q27: =(SUM(O27,M27,K27,I27))*(rng_LUC_GRAZ_DATA_SHEET) -> 
B28: Phalaris Sub Pasture Cereal | C28: =('PHALARIS SUB PASTURE CEREAL'!U6)*(rng_PHA_CEREAL_DATA_SHEET) -> 0 | D28: =(SUM('PHALARIS SUB PASTURE CEREAL'!L$162)*(rng_rainfall=1)+SUM('PHALARIS SUB PASTURE CEREAL'!O$162)*(rng_rainfall=2)+SUM('PHALARIS SUB PASTURE CEREAL'!R$162)*(rng_rainfall=3))*(rng_PHA_CEREAL_DATA_SHEET) -> 0 | E28: =('PHALARIS SUB PASTURE CEREAL'!U$162)*(rng_PHA_CEREAL_DATA_SHEET) -> 0 | F28: =(SUM('PHALARIS SUB PASTURE CEREAL'!L$11)*(rng_rainfall=1)+SUM('PHALARIS SUB PASTURE CEREAL'!O$11)*(rng_rainfall=2)+SUM('PHALARIS SUB PASTURE CEREAL'!R$11)*(rng_rainfall=3))*(rng_PHA_CEREAL_DATA_SHEET) -> 0 | G28: =('PHALARIS SUB PASTURE CEREAL'!U$11)*(rng_PHA_CEREAL_DATA_SHEET) -> 0 | H28: =(SUM('PHALARIS SUB PASTURE CEREAL'!L$14:L$34)*(rng_rainfall=1)+SUM('PHALARIS SUB PASTURE CEREAL'!O$14:O$34)*(rng_rainfall=2)+SUM('PHALARIS SUB PASTURE CEREAL'!R$14:R$34)*(rng_rainfall=3))*(rng_PHA_CEREAL_DATA_SHEET) -> 0 | I28: =(SUM('PHALARIS SUB PASTURE CEREAL'!U$14:U$34))*(rng_PHA_CEREAL_DATA_SHEET) -> 0 | J28: =(SUM('PHALARIS SUB PASTURE CEREAL'!L$37:L$53)*(rng_rainfall=1)+SUM('PHALARIS SUB PASTURE CEREAL'!O$37:O$53)*(rng_rainfall=2)+SUM('PHALARIS SUB PASTURE CEREAL'!R$37:R$53)*(rng_rainfall=3))*(rng_PHA_CEREAL_DATA_SHEET) -> 0 | K28: =(SUM('PHALARIS SUB PASTURE CEREAL'!U$37:U$53))*(rng_PHA_CEREAL_DATA_SHEET) -> 0 | L28: =(SUM('PHALARIS SUB PASTURE CEREAL'!L$57:L$128)*(rng_rainfall=1)+SUM('PHALARIS SUB PASTURE CEREAL'!O$57:O$128)*(rng_rainfall=2)+SUM('PHALARIS SUB PASTURE CEREAL'!R$57:R$128)*(rng_rainfall=3))*(rng_PHA_CEREAL_DATA_SHEET) -> 0 | M28: =(SUM('PHALARIS SUB PASTURE CEREAL'!U$57:U$128))*(rng_PHA_CEREAL_DATA_SHEET) -> 0 | N28: =(SUM('PHALARIS SUB PASTURE CEREAL'!L$131:L$157)*(rng_rainfall=1)+SUM('PHALARIS SUB PASTURE CEREAL'!O$131:O$157)*(rng_rainfall=2)++SUM('PHALARIS SUB PASTURE CEREAL'!R$131:R$157)*(rng_rainfall=3))*(rng_PHA_CEREAL_DATA_SHEET) ->  | O28: =(SUM('PHALARIS SUB PASTURE CEREAL'!U$131:U$157))*(rng_PHA_CEREAL_DATA_SHEET) ->  | Q28: =(SUM(O28,M28,K28,I28))*(rng_PHA_CEREAL_DATA_SHEET) -> 
B29: Phalaris Sub Grazing | C29: =('PHALARIS SUB PASTURE GRAZING'!U6)*(rng_PHA_GRAZING_DATA_SHEET) -> 0 | D29: =(SUM('PHALARIS SUB PASTURE GRAZING'!L$162)*(rng_rainfall=1)+SUM('PHALARIS SUB PASTURE GRAZING'!O$162)*(rng_rainfall=2)+SUM('PHALARIS SUB PASTURE GRAZING'!R$162)*(rng_rainfall=3))*(rng_PHA_GRAZING_DATA_SHEET) -> 0 | E29: =('PHALARIS SUB PASTURE GRAZING'!U$162)*(rng_PHA_GRAZING_DATA_SHEET) -> 0 | F29: =(SUM('PHALARIS SUB PASTURE GRAZING'!L$11)*(rng_rainfall=1)+SUM('PHALARIS SUB PASTURE GRAZING'!O$11)*(rng_rainfall=2)+SUM('PHALARIS SUB PASTURE GRAZING'!R$11)*(rng_rainfall=3))*(rng_PHA_GRAZING_DATA_SHEET) -> 0 | G29: =('PHALARIS SUB PASTURE GRAZING'!U$11)*(rng_PHA_GRAZING_DATA_SHEET) -> 0 | H29: =(SUM('PHALARIS SUB PASTURE GRAZING'!L$14:L$34)*(rng_rainfall=1)+SUM('PHALARIS SUB PASTURE GRAZING'!O$14:O$34)*(rng_rainfall=2)+SUM('PHALARIS SUB PASTURE GRAZING'!R$14:R$34)*(rng_rainfall=3))*(rng_PHA_GRAZING_DATA_SHEET) -> 0 | I29: =(SUM('PHALARIS SUB PASTURE GRAZING'!U$14:U$34))*(rng_PHA_GRAZING_DATA_SHEET) -> 0 | J29: =(SUM('PHALARIS SUB PASTURE GRAZING'!L$37:L$53)*(rng_rainfall=1)+SUM('PHALARIS SUB PASTURE GRAZING'!O$37:O$53)*(rng_rainfall=2)+SUM('PHALARIS SUB PASTURE GRAZING'!R$37:R$53)*(rng_rainfall=3))*(rng_PHA_GRAZING_DATA_SHEET) -> 0 | K29: =(SUM('PHALARIS SUB PASTURE GRAZING'!U$37:U$53))*(rng_PHA_GRAZING_DATA_SHEET) -> 0 | L29: =(SUM('PHALARIS SUB PASTURE GRAZING'!L$57:L$128)*(rng_rainfall=1)+SUM('PHALARIS SUB PASTURE GRAZING'!O$57:O$128)*(rng_rainfall=2)+SUM('PHALARIS SUB PASTURE GRAZING'!R$57:R$128)*(rng_rainfall=3))*(rng_PHA_GRAZING_DATA_SHEET) -> 0 | M29: =(SUM('PHALARIS SUB PASTURE GRAZING'!U$57:U$128))*(rng_PHA_GRAZING_DATA_SHEET) -> 0 | N29: =(SUM('PHALARIS SUB PASTURE GRAZING'!L$131:L$157)*(rng_rainfall=1)+SUM('PHALARIS SUB PASTURE GRAZING'!O$131:O$157)*(rng_rainfall=2)++SUM('PHALARIS SUB PASTURE GRAZING'!R$131:R$157)*(rng_rainfall=3))*(rng_PHA_GRAZING_DATA_SHEET) ->  | O29: =(SUM('PHALARIS SUB PASTURE GRAZING'!U$131:U$157))*(rng_PHA_GRAZING_DATA_SHEET) ->  | Q29: =(SUM(O29,M29,K29,I29))*(rng_PHA_GRAZING_DATA_SHEET) -> 
B30: ="TOTAL "&IF(var_rotationtype=2,"-ROTATION 1","") -> TOTAL | C30: =SUM(C6:C29) -> 0 | E30: =SUM(E6:E29) -> 0 | G30: =SUM(G6:G29) -> 0 | I30: =SUM(I6:I29) -> 0 | K30: =SUM(K6:K29) -> 0 | M30: =SUM(M6:M29) -> 0 | O30: =SUM(O6:O29) ->  | Q30: =SUM(Q6:Q29) -> 
B32: ="Profit and Loss Statement "&IF(var_rotationtype=2,"(Rotation 1)","") -> Profit and Loss Statement
B33: Overhead Costs | E33: Amount | F33: Comments
B34: General Overheads | F34: Rates, subscriptions, telephone, power, general insurance, general repairs etc
B35: Permanent Wages | F35: Wages paid to permanent employees, including family members
B36: Managers allowance-personal drawings | F36: Personel drawings
B37: Machinery & plant depreciation | F37: Normally 8 to 12% of market value; usually allow 10%
B38: Leasing (land and machinery)
B39: Debt Servicing | F39: Interest and bank fees
B40: Total Overheads | E40: =SUM(E34:E39) -> 0
B41: Farm Business Profit / Loss | E41: =E30-E40 -> 0
B44: Crop - Rotation 2
B45: Wheat | C45: =('WHEAT R2'!U6)*(rng_APW_Wheat_DATA_Sheet_R2) -> 0 | D45: =(SUM('WHEAT R2'!L162)*(rng_rainfall=1)+SUM('WHEAT R2'!O162)*(rng_rainfall=2)+SUM('WHEAT R2'!R162)*(rng_rainfall=3))*(rng_APW_Wheat_DATA_Sheet_R2) -> 0 | E45: =('WHEAT R2'!U162)*(rng_APW_Wheat_DATA_Sheet_R2) -> 0 | F45: =(SUM('WHEAT R2'!L11)*(rng_rainfall=1)+SUM('WHEAT R2'!O11)*(rng_rainfall=2)+SUM('WHEAT R2'!R11)*(rng_rainfall=3))*(rng_APW_Wheat_DATA_Sheet_R2) -> 0 | G45: =('WHEAT R2'!U11)*(rng_APW_Wheat_DATA_Sheet_R2) -> 0 | H45: =(SUM('WHEAT R2'!L14:L34)*(rng_rainfall=1)+SUM('WHEAT R2'!O14:O34)*(rng_rainfall=2)+SUM('WHEAT R2'!R14:R34)*(rng_rainfall=3))*(rng_APW_Wheat_DATA_Sheet_R2) -> 0 | I45: =(SUM('WHEAT R2'!U14:U34))*(rng_APW_Wheat_DATA_Sheet_R2) -> 0 | J45: =(SUM('WHEAT R2'!L37:L53)*(rng_rainfall=1)+SUM('WHEAT R2'!O37:O53)*(rng_rainfall=2)+SUM('WHEAT R2'!R37:R53)*(rng_rainfall=3))*(rng_APW_Wheat_DATA_Sheet_R2) -> 0 | K45: =(SUM('WHEAT R2'!U37:U53))*(rng_APW_Wheat_DATA_Sheet_R2) -> 0 | L45: =(SUM('WHEAT R2'!L57:L128)*(rng_rainfall=1)+SUM('WHEAT R2'!O57:O128)*(rng_rainfall=2)+SUM('WHEAT R2'!R57:R128)*(rng_rainfall=3))*(rng_APW_Wheat_DATA_Sheet_R2) -> 0 | M45: =(SUM('WHEAT R2'!U57:U128))*(rng_APW_Wheat_DATA_Sheet_R2) -> 0 | N45: =(SUM('WHEAT R2'!L131:L157)*(rng_rainfall=1)+SUM('WHEAT R2'!O131:O157)*(rng_rainfall=2)++SUM('WHEAT R2'!R131:R157)*(rng_rainfall=3))*(rng_APW_Wheat_DATA_Sheet_R2) ->  | O45: =(SUM('WHEAT R2'!U131:U157))*(rng_APW_Wheat_DATA_Sheet_R2) ->  | P45: =SUM(N45,L45,J45,H45) ->  | Q45: =(SUM(O45,M45,K45,I45))*(rng_APW_Wheat_DATA_Sheet_R2) -> 
B46: Durum | C46: =('DURUM R2'!U6)*(rng_Durum_DATA_Sheet_R2) -> 0 | D46: =(SUM('DURUM R2'!L162)*(rng_rainfall=1)+SUM('DURUM R2'!O162)*(rng_rainfall=2)+SUM('DURUM R2'!R162)*(rng_rainfall=3))*(rng_Durum_DATA_Sheet_R2) -> 0 | E46: =('DURUM R2'!U162)*(rng_Durum_DATA_Sheet_R2) -> 0 | F46: =(SUM('DURUM R2'!L11)*(rng_rainfall=1)+SUM('DURUM R2'!O11)*(rng_rainfall=2)+SUM('DURUM R2'!R11)*(rng_rainfall=3))*(rng_Durum_DATA_Sheet_R2) -> 0 | G46: =('DURUM R2'!U11)*(rng_Durum_DATA_Sheet_R2) -> 0 | H46: =(SUM('DURUM R2'!L14:L34)*(rng_rainfall=1)+SUM('DURUM R2'!O14:O34)*(rng_rainfall=2)+SUM('DURUM R2'!R14:R34)*(rng_rainfall=3))*(rng_Durum_DATA_Sheet_R2) -> 0 | I46: =(SUM('DURUM R2'!U14:U34))*(rng_Durum_DATA_Sheet_R2) -> 0 | J46: =(SUM('DURUM R2'!L37:L53)*(rng_rainfall=1)+SUM('DURUM R2'!O37:O53)*(rng_rainfall=2)+SUM('DURUM R2'!R37:R53)*(rng_rainfall=3))*(rng_Durum_DATA_Sheet_R2) -> 0 | K46: =(SUM('DURUM R2'!U37:U53))*(rng_Durum_DATA_Sheet_R2) -> 0 | L46: =(SUM('DURUM R2'!L57:L128)*(rng_rainfall=1)+SUM('DURUM R2'!O57:O128)*(rng_rainfall=2)+SUM('DURUM R2'!R57:R128)*(rng_rainfall=3))*(rng_Durum_DATA_Sheet_R2) -> 0 | M46: =(SUM('DURUM R2'!U57:U128))*(rng_Durum_DATA_Sheet_R2) -> 0 | N46: =(SUM('DURUM R2'!L131:L157)*(rng_rainfall=1)+SUM('DURUM R2'!O131:O157)*(rng_rainfall=2)++SUM('DURUM R2'!R131:R157)*(rng_rainfall=3))*(rng_Durum_DATA_Sheet_R2) ->  | O46: =(SUM('DURUM R2'!U131:U157))*(rng_Durum_DATA_Sheet_R2) ->  | Q46: =(SUM(O46,M46,K46,I46))*(rng_Durum_DATA_Sheet_R2) -> 
B47: Malt Barley | C47: =('MALT BARLEY R2'!U6)*(rng_Malt_Barley_DATA_Sheet_R2) -> 0 | D47: =(SUM('MALT BARLEY R2'!L162)*(rng_rainfall=1)+SUM('MALT BARLEY R2'!O162)*(rng_rainfall=2)+SUM('MALT BARLEY R2'!R162)*(rng_rainfall=3))*(rng_Malt_Barley_DATA_Sheet_R2) -> 0 | E47: =('MALT BARLEY R2'!U162)*(rng_Malt_Barley_DATA_Sheet_R2) -> 0 | F47: =(SUM('MALT BARLEY R2'!L11)*(rng_rainfall=1)+SUM('MALT BARLEY R2'!O11)*(rng_rainfall=2)+SUM('MALT BARLEY R2'!R11)*(rng_rainfall=3))*(rng_Malt_Barley_DATA_Sheet_R2) -> 0 | G47: =('MALT BARLEY R2'!U11)*(rng_Malt_Barley_DATA_Sheet_R2) -> 0 | H47: =(SUM('MALT BARLEY R2'!L14:L34)*(rng_rainfall=1)+SUM('MALT BARLEY R2'!O14:O34)*(rng_rainfall=2)+SUM('MALT BARLEY R2'!R14:R34)*(rng_rainfall=3))*(rng_Malt_Barley_DATA_Sheet_R2) -> 0 | I47: =(SUM('MALT BARLEY R2'!U14:U34))*(rng_Malt_Barley_DATA_Sheet_R2) -> 0 | J47: =(SUM('MALT BARLEY R2'!L37:L53)*(rng_rainfall=1)+SUM('MALT BARLEY R2'!O37:O53)*(rng_rainfall=2)+SUM('MALT BARLEY R2'!R37:R53)*(rng_rainfall=3))*(rng_Malt_Barley_DATA_Sheet_R2) -> 0 | K47: =(SUM('MALT BARLEY R2'!U37:U53))*(rng_Malt_Barley_DATA_Sheet_R2) -> 0 | L47: =(SUM('MALT BARLEY R2'!L57:L128)*(rng_rainfall=1)+SUM('MALT BARLEY R2'!O57:O128)*(rng_rainfall=2)+SUM('MALT BARLEY R2'!R57:R128)*(rng_rainfall=3))*(rng_Malt_Barley_DATA_Sheet_R2) -> 0 | M47: =(SUM('MALT BARLEY R2'!U57:U128))*(rng_Malt_Barley_DATA_Sheet_R2) -> 0 | N47: =(SUM('MALT BARLEY R2'!L131:L157)*(rng_rainfall=1)+SUM('MALT BARLEY R2'!O131:O157)*(rng_rainfall=2)++SUM('MALT BARLEY R2'!R131:R157)*(rng_rainfall=3))*(rng_Malt_Barley_DATA_Sheet_R2) ->  | O47: =(SUM('MALT BARLEY R2'!U131:U157))*(rng_Malt_Barley_DATA_Sheet_R2) ->  | Q47: =(SUM(O47,M47,K47,I47))*(rng_Malt_Barley_DATA_Sheet_R2) -> 
B48: Feed Barley | C48: =('FEED BARLEY R2'!U6)*(rng_Feed_Barley_DATA_Sheet_R2) -> 0 | D48: =(SUM('FEED BARLEY R2'!L162)*(rng_rainfall=1)+SUM('FEED BARLEY R2'!O162)*(rng_rainfall=2)+SUM('FEED BARLEY R2'!R162)*(rng_rainfall=3))*(rng_Feed_Barley_DATA_Sheet_R2) -> 0 | E48: =('FEED BARLEY R2'!U162)*(rng_Feed_Barley_DATA_Sheet_R2) -> 0 | F48: =(SUM('FEED BARLEY R2'!L11)*(rng_rainfall=1)+SUM('FEED BARLEY R2'!O11)*(rng_rainfall=2)+SUM('FEED BARLEY R2'!R11)*(rng_rainfall=3))*(rng_Feed_Barley_DATA_Sheet_R2) -> 0 | G48: =('FEED BARLEY R2'!U11)*(rng_Feed_Barley_DATA_Sheet_R2) -> 0 | H48: =(SUM('FEED BARLEY R2'!L14:L34)*(rng_rainfall=1)+SUM('FEED BARLEY R2'!O14:O34)*(rng_rainfall=2)+SUM('FEED BARLEY R2'!R14:R34)*(rng_rainfall=3))*(rng_Feed_Barley_DATA_Sheet_R2) -> 0 | I48: =(SUM('FEED BARLEY R2'!U14:U34))*(rng_Feed_Barley_DATA_Sheet_R2) -> 0 | J48: =(SUM('FEED BARLEY R2'!L37:L53)*(rng_rainfall=1)+SUM('FEED BARLEY R2'!O37:O53)*(rng_rainfall=2)+SUM('FEED BARLEY R2'!R37:R53)*(rng_rainfall=3))*(rng_Feed_Barley_DATA_Sheet_R2) -> 0 | K48: =(SUM('FEED BARLEY R2'!U37:U53))*(rng_Feed_Barley_DATA_Sheet_R2) -> 0 | L48: =(SUM('FEED BARLEY R2'!L57:L128)*(rng_rainfall=1)+SUM('FEED BARLEY R2'!O57:O128)*(rng_rainfall=2)+SUM('FEED BARLEY R2'!R57:R128)*(rng_rainfall=3))*(rng_Feed_Barley_DATA_Sheet_R2) -> 0 | M48: =(SUM('FEED BARLEY R2'!U57:U128))*(rng_Feed_Barley_DATA_Sheet_R2) -> 0 | N48: =(SUM('FEED BARLEY R2'!L131:L157)*(rng_rainfall=1)+SUM('FEED BARLEY R2'!O131:O157)*(rng_rainfall=2)++SUM('FEED BARLEY R2'!R131:R157)*(rng_rainfall=3))*(rng_Feed_Barley_DATA_Sheet_R2) ->  | O48: =(SUM('FEED BARLEY R2'!U131:U157))*(rng_Feed_Barley_DATA_Sheet_R2) ->  | Q48: =(SUM(O48,M48,K48,I48))*(rng_Feed_Barley_DATA_Sheet_R2) -> 
B49: Milling Oats | C49: =('MILLING OATS R2'!U6)*(rng_Milling_DATA_Sheet_R2) -> 0 | D49: =(SUM('MILLING OATS R2'!L162)*(rng_rainfall=1)+SUM('MILLING OATS R2'!O162)*(rng_rainfall=2)+SUM('MILLING OATS R2'!R162)*(rng_rainfall=3))*(rng_Milling_DATA_Sheet_R2) -> 0 | E49: =('MILLING OATS R2'!U162)*(rng_Milling_DATA_Sheet_R2) -> 0 | F49: =(SUM('MILLING OATS R2'!L11)*(rng_rainfall=1)+SUM('MILLING OATS R2'!O11)*(rng_rainfall=2)+SUM('MILLING OATS R2'!R11)*(rng_rainfall=3))*(rng_Milling_DATA_Sheet_R2) -> 0 | G49: =('MILLING OATS R2'!U11)*(rng_Milling_DATA_Sheet_R2) -> 0 | H49: =(SUM('MILLING OATS R2'!L14:L34)*(rng_rainfall=1)+SUM('MILLING OATS R2'!O14:O34)*(rng_rainfall=2)+SUM('MILLING OATS R2'!R14:R34)*(rng_rainfall=3))*(rng_Milling_DATA_Sheet_R2) -> 0 | I49: =(SUM('MILLING OATS R2'!U14:U34))*(rng_Milling_DATA_Sheet_R2) -> 0 | J49: =(SUM('MILLING OATS R2'!L37:L53)*(rng_rainfall=1)+SUM('MILLING OATS R2'!O37:O53)*(rng_rainfall=2)+SUM('MILLING OATS R2'!R37:R53)*(rng_rainfall=3))*(rng_Milling_DATA_Sheet_R2) -> 0 | K49: =(SUM('MILLING OATS R2'!U37:U53))*(rng_Milling_DATA_Sheet_R2) -> 0 | L49: =(SUM('MILLING OATS R2'!L57:L128)*(rng_rainfall=1)+SUM('MILLING OATS R2'!O57:O128)*(rng_rainfall=2)+SUM('MILLING OATS R2'!R57:R128)*(rng_rainfall=3))*(rng_Milling_DATA_Sheet_R2) -> 0 | M49: =(SUM('MILLING OATS R2'!U57:U128))*(rng_Milling_DATA_Sheet_R2) -> 0 | N49: =(SUM('MILLING OATS R2'!L131:L157)*(rng_rainfall=1)+SUM('MILLING OATS R2'!O131:O157)*(rng_rainfall=2)++SUM('MILLING OATS R2'!R131:R157)*(rng_rainfall=3))*(rng_Milling_DATA_Sheet_R2) ->  | O49: =(SUM('MILLING OATS R2'!U131:U157))*(rng_Milling_DATA_Sheet_R2) ->  | Q49: =(SUM(O49,M49,K49,I49))*(rng_Milling_DATA_Sheet_R2) -> 
B50: Triticale | C50: =('TRITICALE R2'!U6)*(rng_Triticale_DATA_Sheet_R2) -> 0 | D50: =(SUM('TRITICALE R2'!L162)*(rng_rainfall=1)+SUM('TRITICALE R2'!O162)*(rng_rainfall=2)+SUM('TRITICALE R2'!R162)*(rng_rainfall=3))*(rng_Triticale_DATA_Sheet_R2) -> 0 | E50: =('TRITICALE R2'!U162)*(rng_Triticale_DATA_Sheet_R2) -> 0 | F50: =(SUM('TRITICALE R2'!L11)*(rng_rainfall=1)+SUM('TRITICALE R2'!O11)*(rng_rainfall=2)+SUM('TRITICALE R2'!R11)*(rng_rainfall=3))*(rng_Triticale_DATA_Sheet_R2) -> 0 | G50: =('TRITICALE R2'!U11)*(rng_Triticale_DATA_Sheet_R2) -> 0 | H50: =(SUM('TRITICALE R2'!L14:L34)*(rng_rainfall=1)+SUM('TRITICALE R2'!O14:O34)*(rng_rainfall=2)+SUM('TRITICALE R2'!R14:R34)*(rng_rainfall=3))*(rng_Triticale_DATA_Sheet_R2) -> 0 | I50: =(SUM('TRITICALE R2'!U14:U34))*(rng_Triticale_DATA_Sheet_R2) -> 0 | J50: =(SUM('TRITICALE R2'!L37:L53)*(rng_rainfall=1)+SUM('TRITICALE R2'!O37:O53)*(rng_rainfall=2)+SUM('TRITICALE R2'!R37:R53)*(rng_rainfall=3))*(rng_Triticale_DATA_Sheet_R2) -> 0 | K50: =(SUM('TRITICALE R2'!U37:U53))*(rng_Triticale_DATA_Sheet_R2) -> 0 | L50: =(SUM('TRITICALE R2'!L57:L128)*(rng_rainfall=1)+SUM('TRITICALE R2'!O57:O128)*(rng_rainfall=2)+SUM('TRITICALE R2'!R57:R128)*(rng_rainfall=3))*(rng_Triticale_DATA_Sheet_R2) -> 0 | M50: =(SUM('TRITICALE R2'!U57:U128))*(rng_Triticale_DATA_Sheet_R2) -> 0 | N50: =(SUM('TRITICALE R2'!L131:L157)*(rng_rainfall=1)+SUM('TRITICALE R2'!O131:O157)*(rng_rainfall=2)++SUM('TRITICALE R2'!R131:R157)*(rng_rainfall=3))*(rng_Triticale_DATA_Sheet_R2) ->  | O50: =(SUM('TRITICALE R2'!U131:U157))*(rng_Triticale_DATA_Sheet_R2) ->  | Q50: =(SUM(O50,M50,K50,I50))*(rng_Triticale_DATA_Sheet_R2) -> 
B51: Export Oaten Hay | C51: =('EXPORT OATEN HAY R2'!U6)*(rng_Export_DATA_Sheet_R2) -> 0 | D51: =(SUM('EXPORT OATEN HAY R2'!L162)*(rng_rainfall=1)+SUM('EXPORT OATEN HAY R2'!O162)*(rng_rainfall=2)+SUM('EXPORT OATEN HAY R2'!R162)*(rng_rainfall=3))*(rng_Export_DATA_Sheet_R2) -> 0 | E51: =('EXPORT OATEN HAY R2'!U162)*(rng_Export_DATA_Sheet_R2) -> 0 | F51: =(SUM('EXPORT OATEN HAY R2'!L11)*(rng_rainfall=1)+SUM('EXPORT OATEN HAY R2'!O11)*(rng_rainfall=2)+SUM('EXPORT OATEN HAY R2'!R11)*(rng_rainfall=3))*(rng_Export_DATA_Sheet_R2) -> 0 | G51: =('EXPORT OATEN HAY R2'!U11)*(rng_Export_DATA_Sheet_R2) -> 0 | H51: =(SUM('EXPORT OATEN HAY R2'!L14:L34)*(rng_rainfall=1)+SUM('EXPORT OATEN HAY R2'!O14:O34)*(rng_rainfall=2)+SUM('EXPORT OATEN HAY R2'!R14:R34)*(rng_rainfall=3))*(rng_Export_DATA_Sheet_R2) -> 0 | I51: =(SUM('EXPORT OATEN HAY R2'!U14:U34))*(rng_Export_DATA_Sheet_R2) -> 0 | J51: =(SUM('EXPORT OATEN HAY R2'!L37:L53)*(rng_rainfall=1)+SUM('EXPORT OATEN HAY R2'!O37:O53)*(rng_rainfall=2)+SUM('EXPORT OATEN HAY R2'!R37:R53)*(rng_rainfall=3))*(rng_Export_DATA_Sheet_R2) -> 0 | K51: =(SUM('EXPORT OATEN HAY R2'!U37:U53))*(rng_Export_DATA_Sheet_R2) -> 0 | L51: =(SUM('EXPORT OATEN HAY R2'!L57:L128)*(rng_rainfall=1)+SUM('EXPORT OATEN HAY R2'!O57:O128)*(rng_rainfall=2)+SUM('EXPORT OATEN HAY R2'!R57:R128)*(rng_rainfall=3))*(rng_Export_DATA_Sheet_R2) -> 0 | M51: =(SUM('EXPORT OATEN HAY R2'!U57:U128))*(rng_Export_DATA_Sheet_R2) -> 0 | N51: =(SUM('EXPORT OATEN HAY R2'!L131:L157)*(rng_rainfall=1)+SUM('EXPORT OATEN HAY R2'!O131:O157)*(rng_rainfall=2)++SUM('EXPORT OATEN HAY R2'!R131:R157)*(rng_rainfall=3))*(rng_Export_DATA_Sheet_R2) ->  | O51: =(SUM('EXPORT OATEN HAY R2'!U131:U157))*(rng_Export_DATA_Sheet_R2) ->  | Q51: =(SUM(O51,M51,K51,I51))*(rng_Export_DATA_Sheet_R2) -> 
B52: Vetch | C52: =('VETCH R2'!U6)*(rng_Vetch_DATA_Sheet_R2) -> 0 | D52: =(SUM('VETCH R2'!L162)*(rng_rainfall=1)+SUM('VETCH R2'!O162)*(rng_rainfall=2)+SUM('VETCH R2'!R162)*(rng_rainfall=3))*(rng_Vetch_DATA_Sheet_R2) -> 0 | E52: =('VETCH R2'!U162)*(rng_Vetch_DATA_Sheet_R2) -> 0 | F52: =(SUM('VETCH R2'!L11)*(rng_rainfall=1)+SUM('VETCH R2'!O11)*(rng_rainfall=2)+SUM('VETCH R2'!R11)*(rng_rainfall=3))*(rng_Vetch_DATA_Sheet_R2) -> 0 | G52: =('VETCH R2'!U11)*(rng_Vetch_DATA_Sheet_R2) -> 0 | H52: =(SUM('VETCH R2'!L14:L34)*(rng_rainfall=1)+SUM('VETCH R2'!O14:O34)*(rng_rainfall=2)+SUM('VETCH R2'!R14:R34)*(rng_rainfall=3))*(rng_Vetch_DATA_Sheet_R2) -> 0 | I52: =(SUM('VETCH R2'!U14:U34))*(rng_Vetch_DATA_Sheet_R2) -> 0 | J52: =(SUM('VETCH R2'!L37:L53)*(rng_rainfall=1)+SUM('VETCH R2'!O37:O53)*(rng_rainfall=2)+SUM('VETCH R2'!R37:R53)*(rng_rainfall=3))*(rng_Vetch_DATA_Sheet_R2) -> 0 | K52: =(SUM('VETCH R2'!U37:U53))*(rng_Vetch_DATA_Sheet_R2) -> 0 | L52: =(SUM('VETCH R2'!L57:L128)*(rng_rainfall=1)+SUM('VETCH R2'!O57:O128)*(rng_rainfall=2)+SUM('VETCH R2'!R57:R128)*(rng_rainfall=3))*(rng_Vetch_DATA_Sheet_R2) -> 0 | M52: =(SUM('VETCH R2'!U57:U128))*(rng_Vetch_DATA_Sheet_R2) -> 0 | N52: =(SUM('VETCH R2'!L131:L157)*(rng_rainfall=1)+SUM('VETCH R2'!O131:O157)*(rng_rainfall=2)++SUM('VETCH R2'!R131:R157)*(rng_rainfall=3))*(rng_Vetch_DATA_Sheet_R2) ->  | O52: =(SUM('VETCH R2'!U131:U157))*(rng_Vetch_DATA_Sheet_R2) ->  | Q52: =(SUM(O52,M52,K52,I52))*(rng_Vetch_DATA_Sheet_R2) -> 
B53: Lupins | C53: =('LUPINS R2'!U6)*(rng_Lupins_DATA_Sheet_R2) -> 0 | D53: =(SUM('LUPINS R2'!L162)*(rng_rainfall=1)+SUM('LUPINS R2'!O162)*(rng_rainfall=2)+SUM('LUPINS R2'!R162)*(rng_rainfall=3))*(rng_Lupins_DATA_Sheet_R2) -> 0 | E53: =('LUPINS R2'!U162)*(rng_Lupins_DATA_Sheet_R2) -> 0 | F53: =(SUM('LUPINS R2'!L11)*(rng_rainfall=1)+SUM('LUPINS R2'!O11)*(rng_rainfall=2)+SUM('LUPINS R2'!R11)*(rng_rainfall=3))*(rng_Lupins_DATA_Sheet_R2) -> 0 | G53: =('LUPINS R2'!U11)*(rng_Lupins_DATA_Sheet_R2) -> 0 | H53: =(SUM('LUPINS R2'!L14:L34)*(rng_rainfall=1)+SUM('LUPINS R2'!O14:O34)*(rng_rainfall=2)+SUM('LUPINS R2'!R14:R34)*(rng_rainfall=3))*(rng_Lupins_DATA_Sheet_R2) -> 0 | I53: =(SUM('LUPINS R2'!U14:U34))*(rng_Lupins_DATA_Sheet_R2) -> 0 | J53: =(SUM('LUPINS R2'!L37:L53)*(rng_rainfall=1)+SUM('LUPINS R2'!O37:O53)*(rng_rainfall=2)+SUM('LUPINS R2'!R37:R53)*(rng_rainfall=3))*(rng_Lupins_DATA_Sheet_R2) -> 0 | K53: =(SUM('LUPINS R2'!U37:U53))*(rng_Lupins_DATA_Sheet_R2) -> 0 | L53: =(SUM('LUPINS R2'!L57:L128)*(rng_rainfall=1)+SUM('LUPINS R2'!O57:O128)*(rng_rainfall=2)+SUM('LUPINS R2'!R57:R128)*(rng_rainfall=3))*(rng_Lupins_DATA_Sheet_R2) -> 0 | M53: =(SUM('LUPINS R2'!U57:U128))*(rng_Lupins_DATA_Sheet_R2) -> 0 | N53: =(SUM('LUPINS R2'!L131:L157)*(rng_rainfall=1)+SUM('LUPINS R2'!O131:O157)*(rng_rainfall=2)++SUM('LUPINS R2'!R131:R157)*(rng_rainfall=3))*(rng_Lupins_DATA_Sheet_R2) ->  | O53: =(SUM('LUPINS R2'!U131:U157))*(rng_Lupins_DATA_Sheet_R2) ->  | Q53: =(SUM(O53,M53,K53,I53))*(rng_Lupins_DATA_Sheet_R2) -> 
B54: Lentils | C54: =('LENTILS R2'!U6)*(rng_lentils_DATA_Sheet_R2) -> 0 | D54: =(SUM('LENTILS R2'!L162)*(rng_rainfall=1)+SUM('LENTILS R2'!O162)*(rng_rainfall=2)+SUM('LENTILS R2'!R162)*(rng_rainfall=3))*(rng_lentils_DATA_Sheet_R2) -> 0 | E54: =('LENTILS R2'!U162)*(rng_lentils_DATA_Sheet_R2) -> 0 | F54: =(SUM('LENTILS R2'!L11)*(rng_rainfall=1)+SUM('LENTILS R2'!O11)*(rng_rainfall=2)+SUM('LENTILS R2'!R11)*(rng_rainfall=3))*(rng_lentils_DATA_Sheet_R2) -> 0 | G54: =('LENTILS R2'!U11)*(rng_lentils_DATA_Sheet_R2) -> 0 | H54: =(SUM('LENTILS R2'!L14:L34)*(rng_rainfall=1)+SUM('LENTILS R2'!O14:O34)*(rng_rainfall=2)+SUM('LENTILS R2'!R14:R34)*(rng_rainfall=3))*(rng_lentils_DATA_Sheet_R2) -> 0 | I54: =(SUM('LENTILS R2'!U14:U34))*(rng_lentils_DATA_Sheet_R2) -> 0 | J54: =(SUM('LENTILS R2'!L37:L53)*(rng_rainfall=1)+SUM('LENTILS R2'!O37:O53)*(rng_rainfall=2)+SUM('LENTILS R2'!R37:R53)*(rng_rainfall=3))*(rng_lentils_DATA_Sheet_R2) -> 0 | K54: =(SUM('LENTILS R2'!U37:U53))*(rng_lentils_DATA_Sheet_R2) -> 0 | L54: =(SUM('LENTILS R2'!L57:L128)*(rng_rainfall=1)+SUM('LENTILS R2'!O57:O128)*(rng_rainfall=2)+SUM('LENTILS R2'!R57:R128)*(rng_rainfall=3))*(rng_lentils_DATA_Sheet_R2) -> 0 | M54: =(SUM('LENTILS R2'!U57:U128))*(rng_lentils_DATA_Sheet_R2) -> 0 | N54: =(SUM('LENTILS R2'!L131:L157)*(rng_rainfall=1)+SUM('LENTILS R2'!O131:O157)*(rng_rainfall=2)++SUM('LENTILS R2'!R131:R157)*(rng_rainfall=3))*(rng_lentils_DATA_Sheet_R2) ->  | O54: =(SUM('LENTILS R2'!U131:U157))*(rng_lentils_DATA_Sheet_R2) ->  | Q54: =(SUM(O54,M54,K54,I54))*(rng_lentils_DATA_Sheet_R2) -> 
B55: Lentils IMI Tolerant | C55: =('LENTILS IMI TOLERANT R2'!U6)*(rng_lentils_imi_DATA_Sheet_R2) -> 0 | D55: =(SUM('LENTILS IMI TOLERANT R2'!L162)*(rng_rainfall=1)+SUM('LENTILS IMI TOLERANT R2'!O162)*(rng_rainfall=2)+SUM('LENTILS IMI TOLERANT R2'!R162)*(rng_rainfall=3))*(rng_lentils_imi_DATA_Sheet_R2) -> 0 | E55: =('LENTILS IMI TOLERANT R2'!U162)*(rng_lentils_imi_DATA_Sheet_R2) -> 0 | F55: =(SUM('LENTILS IMI TOLERANT R2'!L11)*(rng_rainfall=1)+SUM('LENTILS IMI TOLERANT R2'!O11)*(rng_rainfall=2)+SUM('LENTILS IMI TOLERANT R2'!R11)*(rng_rainfall=3))*(rng_lentils_imi_DATA_Sheet_R2) -> 0 | G55: =('LENTILS IMI TOLERANT R2'!U11)*(rng_lentils_imi_DATA_Sheet_R2) -> 0 | H55: =(SUM('LENTILS IMI TOLERANT R2'!L14:L34)*(rng_rainfall=1)+SUM('LENTILS IMI TOLERANT R2'!O14:O34)*(rng_rainfall=2)+SUM('LENTILS IMI TOLERANT R2'!R14:R34)*(rng_rainfall=3))*(rng_lentils_imi_DATA_Sheet_R2) -> 0 | I55: =(SUM('LENTILS IMI TOLERANT R2'!U14:U34))*(rng_lentils_imi_DATA_Sheet_R2) -> 0 | J55: =(SUM('LENTILS IMI TOLERANT R2'!L37:L53)*(rng_rainfall=1)+SUM('LENTILS IMI TOLERANT R2'!O37:O53)*(rng_rainfall=2)+SUM('LENTILS IMI TOLERANT R2'!R37:R53)*(rng_rainfall=3))*(rng_lentils_imi_DATA_Sheet_R2) -> 0 | K55: =(SUM('LENTILS IMI TOLERANT R2'!U37:U53))*(rng_lentils_imi_DATA_Sheet_R2) -> 0 | L55: =(SUM('LENTILS IMI TOLERANT R2'!L57:L128)*(rng_rainfall=1)+SUM('LENTILS IMI TOLERANT R2'!O57:O128)*(rng_rainfall=2)+SUM('LENTILS IMI TOLERANT R2'!R57:R128)*(rng_rainfall=3))*(rng_lentils_imi_DATA_Sheet_R2) -> 0 | M55: =(SUM('LENTILS IMI TOLERANT R2'!U57:U128))*(rng_lentils_imi_DATA_Sheet_R2) -> 0 | N55: =(SUM('LENTILS IMI TOLERANT R2'!L131:L157)*(rng_rainfall=1)+SUM('LENTILS IMI TOLERANT R2'!O131:O157)*(rng_rainfall=2)++SUM('LENTILS IMI TOLERANT R2'!R131:R157)*(rng_rainfall=3))*(rng_lentils_imi_DATA_Sheet_R2) ->  | O55: =(SUM('LENTILS IMI TOLERANT R2'!U131:U157))*(rng_lentils_imi_DATA_Sheet_R2) ->  | P55: =SUM(N55,L55,J55,H55) ->  | Q55: =(SUM(O55,M55,K55,I55))*(rng_lentils_imi_DATA_Sheet_R2) -> 
B56: Field Peas | C56: =('PEAS R2'!U6)*(rng_Field_Peas_DATA_Sheet_R2) -> 0 | D56: =(SUM('PEAS R2'!L162)*(rng_rainfall=1)+SUM('PEAS R2'!O162)*(rng_rainfall=2)+SUM('PEAS R2'!R162)*(rng_rainfall=3))*(rng_Field_Peas_DATA_Sheet_R2) -> 0 | E56: =('PEAS R2'!U162)*(rng_Field_Peas_DATA_Sheet_R2) -> 0 | F56: =(SUM('PEAS R2'!L11)*(rng_rainfall=1)+SUM('PEAS R2'!O11)*(rng_rainfall=2)+SUM('PEAS R2'!R11)*(rng_rainfall=3))*(rng_Field_Peas_DATA_Sheet_R2) -> 0 | G56: =('PEAS R2'!U11)*(rng_Field_Peas_DATA_Sheet_R2) -> 0 | H56: =(SUM('PEAS R2'!L14:L34)*(rng_rainfall=1)+SUM('PEAS R2'!O14:O34)*(rng_rainfall=2)+SUM('PEAS R2'!R14:R34)*(rng_rainfall=3))*(rng_Field_Peas_DATA_Sheet_R2) -> 0 | I56: =(SUM('PEAS R2'!U14:U34))*(rng_Field_Peas_DATA_Sheet_R2) -> 0 | J56: =(SUM('PEAS R2'!L37:L53)*(rng_rainfall=1)+SUM('PEAS R2'!O37:O53)*(rng_rainfall=2)+SUM('PEAS R2'!R37:R53)*(rng_rainfall=3))*(rng_Field_Peas_DATA_Sheet_R2) -> 0 | K56: =(SUM('PEAS R2'!U37:U53))*(rng_Field_Peas_DATA_Sheet_R2) -> 0 | L56: =(SUM('PEAS R2'!L57:L128)*(rng_rainfall=1)+SUM('PEAS R2'!O57:O128)*(rng_rainfall=2)+SUM('PEAS R2'!R57:R128)*(rng_rainfall=3))*(rng_Field_Peas_DATA_Sheet_R2) -> 0 | M56: =(SUM('PEAS R2'!U57:U128))*(rng_Field_Peas_DATA_Sheet_R2) -> 0 | N56: =(SUM('PEAS R2'!L131:L157)*(rng_rainfall=1)+SUM('PEAS R2'!O131:O157)*(rng_rainfall=2)++SUM('PEAS R2'!R131:R157)*(rng_rainfall=3))*(rng_Field_Peas_DATA_Sheet_R2) ->  | O56: =(SUM('PEAS R2'!U131:U157))*(rng_Field_Peas_DATA_Sheet_R2) ->  | P56: =SUM(N56,L56,J56,H56) ->  | Q56: =(SUM(O56,M56,K56,I56))*(rng_Field_Peas_DATA_Sheet_R2) -> 
B57: Faba Beans | C57: =('BEANS R2'!U6)*(rng_Beans_DATA_Sheet_R2) -> 0 | D57: =(SUM('BEANS R2'!L162)*(rng_rainfall=1)+SUM('BEANS R2'!O162)*(rng_rainfall=2)+SUM('BEANS R2'!R162)*(rng_rainfall=3))*(rng_Beans_DATA_Sheet_R2) -> 0 | E57: =('BEANS R2'!U162)*(rng_Beans_DATA_Sheet_R2) -> 0 | F57: =(SUM('BEANS R2'!L11)*(rng_rainfall=1)+SUM('BEANS R2'!O11)*(rng_rainfall=2)+SUM('BEANS R2'!R11)*(rng_rainfall=3))*(rng_Beans_DATA_Sheet_R2) -> 0 | G57: =('BEANS R2'!U11)*(rng_Beans_DATA_Sheet_R2) -> 0 | H57: =(SUM('BEANS R2'!L14:L34)*(rng_rainfall=1)+SUM('BEANS R2'!O14:O34)*(rng_rainfall=2)+SUM('BEANS R2'!R14:R34)*(rng_rainfall=3))*(rng_Beans_DATA_Sheet_R2) -> 0 | I57: =(SUM('BEANS R2'!U14:U34))*(rng_Beans_DATA_Sheet_R2) -> 0 | J57: =(SUM('BEANS R2'!L37:L53)*(rng_rainfall=1)+SUM('BEANS R2'!O37:O53)*(rng_rainfall=2)+SUM('BEANS R2'!R37:R53)*(rng_rainfall=3))*(rng_Beans_DATA_Sheet_R2) -> 0 | K57: =(SUM('BEANS R2'!U37:U53))*(rng_Beans_DATA_Sheet_R2) -> 0 | L57: =(SUM('BEANS R2'!L57:L128)*(rng_rainfall=1)+SUM('BEANS R2'!O57:O128)*(rng_rainfall=2)+SUM('BEANS R2'!R57:R128)*(rng_rainfall=3))*(rng_Beans_DATA_Sheet_R2) -> 0 | M57: =(SUM('BEANS R2'!U57:U128))*(rng_Beans_DATA_Sheet_R2) -> 0 | N57: =(SUM('BEANS R2'!L131:L157)*(rng_rainfall=1)+SUM('BEANS R2'!O131:O157)*(rng_rainfall=2)++SUM('BEANS R2'!R131:R157)*(rng_rainfall=3))*(rng_Beans_DATA_Sheet_R2) ->  | O57: =(SUM('BEANS R2'!U131:U157))*(rng_Beans_DATA_Sheet_R2) ->  | Q57: =(SUM(O57,M57,K57,I57))*(rng_Beans_DATA_Sheet_R2) -> 
B58: Kabuli Chickpeas | C58: =('CHICKPEAS R2'!U6)*(rng_Chickpeas_DATA_Sheet_R2) -> 0 | D58: =(SUM('CHICKPEAS R2'!L162)*(rng_rainfall=1)+SUM('CHICKPEAS R2'!O162)*(rng_rainfall=2)+SUM('CHICKPEAS R2'!R162)*(rng_rainfall=3))*(rng_Chickpeas_DATA_Sheet_R2) -> 0 | E58: =('CHICKPEAS R2'!U162)*(rng_Chickpeas_DATA_Sheet_R2) -> 0 | F58: =(SUM('CHICKPEAS R2'!L11)*(rng_rainfall=1)+SUM('CHICKPEAS R2'!O11)*(rng_rainfall=2)+SUM('CHICKPEAS R2'!R11)*(rng_rainfall=3))*(rng_Chickpeas_DATA_Sheet_R2) -> 0 | G58: =('CHICKPEAS R2'!U11)*(rng_Chickpeas_DATA_Sheet_R2) -> 0 | H58: =(SUM('CHICKPEAS R2'!L14:L34)*(rng_rainfall=1)+SUM('CHICKPEAS R2'!O14:O34)*(rng_rainfall=2)+SUM('CHICKPEAS R2'!R14:R34)*(rng_rainfall=3))*(rng_Chickpeas_DATA_Sheet_R2) -> 0 | I58: =(SUM('CHICKPEAS R2'!U14:U34))*(rng_Chickpeas_DATA_Sheet_R2) -> 0 | J58: =(SUM('CHICKPEAS R2'!L37:L53)*(rng_rainfall=1)+SUM('CHICKPEAS R2'!O37:O53)*(rng_rainfall=2)+SUM('CHICKPEAS R2'!R37:R53)*(rng_rainfall=3))*(rng_Chickpeas_DATA_Sheet_R2) -> 0 | K58: =(SUM('CHICKPEAS R2'!U37:U53))*(rng_Chickpeas_DATA_Sheet_R2) -> 0 | L58: =(SUM('CHICKPEAS R2'!L57:L128)*(rng_rainfall=1)+SUM('CHICKPEAS R2'!O57:O128)*(rng_rainfall=2)+SUM('CHICKPEAS R2'!R57:R128)*(rng_rainfall=3))*(rng_Chickpeas_DATA_Sheet_R2) -> 0 | M58: =(SUM('CHICKPEAS R2'!U57:U128))*(rng_Chickpeas_DATA_Sheet_R2) -> 0 | N58: =(SUM('CHICKPEAS R2'!L131:L157)*(rng_rainfall=1)+SUM('CHICKPEAS R2'!O131:O157)*(rng_rainfall=2)++SUM('CHICKPEAS R2'!R131:R157)*(rng_rainfall=3))*(rng_Chickpeas_DATA_Sheet_R2) ->  | O58: =(SUM('CHICKPEAS R2'!U131:U157))*(rng_Chickpeas_DATA_Sheet_R2) ->  | Q58: =(SUM(O58,M58,K58,I58))*(rng_Chickpeas_DATA_Sheet_R2) -> 
B59: Canola Clearfield | C59: =('CANOLA CLEARFIELD R2'!U6)*(rng_Canola_Clear_DATA_Sheet_R2) -> 0 | D59: =(SUM('CANOLA CLEARFIELD R2'!L162)*(rng_rainfall=1)+SUM('CANOLA CLEARFIELD R2'!O162)*(rng_rainfall=2)+SUM('CANOLA CLEARFIELD R2'!R162)*(rng_rainfall=3))*(rng_Canola_Clear_DATA_Sheet_R2) -> 0 | E59: =('CANOLA CLEARFIELD R2'!U162)*(rng_Canola_Clear_DATA_Sheet_R2) -> 0 | F59: =(SUM('CANOLA CLEARFIELD R2'!L11)*(rng_rainfall=1)+SUM('CANOLA CLEARFIELD R2'!O11)*(rng_rainfall=2)+SUM('CANOLA CLEARFIELD R2'!R11)*(rng_rainfall=3))*(rng_Canola_Clear_DATA_Sheet_R2) -> 0 | G59: =('CANOLA CLEARFIELD R2'!U11)*(rng_Canola_Clear_DATA_Sheet_R2) -> 0 | H59: =(SUM('CANOLA CLEARFIELD R2'!L14:L34)*(rng_rainfall=1)+SUM('CANOLA CLEARFIELD R2'!O14:O34)*(rng_rainfall=2)+SUM('CANOLA CLEARFIELD R2'!R14:R34)*(rng_rainfall=3))*(rng_Canola_Clear_DATA_Sheet_R2) -> 0 | I59: =(SUM('CANOLA CLEARFIELD R2'!U14:U34))*(rng_Canola_Clear_DATA_Sheet_R2) -> 0 | J59: =(SUM('CANOLA CLEARFIELD R2'!L37:L53)*(rng_rainfall=1)+SUM('CANOLA CLEARFIELD R2'!O37:O53)*(rng_rainfall=2)+SUM('CANOLA CLEARFIELD R2'!R37:R53)*(rng_rainfall=3))*(rng_Canola_Clear_DATA_Sheet_R2) -> 0 | K59: =(SUM('CANOLA CLEARFIELD R2'!U37:U53))*(rng_Canola_Clear_DATA_Sheet_R2) -> 0 | L59: =(SUM('CANOLA CLEARFIELD R2'!L57:L128)*(rng_rainfall=1)+SUM('CANOLA CLEARFIELD R2'!O57:O128)*(rng_rainfall=2)+SUM('CANOLA CLEARFIELD R2'!R57:R128)*(rng_rainfall=3))*(rng_Canola_Clear_DATA_Sheet_R2) -> 0 | M59: =(SUM('CANOLA CLEARFIELD R2'!U57:U128))*(rng_Canola_Clear_DATA_Sheet_R2) -> 0 | N59: =(SUM('CANOLA CLEARFIELD R2'!L131:L157)*(rng_rainfall=1)+SUM('CANOLA CLEARFIELD R2'!O131:O157)*(rng_rainfall=2)++SUM('CANOLA CLEARFIELD R2'!R131:R157)*(rng_rainfall=3))*(rng_Canola_Clear_DATA_Sheet_R2) ->  | O59: =(SUM('CANOLA CLEARFIELD R2'!U131:U157))*(rng_Canola_Clear_DATA_Sheet_R2) ->  | Q59: =(SUM(O59,M59,K59,I59))*(rng_Canola_Clear_DATA_Sheet_R2) -> 
B60: Canola Conventional | C60: =('CANOLA CONVENTIONAL R2'!U6)*(rng_Canola_Conv_DATA_Sheet_R2) -> 0 | D60: =(SUM('CANOLA CONVENTIONAL R2'!L162)*(rng_rainfall=1)+SUM('CANOLA CONVENTIONAL R2'!O162)*(rng_rainfall=2)+SUM('CANOLA CONVENTIONAL R2'!R162)*(rng_rainfall=3))*(rng_Canola_Conv_DATA_Sheet_R2) -> 0 | E60: =('CANOLA CONVENTIONAL R2'!U162)*(rng_Canola_Conv_DATA_Sheet_R2) -> 0 | F60: =(SUM('CANOLA CONVENTIONAL R2'!L11)*(rng_rainfall=1)+SUM('CANOLA CONVENTIONAL R2'!O11)*(rng_rainfall=2)+SUM('CANOLA CONVENTIONAL R2'!R11)*(rng_rainfall=3))*(rng_Canola_Conv_DATA_Sheet_R2) -> 0 | G60: =('CANOLA CONVENTIONAL R2'!U11)*(rng_Canola_Conv_DATA_Sheet_R2) -> 0 | H60: =(SUM('CANOLA CONVENTIONAL R2'!L14:L34)*(rng_rainfall=1)+SUM('CANOLA CONVENTIONAL R2'!O14:O34)*(rng_rainfall=2)+SUM('CANOLA CONVENTIONAL R2'!R14:R34)*(rng_rainfall=3))*(rng_Canola_Conv_DATA_Sheet_R2) -> 0 | I60: =(SUM('CANOLA CONVENTIONAL R2'!U14:U34))*(rng_Canola_Conv_DATA_Sheet_R2) -> 0 | J60: =(SUM('CANOLA CONVENTIONAL R2'!L37:L53)*(rng_rainfall=1)+SUM('CANOLA CONVENTIONAL R2'!O37:O53)*(rng_rainfall=2)+SUM('CANOLA CONVENTIONAL R2'!R37:R53)*(rng_rainfall=3))*(rng_Canola_Conv_DATA_Sheet_R2) -> 0 | K60: =(SUM('CANOLA CONVENTIONAL R2'!U37:U53))*(rng_Canola_Conv_DATA_Sheet_R2) -> 0 | L60: =(SUM('CANOLA CONVENTIONAL R2'!L57:L128)*(rng_rainfall=1)+SUM('CANOLA CONVENTIONAL R2'!O57:O128)*(rng_rainfall=2)+SUM('CANOLA CONVENTIONAL R2'!R57:R128)*(rng_rainfall=3))*(rng_Canola_Conv_DATA_Sheet_R2) -> 0 | M60: =(SUM('CANOLA CONVENTIONAL R2'!U57:U128))*(rng_Canola_Conv_DATA_Sheet_R2) -> 0 | N60: =(SUM('CANOLA CONVENTIONAL R2'!L131:L157)*(rng_rainfall=1)+SUM('CANOLA CONVENTIONAL R2'!O131:O157)*(rng_rainfall=2)++SUM('CANOLA CONVENTIONAL R2'!R131:R157)*(rng_rainfall=3))*(rng_Canola_Conv_DATA_Sheet_R2) ->  | O60: =(SUM('CANOLA CONVENTIONAL R2'!U131:U157))*(rng_Canola_Conv_DATA_Sheet_R2) ->  | Q60: =(SUM(O60,M60,K60,I60))*(rng_Canola_Conv_DATA_Sheet_R2) -> 
B61: Canola RoundUp Ready | C61: =('CANOLA ROUNDUP READY R2'!U7)*(rng_Canola_Round_DATA_Sheet_R2) -> 0 | D61: =(SUM('CANOLA ROUNDUP READY R2'!L162)*(rng_rainfall=1)+SUM('CANOLA ROUNDUP READY R2'!O162)*(rng_rainfall=2)+SUM('CANOLA ROUNDUP READY R2'!R162)*(rng_rainfall=3))*(rng_Canola_Round_DATA_Sheet_R2) -> 0 | E61: =('CANOLA ROUNDUP READY R2'!U162)*(rng_Canola_Round_DATA_Sheet_R2) -> 0 | F61: =(SUM('CANOLA ROUNDUP READY R2'!L11)*(rng_rainfall=1)+SUM('CANOLA ROUNDUP READY R2'!O11)*(rng_rainfall=2)+SUM('CANOLA ROUNDUP READY R2'!R11)*(rng_rainfall=3))*(rng_Canola_Round_DATA_Sheet_R2) -> 0 | G61: =('CANOLA ROUNDUP READY R2'!U11)*(rng_Canola_Round_DATA_Sheet_R2) -> 0 | H61: =(SUM('CANOLA ROUNDUP READY R2'!L14:L34)*(rng_rainfall=1)+SUM('CANOLA ROUNDUP READY R2'!O14:O34)*(rng_rainfall=2)+SUM('CANOLA ROUNDUP READY R2'!R14:R34)*(rng_rainfall=3))*(rng_Canola_Round_DATA_Sheet_R2) -> 0 | I61: =(SUM('CANOLA ROUNDUP READY R2'!U14:U34))*(rng_Canola_Round_DATA_Sheet_R2) -> 0 | J61: =(SUM('CANOLA ROUNDUP READY R2'!L37:L53)*(rng_rainfall=1)+SUM('CANOLA ROUNDUP READY R2'!O37:O53)*(rng_rainfall=2)+SUM('CANOLA ROUNDUP READY R2'!R37:R53)*(rng_rainfall=3))*(rng_Canola_Round_DATA_Sheet_R2) -> 0 | K61: =(SUM('CANOLA ROUNDUP READY R2'!U37:U53))*(rng_Canola_Round_DATA_Sheet_R2) -> 0 | L61: =(SUM('CANOLA ROUNDUP READY R2'!L57:L128)*(rng_rainfall=1)+SUM('CANOLA ROUNDUP READY R2'!O57:O128)*(rng_rainfall=2)+SUM('CANOLA ROUNDUP READY R2'!R57:R128)*(rng_rainfall=3))*(rng_Canola_Round_DATA_Sheet_R2) -> 0 | M61: =(SUM('CANOLA ROUNDUP READY R2'!U57:U128))*(rng_Canola_Round_DATA_Sheet_R2) -> 0 | N61: =(SUM('CANOLA ROUNDUP READY R2'!L131:L157)*(rng_rainfall=1)+SUM('CANOLA ROUNDUP READY R2'!O131:O157)*(rng_rainfall=2)++SUM('CANOLA ROUNDUP READY R2'!R131:R157)*(rng_rainfall=3))*(rng_Canola_Round_DATA_Sheet_R2) ->  | O61: =(SUM('CANOLA ROUNDUP READY R2'!U131:U157))*(rng_Canola_Round_DATA_Sheet_R2) ->  | P61: =SUM(N61,L61,J61,H61) ->  | Q61: =(SUM(O61,M61,K61,I61))*(rng_Canola_Round_DATA_Sheet_R2) -> 
B62: Canola Tri Tolerant | C62: =('CANOLA TRITOLERANT R2'!U6)*(rng_Canola_Tri_DATA_Sheet_R2) -> 0 | D62: =(SUM('CANOLA TRITOLERANT R2'!L162)*(rng_rainfall=1)+SUM('CANOLA TRITOLERANT R2'!O162)*(rng_rainfall=2)+SUM('CANOLA TRITOLERANT R2'!R162)*(rng_rainfall=3))*(rng_Canola_Tri_DATA_Sheet_R2) -> 0 | E62: =('CANOLA TRITOLERANT R2'!U162)*(rng_Canola_Tri_DATA_Sheet_R2) -> 0 | F62: =(SUM('CANOLA TRITOLERANT R2'!L11)*(rng_rainfall=1)+SUM('CANOLA TRITOLERANT R2'!O11)*(rng_rainfall=2)+SUM('CANOLA TRITOLERANT R2'!R11)*(rng_rainfall=3))*(rng_Canola_Tri_DATA_Sheet_R2) -> 0 | G62: =('CANOLA TRITOLERANT R2'!U11)*(rng_Canola_Tri_DATA_Sheet_R2) -> 0 | H62: =(SUM('CANOLA TRITOLERANT R2'!L14:L34)*(rng_rainfall=1)+SUM('CANOLA TRITOLERANT R2'!O14:O34)*(rng_rainfall=2)+SUM('CANOLA TRITOLERANT R2'!R14:R34)*(rng_rainfall=3))*(rng_Canola_Tri_DATA_Sheet_R2) -> 0 | I62: =(SUM('CANOLA TRITOLERANT R2'!U14:U34))*(rng_Canola_Tri_DATA_Sheet_R2) -> 0 | J62: =(SUM('CANOLA TRITOLERANT R2'!L37:L53)*(rng_rainfall=1)+SUM('CANOLA TRITOLERANT R2'!O37:O53)*(rng_rainfall=2)+SUM('CANOLA TRITOLERANT R2'!R37:R53)*(rng_rainfall=3))*(rng_Canola_Tri_DATA_Sheet_R2) -> 0 | K62: =(SUM('CANOLA TRITOLERANT R2'!U37:U53))*(rng_Canola_Tri_DATA_Sheet_R2) -> 0 | L62: =(SUM('CANOLA TRITOLERANT R2'!L57:L128)*(rng_rainfall=1)+SUM('CANOLA TRITOLERANT R2'!O57:O128)*(rng_rainfall=2)+SUM('CANOLA TRITOLERANT R2'!R57:R128)*(rng_rainfall=3))*(rng_Canola_Tri_DATA_Sheet_R2) -> 0 | M62: =(SUM('CANOLA TRITOLERANT R2'!U57:U128))*(rng_Canola_Tri_DATA_Sheet_R2) -> 0 | N62: =(SUM('CANOLA TRITOLERANT R2'!L131:L157)*(rng_rainfall=1)+SUM('CANOLA TRITOLERANT R2'!O131:O157)*(rng_rainfall=2)++SUM('CANOLA TRITOLERANT R2'!R131:R157)*(rng_rainfall=3))*(rng_Canola_Tri_DATA_Sheet_R2) ->  | O62: =(SUM('CANOLA TRITOLERANT R2'!U131:U157))*(rng_Canola_Tri_DATA_Sheet_R2) ->  | Q62: =(SUM(O62,M62,K62,I62))*(rng_Canola_Tri_DATA_Sheet_R2) -> 
B63: Sown Pasture | C63: =('SOWN PASTURE R2'!U6)*(rng_sown_pasture_DATA_Sheet_R2) -> 0 | D63: =(SUM('SOWN PASTURE R2'!L162)*(rng_rainfall=1)+SUM('SOWN PASTURE R2'!O162)*(rng_rainfall=2)+SUM('SOWN PASTURE R2'!R162)*(rng_rainfall=3))*(rng_sown_pasture_DATA_Sheet_R2) -> 0 | E63: =('SOWN PASTURE R2'!U162)*(rng_sown_pasture_DATA_Sheet_R2) -> 0 | F63: =(SUM('SOWN PASTURE R2'!L11)*(rng_rainfall=1)+SUM('SOWN PASTURE R2'!O11)*(rng_rainfall=2)+SUM('SOWN PASTURE R2'!R11)*(rng_rainfall=3))*(rng_sown_pasture_DATA_Sheet_R2) -> 0 | G63: =('SOWN PASTURE R2'!U11)*(rng_sown_pasture_DATA_Sheet_R2) -> 0 | H63: =(SUM('SOWN PASTURE R2'!L14:L34)*(rng_rainfall=1)+SUM('SOWN PASTURE R2'!O14:O34)*(rng_rainfall=2)+SUM('SOWN PASTURE R2'!R14:R34)*(rng_rainfall=3))*(rng_sown_pasture_DATA_Sheet_R2) -> 0 | I63: =(SUM('SOWN PASTURE R2'!U14:U34))*(rng_sown_pasture_DATA_Sheet_R2) -> 0 | J63: =(SUM('SOWN PASTURE R2'!L37:L53)*(rng_rainfall=1)+SUM('SOWN PASTURE R2'!O37:O53)*(rng_rainfall=2)+SUM('SOWN PASTURE R2'!R37:R53)*(rng_rainfall=3))*(rng_sown_pasture_DATA_Sheet_R2) -> 0 | K63: =(SUM('SOWN PASTURE R2'!U37:U53))*(rng_sown_pasture_DATA_Sheet_R2) -> 0 | L63: =(SUM('SOWN PASTURE R2'!L57:L128)*(rng_rainfall=1)+SUM('SOWN PASTURE R2'!O57:O128)*(rng_rainfall=2)+SUM('SOWN PASTURE R2'!R57:R128)*(rng_rainfall=3))*(rng_sown_pasture_DATA_Sheet_R2) -> 0 | M63: =(SUM('SOWN PASTURE R2'!U57:U128))*(rng_sown_pasture_DATA_Sheet_R2) -> 0 | N63: =(SUM('SOWN PASTURE R2'!L131:L157)*(rng_rainfall=1)+SUM('SOWN PASTURE R2'!O131:O157)*(rng_rainfall=2)++SUM('SOWN PASTURE R2'!R131:R157)*(rng_rainfall=3))*(rng_sown_pasture_DATA_Sheet_R2) ->  | O63: =(SUM('SOWN PASTURE R2'!U131:U157))*(rng_sown_pasture_DATA_Sheet_R2) ->  | Q63: =(SUM(O63,M63,K63,I63))*(rng_sown_pasture_DATA_Sheet_R2) -> 
B64: Self Regen Pasture | C64: =('SELF REGEN PASTURE R2'!U6)*(rng_self_regen_DATA_Sheet_R2) -> 0 | D64: =(SUM('SELF REGEN PASTURE R2'!L162)*(rng_rainfall=1)+SUM('SELF REGEN PASTURE R2'!O162)*(rng_rainfall=2)+SUM('SELF REGEN PASTURE R2'!R162)*(rng_rainfall=3))*(rng_self_regen_DATA_Sheet_R2) -> 0 | E64: =('SELF REGEN PASTURE R2'!U162)*(rng_self_regen_DATA_Sheet_R2) -> 0 | F64: =(SUM('SELF REGEN PASTURE R2'!L11)*(rng_rainfall=1)+SUM('SELF REGEN PASTURE R2'!O11)*(rng_rainfall=2)+SUM('SELF REGEN PASTURE R2'!R11)*(rng_rainfall=3))*(rng_self_regen_DATA_Sheet_R2) -> 0 | G64: =('SELF REGEN PASTURE R2'!U11)*(rng_self_regen_DATA_Sheet_R2) -> 0 | H64: =(SUM('SELF REGEN PASTURE R2'!L14:L34)*(rng_rainfall=1)+SUM('SELF REGEN PASTURE R2'!O14:O34)*(rng_rainfall=2)+SUM('SELF REGEN PASTURE R2'!R14:R34)*(rng_rainfall=3))*(rng_self_regen_DATA_Sheet_R2) -> 0 | I64: =(SUM('SELF REGEN PASTURE R2'!U14:U34))*(rng_self_regen_DATA_Sheet_R2) -> 0 | J64: =(SUM('SELF REGEN PASTURE R2'!L37:L53)*(rng_rainfall=1)+SUM('SELF REGEN PASTURE R2'!O37:O53)*(rng_rainfall=2)+SUM('SELF REGEN PASTURE R2'!R37:R53)*(rng_rainfall=3))*(rng_self_regen_DATA_Sheet_R2) -> 0 | K64: =(SUM('SELF REGEN PASTURE R2'!U37:U53))*(rng_self_regen_DATA_Sheet_R2) -> 0 | L64: =(SUM('SELF REGEN PASTURE R2'!L57:L128)*(rng_rainfall=1)+SUM('SELF REGEN PASTURE R2'!O57:O128)*(rng_rainfall=2)+SUM('SELF REGEN PASTURE R2'!R57:R128)*(rng_rainfall=3))*(rng_self_regen_DATA_Sheet_R2) -> 0 | M64: =(SUM('SELF REGEN PASTURE R2'!U57:U128))*(rng_self_regen_DATA_Sheet_R2) -> 0 | N64: =(SUM('SELF REGEN PASTURE R2'!L131:L157)*(rng_rainfall=1)+SUM('SELF REGEN PASTURE R2'!O131:O157)*(rng_rainfall=2)++SUM('SELF REGEN PASTURE R2'!R131:R157)*(rng_rainfall=3))*(rng_self_regen_DATA_Sheet_R2) ->  | O64: =(SUM('SELF REGEN PASTURE R2'!U131:U157))*(rng_self_regen_DATA_Sheet_R2) ->  | Q64: =(SUM(O64,M64,K64,I64))*(rng_self_regen_DATA_Sheet_R2) -> 
B65: Lucerne Pasture Cereal | C65: =('LUCERNE PASTURE CEREAL R2'!U$6)*(rng_LUC_CEREAL_DATA_SHEET_R2) -> 0 | D65: =(SUM('LUCERNE PASTURE CEREAL R2'!L$163)*(rng_rainfall=1)+SUM('LUCERNE PASTURE CEREAL R2'!O$163)*(rng_rainfall=2)+SUM('LUCERNE PASTURE CEREAL R2'!R$163)*(rng_rainfall=3))*(rng_LUC_CEREAL_DATA_SHEET_R2) -> 0 | E65: =('LUCERNE PASTURE CEREAL R2'!U$163)*(rng_LUC_CEREAL_DATA_SHEET_R2) -> 0 | F65: =(SUM('LUCERNE PASTURE CEREAL R2'!L$11)*(rng_rainfall=1)+SUM('LUCERNE PASTURE CEREAL R2'!O$11)*(rng_rainfall=2)+SUM('LUCERNE PASTURE CEREAL R2'!R$11)*(rng_rainfall=3))*(rng_LUC_CEREAL_DATA_SHEET_R2) -> 0 | G65: =('LUCERNE PASTURE CEREAL R2'!U$11)*(rng_LUC_CEREAL_DATA_SHEET_R2) -> 0 | H65: =(SUM('LUCERNE PASTURE CEREAL R2'!L$14:L$34)*(rng_rainfall=1)+SUM('LUCERNE PASTURE CEREAL R2'!O$14:O$34)*(rng_rainfall=2)+SUM('LUCERNE PASTURE CEREAL R2'!R$14:R$34)*(rng_rainfall=3))*(rng_LUC_CEREAL_DATA_SHEET_R2) -> 0 | I65: =(SUM('LUCERNE PASTURE CEREAL R2'!U$14:U$34))*(rng_LUC_CEREAL_DATA_SHEET_R2) -> 0 | J65: =(SUM('LUCERNE PASTURE CEREAL R2'!L$37:L$53)*(rng_rainfall=1)+SUM('LUCERNE PASTURE CEREAL R2'!O$37:O$53)*(rng_rainfall=2)+SUM('LUCERNE PASTURE CEREAL R2'!R$37:R$53)*(rng_rainfall=3))*(rng_LUC_CEREAL_DATA_SHEET_R2) -> 0 | K65: =(SUM('LUCERNE PASTURE CEREAL R2'!U$37:U$53))*(rng_LUC_CEREAL_DATA_SHEET_R2) -> 0 | L65: =(SUM('LUCERNE PASTURE CEREAL R2'!L$57:L$129)*(rng_rainfall=1)+SUM('LUCERNE PASTURE CEREAL R2'!O$57:O$129)*(rng_rainfall=2)+SUM('LUCERNE PASTURE CEREAL R2'!R$57:R$129)*(rng_rainfall=3))*(rng_LUC_CEREAL_DATA_SHEET_R2) -> 0 | M65: =(SUM('LUCERNE PASTURE CEREAL R2'!U$57:U$129))*(rng_LUC_CEREAL_DATA_SHEET_R2) -> 0 | N65: =(SUM('LUCERNE PASTURE CEREAL R2'!L$132:L$158)*(rng_rainfall=1)+SUM('LUCERNE PASTURE CEREAL R2'!O$132:O$158)*(rng_rainfall=2)++SUM('LUCERNE PASTURE CEREAL R2'!R$132:R$158)*(rng_rainfall=3))*(rng_LUC_CEREAL_DATA_SHEET_R2) ->  | O65: =(SUM('LUCERNE PASTURE CEREAL R2'!U$132:U$158))*(rng_LUC_CEREAL_DATA_SHEET_R2) ->  | Q65: =(SUM(O65,M65,K65,I65))*(rng_LUC_CEREAL_DATA_SHEET_R2) -> 
B66: Lucerne Pasture Grazing | C66: =('LUCERNE PASTURE GRAZING R2'!U$6)*(rng_LUC_GRAZ_DATA_SHEET_R2) -> 0 | D66: =(SUM('LUCERNE PASTURE GRAZING R2'!L$163)*(rng_rainfall=1)+SUM('LUCERNE PASTURE GRAZING R2'!O$163)*(rng_rainfall=2)+SUM('LUCERNE PASTURE GRAZING R2'!R$163)*(rng_rainfall=3))*(rng_LUC_GRAZ_DATA_SHEET_R2) -> 0 | E66: =('LUCERNE PASTURE GRAZING R2'!U$163)*(rng_LUC_GRAZ_DATA_SHEET_R2) -> 0 | F66: =(SUM('LUCERNE PASTURE GRAZING R2'!L$11)*(rng_rainfall=1)+SUM('LUCERNE PASTURE GRAZING R2'!O$11)*(rng_rainfall=2)+SUM('LUCERNE PASTURE GRAZING R2'!R$11)*(rng_rainfall=3))*(rng_LUC_GRAZ_DATA_SHEET_R2) -> 0 | G66: =('LUCERNE PASTURE GRAZING R2'!U$11)*(rng_LUC_GRAZ_DATA_SHEET_R2) -> 0 | H66: =(SUM('LUCERNE PASTURE GRAZING R2'!L$14:L$34)*(rng_rainfall=1)+SUM('LUCERNE PASTURE GRAZING R2'!O$14:O$34)*(rng_rainfall=2)+SUM('LUCERNE PASTURE GRAZING R2'!R$14:R$34)*(rng_rainfall=3))*(rng_LUC_GRAZ_DATA_SHEET_R2) -> 0 | I66: =(SUM('LUCERNE PASTURE GRAZING R2'!U$14:U$34))*(rng_LUC_GRAZ_DATA_SHEET_R2) -> 0 | J66: =(SUM('LUCERNE PASTURE GRAZING R2'!L$37:L$53)*(rng_rainfall=1)+SUM('LUCERNE PASTURE GRAZING R2'!O$37:O$53)*(rng_rainfall=2)+SUM('LUCERNE PASTURE GRAZING R2'!R$37:R$53)*(rng_rainfall=3))*(rng_LUC_GRAZ_DATA_SHEET_R2) -> 0 | K66: =(SUM('LUCERNE PASTURE GRAZING R2'!U$37:U$53))*(rng_LUC_GRAZ_DATA_SHEET_R2) -> 0 | L66: =(SUM('LUCERNE PASTURE GRAZING R2'!L$57:L$129)*(rng_rainfall=1)+SUM('LUCERNE PASTURE GRAZING R2'!O$57:O$129)*(rng_rainfall=2)+SUM('LUCERNE PASTURE GRAZING R2'!R$57:R$129)*(rng_rainfall=3))*(rng_LUC_GRAZ_DATA_SHEET_R2) -> 0 | M66: =(SUM('LUCERNE PASTURE GRAZING R2'!U$57:U$129))*(rng_LUC_GRAZ_DATA_SHEET_R2) -> 0 | N66: =(SUM('LUCERNE PASTURE GRAZING R2'!L$132:L$158)*(rng_rainfall=1)+SUM('LUCERNE PASTURE GRAZING R2'!O$132:O$158)*(rng_rainfall=2)++SUM('LUCERNE PASTURE GRAZING R2'!R$132:R$158)*(rng_rainfall=3))*(rng_LUC_GRAZ_DATA_SHEET_R2) ->  | O66: =(SUM('LUCERNE PASTURE GRAZING R2'!U$132:U$158))*(rng_LUC_GRAZ_DATA_SHEET_R2) ->  | Q66: =(SUM(O66,M66,K66,I66))*(rng_LUC_GRAZ_DATA_SHEET_R2) -> 
B67: Phalaris Sub Pasture Cereal | C67: =('PHALARIS SUB PASTURE CEREAL R2'!U$6)*(rng_PHA_CEREAL_DATA_SHEET_R2) -> 0 | D67: =(SUM('PHALARIS SUB PASTURE CEREAL R2'!L$162)*(rng_rainfall=1)+SUM('PHALARIS SUB PASTURE CEREAL R2'!O$162)*(rng_rainfall=2)+SUM('PHALARIS SUB PASTURE CEREAL R2'!R$162)*(rng_rainfall=3))*(rng_PHA_CEREAL_DATA_SHEET_R2) -> 0 | E67: =('PHALARIS SUB PASTURE CEREAL R2'!U$162)*(rng_PHA_CEREAL_DATA_SHEET_R2) -> 0 | F67: =(SUM('PHALARIS SUB PASTURE CEREAL R2'!L$11)*(rng_rainfall=1)+SUM('PHALARIS SUB PASTURE CEREAL R2'!O$11)*(rng_rainfall=2)+SUM('PHALARIS SUB PASTURE CEREAL R2'!R$11)*(rng_rainfall=3))*(rng_PHA_CEREAL_DATA_SHEET_R2) -> 0 | G67: =('PHALARIS SUB PASTURE CEREAL R2'!U$11)*(rng_PHA_CEREAL_DATA_SHEET_R2) -> 0 | H67: =(SUM('PHALARIS SUB PASTURE CEREAL R2'!L$14:L$34)*(rng_rainfall=1)+SUM('PHALARIS SUB PASTURE CEREAL R2'!O$14:O$34)*(rng_rainfall=2)+SUM('PHALARIS SUB PASTURE CEREAL R2'!R$14:R$34)*(rng_rainfall=3))*(rng_PHA_CEREAL_DATA_SHEET_R2) -> 0 | I67: =(SUM('PHALARIS SUB PASTURE CEREAL R2'!U$14:U$34))*(rng_PHA_CEREAL_DATA_SHEET_R2) -> 0 | J67: =(SUM('PHALARIS SUB PASTURE CEREAL R2'!L$37:L$53)*(rng_rainfall=1)+SUM('PHALARIS SUB PASTURE CEREAL R2'!O$37:O$53)*(rng_rainfall=2)+SUM('PHALARIS SUB PASTURE CEREAL R2'!R$37:R$53)*(rng_rainfall=3))*(rng_PHA_CEREAL_DATA_SHEET_R2) -> 0 | K67: =(SUM('PHALARIS SUB PASTURE CEREAL R2'!U$37:U$53))*(rng_PHA_CEREAL_DATA_SHEET_R2) -> 0 | L67: =(SUM('PHALARIS SUB PASTURE CEREAL R2'!L$57:L$128)*(rng_rainfall=1)+SUM('PHALARIS SUB PASTURE CEREAL R2'!O$57:O$128)*(rng_rainfall=2)+SUM('PHALARIS SUB PASTURE CEREAL R2'!R$57:R$128)*(rng_rainfall=3))*(rng_PHA_CEREAL_DATA_SHEET_R2) -> 0 | M67: =(SUM('PHALARIS SUB PASTURE CEREAL R2'!U$57:U$128))*(rng_PHA_CEREAL_DATA_SHEET_R2) -> 0 | N67: =(SUM('PHALARIS SUB PASTURE CEREAL R2'!L$131:L$157)*(rng_rainfall=1)+SUM('PHALARIS SUB PASTURE CEREAL R2'!O$131:O$157)*(rng_rainfall=2)++SUM('PHALARIS SUB PASTURE CEREAL R2'!R$131:R$157)*(rng_rainfall=3))*(rng_PHA_CEREAL_DATA_SHEET_R2) ->  | O67: =(SUM('PHALARIS SUB PASTURE CEREAL R2'!U$131:U$157))*(rng_PHA_CEREAL_DATA_SHEET_R2) ->  | Q67: =(SUM(O67,M67,K67,I67))*(rng_PHA_CEREAL_DATA_SHEET_R2) -> 
B68: Phalaris Sub Grazing | C68: =('PHALARIS SUB PASTURE GRAZING R2'!U$6)*(rng_PHA_GRAZING_DATA_SHEET_R2) -> 0 | D68: =(SUM('PHALARIS SUB PASTURE GRAZING R2'!L$162)*(rng_rainfall=1)+SUM('PHALARIS SUB PASTURE GRAZING R2'!O$162)*(rng_rainfall=2)+SUM('PHALARIS SUB PASTURE GRAZING R2'!R$162)*(rng_rainfall=3))*(rng_PHA_GRAZING_DATA_SHEET_R2) -> 0 | E68: =('PHALARIS SUB PASTURE GRAZING R2'!U$162)*(rng_PHA_GRAZING_DATA_SHEET_R2) -> 0 | F68: =(SUM('PHALARIS SUB PASTURE GRAZING R2'!L$11)*(rng_rainfall=1)+SUM('PHALARIS SUB PASTURE GRAZING R2'!O$11)*(rng_rainfall=2)+SUM('PHALARIS SUB PASTURE GRAZING R2'!R$11)*(rng_rainfall=3))*(rng_PHA_GRAZING_DATA_SHEET_R2) -> 0 | G68: =('PHALARIS SUB PASTURE GRAZING R2'!U$11)*(rng_PHA_GRAZING_DATA_SHEET_R2) -> 0 | H68: =(SUM('PHALARIS SUB PASTURE GRAZING R2'!L$14:L$34)*(rng_rainfall=1)+SUM('PHALARIS SUB PASTURE GRAZING R2'!O$14:O$34)*(rng_rainfall=2)+SUM('PHALARIS SUB PASTURE GRAZING R2'!R$14:R$34)*(rng_rainfall=3))*(rng_PHA_GRAZING_DATA_SHEET_R2) -> 0 | I68: =(SUM('PHALARIS SUB PASTURE GRAZING R2'!U$14:U$34))*(rng_PHA_GRAZING_DATA_SHEET_R2) -> 0 | J68: =(SUM('PHALARIS SUB PASTURE GRAZING R2'!L$37:L$53)*(rng_rainfall=1)+SUM('PHALARIS SUB PASTURE GRAZING R2'!O$37:O$53)*(rng_rainfall=2)+SUM('PHALARIS SUB PASTURE GRAZING R2'!R$37:R$53)*(rng_rainfall=3))*(rng_PHA_GRAZING_DATA_SHEET_R2) -> 0 | K68: =(SUM('PHALARIS SUB PASTURE GRAZING R2'!U$37:U$53))*(rng_PHA_GRAZING_DATA_SHEET_R2) -> 0 | L68: =(SUM('PHALARIS SUB PASTURE GRAZING R2'!L$57:L$128)*(rng_rainfall=1)+SUM('PHALARIS SUB PASTURE GRAZING R2'!O$57:O$128)*(rng_rainfall=2)+SUM('PHALARIS SUB PASTURE GRAZING R2'!R$57:R$128)*(rng_rainfall=3))*(rng_PHA_GRAZING_DATA_SHEET_R2) -> 0 | M68: =(SUM('PHALARIS SUB PASTURE GRAZING R2'!U$57:U$128))*(rng_PHA_GRAZING_DATA_SHEET_R2) -> 0 | N68: =(SUM('PHALARIS SUB PASTURE GRAZING R2'!L$131:L$157)*(rng_rainfall=1)+SUM('PHALARIS SUB PASTURE GRAZING R2'!O$131:O$157)*(rng_rainfall=2)++SUM('PHALARIS SUB PASTURE GRAZING R2'!R$131:R$157)*(rng_rainfall=3))*(rng_PHA_GRAZING_DATA_SHEET_R2) ->  | O68: =(SUM('PHALARIS SUB PASTURE GRAZING R2'!U$131:U$157))*(rng_PHA_GRAZING_DATA_SHEET_R2) ->  | Q68: =(SUM(O68,M68,K68,I68))*(rng_PHA_GRAZING_DATA_SHEET_R2) -> 
B69: TOTAL-ROTATION 2 | C69: =SUM(C45:C68) -> 0 | E69: =SUM(E45:E68) -> 0 | G69: =SUM(G45:G68) -> 0 | I69: =SUM(I45:I68) -> 0 | K69: =SUM(K45:K68) -> 0 | M69: =SUM(M45:M68) -> 0 | O69: =SUM(O45:O68) ->  | Q69: =SUM(Q45:Q68) -> 
B71: Profit and Loss Statement (Rotation 2)
B72: Overhead Costs | E72: Amount | F72: Comments
B73: General Overheads | F73: Rates, subscriptions, telephone, power, general insurance, general repairs etc
B74: Permanent Wages | F74: Wages paid to permanent employees, including family members
B75: Managers allowance-personal drawings | F75: Personel drawings
B76: Machinery & plant depreciation | F76: Normally 8 to 12% of market value; usually allow 10%
B77: Leasing (land and machinery)
B78: Debt Servicing | F78: Interest and bank fees
B79: Total Overheads | E79: =SUM(E73:E78) -> 0
B80: Farm Business Profit / Loss | E80: =E69-E79 -> 0

Sheet CROP SHEETS>>
B2: INTENTIONALLY BLANK

Sheet WHEAT (hidden)
C1: Wheat | F1: hide | G1: show | H1: hide | I1: show | J1: =IF(rng_rainfall=1,"show","hide") -> hide | K1: hide | L1: =IF(rng_rainfall=1,"show","hide") -> hide | M1: =IF(rng_rainfall=2,"show","hide") -> hide | N1: hide | O1: =IF(rng_rainfall=2,"show","hide") -> hide | P1: =IF(rng_rainfall=3,"show","hide") -> hide | Q1: hide | R1: =IF(rng_rainfall=3,"show","hide") -> hide | S1: hide
C2: =UPPER(var_crop)&" "&IF(var_rotationtype=2,"ROTATION 1","")&" GROSS MARGIN - "&TEXT(m_year,"0000") -> WHEAT GROSS MARGIN - 2022
Y3: Reset Yellow Cell Formulas Below
C4: INCOME | L4: RAINFALL | O4: RAINFALL | R4: RAINFALL | U4: YOUR | Z4: ="GM SENSITIVITY-"&var_crop -> GM SENSITIVITY-Wheat | AD4: Cash Price $/t
C5: =IF(rng_rainfall="","PLEASE SELECT A RAINFALL ZONE ON THE MAIN SHEET!","") -> PLEASE SELECT A RAINFALL ZONE ON THE MAIN SHEET! | L5: ZONE | O5: ZONE | R5: ZONE | U5: ESTIMATE | Z5: =var_rain&" Rainfall" ->  | AB5: Poor | AC5: Below Average | AD5: Average | AE5: Above Average | AF5: Very Good
C6: =IF(rng_machinery="","PLEASE SELECT A MACHINERY METHOD ON THE MAIN SHEET!","") -> PLEASE SELECT A MACHINERY METHOD ON THE MAIN SHEET! | L6: LOW | O6: MEDIUM | R6: HIGH | V6: =IF(ISBLANK(U6),"<-Enter Crop Size in Ha","Ha") -> <-Enter Crop Size in Ha | AA6: Yield $/t | AB6: =VLOOKUP(var_crop,tbl_hist_prices[],MATCH("Price_"&var_rain&"_"&AB$5,tbl_hist_prices[#Headers],0),0) ->  | AC6: =VLOOKUP(var_crop,tbl_hist_prices[],MATCH("Price_"&var_rain&"_"&AC$5,tbl_hist_prices[#Headers],0),0) ->  | AD6: =VLOOKUP(var_crop,tbl_hist_prices[],MATCH("Price_"&var_rain&"_"&AD$5,tbl_hist_prices[#Headers],0),0) ->  | AE6: =VLOOKUP(var_crop,tbl_hist_prices[],MATCH("Price_"&var_rain&"_"&AE$5,tbl_hist_prices[#Headers],0),0) ->  | AF6: =VLOOKUP(var_crop,tbl_hist_prices[],MATCH("Price_"&var_rain&"_"&AF$5,tbl_hist_prices[#Headers],0),0) -> 
Z7: Poor | AA7: =VLOOKUP(var_crop,tbl_hist_prices[],MATCH(var_rain&"_"&Z7,tbl_hist_prices[#Headers],0),0) ->  | AB7: =AB$6*$AA7-SUM(OFFSET($L$15,0,(rng_rainfall*3)-3,15),OFFSET($L$38,0,(rng_rainfall*3)-3,98),OFFSET($L$137,0,(rng_rainfall*3)-3,11),OFFSET($L$153,0,(rng_rainfall*3)-3,4))-AB$6*$AA7*($E$32+$E$151/1000)-$AA7*($E$33+$E$136) -> 
C8: ="Price ("&Year_Short&" Forecast)" -> Price (22/23 Forecast) | I8: Reset Price | L8: =VLOOKUP(var_crop,tbl_hist_prices[#Data],MATCH("Price_"&L6&"_Average",tbl_hist_prices[#Headers],0),0) -> 350 | M8: =VLOOKUP(var_crop,tbl_hist_prices[#Data],MATCH("Price_"&R[-2]C&"_Average",tbl_hist_prices[#Headers],0),0) | O8: =VLOOKUP(var_crop,tbl_hist_prices[#Data],MATCH("Price_"&O6&"_Average",tbl_hist_prices[#Headers],0),0) -> 350 | P8: =VLOOKUP(var_crop,tbl_hist_prices[#Data],MATCH("Price_"&R[-2]C&"_Average",tbl_hist_prices[#Headers],0),0) | R8: =VLOOKUP(var_crop,tbl_hist_prices[#Data],MATCH("Price_"&R6&"_Average",tbl_hist_prices[#Headers],0),0) -> 350 | S8: =VLOOKUP(var_crop,tbl_hist_prices[#Data],MATCH("Price_"&R[-2]C&"_Average",tbl_hist_prices[#Headers],0),0) | U8: =$U$6*(IF(rng_rainfall=1,L8*L10,IF(rng_rainfall=2,O8*O10,R8*R10))) -> 0 | Z8: Below Average | AA8: =VLOOKUP(var_crop,tbl_hist_prices[],MATCH(var_rain&"_"&Z8,tbl_hist_prices[#Headers],0),0) -> 
Z9: Average | AA9: =VLOOKUP(var_crop,tbl_hist_prices[],MATCH(var_rain&"_"&Z9,tbl_hist_prices[#Headers],0),0) -> 
C10: Yield (t/ha) | I10: Reset Yield | L10: =VLOOKUP(var_crop,tbl_hist_prices[],MATCH("LOW"&"_AVERAGE",tbl_hist_prices[[#Headers],[Commodity]:[High_Very Good]],0),0) -> 1.8 | M10: =VLOOKUP(var_crop,tbl_hist_prices,MATCH("LOW"&"_AVERAGE",tbl_hist_prices[[#Headers],[Commodity]:[High_Very Good]],0),0) | O10: =VLOOKUP(var_crop,tbl_hist_prices[],MATCH("MEDIUM"&"_AVERAGE",tbl_hist_prices[[#Headers],[Commodity]:[High_Very Good]],0),0) -> 3.2 | P10: =VLOOKUP(var_crop,tbl_hist_prices,MATCH("MEDIUM"&"_AVERAGE",tbl_hist_prices[[#Headers],[Commodity]:[High_Very Good]],0),0) | R10: =VLOOKUP(var_crop,tbl_hist_prices[],MATCH("HIGH"&"_AVERAGE",tbl_hist_prices[[#Headers],[Commodity]:[High_Very Good]],0),0) -> 4.8 | S10: =VLOOKUP(var_crop,tbl_hist_prices,MATCH("HIGH"&"_AVERAGE",tbl_hist_prices[[#Headers],[Commodity]:[High_Very Good]],0),0) | Z10: Above Average | AA10: =VLOOKUP(var_crop,tbl_hist_prices[],MATCH(var_rain&"_"&Z10,tbl_hist_prices[#Headers],0),0) -> 
C11: GROSS INCOME | L11: =L8*L10 -> 630 | O11: =O8*O10 -> 1120 | R11: =R8*R10 -> 1680 | U11: =SUM(U8:U10) -> 0 | Z11: Very Good | AA11: =VLOOKUP(var_crop,tbl_hist_prices[],MATCH(var_rain&"_"&Z11,tbl_hist_prices[#Headers],0),0) -> 
C12: VARIABLE COSTS
C14: Seed | E14: Cost | G14: Unit | J14: Rate/ha | L14: $/ha | M14: Rate/ha | O14: $/ha | P14: Rate/ha | R14: $/ha | U14: $
C15: Seed | D15: Reset Cost | E15: =VLOOKUP($C15&"Cost",CHOOSE({1,2},tbl_seed[Name]&tbl_seed[Type],INDIRECT("tbl_seed["&var_crop&"]")),2,0) -> 0.41 | F15: =VLOOKUP(R[0]C3&"Cost",CHOOSE({1,2},tbl_seed[Name]&tbl_seed[Type],INDIRECT("tbl_seed["&var_crop&"]")),2,0) | G15: =VLOOKUP($C15&"Cost",CHOOSE({1,2},tbl_seed[Name]&tbl_seed[Type],tbl_seed[Unit]),2,0) -> $/kg | H15: =VLOOKUP(r[0]c3&"Cost",CHOOSE({1,2},tbl_seed[Name]&tbl_seed[Type],tbl_seed[Unit]),2,0) | I15: Reset Rate | J15: =VLOOKUP($C15&"Low",CHOOSE({1,2},tbl_seed[Name]&tbl_seed[Rainfall],INDIRECT("tbl_seed["&var_crop&"]")),2,0) -> 60 | K15: =VLOOKUP(r[0]c3&"Low",CHOOSE({1,2},tbl_seed[Name]&tbl_seed[Rainfall],INDIRECT("tbl_seed["&var_crop&"]")),2,0) | L15: =(J15*E15) -> 24.6 | M15: =VLOOKUP($C15&"Medium",CHOOSE({1,2},tbl_seed[Name]&tbl_seed[Rainfall],INDIRECT("tbl_seed["&var_crop&"]")),2,0) -> 80 | N15: =VLOOKUP(r[0]c3&"Medium",CHOOSE({1,2},tbl_seed[Name]&tbl_seed[Rainfall],INDIRECT("tbl_seed["&var_crop&"]")),2,0) | O15: =(M15*E15) -> 32.8 | P15: =VLOOKUP($C15&"High",CHOOSE({1,2},tbl_seed[Name]&tbl_seed[Rainfall],INDIRECT("tbl_seed["&var_crop&"]")),2,0) -> 100 | Q15: =VLOOKUP(r[0]c3&"High",CHOOSE({1,2},tbl_seed[Name]&tbl_seed[Rainfall],INDIRECT("tbl_seed["&var_crop&"]")),2,0) | R15: =P15*E15 -> 41 | U15: =$U$6*(IF(rng_rainfall=1,L15,IF(rng_rainfall=2,O15,R15))) -> 0
C16: Seed Treatment(1) Smuts and Bunts | D16: Reset Cost | E16: =VLOOKUP($C16&"Cost",CHOOSE({1,2},tbl_seed[Name]&tbl_seed[Type],INDIRECT("tbl_seed["&var_crop&"]")),2,0) -> 0.046 | F16: =VLOOKUP(R[0]C3&"Cost",CHOOSE({1,2},tbl_seed[Name]&tbl_seed[Type],INDIRECT("tbl_seed["&var_crop&"]")),2,0) | G16: =VLOOKUP($C16&"Cost",CHOOSE({1,2},tbl_seed[Name]&tbl_seed[Type],tbl_seed[Unit]),2,0) -> $/kg | H16: =VLOOKUP(r[0]c3&"Cost",CHOOSE({1,2},tbl_seed[Name]&tbl_seed[Type],tbl_seed[Unit]),2,0) | I16: Reset Rate | J16: =VLOOKUP($C16&"Low",CHOOSE({1,2},tbl_seed[Name]&tbl_seed[Rainfall],INDIRECT("tbl_seed["&var_crop&"]")),2,0) -> 60 | K16: =VLOOKUP(r[0]c3&"Low",CHOOSE({1,2},tbl_seed[Name]&tbl_seed[Rainfall],INDIRECT("tbl_seed["&var_crop&"]")),2,0) | L16: =(J16*E16) -> 2.76 | M16: =VLOOKUP($C16&"Medium",CHOOSE({1,2},tbl_seed[Name]&tbl_seed[Rainfall],INDIRECT("tbl_seed["&var_crop&"]")),2,0) -> 80 | N16: =VLOOKUP(r[0]c3&"Medium",CHOOSE({1,2},tbl_seed[Name]&tbl_seed[Rainfall],INDIRECT("tbl_seed["&var_crop&"]")),2,0) | O16: 3.68 | P16: =VLOOKUP($C16&"High",CHOOSE({1,2},tbl_seed[Name]&tbl_seed[Rainfall],INDIRECT("tbl_seed["&var_crop&"]")),2,0) -> 100 | Q16: =VLOOKUP(r[0]c3&"High",CHOOSE({1,2},tbl_seed[Name]&tbl_seed[Rainfall],INDIRECT("tbl_seed["&var_crop&"]")),2,0) | R16: =P16*E16 -> 4.6 | U16: =$U$6*(IF(rng_rainfall=1,L16,IF(rng_rainfall=2,O16,R16))) -> 0
C17: Seed Treatment(2) Systiva Seed Dressing | D17: Reset Cost | E17: =VLOOKUP($C17&"Cost",CHOOSE({1,2},tbl_seed[Name]&tbl_seed[Type],INDIRECT("tbl_seed["&var_crop&"]")),2,0) -> 0.10476 | F17: =VLOOKUP(R[0]C3&"Cost",CHOOSE({1,2},tbl_seed[Name]&tbl_seed[Type],INDIRECT("tbl_seed["&var_crop&"]")),2,0) | G17: =VLOOKUP($C17&"Cost",CHOOSE({1,2},tbl_seed[Name]&tbl_seed[Type],tbl_seed[Unit]),2,0) -> $/kg | H17: =VLOOKUP(r[0]c3&"Cost",CHOOSE({1,2},tbl_seed[Name]&tbl_seed[Type],tbl_seed[Unit]),2,0) | I17: Reset Rate | J17: =VLOOKUP($C17&"Low",CHOOSE({1,2},tbl_seed[Name]&tbl_seed[Rainfall],INDIRECT("tbl_seed["&var_crop&"]")),2,0) -> 60 | K17: =VLOOKUP(r[0]c3&"Low",CHOOSE({1,2},tbl_seed[Name]&tbl_seed[Rainfall],INDIRECT("tbl_seed["&var_crop&"]")),2,0) | L17: =(J17*E17) -> 6.2856 | M17: =VLOOKUP($C17&"Medium",CHOOSE({1,2},tbl_seed[Name]&tbl_seed[Rainfall],INDIRECT("tbl_seed["&var_crop&"]")),2,0) -> 80 | N17: =VLOOKUP(r[0]c3&"Medium",CHOOSE({1,2},tbl_seed[Name]&tbl_seed[Rainfall],INDIRECT("tbl_seed["&var_crop&"]")),2,0) | O17: 8.3808 | P17: =VLOOKUP($C17&"High",CHOOSE({1,2},tbl_seed[Name]&tbl_seed[Rainfall],INDIRECT("tbl_seed["&var_crop&"]")),2,0) -> 100 | Q17: =VLOOKUP(r[0]c3&"High",CHOOSE({1,2},tbl_seed[Name]&tbl_seed[Rainfall],INDIRECT("tbl_seed["&var_crop&"]")),2,0) | R17: =P17*E17 -> 10.476 | U17: =$U$6*(IF(rng_rainfall=1,L17,IF(rng_rainfall=2,O17,R17))) -> 0
D18: Reset Cost | F18: =VLOOKUP(R[0]C3&"Cost",CHOOSE({1,2},tbl_seed[Name]&tbl_seed[Type],INDIRECT("tbl_seed["&var_crop&"]")),2,0) | H18: =VLOOKUP(r[0]c3&"Cost",CHOOSE({1,2},tbl_seed[Name]&tbl_seed[Type],tbl_seed[Unit]),2,0) | I18: Reset Rate | K18: =VLOOKUP(r[0]c3&"Low",CHOOSE({1,2},tbl_seed[Name]&tbl_seed[Rainfall],INDIRECT("tbl_seed["&var_crop&"]")),2,0) | L18: =(J18*E18) -> 0 | N18: =VLOOKUP(r[0]c3&"Medium",CHOOSE({1,2},tbl_seed[Name]&tbl_seed[Rainfall],INDIRECT("tbl_seed["&var_crop&"]")),2,0) | O18: 0 | Q18: =VLOOKUP(r[0]c3&"High",CHOOSE({1,2},tbl_seed[Name]&tbl_seed[Rainfall],INDIRECT("tbl_seed["&var_crop&"]")),2,0) | R18: =P18*E18 -> 0 | U18: =$U$6*(IF(rng_rainfall=1,L18,IF(rng_rainfall=2,O18,R18))) -> 0
D19: Reset Cost | F19: =VLOOKUP(R[0]C3&"Cost",CHOOSE({1,2},tbl_seed[Name]&tbl_seed[Type],INDIRECT("tbl_seed["&var_crop&"]")),2,0) | H19: =VLOOKUP(r[0]c3&"Cost",CHOOSE({1,2},tbl_seed[Name]&tbl_seed[Type],tbl_seed[Unit]),2,0) | I19: Reset Rate | K19: =VLOOKUP(r[0]c3&"Low",CHOOSE({1,2},tbl_seed[Name]&tbl_seed[Rainfall],INDIRECT("tbl_seed["&var_crop&"]")),2,0) | L19: =(J19*E19) -> 0 | N19: =VLOOKUP(r[0]c3&"Medium",CHOOSE({1,2},tbl_seed[Name]&tbl_seed[Rainfall],INDIRECT("tbl_seed["&var_crop&"]")),2,0) | O19: 0 | Q19: =VLOOKUP(r[0]c3&"High",CHOOSE({1,2},tbl_seed[Name]&tbl_seed[Rainfall],INDIRECT("tbl_seed["&var_crop&"]")),2,0) | R19: =P19*E19 -> 0 | U19: =$U$6*(IF(rng_rainfall=1,L19,IF(rng_rainfall=2,O19,R19))) -> 0
D20: Reset Cost | F20: =VLOOKUP(R[0]C3&"Cost",CHOOSE({1,2},tbl_seed[Name]&tbl_seed[Type],INDIRECT("tbl_seed["&var_crop&"]")),2,0) | H20: =VLOOKUP(r[0]c3&"Cost",CHOOSE({1,2},tbl_seed[Name]&tbl_seed[Type],tbl_seed[Unit]),2,0) | I20: Reset Rate | K20: =VLOOKUP(r[0]c3&"Low",CHOOSE({1,2},tbl_seed[Name]&tbl_seed[Rainfall],INDIRECT("tbl_seed["&var_crop&"]")),2,0) | L20: =(J20*E20) -> 0 | N20: =VLOOKUP(r[0]c3&"Medium",CHOOSE({1,2},tbl_seed[Name]&tbl_seed[Rainfall],INDIRECT("tbl_seed["&var_crop&"]")),2,0) | O20: 0 | Q20: =VLOOKUP(r[0]c3&"High",CHOOSE({1,2},tbl_seed[Name]&tbl_seed[Rainfall],INDIRECT("tbl_seed["&var_crop&"]")),2,0) | R20: =P20*E20 -> 0 | U20: =$U$6*(IF(rng_rainfall=1,L20,IF(rng_rainfall=2,O20,R20))) -> 0
D21: Reset Cost | F21: =VLOOKUP(R[0]C3&"Cost",CHOOSE({1,2},tbl_seed[Name]&tbl_seed[Type],INDIRECT("tbl_seed["&var_crop&"]")),2,0) | H21: =VLOOKUP(r[0]c3&"Cost",CHOOSE({1,2},tbl_seed[Name]&tbl_seed[Type],tbl_seed[Unit]),2,0) | I21: Reset Rate | K21: =VLOOKUP(r[0]c3&"Low",CHOOSE({1,2},tbl_seed[Name]&tbl_seed[Rainfall],INDIRECT("tbl_seed["&var_crop&"]")),2,0) | L21: 0 | N21: =VLOOKUP(r[0]c3&"Medium",CHOOSE({1,2},tbl_seed[Name]&tbl_seed[Rainfall],INDIRECT("tbl_seed["&var_crop&"]")),2,0) | O21: 0 | Q21: =VLOOKUP(r[0]c3&"High",CHOOSE({1,2},tbl_seed[Name]&tbl_seed[Rainfall],INDIRECT("tbl_seed["&var_crop&"]")),2,0) | R21: 0 | U21: 0
D22: Reset Cost | F22: =VLOOKUP(R[0]C3&"Cost",CHOOSE({1,2},tbl_seed[Name]&tbl_seed[Type],INDIRECT("tbl_seed["&var_crop&"]")),2,0) | H22: =VLOOKUP(r[0]c3&"Cost",CHOOSE({1,2},tbl_seed[Name]&tbl_seed[Type],tbl_seed[Unit]),2,0) | I22: Reset Rate | K22: =VLOOKUP(r[0]c3&"Low",CHOOSE({1,2},tbl_seed[Name]&tbl_seed[Rainfall],INDIRECT("tbl_seed["&var_crop&"]")),2,0) | L22: 0 | N22: =VLOOKUP(r[0]c3&"Medium",CHOOSE({1,2},tbl_seed[Name]&tbl_seed[Rainfall],INDIRECT("tbl_seed["&var_crop&"]")),2,0) | O22: 0 | Q22: =VLOOKUP(r[0]c3&"High",CHOOSE({1,2},tbl_seed[Name]&tbl_seed[Rainfall],INDIRECT("tbl_seed["&var_crop&"]")),2,0) | R22: 0 | U22: 0
D23: Reset Cost | F23: =VLOOKUP(R[0]C3&"Cost",CHOOSE({1,2},tbl_seed[Name]&tbl_seed[Type],INDIRECT("tbl_seed["&var_crop&"]")),2,0) | H23: =VLOOKUP(r[0]c3&"Cost",CHOOSE({1,2},tbl_seed[Name]&tbl_seed[Type],tbl_seed[Unit]),2,0) | I23: Reset Rate | K23: =VLOOKUP(r[0]c3&"Low",CHOOSE({1,2},tbl_seed[Name]&tbl_seed[Rainfall],INDIRECT("tbl_seed["&var_crop&"]")),2,0) | L23: 0 | N23: =VLOOKUP(r[0]c3&"Medium",CHOOSE({1,2},tbl_seed[Name]&tbl_seed[Rainfall],INDIRECT("tbl_seed["&var_crop&"]")),2,0) | O23: 0 | Q23: =VLOOKUP(r[0]c3&"High",CHOOSE({1,2},tbl_seed[Name]&tbl_seed[Rainfall],INDIRECT("tbl_seed["&var_crop&"]")),2,0) | R23: 0 | U23: 0
D24: Reset Cost | F24: =VLOOKUP(R[0]C3&"Cost",CHOOSE({1,2},tbl_seed[Name]&tbl_seed[Type],INDIRECT("tbl_seed["&var_crop&"]")),2,0) | H24: =VLOOKUP(r[0]c3&"Cost",CHOOSE({1,2},tbl_seed[Name]&tbl_seed[Type],tbl_seed[Unit]),2,0) | I24: Reset Rate | K24: =VLOOKUP(r[0]c3&"Low",CHOOSE({1,2},tbl_seed[Name]&tbl_seed[Rainfall],INDIRECT("tbl_seed["&var_crop&"]")),2,0) | L24: 0 | N24: =VLOOKUP(r[0]c3&"Medium",CHOOSE({1,2},tbl_seed[Name]&tbl_seed[Rainfall],INDIRECT("tbl_seed["&var_crop&"]")),2,0) | O24: 0 | Q24: =VLOOKUP(r[0]c3&"High",CHOOSE({1,2},tbl_seed[Name]&tbl_seed[Rainfall],INDIRECT("tbl_seed["&var_crop&"]")),2,0) | R24: 0 | U24: 0
D25: Reset Cost | F25: =VLOOKUP(R[0]C3&"Cost",CHOOSE({1,2},tbl_seed[Name]&tbl_seed[Type],INDIRECT("tbl_seed["&var_crop&"]")),2,0) | H25: =VLOOKUP(r[0]c3&"Cost",CHOOSE({1,2},tbl_seed[Name]&tbl_seed[Type],tbl_seed[Unit]),2,0) | I25: Reset Rate | K25: =VLOOKUP(r[0]c3&"Low",CHOOSE({1,2},tbl_seed[Name]&tbl_seed[Rainfall],INDIRECT("tbl_seed["&var_crop&"]")),2,0) | L25: 0 | N25: =VLOOKUP(r[0]c3&"Medium",CHOOSE({1,2},tbl_seed[Name]&tbl_seed[Rainfall],INDIRECT("tbl_seed["&var_crop&"]")),2,0) | O25: 0 | Q25: =VLOOKUP(r[0]c3&"High",CHOOSE({1,2},tbl_seed[Name]&tbl_seed[Rainfall],INDIRECT("tbl_seed["&var_crop&"]")),2,0) | R25: 0 | U25: 0
D26: Reset Cost | F26: =VLOOKUP(R[0]C3&"Cost",CHOOSE({1,2},tbl_seed[Name]&tbl_seed[Type],INDIRECT("tbl_seed["&var_crop&"]")),2,0) | H26: =VLOOKUP(r[0]c3&"Cost",CHOOSE({1,2},tbl_seed[Name]&tbl_seed[Type],tbl_seed[Unit]),2,0) | I26: Reset Rate | K26: =VLOOKUP(r[0]c3&"Low",CHOOSE({1,2},tbl_seed[Name]&tbl_seed[Rainfall],INDIRECT("tbl_seed["&var_crop&"]")),2,0) | L26: 0 | N26: =VLOOKUP(r[0]c3&"Medium",CHOOSE({1,2},tbl_seed[Name]&tbl_seed[Rainfall],INDIRECT("tbl_seed["&var_crop&"]")),2,0) | O26: 0 | Q26: =VLOOKUP(r[0]c3&"High",CHOOSE({1,2},tbl_seed[Name]&tbl_seed[Rainfall],INDIRECT("tbl_seed["&var_crop&"]")),2,0) | R26: 0 | U26: 0
D27: Reset Cost | F27: =VLOOKUP(R[0]C3&"Cost",CHOOSE({1,2},tbl_seed[Name]&tbl_seed[Type],INDIRECT("tbl_seed["&var_crop&"]")),2,0) | H27: =VLOOKUP(r[0]c3&"Cost",CHOOSE({1,2},tbl_seed[Name]&tbl_seed[Type],tbl_seed[Unit]),2,0) | I27: Reset Rate | K27: =VLOOKUP(r[0]c3&"Low",CHOOSE({1,2},tbl_seed[Name]&tbl_seed[Rainfall],INDIRECT("tbl_seed["&var_crop&"]")),2,0) | L27: 0 | N27: =VLOOKUP(r[0]c3&"Medium",CHOOSE({1,2},tbl_seed[Name]&tbl_seed[Rainfall],INDIRECT("tbl_seed["&var_crop&"]")),2,0) | O27: 0 | Q27: =VLOOKUP(r[0]c3&"High",CHOOSE({1,2},tbl_seed[Name]&tbl_seed[Rainfall],INDIRECT("tbl_seed["&var_crop&"]")),2,0) | R27: 0 | U27: 0
D28: Reset Cost | F28: =VLOOKUP(R[0]C3&"Cost",CHOOSE({1,2},tbl_seed[Name]&tbl_seed[Type],INDIRECT("tbl_seed["&var_crop&"]")),2,0) | H28: =VLOOKUP(r[0]c3&"Cost",CHOOSE({1,2},tbl_seed[Name]&tbl_seed[Type],tbl_seed[Unit]),2,0) | I28: Reset Rate | K28: =VLOOKUP(r[0]c3&"Low",CHOOSE({1,2},tbl_seed[Name]&tbl_seed[Rainfall],INDIRECT("tbl_seed["&var_crop&"]")),2,0) | L28: 0 | N28: =VLOOKUP(r[0]c3&"Medium",CHOOSE({1,2},tbl_seed[Name]&tbl_seed[Rainfall],INDIRECT("tbl_seed["&var_crop&"]")),2,0) | O28: 0 | Q28: =VLOOKUP(r[0]c3&"High",CHOOSE({1,2},tbl_seed[Name]&tbl_seed[Rainfall],INDIRECT("tbl_seed["&var_crop&"]")),2,0) | R28: 0 | U28: 0
D29: Reset Cost | F29: =VLOOKUP(R[0]C3&"Cost",CHOOSE({1,2},tbl_seed[Name]&tbl_seed[Type],INDIRECT("tbl_seed["&var_crop&"]")),2,0) | H29: =VLOOKUP(r[0]c3&"Cost",CHOOSE({1,2},tbl_seed[Name]&tbl_seed[Type],tbl_seed[Unit]),2,0) | I29: Reset Rate | K29: =VLOOKUP(r[0]c3&"Low",CHOOSE({1,2},tbl_seed[Name]&tbl_seed[Rainfall],INDIRECT("tbl_seed["&var_crop&"]")),2,0) | L29: 0 | N29: =VLOOKUP(r[0]c3&"Medium",CHOOSE({1,2},tbl_seed[Name]&tbl_seed[Rainfall],INDIRECT("tbl_seed["&var_crop&"]")),2,0) | O29: 0 | Q29: =VLOOKUP(r[0]c3&"High",CHOOSE({1,2},tbl_seed[Name]&tbl_seed[Rainfall],INDIRECT("tbl_seed["&var_crop&"]")),2,0) | R29: 0 | U29: 0
C31: Levies
C32: GRDC Levies | E32: =var_grdc_levy -> 0.01 | G32: Gross Income | L32: =L11*$E$32 -> 6.3 | O32: =E32*O11 -> 11.2 | R32: =E32*R11 -> 16.8 | U32: =U11*E32 -> 0
C33: EPR & state levies | D33: Reset Levy | E33: =IFERROR(VLOOKUP($C33,tbl_seed[],MATCH(var_crop,tbl_seed[#Headers],0),0),0) -> 3.5 | F33: =IFERROR(VLOOKUP(r[0]c3,tbl_seed,MATCH(var_crop,tbl_seed[#Headers],0),0),0) | G33: tonne sold | L33: =E33*L10 -> 6.3 | O33: =E33*O10 -> 11.2 | R33: =E33*R10 -> 16.8 | U33: =$U$6*(IF(rng_rainfall=1,L33,IF(rng_rainfall=2,O33,R33))) -> 0
C37: Fertiliser (Bulk) | E37: Cost | G37: Unit | J37: Rate/ha | L37: $/ha | M37: Rate/ha | O37: $/ha | P37: Rate/ha | R37: $/ha | U37: $
C38: DAP 18:20 | D38: Reset Cost | E38: =VLOOKUP($C38,tbl_fert[[Name]:[Cost]],MATCH("Cost",tbl_fert[#Headers],0),0) -> 1.3 | F38: =VLOOKUP(r[0]c3,tbl_fert[[Name]:[Cost]],MATCH("Cost",tbl_fert[#Headers],0),0) | G38: =VLOOKUP($C38,tbl_fert[[Name]:[Cost]],MATCH("Units",tbl_fert[#Headers],0),0) -> kg | H38: =VLOOKUP(r[0]c3,tbl_fert[[Name]:[Cost]],MATCH("Units",tbl_fert[#Headers],0),0) | I38: Reset Rate | J38: =VLOOKUP($C38&"Low",CHOOSE({1,2},tbl_fert[Name]&tbl_fert[Rainfall],INDIRECT("tbl_fert["&var_crop&"]")),2,0) -> 45 | K38: =VLOOKUP(r[0]c3&"Low",CHOOSE({1,2},tbl_fert[Name]&tbl_fert[Rainfall],INDIRECT("tbl_fert["&var_crop&"]")),2,0) | L38: =(J38*E38) -> 58.5 | M38: =VLOOKUP($C38&"Medium",CHOOSE({1,2},tbl_fert[Name]&tbl_fert[Rainfall],INDIRECT("tbl_fert["&var_crop&"]")),2,0) -> 70 | N38: =VLOOKUP(r[0]c3&"Medium",CHOOSE({1,2},tbl_fert[Name]&tbl_fert[Rainfall],INDIRECT("tbl_fert["&var_crop&"]")),2,0) | O38: =(M38*E38) -> 91 | P38: =VLOOKUP($C38&"High",CHOOSE({1,2},tbl_fert[Name]&tbl_fert[Rainfall],INDIRECT("tbl_fert["&var_crop&"]")),2,0) -> 100 | Q38: =VLOOKUP(r[0]c3&"High",CHOOSE({1,2},tbl_fert[Name]&tbl_fert[Rainfall],INDIRECT("tbl_fert["&var_crop&"]")),2,0) | R38: =P38*E38 -> 130 | U38: =$U$6*(IF(rng_rainfall=1,L38,IF(rng_rainfall=2,O38,R38))) -> 0
C39: Urea | D39: Reset Cost | E39: =VLOOKUP($C39,tbl_fert[[Name]:[Cost]],MATCH("Cost",tbl_fert[#Headers],0),0) -> 1.5 | F39: =VLOOKUP(r[0]c3,tbl_fert[[Name]:[Cost]],MATCH("Cost",tbl_fert[#Headers],0),0) | G39: =VLOOKUP($C39,tbl_fert[[Name]:[Cost]],MATCH("Units",tbl_fert[#Headers],0),0) -> kg | H39: =VLOOKUP(r[0]c3,tbl_fert[[Name]:[Cost]],MATCH("Units",tbl_fert[#Headers],0),0) | I39: Reset Rate | J39: =VLOOKUP($C39&"Low",CHOOSE({1,2},tbl_fert[Name]&tbl_fert[Rainfall],INDIRECT("tbl_fert["&var_crop&"]")),2,0) -> 0 | K39: =VLOOKUP(r[0]c3&"Low",CHOOSE({1,2},tbl_fert[Name]&tbl_fert[Rainfall],INDIRECT("tbl_fert["&var_crop&"]")),2,0) | L39: =(J39*E39) -> 0 | M39: =VLOOKUP($C39&"Medium",CHOOSE({1,2},tbl_fert[Name]&tbl_fert[Rainfall],INDIRECT("tbl_fert["&var_crop&"]")),2,0) -> 100 | N39: =VLOOKUP(r[0]c3&"Medium",CHOOSE({1,2},tbl_fert[Name]&tbl_fert[Rainfall],INDIRECT("tbl_fert["&var_crop&"]")),2,0) | O39: =(M39*E39) -> 150 | P39: =VLOOKUP($C39&"High",CHOOSE({1,2},tbl_fert[Name]&tbl_fert[Rainfall],INDIRECT("tbl_fert["&var_crop&"]")),2,0) -> 200 | Q39: =VLOOKUP(r[0]c3&"High",CHOOSE({1,2},tbl_fert[Name]&tbl_fert[Rainfall],INDIRECT("tbl_fert["&var_crop&"]")),2,0) | R39: =P39*E39 -> 300 | U39: 0
C40: Flutriafol (on fert) | D40: Reset Cost | E40: =VLOOKUP($C40,tbl_fert[[Name]:[Cost]],MATCH("Cost",tbl_fert[#Headers],0),0) -> 45 | F40: =VLOOKUP(r[0]c3,tbl_fert[[Name]:[Cost]],MATCH("Cost",tbl_fert[#Headers],0),0) | G40: =VLOOKUP($C40,tbl_fert[[Name]:[Cost]],MATCH("Units",tbl_fert[#Headers],0),0) -> litre | H40: =VLOOKUP(r[0]c3,tbl_fert[[Name]:[Cost]],MATCH("Units",tbl_fert[#Headers],0),0) | I40: Reset Rate | J40: =VLOOKUP($C40&"Low",CHOOSE({1,2},tbl_fert[Name]&tbl_fert[Rainfall],INDIRECT("tbl_fert["&var_crop&"]")),2,0) -> 0.2 | K40: =VLOOKUP(r[0]c3&"Low",CHOOSE({1,2},tbl_fert[Name]&tbl_fert[Rainfall],INDIRECT("tbl_fert["&var_crop&"]")),2,0) | L40: =(J40*E40) -> 9 | M40: =VLOOKUP($C40&"Medium",CHOOSE({1,2},tbl_fert[Name]&tbl_fert[Rainfall],INDIRECT("tbl_fert["&var_crop&"]")),2,0) -> 0.2 | N40: =VLOOKUP(r[0]c3&"Medium",CHOOSE({1,2},tbl_fert[Name]&tbl_fert[Rainfall],INDIRECT("tbl_fert["&var_crop&"]")),2,0) | O40: =(M40*E40) -> 9 | P40: =VLOOKUP($C40&"High",CHOOSE({1,2},tbl_fert[Name]&tbl_fert[Rainfall],INDIRECT("tbl_fert["&var_crop&"]")),2,0) -> 0.2 | Q40: =VLOOKUP(r[0]c3&"High",CHOOSE({1,2},tbl_fert[Name]&tbl_fert[Rainfall],INDIRECT("tbl_fert["&var_crop&"]")),2,0) | R40: =P40*E40 -> 9 | U40: =$U$6*(IF(rng_rainfall=1,L40,IF(rng_rainfall=2,O40,R40))) -> 0
D41: Reset Cost | F41: =VLOOKUP(r[0]c3,tbl_fert[[Name]:[Cost]],MATCH("Cost",tbl_fert[#Headers],0),0) | H41: =VLOOKUP(r[0]c3,tbl_fert[[Name]:[Cost]],MATCH("Units",tbl_fert[#Headers],0),0) | I41: Reset Rate | K41: =VLOOKUP(r[0]c3&"Low",CHOOSE({1,2},tbl_fert[Name]&tbl_fert[Rainfall],INDIRECT("tbl_fert["&var_crop&"]")),2,0) | L41: =(J41*E41) -> 0 | N41: =VLOOKUP(r[0]c3&"Medium",CHOOSE({1,2},tbl_fert[Name]&tbl_fert[Rainfall],INDIRECT("tbl_fert["&var_crop&"]")),2,0) | O41: =(M41*E41) -> 0 | Q41: =VLOOKUP(r[0]c3&"High",CHOOSE({1,2},tbl_fert[Name]&tbl_fert[Rainfall],INDIRECT("tbl_fert["&var_crop&"]")),2,0) | R41: =P41*E41 -> 0 | U41: 0
D42: Reset Cost | F42: =VLOOKUP(r[0]c3,tbl_fert[[Name]:[Cost]],MATCH("Cost",tbl_fert[#Headers],0),0) | H42: =VLOOKUP(r[0]c3,tbl_fert[[Name]:[Cost]],MATCH("Units",tbl_fert[#Headers],0),0) | I42: Reset Rate | K42: =VLOOKUP(r[0]c3&"Low",CHOOSE({1,2},tbl_fert[Name]&tbl_fert[Rainfall],INDIRECT("tbl_fert["&var_crop&"]")),2,0) | L42: 0 | N42: =VLOOKUP(r[0]c3&"Medium",CHOOSE({1,2},tbl_fert[Name]&tbl_fert[Rainfall],INDIRECT("tbl_fert["&var_crop&"]")),2,0) | O42: 0 | Q42: =VLOOKUP(r[0]c3&"High",CHOOSE({1,2},tbl_fert[Name]&tbl_fert[Rainfall],INDIRECT("tbl_fert["&var_crop&"]")),2,0) | R42: 0 | U42: 0
D43: Reset Cost | F43: =VLOOKUP(r[0]c3,tbl_fert[[Name]:[Cost]],MATCH("Cost",tbl_fert[#Headers],0),0) | H43: =VLOOKUP(r[0]c3,tbl_fert[[Name]:[Cost]],MATCH("Units",tbl_fert[#Headers],0),0) | I43: Reset Rate | K43: =VLOOKUP(r[0]c3&"Low",CHOOSE({1,2},tbl_fert[Name]&tbl_fert[Rainfall],INDIRECT("tbl_fert["&var_crop&"]")),2,0) | L43: 0 | N43: =VLOOKUP(r[0]c3&"Medium",CHOOSE({1,2},tbl_fert[Name]&tbl_fert[Rainfall],INDIRECT("tbl_fert["&var_crop&"]")),2,0) | O43: 0 | Q43: =VLOOKUP(r[0]c3&"High",CHOOSE({1,2},tbl_fert[Name]&tbl_fert[Rainfall],INDIRECT("tbl_fert["&var_crop&"]")),2,0) | R43: 0 | U43: 0
D44: Reset Cost | F44: =VLOOKUP(r[0]c3,tbl_fert[[Name]:[Cost]],MATCH("Cost",tbl_fert[#Headers],0),0) | H44: =VLOOKUP(r[0]c3,tbl_fert[[Name]:[Cost]],MATCH("Units",tbl_fert[#Headers],0),0) | I44: Reset Rate | K44: =VLOOKUP(r[0]c3&"Low",CHOOSE({1,2},tbl_fert[Name]&tbl_fert[Rainfall],INDIRECT("tbl_fert["&var_crop&"]")),2,0) | L44: 0 | N44: =VLOOKUP(r[0]c3&"Medium",CHOOSE({1,2},tbl_fert[Name]&tbl_fert[Rainfall],INDIRECT("tbl_fert["&var_crop&"]")),2,0) | O44: 0 | Q44: =VLOOKUP(r[0]c3&"High",CHOOSE({1,2},tbl_fert[Name]&tbl_fert[Rainfall],INDIRECT("tbl_fert["&var_crop&"]")),2,0) | R44: 0 | U44: 0
D45: Reset Cost | F45: =VLOOKUP(r[0]c3,tbl_fert[[Name]:[Cost]],MATCH("Cost",tbl_fert[#Headers],0),0) | H45: =VLOOKUP(r[0]c3,tbl_fert[[Name]:[Cost]],MATCH("Units",tbl_fert[#Headers],0),0) | I45: Reset Rate | K45: =VLOOKUP(r[0]c3&"Low",CHOOSE({1,2},tbl_fert[Name]&tbl_fert[Rainfall],INDIRECT("tbl_fert["&var_crop&"]")),2,0) | L45: 0 | N45: =VLOOKUP(r[0]c3&"Medium",CHOOSE({1,2},tbl_fert[Name]&tbl_fert[Rainfall],INDIRECT("tbl_fert["&var_crop&"]")),2,0) | O45: 0 | Q45: =VLOOKUP(r[0]c3&"High",CHOOSE({1,2},tbl_fert[Name]&tbl_fert[Rainfall],INDIRECT("tbl_fert["&var_crop&"]")),2,0) | R45: 0 | U45: 0
D46: Reset Cost | F46: =VLOOKUP(r[0]c3,tbl_fert[[Name]:[Cost]],MATCH("Cost",tbl_fert[#Headers],0),0) | H46: =VLOOKUP(r[0]c3,tbl_fert[[Name]:[Cost]],MATCH("Units",tbl_fert[#Headers],0),0) | I46: Reset Rate | K46: =VLOOKUP(r[0]c3&"Low",CHOOSE({1,2},tbl_fert[Name]&tbl_fert[Rainfall],INDIRECT("tbl_fert["&var_crop&"]")),2,0) | L46: 0 | N46: =VLOOKUP(r[0]c3&"Medium",CHOOSE({1,2},tbl_fert[Name]&tbl_fert[Rainfall],INDIRECT("tbl_fert["&var_crop&"]")),2,0) | O46: 0 | Q46: =VLOOKUP(r[0]c3&"High",CHOOSE({1,2},tbl_fert[Name]&tbl_fert[Rainfall],INDIRECT("tbl_fert["&var_crop&"]")),2,0) | R46: 0 | U46: 0
D47: Reset Cost | F47: =VLOOKUP(r[0]c3,tbl_fert[[Name]:[Cost]],MATCH("Cost",tbl_fert[#Headers],0),0) | H47: =VLOOKUP(r[0]c3,tbl_fert[[Name]:[Cost]],MATCH("Units",tbl_fert[#Headers],0),0) | I47: Reset Rate | K47: =VLOOKUP(r[0]c3&"Low",CHOOSE({1,2},tbl_fert[Name]&tbl_fert[Rainfall],INDIRECT("tbl_fert["&var_crop&"]")),2,0) | L47: 0 | N47: =VLOOKUP(r[0]c3&"Medium",CHOOSE({1,2},tbl_fert[Name]&tbl_fert[Rainfall],INDIRECT("tbl_fert["&var_crop&"]")),2,0) | O47: 0 | Q47: =VLOOKUP(r[0]c3&"High",CHOOSE({1,2},tbl_fert[Name]&tbl_fert[Rainfall],INDIRECT("tbl_fert["&var_crop&"]")),2,0) | R47: 0 | U47: 0
D48: Reset Cost | F48: =VLOOKUP(r[0]c3,tbl_fert[[Name]:[Cost]],MATCH("Cost",tbl_fert[#Headers],0),0) | H48: =VLOOKUP(r[0]c3,tbl_fert[[Name]:[Cost]],MATCH("Units",tbl_fert[#Headers],0),0) | I48: Reset Rate | K48: =VLOOKUP(r[0]c3&"Low",CHOOSE({1,2},tbl_fert[Name]&tbl_fert[Rainfall],INDIRECT("tbl_fert["&var_crop&"]")),2,0) | L48: 0 | N48: =VLOOKUP(r[0]c3&"Medium",CHOOSE({1,2},tbl_fert[Name]&tbl_fert[Rainfall],INDIRECT("tbl_fert["&var_crop&"]")),2,0) | O48: 0 | Q48: =VLOOKUP(r[0]c3&"High",CHOOSE({1,2},tbl_fert[Name]&tbl_fert[Rainfall],INDIRECT("tbl_fert["&var_crop&"]")),2,0) | R48: 0 | U48: 0
D49: Reset Cost | F49: =VLOOKUP(r[0]c3,tbl_fert[[Name]:[Cost]],MATCH("Cost",tbl_fert[#Headers],0),0) | H49: =VLOOKUP(r[0]c3,tbl_fert[[Name]:[Cost]],MATCH("Units",tbl_fert[#Headers],0),0) | I49: Reset Rate | K49: =VLOOKUP(r[0]c3&"Low",CHOOSE({1,2},tbl_fert[Name]&tbl_fert[Rainfall],INDIRECT("tbl_fert["&var_crop&"]")),2,0) | L49: 0 | N49: =VLOOKUP(r[0]c3&"Medium",CHOOSE({1,2},tbl_fert[Name]&tbl_fert[Rainfall],INDIRECT("tbl_fert["&var_crop&"]")),2,0) | O49: 0 | Q49: =VLOOKUP(r[0]c3&"High",CHOOSE({1,2},tbl_fert[Name]&tbl_fert[Rainfall],INDIRECT("tbl_fert["&var_crop&"]")),2,0) | R49: 0 | U49: 0
D50: Reset Cost | F50: =VLOOKUP(r[0]c3,tbl_fert[[Name]:[Cost]],MATCH("Cost",tbl_fert[#Headers],0),0) | H50: =VLOOKUP(r[0]c3,tbl_fert[[Name]:[Cost]],MATCH("Units",tbl_fert[#Headers],0),0) | I50: Reset Rate | K50: =VLOOKUP(r[0]c3&"Low",CHOOSE({1,2},tbl_fert[Name]&tbl_fert[Rainfall],INDIRECT("tbl_fert["&var_crop&"]")),2,0) | L50: 0 | N50: =VLOOKUP(r[0]c3&"Medium",CHOOSE({1,2},tbl_fert[Name]&tbl_fert[Rainfall],INDIRECT("tbl_fert["&var_crop&"]")),2,0) | O50: 0 | Q50: =VLOOKUP(r[0]c3&"High",CHOOSE({1,2},tbl_fert[Name]&tbl_fert[Rainfall],INDIRECT("tbl_fert["&var_crop&"]")),2,0) | R50: 0 | U50: 0
D51: Reset Cost | F51: =VLOOKUP(r[0]c3,tbl_fert[[Name]:[Cost]],MATCH("Cost",tbl_fert[#Headers],0),0) | H51: =VLOOKUP(r[0]c3,tbl_fert[[Name]:[Cost]],MATCH("Units",tbl_fert[#Headers],0),0) | I51: Reset Rate | K51: =VLOOKUP(r[0]c3&"Low",CHOOSE({1,2},tbl_fert[Name]&tbl_fert[Rainfall],INDIRECT("tbl_fert["&var_crop&"]")),2,0) | L51: 0 | N51: =VLOOKUP(r[0]c3&"Medium",CHOOSE({1,2},tbl_fert[Name]&tbl_fert[Rainfall],INDIRECT("tbl_fert["&var_crop&"]")),2,0) | O51: 0 | Q51: =VLOOKUP(r[0]c3&"High",CHOOSE({1,2},tbl_fert[Name]&tbl_fert[Rainfall],INDIRECT("tbl_fert["&var_crop&"]")),2,0) | R51: 0 | U51: 0
D52: Reset Cost | F52: =VLOOKUP(r[0]c3,tbl_fert[[Name]:[Cost]],MATCH("Cost",tbl_fert[#Headers],0),0) | H52: =VLOOKUP(r[0]c3,tbl_fert[[Name]:[Cost]],MATCH("Units",tbl_fert[#Headers],0),0) | I52: Reset Rate | K52: =VLOOKUP(r[0]c3&"Low",CHOOSE({1,2},tbl_fert[Name]&tbl_fert[Rainfall],INDIRECT("tbl_fert["&var_crop&"]")),2,0) | L52: 0 | N52: =VLOOKUP(r[0]c3&"Medium",CHOOSE({1,2},tbl_fert[Name]&tbl_fert[Rainfall],INDIRECT("tbl_fert["&var_crop&"]")),2,0) | O52: 0 | Q52: =VLOOKUP(r[0]c3&"High",CHOOSE({1,2},tbl_fert[Name]&tbl_fert[Rainfall],INDIRECT("tbl_fert["&var_crop&"]")),2,0) | R52: 0 | U52: 0
C57: Herbicides | E57: Cost | G57: Unit | J57: Rate/ha | L57: $/ha | M57: Rate/ha | O57: $/ha | P57: Rate/ha | R57: $/ha | U57: $
C58: Summer Weed Control | G58: Various | I58: Reset $/ha | L58: =var_summer_weed -> 40 | M58: =var_summer_weed | O58: =var_summer_weed -> 40 | P58: =var_summer_weed | R58: =var_summer_weed -> 40 | S58: =var_summer_weed | U58: =$U$6*(IF(rng_rainfall=1,L58,IF(rng_rainfall=2,O58,R58))) -> 0
C59: Herbicides
C60: Trifluralin 480g/L | D60: Reset Cost | E60: =VLOOKUP($C60,tbl_chemicals[[Name]:[Cost]],MATCH("Cost",tbl_chemicals[#Headers],0),0) -> 8 | F60: =VLOOKUP(r[0]c3,tbl_chemicals[[Name]:[Cost]],MATCH("Cost",tbl_chemicals[#Headers],0),0) | G60: =VLOOKUP($C60,tbl_chemicals[[Name]:[Cost]],MATCH("Units",tbl_chemicals[#Headers],0),0) -> litre | H60: =VLOOKUP(r[0]c3,tbl_chemicals[[Name]:[Cost]],MATCH("Units",tbl_chemicals[#Headers],0),0) | I60: Reset Rate | J60: =VLOOKUP($C60&"Low",CHOOSE({1,2},tbl_chemicals[Name]&tbl_chemicals[Rainfall],INDIRECT("tbl_chemicals["&var_crop&"]")),2,0) -> 1.5 | K60: =VLOOKUP(r[0]c3&"Low",CHOOSE({1,2},tbl_chemicals[Name]&tbl_chemicals[Rainfall],INDIRECT("tbl_chemicals["&var_crop&"]")),2,0) | L60: =(J60*$E60)+IFERROR(VLOOKUP($C60,tbl_chemicals[],MATCH("Adjuvant Cost/ha",tbl_chemicals[#Headers],0),0),0)*(J60<>0) -> 12 | M60: =VLOOKUP($C60&"Medium",CHOOSE({1,2},tbl_chemicals[Name]&tbl_chemicals[Rainfall],INDIRECT("tbl_chemicals["&var_crop&"]")),2,0) -> 0 | N60: =VLOOKUP(r[0]c3&"Medium",CHOOSE({1,2},tbl_chemicals[Name]&tbl_chemicals[Rainfall],INDIRECT("tbl_chemicals["&var_crop&"]")),2,0) | O60: =(M60*$E60)+IFERROR(VLOOKUP($C60,tbl_chemicals[],MATCH("Adjuvant Cost/ha",tbl_chemicals[#Headers],0),0),0)*(M60<>0) -> 0 | P60: =VLOOKUP($C60&"High",CHOOSE({1,2},tbl_chemicals[Name]&tbl_chemicals[Rainfall],INDIRECT("tbl_chemicals["&var_crop&"]")),2,0) -> 0 | Q60: =VLOOKUP(r[0]c3&"High",CHOOSE({1,2},tbl_chemicals[Name]&tbl_chemicals[Rainfall],INDIRECT("tbl_chemicals["&var_crop&"]")),2,0) | R60: =(P60*$E60)+IFERROR(VLOOKUP($C60,tbl_chemicals[],MATCH("Adjuvant Cost/ha",tbl_chemicals[#Headers],0),0),0)*(P60<>0) -> 0 | U60: =$U$6*(IF(rng_rainfall=1,L60,IF(rng_rainfall=2,O60,R60))) -> 0
C61: Tri-allate 500g/L | D61: Reset Cost | E61: =VLOOKUP($C61,tbl_chemicals[[Name]:[Cost]],MATCH("Cost",tbl_chemicals[#Headers],0),0) -> 12.8 | F61: =VLOOKUP(r[0]c3,tbl_chemicals[[Name]:[Cost]],MATCH("Cost",tbl_chemicals[#Headers],0),0) | G61: =VLOOKUP($C61,tbl_chemicals[[Name]:[Cost]],MATCH("Units",tbl_chemicals[#Headers],0),0) -> litre | H61: =VLOOKUP(r[0]c3,tbl_chemicals[[Name]:[Cost]],MATCH("Units",tbl_chemicals[#Headers],0),0) | I61: Reset Rate | J61: =VLOOKUP($C61&"Low",CHOOSE({1,2},tbl_chemicals[Name]&tbl_chemicals[Rainfall],INDIRECT("tbl_chemicals["&var_crop&"]")),2,0) -> 1.6 | K61: =VLOOKUP(r[0]c3&"Low",CHOOSE({1,2},tbl_chemicals[Name]&tbl_chemicals[Rainfall],INDIRECT("tbl_chemicals["&var_crop&"]")),2,0) | L61: =(J61*$E61)+IFERROR(VLOOKUP($C61,tbl_chemicals[],MATCH("Adjuvant Cost/ha",tbl_chemicals[#Headers],0),0),0)*(J61<>0) -> 20.48 | M61: =VLOOKUP($C61&"Medium",CHOOSE({1,2},tbl_chemicals[Name]&tbl_chemicals[Rainfall],INDIRECT("tbl_chemicals["&var_crop&"]")),2,0) -> 0 | N61: =VLOOKUP(r[0]c3&"Medium",CHOOSE({1,2},tbl_chemicals[Name]&tbl_chemicals[Rainfall],INDIRECT("tbl_chemicals["&var_crop&"]")),2,0) | O61: =(M61*$E61)+IFERROR(VLOOKUP($C61,tbl_chemicals[],MATCH("Adjuvant Cost/ha",tbl_chemicals[#Headers],0),0),0)*(M61<>0) -> 0 | P61: =VLOOKUP($C61&"High",CHOOSE({1,2},tbl_chemicals[Name]&tbl_chemicals[Rainfall],INDIRECT("tbl_chemicals["&var_crop&"]")),2,0) -> 2 | Q61: =VLOOKUP(r[0]c3&"High",CHOOSE({1,2},tbl_chemicals[Name]&tbl_chemicals[Rainfall],INDIRECT("tbl_chemicals["&var_crop&"]")),2,0) | R61: =(P61*$E61)+IFERROR(VLOOKUP($C61,tbl_chemicals[],MATCH("Adjuvant Cost/ha",tbl_chemicals[#Headers],0),0),0)*(P61<>0) -> 25.6 | U61: 0
C62: Glyphosate 540g/L | D62: Reset Cost | E62: =VLOOKUP($C62,tbl_chemicals[[Name]:[Cost]],MATCH("Cost",tbl_chemicals[#Headers],0),0) -> 15 | F62: =VLOOKUP(r[0]c3,tbl_chemicals[[Name]:[Cost]],MATCH("Cost",tbl_chemicals[#Headers],0),0) | G62: =VLOOKUP($C62,tbl_chemicals[[Name]:[Cost]],MATCH("Units",tbl_chemicals[#Headers],0),0) -> litre | H62: =VLOOKUP(r[0]c3,tbl_chemicals[[Name]:[Cost]],MATCH("Units",tbl_chemicals[#Headers],0),0) | I62: Reset Rate | J62: =VLOOKUP($C62&"Low",CHOOSE({1,2},tbl_chemicals[Name]&tbl_chemicals[Rainfall],INDIRECT("tbl_chemicals["&var_crop&"]")),2,0) -> 1.2 | K62: =VLOOKUP(r[0]c3&"Low",CHOOSE({1,2},tbl_chemicals[Name]&tbl_chemicals[Rainfall],INDIRECT("tbl_chemicals["&var_crop&"]")),2,0) | L62: =(J62*$E62)+IFERROR(VLOOKUP($C62,tbl_chemicals[],MATCH("Adjuvant Cost/ha",tbl_chemicals[#Headers],0),0),0)*(J62<>0) -> 18 | M62: =VLOOKUP($C62&"Medium",CHOOSE({1,2},tbl_chemicals[Name]&tbl_chemicals[Rainfall],INDIRECT("tbl_chemicals["&var_crop&"]")),2,0) -> 1.2 | N62: =VLOOKUP(r[0]c3&"Medium",CHOOSE({1,2},tbl_chemicals[Name]&tbl_chemicals[Rainfall],INDIRECT("tbl_chemicals["&var_crop&"]")),2,0) | O62: =(M62*$E62)+IFERROR(VLOOKUP($C62,tbl_chemicals[],MATCH("Adjuvant Cost/ha",tbl_chemicals[#Headers],0),0),0)*(M62<>0) -> 18 | P62: =VLOOKUP($C62&"High",CHOOSE({1,2},tbl_chemicals[Name]&tbl_chemicals[Rainfall],INDIRECT("tbl_chemicals["&var_crop&"]")),2,0) -> 1.2 | Q62: =VLOOKUP(r[0]c3&"High",CHOOSE({1,2},tbl_chemicals[Name]&tbl_chemicals[Rainfall],INDIRECT("tbl_chemicals["&var_crop&"]")),2,0) | R62: =(P62*$E62)+IFERROR(VLOOKUP($C62,tbl_chemicals[],MATCH("Adjuvant Cost/ha",tbl_chemicals[#Headers],0),0),0)*(P62<>0) -> 18 | U62: 0
C63: Carfentrazone 400g/L (Hammer) | D63: Reset Cost | E63: =VLOOKUP($C63,tbl_chemicals[[Name]:[Cost]],MATCH("Cost",tbl_chemicals[#Headers],0),0) -> 149.5 | F63: =VLOOKUP(r[0]c3,tbl_chemicals[[Name]:[Cost]],MATCH("Cost",tbl_chemicals[#Headers],0),0) | G63: =VLOOKUP($C63,tbl_chemicals[[Name]:[Cost]],MATCH("Units",tbl_chemicals[#Headers],0),0) -> litre | H63: =VLOOKUP(r[0]c3,tbl_chemicals[[Name]:[Cost]],MATCH("Units",tbl_chemicals[#Headers],0),0) | I63: Reset Rate | J63: =VLOOKUP($C63&"Low",CHOOSE({1,2},tbl_chemicals[Name]&tbl_chemicals[Rainfall],INDIRECT("tbl_chemicals["&var_crop&"]")),2,0) -> 0.02 | K63: =VLOOKUP(r[0]c3&"Low",CHOOSE({1,2},tbl_chemicals[Name]&tbl_chemicals[Rainfall],INDIRECT("tbl_chemicals["&var_crop&"]")),2,0) | L63: =(J63*$E63)+IFERROR(VLOOKUP($C63,tbl_chemicals[],MATCH("Adjuvant Cost/ha",tbl_chemicals[#Headers],0),0),0)*(J63<>0) -> 2.99 | M63: =VLOOKUP($C63&"Medium",CHOOSE({1,2},tbl_chemicals[Name]&tbl_chemicals[Rainfall],INDIRECT("tbl_chemicals["&var_crop&"]")),2,0) -> 0.02 | N63: =VLOOKUP(r[0]c3&"Medium",CHOOSE({1,2},tbl_chemicals[Name]&tbl_chemicals[Rainfall],INDIRECT("tbl_chemicals["&var_crop&"]")),2,0) | O63: =(M63*$E63)+IFERROR(VLOOKUP($C63,tbl_chemicals[],MATCH("Adjuvant Cost/ha",tbl_chemicals[#Headers],0),0),0)*(M63<>0) -> 2.99 | P63: =VLOOKUP($C63&"High",CHOOSE({1,2},tbl_chemicals[Name]&tbl_chemicals[Rainfall],INDIRECT("tbl_chemicals["&var_crop&"]")),2,0) -> 0.02 | Q63: =VLOOKUP(r[0]c3&"High",CHOOSE({1,2},tbl_chemicals[Name]&tbl_chemicals[Rainfall],INDIRECT("tbl_chemicals["&var_crop&"]")),2,0) | R63: =(P63*$E63)+IFERROR(VLOOKUP($C63,tbl_chemicals[],MATCH("Adjuvant Cost/ha",tbl_chemicals[#Headers],0),0),0)*(P63<>0) -> 2.99 | U63: 0
C64: Sakura® | D64: Reset Cost | E64: =VLOOKUP($C64,tbl_chemicals[[Name]:[Cost]],MATCH("Cost",tbl_chemicals[#Headers],0),0) -> 357.12 | F64: =VLOOKUP(r[0]c3,tbl_chemicals[[Name]:[Cost]],MATCH("Cost",tbl_chemicals[#Headers],0),0) | G64: =VLOOKUP($C64,tbl_chemicals[[Name]:[Cost]],MATCH("Units",tbl_chemicals[#Headers],0),0) -> kg | H64: =VLOOKUP(r[0]c3,tbl_chemicals[[Name]:[Cost]],MATCH("Units",tbl_chemicals[#Headers],0),0) | I64: Reset Rate | J64: =VLOOKUP($C64&"Low",CHOOSE({1,2},tbl_chemicals[Name]&tbl_chemicals[Rainfall],INDIRECT("tbl_chemicals["&var_crop&"]")),2,0) -> 0 | K64: =VLOOKUP(r[0]c3&"Low",CHOOSE({1,2},tbl_chemicals[Name]&tbl_chemicals[Rainfall],INDIRECT("tbl_chemicals["&var_crop&"]")),2,0) | L64: =(J64*$E64)+IFERROR(VLOOKUP($C64,tbl_chemicals[],MATCH("Adjuvant Cost/ha",tbl_chemicals[#Headers],0),0),0)*(J64<>0) -> 0 | M64: =VLOOKUP($C64&"Medium",CHOOSE({1,2},tbl_chemicals[Name]&tbl_chemicals[Rainfall],INDIRECT("tbl_chemicals["&var_crop&"]")),2,0) -> 0.118 | N64: =VLOOKUP(r[0]c3&"Medium",CHOOSE({1,2},tbl_chemicals[Name]&tbl_chemicals[Rainfall],INDIRECT("tbl_chemicals["&var_crop&"]")),2,0) | O64: =(M64*$E64)+IFERROR(VLOOKUP($C64,tbl_chemicals[],MATCH("Adjuvant Cost/ha",tbl_chemicals[#Headers],0),0),0)*(M64<>0) -> 42.14016 | P64: =VLOOKUP($C64&"High",CHOOSE({1,2},tbl_chemicals[Name]&tbl_chemicals[Rainfall],INDIRECT("tbl_chemicals["&var_crop&"]")),2,0) -> 0.118 | Q64: =VLOOKUP(r[0]c3&"High",CHOOSE({1,2},tbl_chemicals[Name]&tbl_chemicals[Rainfall],INDIRECT("tbl_chemicals["&var_crop&"]")),2,0) | R64: =(P64*$E64)+IFERROR(VLOOKUP($C64,tbl_chemicals[],MATCH("Adjuvant Cost/ha",tbl_chemicals[#Headers],0),0),0)*(P64<>0) -> 42.14016 | U64: 0
C65: Topik® EC | D65: Reset Cost | E65: =VLOOKUP($C65,tbl_chemicals[[Name]:[Cost]],MATCH("Cost",tbl_chemicals[#Headers],0),0) -> 34 | F65: =VLOOKUP(r[0]c3,tbl_chemicals[[Name]:[Cost]],MATCH("Cost",tbl_chemicals[#Headers],0),0) | G65: =VLOOKUP($C65,tbl_chemicals[[Name]:[Cost]],MATCH("Units",tbl_chemicals[#Headers],0),0) -> litre | H65: =VLOOKUP(r[0]c3,tbl_chemicals[[Name]:[Cost]],MATCH("Units",tbl_chemicals[#Headers],0),0) | I65: Reset Rate | J65: =VLOOKUP($C65&"Low",CHOOSE({1,2},tbl_chemicals[Name]&tbl_chemicals[Rainfall],INDIRECT("tbl_chemicals["&var_crop&"]")),2,0) -> 0 | K65: =VLOOKUP(r[0]c3&"Low",CHOOSE({1,2},tbl_chemicals[Name]&tbl_chemicals[Rainfall],INDIRECT("tbl_chemicals["&var_crop&"]")),2,0) | L65: =(J65*$E65)+IFERROR(VLOOKUP($C65,tbl_chemicals[],MATCH("Adjuvant Cost/ha",tbl_chemicals[#Headers],0),0),0)*(J65<>0) -> 0 | M65: =VLOOKUP($C65&"Medium",CHOOSE({1,2},tbl_chemicals[Name]&tbl_chemicals[Rainfall],INDIRECT("tbl_chemicals["&var_crop&"]")),2,0) -> 0.085 | N65: =VLOOKUP(r[0]c3&"Medium",CHOOSE({1,2},tbl_chemicals[Name]&tbl_chemicals[Rainfall],INDIRECT("tbl_chemicals["&var_crop&"]")),2,0) | O65: =(M65*$E65)+IFERROR(VLOOKUP($C65,tbl_chemicals[],MATCH("Adjuvant Cost/ha",tbl_chemicals[#Headers],0),0),0)*(M65<>0) -> 6.54625 | P65: =VLOOKUP($C65&"High",CHOOSE({1,2},tbl_chemicals[Name]&tbl_chemicals[Rainfall],INDIRECT("tbl_chemicals["&var_crop&"]")),2,0) -> 0.085 | Q65: =VLOOKUP(r[0]c3&"High",CHOOSE({1,2},tbl_chemicals[Name]&tbl_chemicals[Rainfall],INDIRECT("tbl_chemicals["&var_crop&"]")),2,0) | R65: =(P65*$E65)+IFERROR(VLOOKUP($C65,tbl_chemicals[],MATCH("Adjuvant Cost/ha",tbl_chemicals[#Headers],0),0),0)*(P65<>0) -> 6.54625 | U65: 0
C66: M.C.P.A. LVE | D66: Reset Cost | E66: =VLOOKUP($C66,tbl_chemicals[[Name]:[Cost]],MATCH("Cost",tbl_chemicals[#Headers],0),0) -> 15.3 | F66: =VLOOKUP(r[0]c3,tbl_chemicals[[Name]:[Cost]],MATCH("Cost",tbl_chemicals[#Headers],0),0) | G66: =VLOOKUP($C66,tbl_chemicals[[Name]:[Cost]],MATCH("Units",tbl_chemicals[#Headers],0),0) -> litre | H66: =VLOOKUP(r[0]c3,tbl_chemicals[[Name]:[Cost]],MATCH("Units",tbl_chemicals[#Headers],0),0) | I66: Reset Rate | J66: =VLOOKUP($C66&"Low",CHOOSE({1,2},tbl_chemicals[Name]&tbl_chemicals[Rainfall],INDIRECT("tbl_chemicals["&var_crop&"]")),2,0) -> 0.5 | K66: =VLOOKUP(r[0]c3&"Low",CHOOSE({1,2},tbl_chemicals[Name]&tbl_chemicals[Rainfall],INDIRECT("tbl_chemicals["&var_crop&"]")),2,0) | L66: =(J66*$E66)+IFERROR(VLOOKUP($C66,tbl_chemicals[],MATCH("Adjuvant Cost/ha",tbl_chemicals[#Headers],0),0),0)*(J66<>0) -> 7.65 | M66: =VLOOKUP($C66&"Medium",CHOOSE({1,2},tbl_chemicals[Name]&tbl_chemicals[Rainfall],INDIRECT("tbl_chemicals["&var_crop&"]")),2,0) -> 0.5 | N66: =VLOOKUP(r[0]c3&"Medium",CHOOSE({1,2},tbl_chemicals[Name]&tbl_chemicals[Rainfall],INDIRECT("tbl_chemicals["&var_crop&"]")),2,0) | O66: =(M66*$E66)+IFERROR(VLOOKUP($C66,tbl_chemicals[],MATCH("Adjuvant Cost/ha",tbl_chemicals[#Headers],0),0),0)*(M66<>0) -> 7.65 | P66: =VLOOKUP($C66&"High",CHOOSE({1,2},tbl_chemicals[Name]&tbl_chemicals[Rainfall],INDIRECT("tbl_chemicals["&var_crop&"]")),2,0) -> 0.5 | Q66: =VLOOKUP(r[0]c3&"High",CHOOSE({1,2},tbl_chemicals[Name]&tbl_chemicals[Rainfall],INDIRECT("tbl_chemicals["&var_crop&"]")),2,0) | R66: =(P66*$E66)+IFERROR(VLOOKUP($C66,tbl_chemicals[],MATCH("Adjuvant Cost/ha",tbl_chemicals[#Headers],0),0),0)*(P66<>0) -> 7.65 | U66: 0
C67: Metsulfuron methyl | D67: Reset Cost | E67: =VLOOKUP($C67,tbl_chemicals[[Name]:[Cost]],MATCH("Cost",tbl_chemicals[#Headers],0),0) -> 0.07 | F67: =VLOOKUP(r[0]c3,tbl_chemicals[[Name]:[Cost]],MATCH("Cost",tbl_chemicals[#Headers],0),0) | G67: =VLOOKUP($C67,tbl_chemicals[[Name]:[Cost]],MATCH("Units",tbl_chemicals[#Headers],0),0) -> gram | H67: =VLOOKUP(r[0]c3,tbl_chemicals[[Name]:[Cost]],MATCH("Units",tbl_chemicals[#Headers],0),0) | I67: Reset Rate | J67: =VLOOKUP($C67&"Low",CHOOSE({1,2},tbl_chemicals[Name]&tbl_chemicals[Rainfall],INDIRECT("tbl_chemicals["&var_crop&"]")),2,0) -> 5 | K67: =VLOOKUP(r[0]c3&"Low",CHOOSE({1,2},tbl_chemicals[Name]&tbl_chemicals[Rainfall],INDIRECT("tbl_chemicals["&var_crop&"]")),2,0) | L67: =(J67*$E67)+IFERROR(VLOOKUP($C67,tbl_chemicals[],MATCH("Adjuvant Cost/ha",tbl_chemicals[#Headers],0),0),0)*(J67<>0) -> 0.4175 | M67: =VLOOKUP($C67&"Medium",CHOOSE({1,2},tbl_chemicals[Name]&tbl_chemicals[Rainfall],INDIRECT("tbl_chemicals["&var_crop&"]")),2,0) -> 0 | N67: =VLOOKUP(r[0]c3&"Medium",CHOOSE({1,2},tbl_chemicals[Name]&tbl_chemicals[Rainfall],INDIRECT("tbl_chemicals["&var_crop&"]")),2,0) | O67: =(M67*$E67)+IFERROR(VLOOKUP($C67,tbl_chemicals[],MATCH("Adjuvant Cost/ha",tbl_chemicals[#Headers],0),0),0)*(M67<>0) -> 0 | P67: =VLOOKUP($C67&"High",CHOOSE({1,2},tbl_chemicals[Name]&tbl_chemicals[Rainfall],INDIRECT("tbl_chemicals["&var_crop&"]")),2,0) -> 0 | Q67: =VLOOKUP(r[0]c3&"High",CHOOSE({1,2},tbl_chemicals[Name]&tbl_chemicals[Rainfall],INDIRECT("tbl_chemicals["&var_crop&"]")),2,0) | R67: =(P67*$E67)+IFERROR(VLOOKUP($C67,tbl_chemicals[],MATCH("Adjuvant Cost/ha",tbl_chemicals[#Headers],0),0),0)*(P67<>0) -> 0 | U67: 0
C68: Clopyralid 300g/L (Lontrel® Advanced) | D68: Reset Cost | E68: =VLOOKUP($C68,tbl_chemicals[[Name]:[Cost]],MATCH("Cost",tbl_chemicals[#Headers],0),0) -> 42 | F68: =VLOOKUP(r[0]c3,tbl_chemicals[[Name]:[Cost]],MATCH("Cost",tbl_chemicals[#Headers],0),0) | G68: =VLOOKUP($C68,tbl_chemicals[[Name]:[Cost]],MATCH("Units",tbl_chemicals[#Headers],0),0) -> litre | H68: =VLOOKUP(r[0]c3,tbl_chemicals[[Name]:[Cost]],MATCH("Units",tbl_chemicals[#Headers],0),0) | I68: Reset Rate | J68: =VLOOKUP($C68&"Low",CHOOSE({1,2},tbl_chemicals[Name]&tbl_chemicals[Rainfall],INDIRECT("tbl_chemicals["&var_crop&"]")),2,0) -> 0.075 | K68: =VLOOKUP(r[0]c3&"Low",CHOOSE({1,2},tbl_chemicals[Name]&tbl_chemicals[Rainfall],INDIRECT("tbl_chemicals["&var_crop&"]")),2,0) | L68: =(J68*$E68)+IFERROR(VLOOKUP($C68,tbl_chemicals[],MATCH("Adjuvant Cost/ha",tbl_chemicals[#Headers],0),0),0)*(J68<>0) -> 3.15 | M68: =VLOOKUP($C68&"Medium",CHOOSE({1,2},tbl_chemicals[Name]&tbl_chemicals[Rainfall],INDIRECT("tbl_chemicals["&var_crop&"]")),2,0) -> 0 | N68: =VLOOKUP(r[0]c3&"Medium",CHOOSE({1,2},tbl_chemicals[Name]&tbl_chemicals[Rainfall],INDIRECT("tbl_chemicals["&var_crop&"]")),2,0) | O68: =(M68*$E68)+IFERROR(VLOOKUP($C68,tbl_chemicals[],MATCH("Adjuvant Cost/ha",tbl_chemicals[#Headers],0),0),0)*(M68<>0) -> 0 | P68: =VLOOKUP($C68&"High",CHOOSE({1,2},tbl_chemicals[Name]&tbl_chemicals[Rainfall],INDIRECT("tbl_chemicals["&var_crop&"]")),2,0) -> 0 | Q68: =VLOOKUP(r[0]c3&"High",CHOOSE({1,2},tbl_chemicals[Name]&tbl_chemicals[Rainfall],INDIRECT("tbl_chemicals["&var_crop&"]")),2,0) | R68: =(P68*$E68)+IFERROR(VLOOKUP($C68,tbl_chemicals[],MATCH("Adjuvant Cost/ha",tbl_chemicals[#Headers],0),0),0)*(P68<>0) -> 0 | U68: 0
C69: Paradigm® | D69: Reset Cost | E69: =VLOOKUP($C69,tbl_chemicals[[Name]:[Cost]],MATCH("Cost",tbl_chemicals[#Headers],0),0) -> 0.52 | F69: =VLOOKUP(r[0]c3,tbl_chemicals[[Name]:[Cost]],MATCH("Cost",tbl_chemicals[#Headers],0),0) | G69: =VLOOKUP($C69,tbl_chemicals[[Name]:[Cost]],MATCH("Units",tbl_chemicals[#Headers],0),0) -> gram | H69: =VLOOKUP(r[0]c3,tbl_chemicals[[Name]:[Cost]],MATCH("Units",tbl_chemicals[#Headers],0),0) | I69: Reset Rate | J69: =VLOOKUP($C69&"Low",CHOOSE({1,2},tbl_chemicals[Name]&tbl_chemicals[Rainfall],INDIRECT("tbl_chemicals["&var_crop&"]")),2,0) -> 0 | K69: =VLOOKUP(r[0]c3&"Low",CHOOSE({1,2},tbl_chemicals[Name]&tbl_chemicals[Rainfall],INDIRECT("tbl_chemicals["&var_crop&"]")),2,0) | L69: =(J69*$E69)+IFERROR(VLOOKUP($C69,tbl_chemicals[],MATCH("Adjuvant Cost/ha",tbl_chemicals[#Headers],0),0),0)*(J69<>0) -> 0 | M69: =VLOOKUP($C69&"Medium",CHOOSE({1,2},tbl_chemicals[Name]&tbl_chemicals[Rainfall],INDIRECT("tbl_chemicals["&var_crop&"]")),2,0) -> 25 | N69: =VLOOKUP(r[0]c3&"Medium",CHOOSE({1,2},tbl_chemicals[Name]&tbl_chemicals[Rainfall],INDIRECT("tbl_chemicals["&var_crop&"]")),2,0) | O69: =(M69*$E69)+IFERROR(VLOOKUP($C69,tbl_chemicals[],MATCH("Adjuvant Cost/ha",tbl_chemicals[#Headers],0),0),0)*(M69<>0) -> 16.65625 | P69: =VLOOKUP($C69&"High",CHOOSE({1,2},tbl_chemicals[Name]&tbl_chemicals[Rainfall],INDIRECT("tbl_chemicals["&var_crop&"]")),2,0) -> 25 | Q69: =VLOOKUP(r[0]c3&"High",CHOOSE({1,2},tbl_chemicals[Name]&tbl_chemicals[Rainfall],INDIRECT("tbl_chemicals["&var_crop&"]")),2,0) | R69: =(P69*$E69)+IFERROR(VLOOKUP($C69,tbl_chemicals[],MATCH("Adjuvant Cost/ha",tbl_chemicals[#Headers],0),0),0)*(P69<>0) -> 16.65625 | U69: 0
D70: Reset Cost | F70: =VLOOKUP(r[0]c3,tbl_chemicals[[Name]:[Cost]],MATCH("Cost",tbl_chemicals[#Headers],0),0) | H70: =VLOOKUP(r[0]c3,tbl_chemicals[[Name]:[Cost]],MATCH("Units",tbl_chemicals[#Headers],0),0) | I70: Reset Rate | K70: =VLOOKUP(r[0]c3&"Low",CHOOSE({1,2},tbl_chemicals[Name]&tbl_chemicals[Rainfall],INDIRECT("tbl_chemicals["&var_crop&"]")),2,0) | L70: =(J70*$E70)+IFERROR(VLOOKUP($C70,tbl_chemicals[],MATCH("Adjuvant Cost/ha",tbl_chemicals[#Headers],0),0),0)*(J70<>0) -> 0 | N70: =VLOOKUP(r[0]c3&"Medium",CHOOSE({1,2},tbl_chemicals[Name]&tbl_chemicals[Rainfall],INDIRECT("tbl_chemicals["&var_crop&"]")),2,0) | O70: =(M70*$E70)+IFERROR(VLOOKUP($C70,tbl_chemicals[],MATCH("Adjuvant Cost/ha",tbl_chemicals[#Headers],0),0),0)*(M70<>0) -> 0 | Q70: =VLOOKUP(r[0]c3&"High",CHOOSE({1,2},tbl_chemicals[Name]&tbl_chemicals[Rainfall],INDIRECT("tbl_chemicals["&var_crop&"]")),2,0) | R70: =(P70*$E70)+IFERROR(VLOOKUP($C70,tbl_chemicals[],MATCH("Adjuvant Cost/ha",tbl_chemicals[#Headers],0),0),0)*(P70<>0) -> 0 | U70: 0
D71: Reset Cost | F71: =VLOOKUP(r[0]c3,tbl_chemicals[[Name]:[Cost]],MATCH("Cost",tbl_chemicals[#Headers],0),0) | H71: =VLOOKUP(r[0]c3,tbl_chemicals[[Name]:[Cost]],MATCH("Units",tbl_chemicals[#Headers],0),0) | I71: Reset Rate | K71: =VLOOKUP(r[0]c3&"Low",CHOOSE({1,2},tbl_chemicals[Name]&tbl_chemicals[Rainfall],INDIRECT("tbl_chemicals["&var_crop&"]")),2,0) | L71: =(J71*$E71)+IFERROR(VLOOKUP($C71,tbl_chemicals[],MATCH("Adjuvant Cost/ha",tbl_chemicals[#Headers],0),0),0)*(J71<>0) -> 0 | N71: =VLOOKUP(r[0]c3&"Medium",CHOOSE({1,2},tbl_chemicals[Name]&tbl_chemicals[Rainfall],INDIRECT("tbl_chemicals["&var_crop&"]")),2,0) | O71: =(M71*$E71)+IFERROR(VLOOKUP($C71,tbl_chemicals[],MATCH("Adjuvant Cost/ha",tbl_chemicals[#Headers],0),0),0)*(M71<>0) -> 0 | Q71: =VLOOKUP(r[0]c3&"High",CHOOSE({1,2},tbl_chemicals[Name]&tbl_chemicals[Rainfall],INDIRECT("tbl_chemicals["&var_crop&"]")),2,0) | R71: =(P71*$E71)+IFERROR(VLOOKUP($C71,tbl_chemicals[],MATCH("Adjuvant Cost/ha",tbl_chemicals[#Headers],0),0),0)*(P71<>0) -> 0 | U71: 0
D72: Reset Cost | F72: =VLOOKUP(r[0]c3,tbl_chemicals[[Name]:[Cost]],MATCH("Cost",tbl_chemicals[#Headers],0),0) | H72: =VLOOKUP(r[0]c3,tbl_chemicals[[Name]:[Cost]],MATCH("Units",tbl_chemicals[#Headers],0),0) | I72: Reset Rate | K72: =VLOOKUP(r[0]c3&"Low",CHOOSE({1,2},tbl_chemicals[Name]&tbl_chemicals[Rainfall],INDIRECT("tbl_chemicals["&var_crop&"]")),2,0) | L72: =(J72*$E72)+IFERROR(VLOOKUP($C72,tbl_chemicals[],MATCH("Adjuvant Cost/ha",tbl_chemicals[#Headers],0),0),0)*(J72<>0) -> 0 | N72: =VLOOKUP(r[0]c3&"Medium",CHOOSE({1,2},tbl_chemicals[Name]&tbl_chemicals[Rainfall],INDIRECT("tbl_chemicals["&var_crop&"]")),2,0) | O72: =(M72*$E72)+IFERROR(VLOOKUP($C72,tbl_chemicals[],MATCH("Adjuvant Cost/ha",tbl_chemicals[#Headers],0),0),0)*(M72<>0) -> 0 | Q72: =VLOOKUP(r[0]c3&"High",CHOOSE({1,2},tbl_chemicals[Name]&tbl_chemicals[Rainfall],INDIRECT("tbl_chemicals["&var_crop&"]")),2,0) | R72: =(P72*$E72)+IFERROR(VLOOKUP($C72,tbl_chemicals[],MATCH("Adjuvant Cost/ha",tbl_chemicals[#Headers],0),0),0)*(P72<>0) -> 0 | U72: 0
D73: Reset Cost | F73: =VLOOKUP(r[0]c3,tbl_chemicals[[Name]:[Cost]],MATCH("Cost",tbl_chemicals[#Headers],0),0) | H73: =VLOOKUP(r[0]c3,tbl_chemicals[[Name]:[Cost]],MATCH("Units",tbl_chemicals[#Headers],0),0) | I73: Reset Rate | K73: =VLOOKUP(r[0]c3&"Low",CHOOSE({1,2},tbl_chemicals[Name]&tbl_chemicals[Rainfall],INDIRECT("tbl_chemicals["&var_crop&"]")),2,0) | L73: =(J73*$E73)+IFERROR(VLOOKUP($C73,tbl_chemicals[],MATCH("Adjuvant Cost/ha",tbl_chemicals[#Headers],0),0),0)*(J73<>0) -> 0 | N73: =VLOOKUP(r[0]c3&"Medium",CHOOSE({1,2},tbl_chemicals[Name]&tbl_chemicals[Rainfall],INDIRECT("tbl_chemicals["&var_crop&"]")),2,0) | O73: =(M73*$E73)+IFERROR(VLOOKUP($C73,tbl_chemicals[],MATCH("Adjuvant Cost/ha",tbl_chemicals[#Headers],0),0),0)*(M73<>0) -> 0 | Q73: =VLOOKUP(r[0]c3&"High",CHOOSE({1,2},tbl_chemicals[Name]&tbl_chemicals[Rainfall],INDIRECT("tbl_chemicals["&var_crop&"]")),2,0) | R73: =(P73*$E73)+IFERROR(VLOOKUP($C73,tbl_chemicals[],MATCH("Adjuvant Cost/ha",tbl_chemicals[#Headers],0),0),0)*(P73<>0) -> 0 | U73: 0
D74: Reset Cost | F74: =VLOOKUP(r[0]c3,tbl_chemicals[[Name]:[Cost]],MATCH("Cost",tbl_chemicals[#Headers],0),0) | H74: =VLOOKUP(r[0]c3,tbl_chemicals[[Name]:[Cost]],MATCH("Units",tbl_chemicals[#Headers],0),0) | I74: Reset Rate | K74: =VLOOKUP(r[0]c3&"Low",CHOOSE({1,2},tbl_chemicals[Name]&tbl_chemicals[Rainfall],INDIRECT("tbl_chemicals["&var_crop&"]")),2,0) | L74: =(J74*$E74)+IFERROR(VLOOKUP($C74,tbl_chemicals[],MATCH("Adjuvant Cost/ha",tbl_chemicals[#Headers],0),0),0)*(J74<>0) -> 0 | N74: =VLOOKUP(r[0]c3&"Medium",CHOOSE({1,2},tbl_chemicals[Name]&tbl_chemicals[Rainfall],INDIRECT("tbl_chemicals["&var_crop&"]")),2,0) | O74: =(M74*$E74)+IFERROR(VLOOKUP($C74,tbl_chemicals[],MATCH("Adjuvant Cost/ha",tbl_chemicals[#Headers],0),0),0)*(M74<>0) -> 0 | Q74: =VLOOKUP(r[0]c3&"High",CHOOSE({1,2},tbl_chemicals[Name]&tbl_chemicals[Rainfall],INDIRECT("tbl_chemicals["&var_crop&"]")),2,0) | R74: =(P74*$E74)+IFERROR(VLOOKUP($C74,tbl_chemicals[],MATCH("Adjuvant Cost/ha",tbl_chemicals[#Headers],0),0),0)*(P74<>0) -> 0 | U74: 0
D75: Reset Cost | F75: =VLOOKUP(r[0]c3,tbl_chemicals[[Name]:[Cost]],MATCH("Cost",tbl_chemicals[#Headers],0),0) | H75: =VLOOKUP(r[0]c3,tbl_chemicals[[Name]:[Cost]],MATCH("Units",tbl_chemicals[#Headers],0),0) | I75: Reset Rate | K75: =VLOOKUP(r[0]c3&"Low",CHOOSE({1,2},tbl_chemicals[Name]&tbl_chemicals[Rainfall],INDIRECT("tbl_chemicals["&var_crop&"]")),2,0) | L75: =(J75*$E75)+IFERROR(VLOOKUP($C75,tbl_chemicals[],MATCH("Adjuvant Cost/ha",tbl_chemicals[#Headers],0),0),0)*(J75<>0) -> 0 | N75: =VLOOKUP(r[0]c3&"Medium",CHOOSE({1,2},tbl_chemicals[Name]&tbl_chemicals[Rainfall],INDIRECT("tbl_chemicals["&var_crop&"]")),2,0) | O75: =(M75*$E75)+IFERROR(VLOOKUP($C75,tbl_chemicals[],MATCH("Adjuvant Cost/ha",tbl_chemicals[#Headers],0),0),0)*(M75<>0) -> 0 | Q75: =VLOOKUP(r[0]c3&"High",CHOOSE({1,2},tbl_chemicals[Name]&tbl_chemicals[Rainfall],INDIRECT("tbl_chemicals["&var_crop&"]")),2,0) | R75: =(P75*$E75)+IFERROR(VLOOKUP($C75,tbl_chemicals[],MATCH("Adjuvant Cost/ha",tbl_chemicals[#Headers],0),0),0)*(P75<>0) -> 0 | U75: =$U$6*(IF(rng_rainfall=1,L75,IF(rng_rainfall=2,O75,R75))) -> 0
D76: Reset Cost | F76: =VLOOKUP(r[0]c3,tbl_chemicals[[Name]:[Cost]],MATCH("Cost",tbl_chemicals[#Headers],0),0) | H76: =VLOOKUP(r[0]c3,tbl_chemicals[[Name]:[Cost]],MATCH("Units",tbl_chemicals[#Headers],0),0) | I76: Reset Rate | K76: =VLOOKUP(r[0]c3&"Low",CHOOSE({1,2},tbl_chemicals[Name]&tbl_chemicals[Rainfall],INDIRECT("tbl_chemicals["&var_crop&"]")),2,0) | L76: =(J76*$E76)+IFERROR(VLOOKUP($C76,tbl_chemicals[],MATCH("Adjuvant Cost/ha",tbl_chemicals[#Headers],0),0),0)*(J76<>0) -> 0 | N76: =VLOOKUP(r[0]c3&"Medium",CHOOSE({1,2},tbl_chemicals[Name]&tbl_chemicals[Rainfall],INDIRECT("tbl_chemicals["&var_crop&"]")),2,0) | O76: =(M76*$E76)+IFERROR(VLOOKUP($C76,tbl_chemicals[],MATCH("Adjuvant Cost/ha",tbl_chemicals[#Headers],0),0),0)*(M76<>0) -> 0 | Q76: =VLOOKUP(r[0]c3&"High",CHOOSE({1,2},tbl_chemicals[Name]&tbl_chemicals[Rainfall],INDIRECT("tbl_chemicals["&var_crop&"]")),2,0) | R76: =(P76*$E76)+IFERROR(VLOOKUP($C76,tbl_chemicals[],MATCH("Adjuvant Cost/ha",tbl_chemicals[#Headers],0),0),0)*(P76<>0) -> 0 | U76: 0
D77: Reset Cost | F77: =VLOOKUP(r[0]c3,tbl_chemicals[[Name]:[Cost]],MATCH("Cost",tbl_chemicals[#Headers],0),0) | H77: =VLOOKUP(r[0]c3,tbl_chemicals[[Name]:[Cost]],MATCH("Units",tbl_chemicals[#Headers],0),0) | I77: Reset Rate | K77: =VLOOKUP(r[0]c3&"Low",CHOOSE({1,2},tbl_chemicals[Name]&tbl_chemicals[Rainfall],INDIRECT("tbl_chemicals["&var_crop&"]")),2,0) | L77: =(J77*$E77)+IFERROR(VLOOKUP($C77,tbl_chemicals[],MATCH("Adjuvant Cost/ha",tbl_chemicals[#Headers],0),0),0)*(J77<>0) -> 0 | N77: =VLOOKUP(r[0]c3&"Medium",CHOOSE({1,2},tbl_chemicals[Name]&tbl_chemicals[Rainfall],INDIRECT("tbl_chemicals["&var_crop&"]")),2,0) | O77: =(M77*$E77)+IFERROR(VLOOKUP($C77,tbl_chemicals[],MATCH("Adjuvant Cost/ha",tbl_chemicals[#Headers],0),0),0)*(M77<>0) -> 0 | Q77: =VLOOKUP(r[0]c3&"High",CHOOSE({1,2},tbl_chemicals[Name]&tbl_chemicals[Rainfall],INDIRECT("tbl_chemicals["&var_crop&"]")),2,0) | R77: =(P77*$E77)+IFERROR(VLOOKUP($C77,tbl_chemicals[],MATCH("Adjuvant Cost/ha",tbl_chemicals[#Headers],0),0),0)*(P77<>0) -> 0 | U77: 0
D78: Reset Cost | F78: =VLOOKUP(r[0]c3,tbl_chemicals[[Name]:[Cost]],MATCH("Cost",tbl_chemicals[#Headers],0),0) | H78: =VLOOKUP(r[0]c3,tbl_chemicals[[Name]:[Cost]],MATCH("Units",tbl_chemicals[#Headers],0),0) | I78: Reset Rate | K78: =VLOOKUP(r[0]c3&"Low",CHOOSE({1,2},tbl_chemicals[Name]&tbl_chemicals[Rainfall],INDIRECT("tbl_chemicals["&var_crop&"]")),2,0) | L78: =(J78*$E78)+IFERROR(VLOOKUP($C78,tbl_chemicals[],MATCH("Adjuvant Cost/ha",tbl_chemicals[#Headers],0),0),0)*(J78<>0) -> 0 | N78: =VLOOKUP(r[0]c3&"Medium",CHOOSE({1,2},tbl_chemicals[Name]&tbl_chemicals[Rainfall],INDIRECT("tbl_chemicals["&var_crop&"]")),2,0) | O78: =(M78*$E78)+IFERROR(VLOOKUP($C78,tbl_chemicals[],MATCH("Adjuvant Cost/ha",tbl_chemicals[#Headers],0),0),0)*(M78<>0) -> 0 | Q78: =VLOOKUP(r[0]c3&"High",CHOOSE({1,2},tbl_chemicals[Name]&tbl_chemicals[Rainfall],INDIRECT("tbl_chemicals["&var_crop&"]")),2,0) | R78: =(P78*$E78)+IFERROR(VLOOKUP($C78,tbl_chemicals[],MATCH("Adjuvant Cost/ha",tbl_chemicals[#Headers],0),0),0)*(P78<>0) -> 0 | U78: 0
D79: Reset Cost | F79: =VLOOKUP(r[0]c3,tbl_chemicals[[Name]:[Cost]],MATCH("Cost",tbl_chemicals[#Headers],0),0) | H79: =VLOOKUP(r[0]c3,tbl_chemicals[[Name]:[Cost]],MATCH("Units",tbl_chemicals[#Headers],0),0) | I79: Reset Rate | K79: =VLOOKUP(r[0]c3&"Low",CHOOSE({1,2},tbl_chemicals[Name]&tbl_chemicals[Rainfall],INDIRECT("tbl_chemicals["&var_crop&"]")),2,0) | L79: =(J79*$E79)+IFERROR(VLOOKUP($C79,tbl_chemicals[],MATCH("Adjuvant Cost/ha",tbl_chemicals[#Headers],0),0),0)*(J79<>0) -> 0 | N79: =VLOOKUP(r[0]c3&"Medium",CHOOSE({1,2},tbl_chemicals[Name]&tbl_chemicals[Rainfall],INDIRECT("tbl_chemicals["&var_crop&"]")),2,0) | O79: =(M79*$E79)+IFERROR(VLOOKUP($C79,tbl_chemicals[],MATCH("Adjuvant Cost/ha",tbl_chemicals[#Headers],0),0),0)*(M79<>0) -> 0 | Q79: =VLOOKUP(r[0]c3&"High",CHOOSE({1,2},tbl_chemicals[Name]&tbl_chemicals[Rainfall],INDIRECT("tbl_chemicals["&var_crop&"]")),2,0) | R79: =(P79*$E79)+IFERROR(VLOOKUP($C79,tbl_chemicals[],MATCH("Adjuvant Cost/ha",tbl_chemicals[#Headers],0),0),0)*(P79<>0) -> 0 | U79: 0
D80: Reset Cost | F80: =VLOOKUP(r[0]c3,tbl_chemicals[[Name]:[Cost]],MATCH("Cost",tbl_chemicals[#Headers],0),0) | H80: =VLOOKUP(r[0]c3,tbl_chemicals[[Name]:[Cost]],MATCH("Units",tbl_chemicals[#Headers],0),0) | I80: Reset Rate | K80: =VLOOKUP(r[0]c3&"Low",CHOOSE({1,2},tbl_chemicals[Name]&tbl_chemicals[Rainfall],INDIRECT("tbl_chemicals["&var_crop&"]")),2,0) | L80: =(J80*$E80)+IFERROR(VLOOKUP($C80,tbl_chemicals[],MATCH("Adjuvant Cost/ha",tbl_chemicals[#Headers],0),0),0)*(J80<>0) -> 0 | N80: =VLOOKUP(r[0]c3&"Medium",CHOOSE({1,2},tbl_chemicals[Name]&tbl_chemicals[Rainfall],INDIRECT("tbl_chemicals["&var_crop&"]")),2,0) | O80: =(M80*$E80)+IFERROR(VLOOKUP($C80,tbl_chemicals[],MATCH("Adjuvant Cost/ha",tbl_chemicals[#Headers],0),0),0)*(M80<>0) -> 0 | Q80: =VLOOKUP(r[0]c3&"High",CHOOSE({1,2},tbl_chemicals[Name]&tbl_chemicals[Rainfall],INDIRECT("tbl_chemicals["&var_crop&"]")),2,0) | R80: =(P80*$E80)+IFERROR(VLOOKUP($C80,tbl_chemicals[],MATCH("Adjuvant Cost/ha",tbl_chemicals[#Headers],0),0),0)*(P80<>0) -> 0 | U80: 0
D81: Reset Cost | F81: =VLOOKUP(r[0]c3,tbl_chemicals[[Name]:[Cost]],MATCH("Cost",tbl_chemicals[#Headers],0),0) | H81: =VLOOKUP(r[0]c3,tbl_chemicals[[Name]:[Cost]],MATCH("Units",tbl_chemicals[#Headers],0),0) | I81: Reset Rate | K81: =VLOOKUP(r[0]c3&"Low",CHOOSE({1,2},tbl_chemicals[Name]&tbl_chemicals[Rainfall],INDIRECT("tbl_chemicals["&var_crop&"]")),2,0) | L81: =(J81*$E81)+IFERROR(VLOOKUP($C81,tbl_chemicals[],MATCH("Adjuvant Cost/ha",tbl_chemicals[#Headers],0),0),0)*(J81<>0) -> 0 | N81: =VLOOKUP(r[0]c3&"Medium",CHOOSE({1,2},tbl_chemicals[Name]&tbl_chemicals[Rainfall],INDIRECT("tbl_chemicals["&var_crop&"]")),2,0) | O81: =(M81*$E81)+IFERROR(VLOOKUP($C81,tbl_chemicals[],MATCH("Adjuvant Cost/ha",tbl_chemicals[#Headers],0),0),0)*(M81<>0) -> 0 | Q81: =VLOOKUP(r[0]c3&"High",CHOOSE({1,2},tbl_chemicals[Name]&tbl_chemicals[Rainfall],INDIRECT("tbl_chemicals["&var_crop&"]")),2,0) | R81: =(P81*$E81)+IFERROR(VLOOKUP($C81,tbl_chemicals[],MATCH("Adjuvant Cost/ha",tbl_chemicals[#Headers],0),0),0)*(P81<>0) -> 0 | U81: 0
D82: Reset Cost | F82: =VLOOKUP(r[0]c3,tbl_chemicals[[Name]:[Cost]],MATCH("Cost",tbl_chemicals[#Headers],0),0) | H82: =VLOOKUP(r[0]c3,tbl_chemicals[[Name]:[Cost]],MATCH("Units",tbl_chemicals[#Headers],0),0) | I82: Reset Rate | K82: =VLOOKUP(r[0]c3&"Low",CHOOSE({1,2},tbl_chemicals[Name]&tbl_chemicals[Rainfall],INDIRECT("tbl_chemicals["&var_crop&"]")),2,0) | L82: =(J82*$E82)+IFERROR(VLOOKUP($C82,tbl_chemicals[],MATCH("Adjuvant Cost/ha",tbl_chemicals[#Headers],0),0),0)*(J82<>0) -> 0 | N82: =VLOOKUP(r[0]c3&"Medium",CHOOSE({1,2},tbl_chemicals[Name]&tbl_chemicals[Rainfall],INDIRECT("tbl_chemicals["&var_crop&"]")),2,0) | O82: =(M82*$E82)+IFERROR(VLOOKUP($C82,tbl_chemicals[],MATCH("Adjuvant Cost/ha",tbl_chemicals[#Headers],0),0),0)*(M82<>0) -> 0 | Q82: =VLOOKUP(r[0]c3&"High",CHOOSE({1,2},tbl_chemicals[Name]&tbl_chemicals[Rainfall],INDIRECT("tbl_chemicals["&var_crop&"]")),2,0) | R82: =(P82*$E82)+IFERROR(VLOOKUP($C82,tbl_chemicals[],MATCH("Adjuvant Cost/ha",tbl_chemicals[#Headers],0),0),0)*(P82<>0) -> 0 | U82: 0
D83: Reset Cost | F83: =VLOOKUP(r[0]c3,tbl_chemicals[[Name]:[Cost]],MATCH("Cost",tbl_chemicals[#Headers],0),0) | H83: =VLOOKUP(r[0]c3,tbl_chemicals[[Name]:[Cost]],MATCH("Units",tbl_chemicals[#Headers],0),0) | I83: Reset Rate | K83: =VLOOKUP(r[0]c3&"Low",CHOOSE({1,2},tbl_chemicals[Name]&tbl_chemicals[Rainfall],INDIRECT("tbl_chemicals["&var_crop&"]")),2,0) | L83: =(J83*$E83)+IFERROR(VLOOKUP($C83,tbl_chemicals[],MATCH("Adjuvant Cost/ha",tbl_chemicals[#Headers],0),0),0)*(J83<>0) -> 0 | N83: =VLOOKUP(r[0]c3&"Medium",CHOOSE({1,2},tbl_chemicals[Name]&tbl_chemicals[Rainfall],INDIRECT("tbl_chemicals["&var_crop&"]")),2,0) | O83: =(M83*$E83)+IFERROR(VLOOKUP($C83,tbl_chemicals[],MATCH("Adjuvant Cost/ha",tbl_chemicals[#Headers],0),0),0)*(M83<>0) -> 0 | Q83: =VLOOKUP(r[0]c3&"High",CHOOSE({1,2},tbl_chemicals[Name]&tbl_chemicals[Rainfall],INDIRECT("tbl_chemicals["&var_crop&"]")),2,0) | R83: =(P83*$E83)+IFERROR(VLOOKUP($C83,tbl_chemicals[],MATCH("Adjuvant Cost/ha",tbl_chemicals[#Headers],0),0),0)*(P83<>0) -> 0 | U83: 0
D84: Reset Cost | F84: =VLOOKUP(r[0]c3,tbl_chemicals[[Name]:[Cost]],MATCH("Cost",tbl_chemicals[#Headers],0),0) | H84: =VLOOKUP(r[0]c3,tbl_chemicals[[Name]:[Cost]],MATCH("Units",tbl_chemicals[#Headers],0),0) | I84: Reset Rate | K84: =VLOOKUP(r[0]c3&"Low",CHOOSE({1,2},tbl_chemicals[Name]&tbl_chemicals[Rainfall],INDIRECT("tbl_chemicals["&var_crop&"]")),2,0) | L84: =(J84*$E84)+IFERROR(VLOOKUP($C84,tbl_chemicals[],MATCH("Adjuvant Cost/ha",tbl_chemicals[#Headers],0),0),0)*(J84<>0) -> 0 | N84: =VLOOKUP(r[0]c3&"Medium",CHOOSE({1,2},tbl_chemicals[Name]&tbl_chemicals[Rainfall],INDIRECT("tbl_chemicals["&var_crop&"]")),2,0) | O84: =(M84*$E84)+IFERROR(VLOOKUP($C84,tbl_chemicals[],MATCH("Adjuvant Cost/ha",tbl_chemicals[#Headers],0),0),0)*(M84<>0) -> 0 | Q84: =VLOOKUP(r[0]c3&"High",CHOOSE({1,2},tbl_chemicals[Name]&tbl_chemicals[Rainfall],INDIRECT("tbl_chemicals["&var_crop&"]")),2,0) | R84: =(P84*$E84)+IFERROR(VLOOKUP($C84,tbl_chemicals[],MATCH("Adjuvant Cost/ha",tbl_chemicals[#Headers],0),0),0)*(P84<>0) -> 0 | U84: 0
D85: Reset Cost | F85: =VLOOKUP(r[0]c3,tbl_chemicals[[Name]:[Cost]],MATCH("Cost",tbl_chemicals[#Headers],0),0) | H85: =VLOOKUP(r[0]c3,tbl_chemicals[[Name]:[Cost]],MATCH("Units",tbl_chemicals[#Headers],0),0) | I85: Reset Rate | K85: =VLOOKUP(r[0]c3&"Low",CHOOSE({1,2},tbl_chemicals[Name]&tbl_chemicals[Rainfall],INDIRECT("tbl_chemicals["&var_crop&"]")),2,0) | L85: =(J85*$E85)+IFERROR(VLOOKUP($C85,tbl_chemicals[],MATCH("Adjuvant Cost/ha",tbl_chemicals[#Headers],0),0),0)*(J85<>0) -> 0 | N85: =VLOOKUP(r[0]c3&"Medium",CHOOSE({1,2},tbl_chemicals[Name]&tbl_chemicals[Rainfall],INDIRECT("tbl_chemicals["&var_crop&"]")),2,0) | O85: =(M85*$E85)+IFERROR(VLOOKUP($C85,tbl_chemicals[],MATCH("Adjuvant Cost/ha",tbl_chemicals[#Headers],0),0),0)*(M85<>0) -> 0 | Q85: =VLOOKUP(r[0]c3&"High",CHOOSE({1,2},tbl_chemicals[Name]&tbl_chemicals[Rainfall],INDIRECT("tbl_chemicals["&var_crop&"]")),2,0) | R85: =(P85*$E85)+IFERROR(VLOOKUP($C85,tbl_chemicals[],MATCH("Adjuvant Cost/ha",tbl_chemicals[#Headers],0),0),0)*(P85<>0) -> 0 | U85: 0
D86: Reset Cost | F86: =VLOOKUP(r[0]c3,tbl_chemicals[[Name]:[Cost]],MATCH("Cost",tbl_chemicals[#Headers],0),0) | H86: =VLOOKUP(r[0]c3,tbl_chemicals[[Name]:[Cost]],MATCH("Units",tbl_chemicals[#Headers],0),0) | I86: Reset Rate | K86: =VLOOKUP(r[0]c3&"Low",CHOOSE({1,2},tbl_chemicals[Name]&tbl_chemicals[Rainfall],INDIRECT("tbl_chemicals["&var_crop&"]")),2,0) | L86: =(J86*$E86)+IFERROR(VLOOKUP($C86,tbl_chemicals[],MATCH("Adjuvant Cost/ha",tbl_chemicals[#Headers],0),0),0)*(J86<>0) -> 0 | N86: =VLOOKUP(r[0]c3&"Medium",CHOOSE({1,2},tbl_chemicals[Name]&tbl_chemicals[Rainfall],INDIRECT("tbl_chemicals["&var_crop&"]")),2,0) | O86: =(M86*$E86)+IFERROR(VLOOKUP($C86,tbl_chemicals[],MATCH("Adjuvant Cost/ha",tbl_chemicals[#Headers],0),0),0)*(M86<>0) -> 0 | Q86: =VLOOKUP(r[0]c3&"High",CHOOSE({1,2},tbl_chemicals[Name]&tbl_chemicals[Rainfall],INDIRECT("tbl_chemicals["&var_crop&"]")),2,0) | R86: =(P86*$E86)+IFERROR(VLOOKUP($C86,tbl_chemicals[],MATCH("Adjuvant Cost/ha",tbl_chemicals[#Headers],0),0),0)*(P86<>0) -> 0 | U86: 0
D87: Reset Cost | F87: =VLOOKUP(r[0]c3,tbl_chemicals[[Name]:[Cost]],MATCH("Cost",tbl_chemicals[#Headers],0),0) | H87: =VLOOKUP(r[0]c3,tbl_chemicals[[Name]:[Cost]],MATCH("Units",tbl_chemicals[#Headers],0),0) | I87: Reset Rate | K87: =VLOOKUP(r[0]c3&"Low",CHOOSE({1,2},tbl_chemicals[Name]&tbl_chemicals[Rainfall],INDIRECT("tbl_chemicals["&var_crop&"]")),2,0) | L87: =(J87*$E87)+IFERROR(VLOOKUP($C87,tbl_chemicals[],MATCH("Adjuvant Cost/ha",tbl_chemicals[#Headers],0),0),0)*(J87<>0) -> 0 | N87: =VLOOKUP(r[0]c3&"Medium",CHOOSE({1,2},tbl_chemicals[Name]&tbl_chemicals[Rainfall],INDIRECT("tbl_chemicals["&var_crop&"]")),2,0) | O87: =(M87*$E87)+IFERROR(VLOOKUP($C87,tbl_chemicals[],MATCH("Adjuvant Cost/ha",tbl_chemicals[#Headers],0),0),0)*(M87<>0) -> 0 | Q87: =VLOOKUP(r[0]c3&"High",CHOOSE({1,2},tbl_chemicals[Name]&tbl_chemicals[Rainfall],INDIRECT("tbl_chemicals["&var_crop&"]")),2,0) | R87: =(P87*$E87)+IFERROR(VLOOKUP($C87,tbl_chemicals[],MATCH("Adjuvant Cost/ha",tbl_chemicals[#Headers],0),0),0)*(P87<>0) -> 0 | U87: 0
D88: Reset Cost | F88: =VLOOKUP(r[0]c3,tbl_chemicals[[Name]:[Cost]],MATCH("Cost",tbl_chemicals[#Headers],0),0) | H88: =VLOOKUP(r[0]c3,tbl_chemicals[[Name]:[Cost]],MATCH("Units",tbl_chemicals[#Headers],0),0) | I88: Reset Rate | K88: =VLOOKUP(r[0]c3&"Low",CHOOSE({1,2},tbl_chemicals[Name]&tbl_chemicals[Rainfall],INDIRECT("tbl_chemicals["&var_crop&"]")),2,0) | L88: =(J88*$E88)+IFERROR(VLOOKUP($C88,tbl_chemicals[],MATCH("Adjuvant Cost/ha",tbl_chemicals[#Headers],0),0),0)*(J88<>0) -> 0 | N88: =VLOOKUP(r[0]c3&"Medium",CHOOSE({1,2},tbl_chemicals[Name]&tbl_chemicals[Rainfall],INDIRECT("tbl_chemicals["&var_crop&"]")),2,0) | O88: =(M88*$E88)+IFERROR(VLOOKUP($C88,tbl_chemicals[],MATCH("Adjuvant Cost/ha",tbl_chemicals[#Headers],0),0),0)*(M88<>0) -> 0 | Q88: =VLOOKUP(r[0]c3&"High",CHOOSE({1,2},tbl_chemicals[Name]&tbl_chemicals[Rainfall],INDIRECT("tbl_chemicals["&var_crop&"]")),2,0) | R88: =(P88*$E88)+IFERROR(VLOOKUP($C88,tbl_chemicals[],MATCH("Adjuvant Cost/ha",tbl_chemicals[#Headers],0),0),0)*(P88<>0) -> 0 | U88: 0
D89: Reset Cost | F89: =VLOOKUP(r[0]c3,tbl_chemicals[[Name]:[Cost]],MATCH("Cost",tbl_chemicals[#Headers],0),0) | H89: =VLOOKUP(r[0]c3,tbl_chemicals[[Name]:[Cost]],MATCH("Units",tbl_chemicals[#Headers],0),0) | I89: Reset Rate | K89: =VLOOKUP(r[0]c3&"Low",CHOOSE({1,2},tbl_chemicals[Name]&tbl_chemicals[Rainfall],INDIRECT("tbl_chemicals["&var_crop&"]")),2,0) | L89: =(J89*$E89)+IFERROR(VLOOKUP($C89,tbl_chemicals[],MATCH("Adjuvant Cost/ha",tbl_chemicals[#Headers],0),0),0)*(J89<>0) -> 0 | N89: =VLOOKUP(r[0]c3&"Medium",CHOOSE({1,2},tbl_chemicals[Name]&tbl_chemicals[Rainfall],INDIRECT("tbl_chemicals["&var_crop&"]")),2,0) | O89: =(M89*$E89)+IFERROR(VLOOKUP($C89,tbl_chemicals[],MATCH("Adjuvant Cost/ha",tbl_chemicals[#Headers],0),0),0)*(M89<>0) -> 0 | Q89: =VLOOKUP(r[0]c3&"High",CHOOSE({1,2},tbl_chemicals[Name]&tbl_chemicals[Rainfall],INDIRECT("tbl_chemicals["&var_crop&"]")),2,0) | R89: =(P89*$E89)+IFERROR(VLOOKUP($C89,tbl_chemicals[],MATCH("Adjuvant Cost/ha",tbl_chemicals[#Headers],0),0),0)*(P89<>0) -> 0 | U89: 0
C90: Insecticides
D91: Reset Cost | F91: =VLOOKUP(r[0]c3,tbl_chemicals[[Name]:[Cost]],MATCH("Cost",tbl_chemicals[#Headers],0),0) | H91: =VLOOKUP(r[0]c3,tbl_chemicals[[Name]:[Cost]],MATCH("Units",tbl_chemicals[#Headers],0),0) | I91: Reset Rate | K91: =VLOOKUP(r[0]c3&"Low",CHOOSE({1,2},tbl_chemicals[Name]&tbl_chemicals[Rainfall],INDIRECT("tbl_chemicals["&var_crop&"]")),2,0) | L91: =(J91*$E91)+IFERROR(VLOOKUP($C91,tbl_chemicals[],MATCH("Adjuvant Cost/ha",tbl_chemicals[#Headers],0),0),0)*(J91<>0) -> 0 | N91: =VLOOKUP(r[0]c3&"Medium",CHOOSE({1,2},tbl_chemicals[Name]&tbl_chemicals[Rainfall],INDIRECT("tbl_chemicals["&var_crop&"]")),2,0) | O91: =(M91*$E91)+IFERROR(VLOOKUP($C91,tbl_chemicals[],MATCH("Adjuvant Cost/ha",tbl_chemicals[#Headers],0),0),0)*(M91<>0) -> 0 | Q91: =VLOOKUP(r[0]c3&"High",CHOOSE({1,2},tbl_chemicals[Name]&tbl_chemicals[Rainfall],INDIRECT("tbl_chemicals["&var_crop&"]")),2,0) | R91: =(P91*$E91)+IFERROR(VLOOKUP($C91,tbl_chemicals[],MATCH("Adjuvant Cost/ha",tbl_chemicals[#Headers],0),0),0)*(P91<>0) -> 0 | U91: =$U$6*(IF(rng_rainfall=1,L91,IF(rng_rainfall=2,O91,R91))) -> 0
D92: Reset Cost | F92: =VLOOKUP(r[0]c3,tbl_chemicals[[Name]:[Cost]],MATCH("Cost",tbl_chemicals[#Headers],0),0) | H92: =VLOOKUP(r[0]c3,tbl_chemicals[[Name]:[Cost]],MATCH("Units",tbl_chemicals[#Headers],0),0) | I92: Reset Rate | K92: =VLOOKUP(r[0]c3&"Low",CHOOSE({1,2},tbl_chemicals[Name]&tbl_chemicals[Rainfall],INDIRECT("tbl_chemicals["&var_crop&"]")),2,0) | L92: =(J92*$E92)+IFERROR(VLOOKUP($C92,tbl_chemicals[],MATCH("Adjuvant Cost/ha",tbl_chemicals[#Headers],0),0),0)*(J92<>0) -> 0 | N92: =VLOOKUP(r[0]c3&"Medium",CHOOSE({1,2},tbl_chemicals[Name]&tbl_chemicals[Rainfall],INDIRECT("tbl_chemicals["&var_crop&"]")),2,0) | O92: =(M92*$E92)+IFERROR(VLOOKUP($C92,tbl_chemicals[],MATCH("Adjuvant Cost/ha",tbl_chemicals[#Headers],0),0),0)*(M92<>0) -> 0 | Q92: =VLOOKUP(r[0]c3&"High",CHOOSE({1,2},tbl_chemicals[Name]&tbl_chemicals[Rainfall],INDIRECT("tbl_chemicals["&var_crop&"]")),2,0) | R92: =(P92*$E92)+IFERROR(VLOOKUP($C92,tbl_chemicals[],MATCH("Adjuvant Cost/ha",tbl_chemicals[#Headers],0),0),0)*(P92<>0) -> 0 | U92: 0
D93: Reset Cost | F93: =VLOOKUP(r[0]c3,tbl_chemicals[[Name]:[Cost]],MATCH("Cost",tbl_chemicals[#Headers],0),0) | H93: =VLOOKUP(r[0]c3,tbl_chemicals[[Name]:[Cost]],MATCH("Units",tbl_chemicals[#Headers],0),0) | I93: Reset Rate | K93: =VLOOKUP(r[0]c3&"Low",CHOOSE({1,2},tbl_chemicals[Name]&tbl_chemicals[Rainfall],INDIRECT("tbl_chemicals["&var_crop&"]")),2,0) | L93: =(J93*$E93)+IFERROR(VLOOKUP($C93,tbl_chemicals[],MATCH("Adjuvant Cost/ha",tbl_chemicals[#Headers],0),0),0)*(J93<>0) -> 0 | N93: =VLOOKUP(r[0]c3&"Medium",CHOOSE({1,2},tbl_chemicals[Name]&tbl_chemicals[Rainfall],INDIRECT("tbl_chemicals["&var_crop&"]")),2,0) | O93: =(M93*$E93)+IFERROR(VLOOKUP($C93,tbl_chemicals[],MATCH("Adjuvant Cost/ha",tbl_chemicals[#Headers],0),0),0)*(M93<>0) -> 0 | Q93: =VLOOKUP(r[0]c3&"High",CHOOSE({1,2},tbl_chemicals[Name]&tbl_chemicals[Rainfall],INDIRECT("tbl_chemicals["&var_crop&"]")),2,0) | R93: =(P93*$E93)+IFERROR(VLOOKUP($C93,tbl_chemicals[],MATCH("Adjuvant Cost/ha",tbl_chemicals[#Headers],0),0),0)*(P93<>0) -> 0 | U93: 0
D94: Reset Cost | F94: =VLOOKUP(r[0]c3,tbl_chemicals[[Name]:[Cost]],MATCH("Cost",tbl_chemicals[#Headers],0),0) | H94: =VLOOKUP(r[0]c3,tbl_chemicals[[Name]:[Cost]],MATCH("Units",tbl_chemicals[#Headers],0),0) | I94: Reset Rate | K94: =VLOOKUP(r[0]c3&"Low",CHOOSE({1,2},tbl_chemicals[Name]&tbl_chemicals[Rainfall],INDIRECT("tbl_chemicals["&var_crop&"]")),2,0) | L94: =(J94*$E94)+IFERROR(VLOOKUP($C94,tbl_chemicals[],MATCH("Adjuvant Cost/ha",tbl_chemicals[#Headers],0),0),0)*(J94<>0) -> 0 | N94: =VLOOKUP(r[0]c3&"Medium",CHOOSE({1,2},tbl_chemicals[Name]&tbl_chemicals[Rainfall],INDIRECT("tbl_chemicals["&var_crop&"]")),2,0) | O94: =(M94*$E94)+IFERROR(VLOOKUP($C94,tbl_chemicals[],MATCH("Adjuvant Cost/ha",tbl_chemicals[#Headers],0),0),0)*(M94<>0) -> 0 | Q94: =VLOOKUP(r[0]c3&"High",CHOOSE({1,2},tbl_chemicals[Name]&tbl_chemicals[Rainfall],INDIRECT("tbl_chemicals["&var_crop&"]")),2,0) | R94: =(P94*$E94)+IFERROR(VLOOKUP($C94,tbl_chemicals[],MATCH("Adjuvant Cost/ha",tbl_chemicals[#Headers],0),0),0)*(P94<>0) -> 0 | U94: 0
D95: Reset Cost | F95: =VLOOKUP(r[0]c3,tbl_chemicals[[Name]:[Cost]],MATCH("Cost",tbl_chemicals[#Headers],0),0) | H95: =VLOOKUP(r[0]c3,tbl_chemicals[[Name]:[Cost]],MATCH("Units",tbl_chemicals[#Headers],0),0) | I95: Reset Rate | K95: =VLOOKUP(r[0]c3&"Low",CHOOSE({1,2},tbl_chemicals[Name]&tbl_chemicals[Rainfall],INDIRECT("tbl_chemicals["&var_crop&"]")),2,0) | L95: =(J95*$E95)+IFERROR(VLOOKUP($C95,tbl_chemicals[],MATCH("Adjuvant Cost/ha",tbl_chemicals[#Headers],0),0),0)*(J95<>0) -> 0 | N95: =VLOOKUP(r[0]c3&"Medium",CHOOSE({1,2},tbl_chemicals[Name]&tbl_chemicals[Rainfall],INDIRECT("tbl_chemicals["&var_crop&"]")),2,0) | O95: =(M95*$E95)+IFERROR(VLOOKUP($C95,tbl_chemicals[],MATCH("Adjuvant Cost/ha",tbl_chemicals[#Headers],0),0),0)*(M95<>0) -> 0 | Q95: =VLOOKUP(r[0]c3&"High",CHOOSE({1,2},tbl_chemicals[Name]&tbl_chemicals[Rainfall],INDIRECT("tbl_chemicals["&var_crop&"]")),2,0) | R95: =(P95*$E95)+IFERROR(VLOOKUP($C95,tbl_chemicals[],MATCH("Adjuvant Cost/ha",tbl_chemicals[#Headers],0),0),0)*(P95<>0) -> 0 | U95: 0
D96: Reset Cost | F96: =VLOOKUP(r[0]c3,tbl_chemicals[[Name]:[Cost]],MATCH("Cost",tbl_chemicals[#Headers],0),0) | H96: =VLOOKUP(r[0]c3,tbl_chemicals[[Name]:[Cost]],MATCH("Units",tbl_chemicals[#Headers],0),0) | I96: Reset Rate | K96: =VLOOKUP(r[0]c3&"Low",CHOOSE({1,2},tbl_chemicals[Name]&tbl_chemicals[Rainfall],INDIRECT("tbl_chemicals["&var_crop&"]")),2,0) | L96: =(J96*$E96)+IFERROR(VLOOKUP($C96,tbl_chemicals[],MATCH("Adjuvant Cost/ha",tbl_chemicals[#Headers],0),0),0)*(J96<>0) -> 0 | N96: =VLOOKUP(r[0]c3&"Medium",CHOOSE({1,2},tbl_chemicals[Name]&tbl_chemicals[Rainfall],INDIRECT("tbl_chemicals["&var_crop&"]")),2,0) | O96: =(M96*$E96)+IFERROR(VLOOKUP($C96,tbl_chemicals[],MATCH("Adjuvant Cost/ha",tbl_chemicals[#Headers],0),0),0)*(M96<>0) -> 0 | Q96: =VLOOKUP(r[0]c3&"High",CHOOSE({1,2},tbl_chemicals[Name]&tbl_chemicals[Rainfall],INDIRECT("tbl_chemicals["&var_crop&"]")),2,0) | R96: =(P96*$E96)+IFERROR(VLOOKUP($C96,tbl_chemicals[],MATCH("Adjuvant Cost/ha",tbl_chemicals[#Headers],0),0),0)*(P96<>0) -> 0 | U96: 0
D97: Reset Cost | F97: =VLOOKUP(r[0]c3,tbl_chemicals[[Name]:[Cost]],MATCH("Cost",tbl_chemicals[#Headers],0),0) | H97: =VLOOKUP(r[0]c3,tbl_chemicals[[Name]:[Cost]],MATCH("Units",tbl_chemicals[#Headers],0),0) | I97: Reset Rate | K97: =VLOOKUP(r[0]c3&"Low",CHOOSE({1,2},tbl_chemicals[Name]&tbl_chemicals[Rainfall],INDIRECT("tbl_chemicals["&var_crop&"]")),2,0) | L97: =(J97*$E97)+IFERROR(VLOOKUP($C97,tbl_chemicals[],MATCH("Adjuvant Cost/ha",tbl_chemicals[#Headers],0),0),0)*(J97<>0) -> 0 | N97: =VLOOKUP(r[0]c3&"Medium",CHOOSE({1,2},tbl_chemicals[Name]&tbl_chemicals[Rainfall],INDIRECT("tbl_chemicals["&var_crop&"]")),2,0) | O97: =(M97*$E97)+IFERROR(VLOOKUP($C97,tbl_chemicals[],MATCH("Adjuvant Cost/ha",tbl_chemicals[#Headers],0),0),0)*(M97<>0) -> 0 | Q97: =VLOOKUP(r[0]c3&"High",CHOOSE({1,2},tbl_chemicals[Name]&tbl_chemicals[Rainfall],INDIRECT("tbl_chemicals["&var_crop&"]")),2,0) | R97: =(P97*$E97)+IFERROR(VLOOKUP($C97,tbl_chemicals[],MATCH("Adjuvant Cost/ha",tbl_chemicals[#Headers],0),0),0)*(P97<>0) -> 0 | U97: 0
D98: Reset Cost | F98: =VLOOKUP(r[0]c3,tbl_chemicals[[Name]:[Cost]],MATCH("Cost",tbl_chemicals[#Headers],0),0) | H98: =VLOOKUP(r[0]c3,tbl_chemicals[[Name]:[Cost]],MATCH("Units",tbl_chemicals[#Headers],0),0) | I98: Reset Rate | K98: =VLOOKUP(r[0]c3&"Low",CHOOSE({1,2},tbl_chemicals[Name]&tbl_chemicals[Rainfall],INDIRECT("tbl_chemicals["&var_crop&"]")),2,0) | L98: =(J98*$E98)+IFERROR(VLOOKUP($C98,tbl_chemicals[],MATCH("Adjuvant Cost/ha",tbl_chemicals[#Headers],0),0),0)*(J98<>0) -> 0 | N98: =VLOOKUP(r[0]c3&"Medium",CHOOSE({1,2},tbl_chemicals[Name]&tbl_chemicals[Rainfall],INDIRECT("tbl_chemicals["&var_crop&"]")),2,0) | O98: =(M98*$E98)+IFERROR(VLOOKUP($C98,tbl_chemicals[],MATCH("Adjuvant Cost/ha",tbl_chemicals[#Headers],0),0),0)*(M98<>0) -> 0 | Q98: =VLOOKUP(r[0]c3&"High",CHOOSE({1,2},tbl_chemicals[Name]&tbl_chemicals[Rainfall],INDIRECT("tbl_chemicals["&var_crop&"]")),2,0) | R98: =(P98*$E98)+IFERROR(VLOOKUP($C98,tbl_chemicals[],MATCH("Adjuvant Cost/ha",tbl_chemicals[#Headers],0),0),0)*(P98<>0) -> 0 | U98: 0
D99: Reset Cost | F99: =VLOOKUP(r[0]c3,tbl_chemicals[[Name]:[Cost]],MATCH("Cost",tbl_chemicals[#Headers],0),0) | H99: =VLOOKUP(r[0]c3,tbl_chemicals[[Name]:[Cost]],MATCH("Units",tbl_chemicals[#Headers],0),0) | I99: Reset Rate | K99: =VLOOKUP(r[0]c3&"Low",CHOOSE({1,2},tbl_chemicals[Name]&tbl_chemicals[Rainfall],INDIRECT("tbl_chemicals["&var_crop&"]")),2,0) | L99: =(J99*$E99)+IFERROR(VLOOKUP($C99,tbl_chemicals[],MATCH("Adjuvant Cost/ha",tbl_chemicals[#Headers],0),0),0)*(J99<>0) -> 0 | N99: =VLOOKUP(r[0]c3&"Medium",CHOOSE({1,2},tbl_chemicals[Name]&tbl_chemicals[Rainfall],INDIRECT("tbl_chemicals["&var_crop&"]")),2,0) | O99: =(M99*$E99)+IFERROR(VLOOKUP($C99,tbl_chemicals[],MATCH("Adjuvant Cost/ha",tbl_chemicals[#Headers],0),0),0)*(M99<>0) -> 0 | Q99: =VLOOKUP(r[0]c3&"High",CHOOSE({1,2},tbl_chemicals[Name]&tbl_chemicals[Rainfall],INDIRECT("tbl_chemicals["&var_crop&"]")),2,0) | R99: =(P99*$E99)+IFERROR(VLOOKUP($C99,tbl_chemicals[],MATCH("Adjuvant Cost/ha",tbl_chemicals[#Headers],0),0),0)*(P99<>0) -> 0 | U99: 0
D100: Reset Cost | F100: =VLOOKUP(r[0]c3,tbl_chemicals[[Name]:[Cost]],MATCH("Cost",tbl_chemicals[#Headers],0),0) | H100: =VLOOKUP(r[0]c3,tbl_chemicals[[Name]:[Cost]],MATCH("Units",tbl_chemicals[#Headers],0),0) | I100: Reset Rate | K100: =VLOOKUP(r[0]c3&"Low",CHOOSE({1,2},tbl_chemicals[Name]&tbl_chemicals[Rainfall],INDIRECT("tbl_chemicals["&var_crop&"]")),2,0) | L100: =(J100*$E100)+IFERROR(VLOOKUP($C100,tbl_chemicals[],MATCH("Adjuvant Cost/ha",tbl_chemicals[#Headers],0),0),0)*(J100<>0) -> 0 | N100: =VLOOKUP(r[0]c3&"Medium",CHOOSE({1,2},tbl_chemicals[Name]&tbl_chemicals[Rainfall],INDIRECT("tbl_chemicals["&var_crop&"]")),2,0) | O100: =(M100*$E100)+IFERROR(VLOOKUP($C100,tbl_chemicals[],MATCH("Adjuvant Cost/ha",tbl_chemicals[#Headers],0),0),0)*(M100<>0) -> 0 | Q100: =VLOOKUP(r[0]c3&"High",CHOOSE({1,2},tbl_chemicals[Name]&tbl_chemicals[Rainfall],INDIRECT("tbl_chemicals["&var_crop&"]")),2,0) | R100: =(P100*$E100)+IFERROR(VLOOKUP($C100,tbl_chemicals[],MATCH("Adjuvant Cost/ha",tbl_chemicals[#Headers],0),0),0)*(P100<>0) -> 0 | U100: 0
D101: Reset Cost | F101: =VLOOKUP(r[0]c3,tbl_chemicals[[Name]:[Cost]],MATCH("Cost",tbl_chemicals[#Headers],0),0) | H101: =VLOOKUP(r[0]c3,tbl_chemicals[[Name]:[Cost]],MATCH("Units",tbl_chemicals[#Headers],0),0) | I101: Reset Rate | K101: =VLOOKUP(r[0]c3&"Low",CHOOSE({1,2},tbl_chemicals[Name]&tbl_chemicals[Rainfall],INDIRECT("tbl_chemicals["&var_crop&"]")),2,0) | L101: =(J101*$E101)+IFERROR(VLOOKUP($C101,tbl_chemicals[],MATCH("Adjuvant Cost/ha",tbl_chemicals[#Headers],0),0),0)*(J101<>0) -> 0 | N101: =VLOOKUP(r[0]c3&"Medium",CHOOSE({1,2},tbl_chemicals[Name]&tbl_chemicals[Rainfall],INDIRECT("tbl_chemicals["&var_crop&"]")),2,0) | O101: =(M101*$E101)+IFERROR(VLOOKUP($C101,tbl_chemicals[],MATCH("Adjuvant Cost/ha",tbl_chemicals[#Headers],0),0),0)*(M101<>0) -> 0 | Q101: =VLOOKUP(r[0]c3&"High",CHOOSE({1,2},tbl_chemicals[Name]&tbl_chemicals[Rainfall],INDIRECT("tbl_chemicals["&var_crop&"]")),2,0) | R101: =(P101*$E101)+IFERROR(VLOOKUP($C101,tbl_chemicals[],MATCH("Adjuvant Cost/ha",tbl_chemicals[#Headers],0),0),0)*(P101<>0) -> 0 | U101: 0
D102: Reset Cost | F102: =VLOOKUP(r[0]c3,tbl_chemicals[[Name]:[Cost]],MATCH("Cost",tbl_chemicals[#Headers],0),0) | H102: =VLOOKUP(r[0]c3,tbl_chemicals[[Name]:[Cost]],MATCH("Units",tbl_chemicals[#Headers],0),0) | I102: Reset Rate | K102: =VLOOKUP(r[0]c3&"Low",CHOOSE({1,2},tbl_chemicals[Name]&tbl_chemicals[Rainfall],INDIRECT("tbl_chemicals["&var_crop&"]")),2,0) | L102: =(J102*$E102)+IFERROR(VLOOKUP($C102,tbl_chemicals[],MATCH("Adjuvant Cost/ha",tbl_chemicals[#Headers],0),0),0)*(J102<>0) -> 0 | N102: =VLOOKUP(r[0]c3&"Medium",CHOOSE({1,2},tbl_chemicals[Name]&tbl_chemicals[Rainfall],INDIRECT("tbl_chemicals["&var_crop&"]")),2,0) | O102: =(M102*$E102)+IFERROR(VLOOKUP($C102,tbl_chemicals[],MATCH("Adjuvant Cost/ha",tbl_chemicals[#Headers],0),0),0)*(M102<>0) -> 0 | Q102: =VLOOKUP(r[0]c3&"High",CHOOSE({1,2},tbl_chemicals[Name]&tbl_chemicals[Rainfall],INDIRECT("tbl_chemicals["&var_crop&"]")),2,0) | R102: =(P102*$E102)+IFERROR(VLOOKUP($C102,tbl_chemicals[],MATCH("Adjuvant Cost/ha",tbl_chemicals[#Headers],0),0),0)*(P102<>0) -> 0 | U102: 0
D103: Reset Cost | F103: =VLOOKUP(r[0]c3,tbl_chemicals[[Name]:[Cost]],MATCH("Cost",tbl_chemicals[#Headers],0),0) | H103: =VLOOKUP(r[0]c3,tbl_chemicals[[Name]:[Cost]],MATCH("Units",tbl_chemicals[#Headers],0),0) | I103: Reset Rate | K103: =VLOOKUP(r[0]c3&"Low",CHOOSE({1,2},tbl_chemicals[Name]&tbl_chemicals[Rainfall],INDIRECT("tbl_chemicals["&var_crop&"]")),2,0) | L103: =(J103*$E103)+IFERROR(VLOOKUP($C103,tbl_chemicals[],MATCH("Adjuvant Cost/ha",tbl_chemicals[#Headers],0),0),0)*(J103<>0) -> 0 | N103: =VLOOKUP(r[0]c3&"Medium",CHOOSE({1,2},tbl_chemicals[Name]&tbl_chemicals[Rainfall],INDIRECT("tbl_chemicals["&var_crop&"]")),2,0) | O103: =(M103*$E103)+IFERROR(VLOOKUP($C103,tbl_chemicals[],MATCH("Adjuvant Cost/ha",tbl_chemicals[#Headers],0),0),0)*(M103<>0) -> 0 | Q103: =VLOOKUP(r[0]c3&"High",CHOOSE({1,2},tbl_chemicals[Name]&tbl_chemicals[Rainfall],INDIRECT("tbl_chemicals["&var_crop&"]")),2,0) | R103: =(P103*$E103)+IFERROR(VLOOKUP($C103,tbl_chemicals[],MATCH("Adjuvant Cost/ha",tbl_chemicals[#Headers],0),0),0)*(P103<>0) -> 0 | U103: 0
D104: Reset Cost | F104: =VLOOKUP(r[0]c3,tbl_chemicals[[Name]:[Cost]],MATCH("Cost",tbl_chemicals[#Headers],0),0) | H104: =VLOOKUP(r[0]c3,tbl_chemicals[[Name]:[Cost]],MATCH("Units",tbl_chemicals[#Headers],0),0) | I104: Reset Rate | K104: =VLOOKUP(r[0]c3&"Low",CHOOSE({1,2},tbl_chemicals[Name]&tbl_chemicals[Rainfall],INDIRECT("tbl_chemicals["&var_crop&"]")),2,0) | L104: =(J104*$E104)+IFERROR(VLOOKUP($C104,tbl_chemicals[],MATCH("Adjuvant Cost/ha",tbl_chemicals[#Headers],0),0),0)*(J104<>0) -> 0 | N104: =VLOOKUP(r[0]c3&"Medium",CHOOSE({1,2},tbl_chemicals[Name]&tbl_chemicals[Rainfall],INDIRECT("tbl_chemicals["&var_crop&"]")),2,0) | O104: =(M104*$E104)+IFERROR(VLOOKUP($C104,tbl_chemicals[],MATCH("Adjuvant Cost/ha",tbl_chemicals[#Headers],0),0),0)*(M104<>0) -> 0 | Q104: =VLOOKUP(r[0]c3&"High",CHOOSE({1,2},tbl_chemicals[Name]&tbl_chemicals[Rainfall],INDIRECT("tbl_chemicals["&var_crop&"]")),2,0) | R104: =(P104*$E104)+IFERROR(VLOOKUP($C104,tbl_chemicals[],MATCH("Adjuvant Cost/ha",tbl_chemicals[#Headers],0),0),0)*(P104<>0) -> 0 | U104: 0
D105: Reset Cost | F105: =VLOOKUP(r[0]c3,tbl_chemicals[[Name]:[Cost]],MATCH("Cost",tbl_chemicals[#Headers],0),0) | H105: =VLOOKUP(r[0]c3,tbl_chemicals[[Name]:[Cost]],MATCH("Units",tbl_chemicals[#Headers],0),0) | I105: Reset Rate | K105: =VLOOKUP(r[0]c3&"Low",CHOOSE({1,2},tbl_chemicals[Name]&tbl_chemicals[Rainfall],INDIRECT("tbl_chemicals["&var_crop&"]")),2,0) | L105: =(J105*$E105)+IFERROR(VLOOKUP($C105,tbl_chemicals[],MATCH("Adjuvant Cost/ha",tbl_chemicals[#Headers],0),0),0)*(J105<>0) -> 0 | N105: =VLOOKUP(r[0]c3&"Medium",CHOOSE({1,2},tbl_chemicals[Name]&tbl_chemicals[Rainfall],INDIRECT("tbl_chemicals["&var_crop&"]")),2,0) | O105: =(M105*$E105)+IFERROR(VLOOKUP($C105,tbl_chemicals[],MATCH("Adjuvant Cost/ha",tbl_chemicals[#Headers],0),0),0)*(M105<>0) -> 0 | Q105: =VLOOKUP(r[0]c3&"High",CHOOSE({1,2},tbl_chemicals[Name]&tbl_chemicals[Rainfall],INDIRECT("tbl_chemicals["&var_crop&"]")),2,0) | R105: =(P105*$E105)+IFERROR(VLOOKUP($C105,tbl_chemicals[],MATCH("Adjuvant Cost/ha",tbl_chemicals[#Headers],0),0),0)*(P105<>0) -> 0 | U105: 0
C106: Fungicides
C107: Epoxiconazole 125g/L | D107: Reset Cost | E107: =VLOOKUP($C107,tbl_chemicals[[Name]:[Cost]],MATCH("Cost",tbl_chemicals[#Headers],0),0) -> 30 | F107: =VLOOKUP(r[0]c3,tbl_chemicals[[Name]:[Cost]],MATCH("Cost",tbl_chemicals[#Headers],0),0) | G107: =VLOOKUP($C107,tbl_chemicals[[Name]:[Cost]],MATCH("Units",tbl_chemicals[#Headers],0),0) -> litre | H107: =VLOOKUP(r[0]c3,tbl_chemicals[[Name]:[Cost]],MATCH("Units",tbl_chemicals[#Headers],0),0) | I107: Reset Rate | J107: =VLOOKUP($C107&"Low",CHOOSE({1,2},tbl_chemicals[Name]&tbl_chemicals[Rainfall],INDIRECT("tbl_chemicals["&var_crop&"]")),2,0) -> 0 | K107: =VLOOKUP(r[0]c3&"Low",CHOOSE({1,2},tbl_chemicals[Name]&tbl_chemicals[Rainfall],INDIRECT("tbl_chemicals["&var_crop&"]")),2,0) | L107: =(J107*$E107)+IFERROR(VLOOKUP($C107,tbl_chemicals[],MATCH("Adjuvant Cost/ha",tbl_chemicals[#Headers],0),0),0)*(J107<>0) -> 0 | M107: =VLOOKUP($C107&"Medium",CHOOSE({1,2},tbl_chemicals[Name]&tbl_chemicals[Rainfall],INDIRECT("tbl_chemicals["&var_crop&"]")),2,0) -> 0.5 | N107: =VLOOKUP(r[0]c3&"Medium",CHOOSE({1,2},tbl_chemicals[Name]&tbl_chemicals[Rainfall],INDIRECT("tbl_chemicals["&var_crop&"]")),2,0) | O107: =(M107*$E107)+IFERROR(VLOOKUP($C107,tbl_chemicals[],MATCH("Adjuvant Cost/ha",tbl_chemicals[#Headers],0),0),0)*(M107<>0) -> 15 | P107: =VLOOKUP($C107&"High",CHOOSE({1,2},tbl_chemicals[Name]&tbl_chemicals[Rainfall],INDIRECT("tbl_chemicals["&var_crop&"]")),2,0) -> 0.5 | Q107: =VLOOKUP(r[0]c3&"High",CHOOSE({1,2},tbl_chemicals[Name]&tbl_chemicals[Rainfall],INDIRECT("tbl_chemicals["&var_crop&"]")),2,0) | R107: =(P107*$E107)+IFERROR(VLOOKUP($C107,tbl_chemicals[],MATCH("Adjuvant Cost/ha",tbl_chemicals[#Headers],0),0),0)*(P107<>0) -> 15 | U107: =$U$6*(IF(rng_rainfall=1,L107,IF(rng_rainfall=2,O107,R107))) -> 0
C108: Amistar Xtra | D108: Reset Cost | E108: =VLOOKUP($C108,tbl_chemicals[[Name]:[Cost]],MATCH("Cost",tbl_chemicals[#Headers],0),0) -> 36.23 | F108: =VLOOKUP(r[0]c3,tbl_chemicals[[Name]:[Cost]],MATCH("Cost",tbl_chemicals[#Headers],0),0) | G108: =VLOOKUP($C108,tbl_chemicals[[Name]:[Cost]],MATCH("Units",tbl_chemicals[#Headers],0),0) -> litre | H108: =VLOOKUP(r[0]c3,tbl_chemicals[[Name]:[Cost]],MATCH("Units",tbl_chemicals[#Headers],0),0) | I108: Reset Rate | J108: =VLOOKUP($C108&"Low",CHOOSE({1,2},tbl_chemicals[Name]&tbl_chemicals[Rainfall],INDIRECT("tbl_chemicals["&var_crop&"]")),2,0) -> 0 | K108: =VLOOKUP(r[0]c3&"Low",CHOOSE({1,2},tbl_chemicals[Name]&tbl_chemicals[Rainfall],INDIRECT("tbl_chemicals["&var_crop&"]")),2,0) | L108: =(J108*$E108)+IFERROR(VLOOKUP($C108,tbl_chemicals[],MATCH("Adjuvant Cost/ha",tbl_chemicals[#Headers],0),0),0)*(J108<>0) -> 0 | M108: =VLOOKUP($C108&"Medium",CHOOSE({1,2},tbl_chemicals[Name]&tbl_chemicals[Rainfall],INDIRECT("tbl_chemicals["&var_crop&"]")),2,0) -> 0 | N108: =VLOOKUP(r[0]c3&"Medium",CHOOSE({1,2},tbl_chemicals[Name]&tbl_chemicals[Rainfall],INDIRECT("tbl_chemicals["&var_crop&"]")),2,0) | O108: =(M108*$E108)+IFERROR(VLOOKUP($C108,tbl_chemicals[],MATCH("Adjuvant Cost/ha",tbl_chemicals[#Headers],0),0),0)*(M108<>0) -> 0 | P108: =VLOOKUP($C108&"High",CHOOSE({1,2},tbl_chemicals[Name]&tbl_chemicals[Rainfall],INDIRECT("tbl_chemicals["&var_crop&"]")),2,0) -> 0.4 | Q108: =VLOOKUP(r[0]c3&"High",CHOOSE({1,2},tbl_chemicals[Name]&tbl_chemicals[Rainfall],INDIRECT("tbl_chemicals["&var_crop&"]")),2,0) | R108: =(P108*$E108)+IFERROR(VLOOKUP($C108,tbl_chemicals[],MATCH("Adjuvant Cost/ha",tbl_chemicals[#Headers],0),0),0)*(P108<>0) -> 14.492 | U108: 0
D109: Reset Cost | F109: =VLOOKUP(r[0]c3,tbl_chemicals[[Name]:[Cost]],MATCH("Cost",tbl_chemicals[#Headers],0),0) | H109: =VLOOKUP(r[0]c3,tbl_chemicals[[Name]:[Cost]],MATCH("Units",tbl_chemicals[#Headers],0),0) | I109: Reset Rate | K109: =VLOOKUP(r[0]c3&"Low",CHOOSE({1,2},tbl_chemicals[Name]&tbl_chemicals[Rainfall],INDIRECT("tbl_chemicals["&var_crop&"]")),2,0) | L109: =(J109*$E109)+IFERROR(VLOOKUP($C109,tbl_chemicals[],MATCH("Adjuvant Cost/ha",tbl_chemicals[#Headers],0),0),0)*(J109<>0) -> 0 | N109: =VLOOKUP(r[0]c3&"Medium",CHOOSE({1,2},tbl_chemicals[Name]&tbl_chemicals[Rainfall],INDIRECT("tbl_chemicals["&var_crop&"]")),2,0) | O109: =(M109*$E109)+IFERROR(VLOOKUP($C109,tbl_chemicals[],MATCH("Adjuvant Cost/ha",tbl_chemicals[#Headers],0),0),0)*(M109<>0) -> 0 | Q109: =VLOOKUP(r[0]c3&"High",CHOOSE({1,2},tbl_chemicals[Name]&tbl_chemicals[Rainfall],INDIRECT("tbl_chemicals["&var_crop&"]")),2,0) | R109: =(P109*$E109)+IFERROR(VLOOKUP($C109,tbl_chemicals[],MATCH("Adjuvant Cost/ha",tbl_chemicals[#Headers],0),0),0)*(P109<>0) -> 0 | U109: 0
D110: Reset Cost | F110: =VLOOKUP(r[0]c3,tbl_chemicals[[Name]:[Cost]],MATCH("Cost",tbl_chemicals[#Headers],0),0) | H110: =VLOOKUP(r[0]c3,tbl_chemicals[[Name]:[Cost]],MATCH("Units",tbl_chemicals[#Headers],0),0) | I110: Reset Rate | K110: =VLOOKUP(r[0]c3&"Low",CHOOSE({1,2},tbl_chemicals[Name]&tbl_chemicals[Rainfall],INDIRECT("tbl_chemicals["&var_crop&"]")),2,0) | L110: =(J110*$E110)+IFERROR(VLOOKUP($C110,tbl_chemicals[],MATCH("Adjuvant Cost/ha",tbl_chemicals[#Headers],0),0),0)*(J110<>0) -> 0 | N110: =VLOOKUP(r[0]c3&"Medium",CHOOSE({1,2},tbl_chemicals[Name]&tbl_chemicals[Rainfall],INDIRECT("tbl_chemicals["&var_crop&"]")),2,0) | O110: =(M110*$E110)+IFERROR(VLOOKUP($C110,tbl_chemicals[],MATCH("Adjuvant Cost/ha",tbl_chemicals[#Headers],0),0),0)*(M110<>0) -> 0 | Q110: =VLOOKUP(r[0]c3&"High",CHOOSE({1,2},tbl_chemicals[Name]&tbl_chemicals[Rainfall],INDIRECT("tbl_chemicals["&var_crop&"]")),2,0) | R110: =(P110*$E110)+IFERROR(VLOOKUP($C110,tbl_chemicals[],MATCH("Adjuvant Cost/ha",tbl_chemicals[#Headers],0),0),0)*(P110<>0) -> 0 | U110: 0
D111: Reset Cost | F111: =VLOOKUP(r[0]c3,tbl_chemicals[[Name]:[Cost]],MATCH("Cost",tbl_chemicals[#Headers],0),0) | H111: =VLOOKUP(r[0]c3,tbl_chemicals[[Name]:[Cost]],MATCH("Units",tbl_chemicals[#Headers],0),0) | I111: Reset Rate | K111: =VLOOKUP(r[0]c3&"Low",CHOOSE({1,2},tbl_chemicals[Name]&tbl_chemicals[Rainfall],INDIRECT("tbl_chemicals["&var_crop&"]")),2,0) | L111: =(J111*$E111)+IFERROR(VLOOKUP($C111,tbl_chemicals[],MATCH("Adjuvant Cost/ha",tbl_chemicals[#Headers],0),0),0)*(J111<>0) -> 0 | N111: =VLOOKUP(r[0]c3&"Medium",CHOOSE({1,2},tbl_chemicals[Name]&tbl_chemicals[Rainfall],INDIRECT("tbl_chemicals["&var_crop&"]")),2,0) | O111: =(M111*$E111)+IFERROR(VLOOKUP($C111,tbl_chemicals[],MATCH("Adjuvant Cost/ha",tbl_chemicals[#Headers],0),0),0)*(M111<>0) -> 0 | Q111: =VLOOKUP(r[0]c3&"High",CHOOSE({1,2},tbl_chemicals[Name]&tbl_chemicals[Rainfall],INDIRECT("tbl_chemicals["&var_crop&"]")),2,0) | R111: =(P111*$E111)+IFERROR(VLOOKUP($C111,tbl_chemicals[],MATCH("Adjuvant Cost/ha",tbl_chemicals[#Headers],0),0),0)*(P111<>0) -> 0 | U111: 0
D112: Reset Cost | F112: =VLOOKUP(r[0]c3,tbl_chemicals[[Name]:[Cost]],MATCH("Cost",tbl_chemicals[#Headers],0),0) | H112: =VLOOKUP(r[0]c3,tbl_chemicals[[Name]:[Cost]],MATCH("Units",tbl_chemicals[#Headers],0),0) | I112: Reset Rate | K112: =VLOOKUP(r[0]c3&"Low",CHOOSE({1,2},tbl_chemicals[Name]&tbl_chemicals[Rainfall],INDIRECT("tbl_chemicals["&var_crop&"]")),2,0) | L112: =(J112*$E112)+IFERROR(VLOOKUP($C112,tbl_chemicals[],MATCH("Adjuvant Cost/ha",tbl_chemicals[#Headers],0),0),0)*(J112<>0) -> 0 | N112: =VLOOKUP(r[0]c3&"Medium",CHOOSE({1,2},tbl_chemicals[Name]&tbl_chemicals[Rainfall],INDIRECT("tbl_chemicals["&var_crop&"]")),2,0) | O112: =(M112*$E112)+IFERROR(VLOOKUP($C112,tbl_chemicals[],MATCH("Adjuvant Cost/ha",tbl_chemicals[#Headers],0),0),0)*(M112<>0) -> 0 | Q112: =VLOOKUP(r[0]c3&"High",CHOOSE({1,2},tbl_chemicals[Name]&tbl_chemicals[Rainfall],INDIRECT("tbl_chemicals["&var_crop&"]")),2,0) | R112: =(P112*$E112)+IFERROR(VLOOKUP($C112,tbl_chemicals[],MATCH("Adjuvant Cost/ha",tbl_chemicals[#Headers],0),0),0)*(P112<>0) -> 0 | U112: 0
D113: Reset Cost | F113: =VLOOKUP(r[0]c3,tbl_chemicals[[Name]:[Cost]],MATCH("Cost",tbl_chemicals[#Headers],0),0) | H113: =VLOOKUP(r[0]c3,tbl_chemicals[[Name]:[Cost]],MATCH("Units",tbl_chemicals[#Headers],0),0) | I113: Reset Rate | K113: =VLOOKUP(r[0]c3&"Low",CHOOSE({1,2},tbl_chemicals[Name]&tbl_chemicals[Rainfall],INDIRECT("tbl_chemicals["&var_crop&"]")),2,0) | L113: =(J113*$E113)+IFERROR(VLOOKUP($C113,tbl_chemicals[],MATCH("Adjuvant Cost/ha",tbl_chemicals[#Headers],0),0),0)*(J113<>0) -> 0 | N113: =VLOOKUP(r[0]c3&"Medium",CHOOSE({1,2},tbl_chemicals[Name]&tbl_chemicals[Rainfall],INDIRECT("tbl_chemicals["&var_crop&"]")),2,0) | O113: =(M113*$E113)+IFERROR(VLOOKUP($C113,tbl_chemicals[],MATCH("Adjuvant Cost/ha",tbl_chemicals[#Headers],0),0),0)*(M113<>0) -> 0 | Q113: =VLOOKUP(r[0]c3&"High",CHOOSE({1,2},tbl_chemicals[Name]&tbl_chemicals[Rainfall],INDIRECT("tbl_chemicals["&var_crop&"]")),2,0) | R113: =(P113*$E113)+IFERROR(VLOOKUP($C113,tbl_chemicals[],MATCH("Adjuvant Cost/ha",tbl_chemicals[#Headers],0),0),0)*(P113<>0) -> 0 | U113: 0
D114: Reset Cost | F114: =VLOOKUP(r[0]c3,tbl_chemicals[[Name]:[Cost]],MATCH("Cost",tbl_chemicals[#Headers],0),0) | H114: =VLOOKUP(r[0]c3,tbl_chemicals[[Name]:[Cost]],MATCH("Units",tbl_chemicals[#Headers],0),0) | I114: Reset Rate | K114: =VLOOKUP(r[0]c3&"Low",CHOOSE({1,2},tbl_chemicals[Name]&tbl_chemicals[Rainfall],INDIRECT("tbl_chemicals["&var_crop&"]")),2,0) | L114: =(J114*$E114)+IFERROR(VLOOKUP($C114,tbl_chemicals[],MATCH("Adjuvant Cost/ha",tbl_chemicals[#Headers],0),0),0)*(J114<>0) -> 0 | N114: =VLOOKUP(r[0]c3&"Medium",CHOOSE({1,2},tbl_chemicals[Name]&tbl_chemicals[Rainfall],INDIRECT("tbl_chemicals["&var_crop&"]")),2,0) | O114: =(M114*$E114)+IFERROR(VLOOKUP($C114,tbl_chemicals[],MATCH("Adjuvant Cost/ha",tbl_chemicals[#Headers],0),0),0)*(M114<>0) -> 0 | Q114: =VLOOKUP(r[0]c3&"High",CHOOSE({1,2},tbl_chemicals[Name]&tbl_chemicals[Rainfall],INDIRECT("tbl_chemicals["&var_crop&"]")),2,0) | R114: =(P114*$E114)+IFERROR(VLOOKUP($C114,tbl_chemicals[],MATCH("Adjuvant Cost/ha",tbl_chemicals[#Headers],0),0),0)*(P114<>0) -> 0 | U114: 0
D115: Reset Cost | F115: =VLOOKUP(r[0]c3,tbl_chemicals[[Name]:[Cost]],MATCH("Cost",tbl_chemicals[#Headers],0),0) | H115: =VLOOKUP(r[0]c3,tbl_chemicals[[Name]:[Cost]],MATCH("Units",tbl_chemicals[#Headers],0),0) | I115: Reset Rate | K115: =VLOOKUP(r[0]c3&"Low",CHOOSE({1,2},tbl_chemicals[Name]&tbl_chemicals[Rainfall],INDIRECT("tbl_chemicals["&var_crop&"]")),2,0) | L115: =(J115*$E115)+IFERROR(VLOOKUP($C115,tbl_chemicals[],MATCH("Adjuvant Cost/ha",tbl_chemicals[#Headers],0),0),0)*(J115<>0) -> 0 | N115: =VLOOKUP(r[0]c3&"Medium",CHOOSE({1,2},tbl_chemicals[Name]&tbl_chemicals[Rainfall],INDIRECT("tbl_chemicals["&var_crop&"]")),2,0) | O115: =(M115*$E115)+IFERROR(VLOOKUP($C115,tbl_chemicals[],MATCH("Adjuvant Cost/ha",tbl_chemicals[#Headers],0),0),0)*(M115<>0) -> 0 | Q115: =VLOOKUP(r[0]c3&"High",CHOOSE({1,2},tbl_chemicals[Name]&tbl_chemicals[Rainfall],INDIRECT("tbl_chemicals["&var_crop&"]")),2,0) | R115: =(P115*$E115)+IFERROR(VLOOKUP($C115,tbl_chemicals[],MATCH("Adjuvant Cost/ha",tbl_chemicals[#Headers],0),0),0)*(P115<>0) -> 0 | U115: 0
D116: Reset Cost | F116: =VLOOKUP(r[0]c3,tbl_chemicals[[Name]:[Cost]],MATCH("Cost",tbl_chemicals[#Headers],0),0) | H116: =VLOOKUP(r[0]c3,tbl_chemicals[[Name]:[Cost]],MATCH("Units",tbl_chemicals[#Headers],0),0) | I116: Reset Rate | K116: =VLOOKUP(r[0]c3&"Low",CHOOSE({1,2},tbl_chemicals[Name]&tbl_chemicals[Rainfall],INDIRECT("tbl_chemicals["&var_crop&"]")),2,0) | L116: =(J116*$E116)+IFERROR(VLOOKUP($C116,tbl_chemicals[],MATCH("Adjuvant Cost/ha",tbl_chemicals[#Headers],0),0),0)*(J116<>0) -> 0 | N116: =VLOOKUP(r[0]c3&"Medium",CHOOSE({1,2},tbl_chemicals[Name]&tbl_chemicals[Rainfall],INDIRECT("tbl_chemicals["&var_crop&"]")),2,0) | O116: =(M116*$E116)+IFERROR(VLOOKUP($C116,tbl_chemicals[],MATCH("Adjuvant Cost/ha",tbl_chemicals[#Headers],0),0),0)*(M116<>0) -> 0 | Q116: =VLOOKUP(r[0]c3&"High",CHOOSE({1,2},tbl_chemicals[Name]&tbl_chemicals[Rainfall],INDIRECT("tbl_chemicals["&var_crop&"]")),2,0) | R116: =(P116*$E116)+IFERROR(VLOOKUP($C116,tbl_chemicals[],MATCH("Adjuvant Cost/ha",tbl_chemicals[#Headers],0),0),0)*(P116<>0) -> 0 | U116: 0
D117: Reset Cost | F117: =VLOOKUP(r[0]c3,tbl_chemicals[[Name]:[Cost]],MATCH("Cost",tbl_chemicals[#Headers],0),0) | H117: =VLOOKUP(r[0]c3,tbl_chemicals[[Name]:[Cost]],MATCH("Units",tbl_chemicals[#Headers],0),0) | I117: Reset Rate | K117: =VLOOKUP(r[0]c3&"Low",CHOOSE({1,2},tbl_chemicals[Name]&tbl_chemicals[Rainfall],INDIRECT("tbl_chemicals["&var_crop&"]")),2,0) | L117: =(J117*$E117)+IFERROR(VLOOKUP($C117,tbl_chemicals[],MATCH("Adjuvant Cost/ha",tbl_chemicals[#Headers],0),0),0)*(J117<>0) -> 0 | N117: =VLOOKUP(r[0]c3&"Medium",CHOOSE({1,2},tbl_chemicals[Name]&tbl_chemicals[Rainfall],INDIRECT("tbl_chemicals["&var_crop&"]")),2,0) | O117: =(M117*$E117)+IFERROR(VLOOKUP($C117,tbl_chemicals[],MATCH("Adjuvant Cost/ha",tbl_chemicals[#Headers],0),0),0)*(M117<>0) -> 0 | Q117: =VLOOKUP(r[0]c3&"High",CHOOSE({1,2},tbl_chemicals[Name]&tbl_chemicals[Rainfall],INDIRECT("tbl_chemicals["&var_crop&"]")),2,0) | R117: =(P117*$E117)+IFERROR(VLOOKUP($C117,tbl_chemicals[],MATCH("Adjuvant Cost/ha",tbl_chemicals[#Headers],0),0),0)*(P117<>0) -> 0 | U117: 0
D118: Reset Cost | F118: =VLOOKUP(r[0]c3,tbl_chemicals[[Name]:[Cost]],MATCH("Cost",tbl_chemicals[#Headers],0),0) | H118: =VLOOKUP(r[0]c3,tbl_chemicals[[Name]:[Cost]],MATCH("Units",tbl_chemicals[#Headers],0),0) | I118: Reset Rate | K118: =VLOOKUP(r[0]c3&"Low",CHOOSE({1,2},tbl_chemicals[Name]&tbl_chemicals[Rainfall],INDIRECT("tbl_chemicals["&var_crop&"]")),2,0) | L118: =(J118*$E118)+IFERROR(VLOOKUP($C118,tbl_chemicals[],MATCH("Adjuvant Cost/ha",tbl_chemicals[#Headers],0),0),0)*(J118<>0) -> 0 | N118: =VLOOKUP(r[0]c3&"Medium",CHOOSE({1,2},tbl_chemicals[Name]&tbl_chemicals[Rainfall],INDIRECT("tbl_chemicals["&var_crop&"]")),2,0) | O118: =(M118*$E118)+IFERROR(VLOOKUP($C118,tbl_chemicals[],MATCH("Adjuvant Cost/ha",tbl_chemicals[#Headers],0),0),0)*(M118<>0) -> 0 | Q118: =VLOOKUP(r[0]c3&"High",CHOOSE({1,2},tbl_chemicals[Name]&tbl_chemicals[Rainfall],INDIRECT("tbl_chemicals["&var_crop&"]")),2,0) | R118: =(P118*$E118)+IFERROR(VLOOKUP($C118,tbl_chemicals[],MATCH("Adjuvant Cost/ha",tbl_chemicals[#Headers],0),0),0)*(P118<>0) -> 0 | U118: 0
D119: Reset Cost | F119: =VLOOKUP(r[0]c3,tbl_chemicals[[Name]:[Cost]],MATCH("Cost",tbl_chemicals[#Headers],0),0) | H119: =VLOOKUP(r[0]c3,tbl_chemicals[[Name]:[Cost]],MATCH("Units",tbl_chemicals[#Headers],0),0) | I119: Reset Rate | K119: =VLOOKUP(r[0]c3&"Low",CHOOSE({1,2},tbl_chemicals[Name]&tbl_chemicals[Rainfall],INDIRECT("tbl_chemicals["&var_crop&"]")),2,0) | L119: =(J119*$E119)+IFERROR(VLOOKUP($C119,tbl_chemicals[],MATCH("Adjuvant Cost/ha",tbl_chemicals[#Headers],0),0),0)*(J119<>0) -> 0 | N119: =VLOOKUP(r[0]c3&"Medium",CHOOSE({1,2},tbl_chemicals[Name]&tbl_chemicals[Rainfall],INDIRECT("tbl_chemicals["&var_crop&"]")),2,0) | O119: =(M119*$E119)+IFERROR(VLOOKUP($C119,tbl_chemicals[],MATCH("Adjuvant Cost/ha",tbl_chemicals[#Headers],0),0),0)*(M119<>0) -> 0 | Q119: =VLOOKUP(r[0]c3&"High",CHOOSE({1,2},tbl_chemicals[Name]&tbl_chemicals[Rainfall],INDIRECT("tbl_chemicals["&var_crop&"]")),2,0) | R119: =(P119*$E119)+IFERROR(VLOOKUP($C119,tbl_chemicals[],MATCH("Adjuvant Cost/ha",tbl_chemicals[#Headers],0),0),0)*(P119<>0) -> 0 | U119: 0
D120: Reset Cost | F120: =VLOOKUP(r[0]c3,tbl_chemicals[[Name]:[Cost]],MATCH("Cost",tbl_chemicals[#Headers],0),0) | H120: =VLOOKUP(r[0]c3,tbl_chemicals[[Name]:[Cost]],MATCH("Units",tbl_chemicals[#Headers],0),0) | I120: Reset Rate | K120: =VLOOKUP(r[0]c3&"Low",CHOOSE({1,2},tbl_chemicals[Name]&tbl_chemicals[Rainfall],INDIRECT("tbl_chemicals["&var_crop&"]")),2,0) | L120: =(J120*$E120)+IFERROR(VLOOKUP($C120,tbl_chemicals[],MATCH("Adjuvant Cost/ha",tbl_chemicals[#Headers],0),0),0)*(J120<>0) -> 0 | N120: =VLOOKUP(r[0]c3&"Medium",CHOOSE({1,2},tbl_chemicals[Name]&tbl_chemicals[Rainfall],INDIRECT("tbl_chemicals["&var_crop&"]")),2,0) | O120: =(M120*$E120)+IFERROR(VLOOKUP($C120,tbl_chemicals[],MATCH("Adjuvant Cost/ha",tbl_chemicals[#Headers],0),0),0)*(M120<>0) -> 0 | Q120: =VLOOKUP(r[0]c3&"High",CHOOSE({1,2},tbl_chemicals[Name]&tbl_chemicals[Rainfall],INDIRECT("tbl_chemicals["&var_crop&"]")),2,0) | R120: =(P120*$E120)+IFERROR(VLOOKUP($C120,tbl_chemicals[],MATCH("Adjuvant Cost/ha",tbl_chemicals[#Headers],0),0),0)*(P120<>0) -> 0 | U120: 0
D121: Reset Cost | F121: =VLOOKUP(r[0]c3,tbl_chemicals[[Name]:[Cost]],MATCH("Cost",tbl_chemicals[#Headers],0),0) | H121: =VLOOKUP(r[0]c3,tbl_chemicals[[Name]:[Cost]],MATCH("Units",tbl_chemicals[#Headers],0),0) | I121: Reset Rate | K121: =VLOOKUP(r[0]c3&"Low",CHOOSE({1,2},tbl_chemicals[Name]&tbl_chemicals[Rainfall],INDIRECT("tbl_chemicals["&var_crop&"]")),2,0) | L121: =(J121*$E121)+IFERROR(VLOOKUP($C121,tbl_chemicals[],MATCH("Adjuvant Cost/ha",tbl_chemicals[#Headers],0),0),0)*(J121<>0) -> 0 | N121: =VLOOKUP(r[0]c3&"Medium",CHOOSE({1,2},tbl_chemicals[Name]&tbl_chemicals[Rainfall],INDIRECT("tbl_chemicals["&var_crop&"]")),2,0) | O121: =(M121*$E121)+IFERROR(VLOOKUP($C121,tbl_chemicals[],MATCH("Adjuvant Cost/ha",tbl_chemicals[#Headers],0),0),0)*(M121<>0) -> 0 | Q121: =VLOOKUP(r[0]c3&"High",CHOOSE({1,2},tbl_chemicals[Name]&tbl_chemicals[Rainfall],INDIRECT("tbl_chemicals["&var_crop&"]")),2,0) | R121: =(P121*$E121)+IFERROR(VLOOKUP($C121,tbl_chemicals[],MATCH("Adjuvant Cost/ha",tbl_chemicals[#Headers],0),0),0)*(P121<>0) -> 0 | U121: 0
C123: Other
F124: =VLOOKUP(r[0]c3,tbl_chemicals[[Name]:[Cost]],MATCH("Cost",tbl_chemicals[#Headers],0),0) | H124: =VLOOKUP(r[0]c3,tbl_chemicals[[Name]:[Cost]],MATCH("Units",tbl_chemicals[#Headers],0),0) | K124: =VLOOKUP(r[0]c3&"Low",CHOOSE({1,2},tbl_chemicals[Name]&tbl_chemicals[Rainfall],INDIRECT("tbl_chemicals["&var_crop&"]")),2,0) | L124: =(J124*$E124)+IFERROR(VLOOKUP($C124,tbl_chemicals[],MATCH("Adjuvant Cost/ha",tbl_chemicals[#Headers],0),0),0)*(J124<>0) -> 0 | N124: =VLOOKUP(r[0]c3&"Medium",CHOOSE({1,2},tbl_chemicals[Name]&tbl_chemicals[Rainfall],INDIRECT("tbl_chemicals["&var_crop&"]")),2,0) | O124: =(M124*$E124)+IFERROR(VLOOKUP($C124,tbl_chemicals[],MATCH("Adjuvant Cost/ha",tbl_chemicals[#Headers],0),0),0)*(M124<>0) -> 0 | Q124: =VLOOKUP(r[0]c3&"High",CHOOSE({1,2},tbl_chemicals[Name]&tbl_chemicals[Rainfall],INDIRECT("tbl_chemicals["&var_crop&"]")),2,0) | R124: =(P124*$E124)+IFERROR(VLOOKUP($C124,tbl_chemicals[],MATCH("Adjuvant Cost/ha",tbl_chemicals[#Headers],0),0),0)*(P124<>0) -> 0 | U124: =$U$6*(IF(rng_rainfall=1,L124,IF(rng_rainfall=2,O124,R124))) -> 0
F125: =VLOOKUP(r[0]c3,tbl_chemicals[[Name]:[Cost]],MATCH("Cost",tbl_chemicals[#Headers],0),0) | H125: =VLOOKUP(r[0]c3,tbl_chemicals[[Name]:[Cost]],MATCH("Units",tbl_chemicals[#Headers],0),0) | K125: =VLOOKUP(r[0]c3&"Low",CHOOSE({1,2},tbl_chemicals[Name]&tbl_chemicals[Rainfall],INDIRECT("tbl_chemicals["&var_crop&"]")),2,0) | L125: =(J125*$E125)+IFERROR(VLOOKUP($C125,tbl_chemicals[],MATCH("Adjuvant Cost/ha",tbl_chemicals[#Headers],0),0),0)*(J125<>0) -> 0 | N125: =VLOOKUP(r[0]c3&"Medium",CHOOSE({1,2},tbl_chemicals[Name]&tbl_chemicals[Rainfall],INDIRECT("tbl_chemicals["&var_crop&"]")),2,0) | O125: =(M125*$E125)+IFERROR(VLOOKUP($C125,tbl_chemicals[],MATCH("Adjuvant Cost/ha",tbl_chemicals[#Headers],0),0),0)*(M125<>0) -> 0 | Q125: =VLOOKUP(r[0]c3&"High",CHOOSE({1,2},tbl_chemicals[Name]&tbl_chemicals[Rainfall],INDIRECT("tbl_chemicals["&var_crop&"]")),2,0) | R125: =(P125*$E125)+IFERROR(VLOOKUP($C125,tbl_chemicals[],MATCH("Adjuvant Cost/ha",tbl_chemicals[#Headers],0),0),0)*(P125<>0) -> 0 | U125: =$U$6*(IF(rng_rainfall=1,L125,IF(rng_rainfall=2,O125,R125))) -> 0
F126: =VLOOKUP(r[0]c3,tbl_chemicals[[Name]:[Cost]],MATCH("Cost",tbl_chemicals[#Headers],0),0) | H126: =VLOOKUP(r[0]c3,tbl_chemicals[[Name]:[Cost]],MATCH("Units",tbl_chemicals[#Headers],0),0) | K126: =VLOOKUP(r[0]c3&"Low",CHOOSE({1,2},tbl_chemicals[Name]&tbl_chemicals[Rainfall],INDIRECT("tbl_chemicals["&var_crop&"]")),2,0) | L126: =(J126*$E126)+IFERROR(VLOOKUP($C126,tbl_chemicals[],MATCH("Adjuvant Cost/ha",tbl_chemicals[#Headers],0),0),0)*(J126<>0) -> 0 | N126: =VLOOKUP(r[0]c3&"Medium",CHOOSE({1,2},tbl_chemicals[Name]&tbl_chemicals[Rainfall],INDIRECT("tbl_chemicals["&var_crop&"]")),2,0) | O126: =(M126*$E126)+IFERROR(VLOOKUP($C126,tbl_chemicals[],MATCH("Adjuvant Cost/ha",tbl_chemicals[#Headers],0),0),0)*(M126<>0) -> 0 | Q126: =VLOOKUP(r[0]c3&"High",CHOOSE({1,2},tbl_chemicals[Name]&tbl_chemicals[Rainfall],INDIRECT("tbl_chemicals["&var_crop&"]")),2,0) | R126: =(P126*$E126)+IFERROR(VLOOKUP($C126,tbl_chemicals[],MATCH("Adjuvant Cost/ha",tbl_chemicals[#Headers],0),0),0)*(P126<>0) -> 0 | U126: =$U$6*(IF(rng_rainfall=1,L126,IF(rng_rainfall=2,O126,R126))) -> 0
F127: =VLOOKUP(r[0]c3,tbl_chemicals[[Name]:[Cost]],MATCH("Cost",tbl_chemicals[#Headers],0),0) | H127: =VLOOKUP(r[0]c3,tbl_chemicals[[Name]:[Cost]],MATCH("Units",tbl_chemicals[#Headers],0),0) | K127: =VLOOKUP(r[0]c3&"Low",CHOOSE({1,2},tbl_chemicals[Name]&tbl_chemicals[Rainfall],INDIRECT("tbl_chemicals["&var_crop&"]")),2,0) | L127: =(J127*$E127)+IFERROR(VLOOKUP($C127,tbl_chemicals[],MATCH("Adjuvant Cost/ha",tbl_chemicals[#Headers],0),0),0)*(J127<>0) -> 0 | N127: =VLOOKUP(r[0]c3&"Medium",CHOOSE({1,2},tbl_chemicals[Name]&tbl_chemicals[Rainfall],INDIRECT("tbl_chemicals["&var_crop&"]")),2,0) | O127: =(M127*$E127)+IFERROR(VLOOKUP($C127,tbl_chemicals[],MATCH("Adjuvant Cost/ha",tbl_chemicals[#Headers],0),0),0)*(M127<>0) -> 0 | Q127: =VLOOKUP(r[0]c3&"High",CHOOSE({1,2},tbl_chemicals[Name]&tbl_chemicals[Rainfall],INDIRECT("tbl_chemicals["&var_crop&"]")),2,0) | R127: =(P127*$E127)+IFERROR(VLOOKUP($C127,tbl_chemicals[],MATCH("Adjuvant Cost/ha",tbl_chemicals[#Headers],0),0),0)*(P127<>0) -> 0 | U127: =$U$6*(IF(rng_rainfall=1,L127,IF(rng_rainfall=2,O127,R127))) -> 0
D128: * Some chemicals require adjuvants. The cost of these is allowed for in the $/ha column.
C131: Operations | E131: Cost | G131: Unit | J131: Rate/ha | L131: $/ha | M131: Rate/ha | O131: $/ha | P131: Rate/ha | R131: $/ha | U131: $
C132: Fuel & Oil | I132: Reset $/ha | L132: =VLOOKUP($C132&"Low",CHOOSE({1,2},tbl_ops[Name]&tbl_ops[Rainfall],INDIRECT("tbl_ops["&var_crop&"]")),2,0)*(rng_machinery=2) -> 0 | M132: =VLOOKUP(r[0]c3&"Low",CHOOSE({1,2},tbl_ops[Name]&tbl_ops[Rainfall],INDIRECT("tbl_ops["&var_crop&"]")),2,0)*(rng_machinery=2) | O132: =VLOOKUP($C132&"Medium",CHOOSE({1,2},tbl_ops[Name]&tbl_ops[Rainfall],INDIRECT("tbl_ops["&var_crop&"]")),2,0)*(rng_machinery=2) -> 0 | P132: =VLOOKUP(r[0]c3&"Medium",CHOOSE({1,2},tbl_ops[Name]&tbl_ops[Rainfall],INDIRECT("tbl_ops["&var_crop&"]")),2,0)*(rng_machinery=2) | R132: =VLOOKUP($C132&"High",CHOOSE({1,2},tbl_ops[Name]&tbl_ops[Rainfall],INDIRECT("tbl_ops["&var_crop&"]")),2,0)*(rng_machinery=2) -> 0 | S132: =VLOOKUP(r[0]c3&"High",CHOOSE({1,2},tbl_ops[Name]&tbl_ops[Rainfall],INDIRECT("tbl_ops["&var_crop&"]")),2,0)*(rng_machinery=2) | U132: =$U$6*(IF(rng_rainfall=1,L132,IF(rng_rainfall=2,O132,R132))) -> 0
C133: Repairs & Maintenance | I133: Reset $/ha | L133: =VLOOKUP($C133&"Low",CHOOSE({1,2},tbl_ops[Name]&tbl_ops[Rainfall],INDIRECT("tbl_ops["&var_crop&"]")),2,0)*(rng_machinery=2) -> 0 | M133: =VLOOKUP(r[0]c3&"Low",CHOOSE({1,2},tbl_ops[Name]&tbl_ops[Rainfall],INDIRECT("tbl_ops["&var_crop&"]")),2,0)*(rng_machinery=2) | O133: =VLOOKUP($C133&"Medium",CHOOSE({1,2},tbl_ops[Name]&tbl_ops[Rainfall],INDIRECT("tbl_ops["&var_crop&"]")),2,0)*(rng_machinery=2) -> 0 | P133: =VLOOKUP(r[0]c3&"Medium",CHOOSE({1,2},tbl_ops[Name]&tbl_ops[Rainfall],INDIRECT("tbl_ops["&var_crop&"]")),2,0)*(rng_machinery=2) | R133: =VLOOKUP($C133&"High",CHOOSE({1,2},tbl_ops[Name]&tbl_ops[Rainfall],INDIRECT("tbl_ops["&var_crop&"]")),2,0)*(rng_machinery=2) -> 0 | S133: =VLOOKUP(r[0]c3&"High",CHOOSE({1,2},tbl_ops[Name]&tbl_ops[Rainfall],INDIRECT("tbl_ops["&var_crop&"]")),2,0)*(rng_machinery=2) | U133: =$U$6*(IF(rng_rainfall=1,L133,IF(rng_rainfall=2,O133,R133))) -> 0
C135: Freight
C136: Grain (t) | D136: Reset Cost | E136: =VLOOKUP($C136,tbl_ops[],MATCH(var_crop,tbl_ops[#Headers],0),0) -> 25 | F136: =VLOOKUP(R[0]C3,tbl_ops,MATCH(var_crop,tbl_ops[#Headers],0),0) | G136: =VLOOKUP($C136,tbl_ops[],MATCH("Unit",tbl_ops[#Headers],0),0) -> tonne | H136: =VLOOKUP(r[0]c3,tbl_ops,match("Unit",tbl_ops[#Headers],0),0) | I136: Reset Rate | J136: =L10 -> 1.8 | K136: =L10 | L136: =J136*E136 -> 45 | M136: =O10 -> 3.2 | N136: =O10 | O136: =M136*E136 -> 80 | P136: =R10 -> 4.8 | Q136: =R10 | R136: =P136*E136 -> 120 | S136: =P136*E136 | U136: =$U$6*(IF(rng_rainfall=1,L136,IF(rng_rainfall=2,O136,R136))) -> 0
C137: Fertiliser (t) | D137: Reset Cost | E137: =VLOOKUP($C137,tbl_ops[],MATCH(var_crop,tbl_ops[#Headers],0),0) -> 25 | F137: =VLOOKUP(R[0]C3,tbl_ops,MATCH(var_crop,tbl_ops[#Headers],0),0) | G137: =VLOOKUP($C137,tbl_ops[],MATCH("Unit",tbl_ops[#Headers],0),0) -> tonne | H137: =VLOOKUP(r[0]c3,tbl_ops,match("Unit",tbl_ops[#Headers],0),0) | I137: Reset Rate | J137: =SUM(J38:J52,-J40)/1000 -> 0.045 | K137: =SUM(J38:J52,-j40)/1000 | L137: =J137*E137 -> 1.125 | M137: =SUM(M38:M52,-M40)/1000 -> 0.17 | N137: =SUM(M38:M52,-m40)/1000 | O137: =M137*E137 -> 4.25 | P137: =SUM(P38:P52,-P40)/1000 -> 0.3 | Q137: =SUM(P38:P52,-p40)/1000 | R137: =P137*E137 -> 7.5 | S137: =P137*E137 | U137: =$U$6*(IF(rng_rainfall=1,L137,IF(rng_rainfall=2,O137,R137))) -> 0
C139: Operations: | D139: No of Operations
B140: =VLOOKUP(r[0]c3&"No Ops",CHOOSE({1,2},tbl_ops[Name]&tbl_ops[Category],INDIRECT("tbl_ops["&var_crop&"]")),2,0) | C140: Seeding | D140: =VLOOKUP($C140&"No Ops",CHOOSE({1,2},tbl_ops[Name]&tbl_ops[Category],INDIRECT("tbl_ops["&var_crop&"]")),2,0) -> 1 | E140: =VLOOKUP($C140&var_rain,CHOOSE({1,2},tbl_ops[Name]&tbl_ops[Rainfall],tbl_ops[Cost]),2,0)*(rng_machinery=1) ->  | F140: =VLOOKUP(r[0]c3&var_rain,CHOOSE({1,2},tbl_ops[Name]&tbl_ops[Rainfall],tbl_ops[Cost]),2,0)*(rng_machinery=1) | G140: =VLOOKUP($C140,tbl_ops[],MATCH("Unit",tbl_ops[#Headers],0),0) -> $/ha | H140: =VLOOKUP(r[0]c3,tbl_ops,match("Unit",tbl_ops[#Headers],0),0) | I140: <--Reset Cost/No | J140: =D140 -> 1 | L140: =J140*E140 ->  | M140: =D140 -> 1 | O140: =M140*E140 ->  | P140: =D140 -> 1 | R140: =P140*E140 ->  | U140: =$U$6*(IF(rng_rainfall=1,L140,IF(rng_rainfall=2,O140,R140))) -> 
B141: =VLOOKUP(r[0]c3&"No Ops",CHOOSE({1,2},tbl_ops[Name]&tbl_ops[Category],INDIRECT("tbl_ops["&var_crop&"]")),2,0) | C141: Spraying | D141: =VLOOKUP($C141&"No Ops",CHOOSE({1,2},tbl_ops[Name]&tbl_ops[Category],INDIRECT("tbl_ops["&var_crop&"]")),2,0) -> 4 | E141: =VLOOKUP($C141&var_rain,CHOOSE({1,2},tbl_ops[Name]&tbl_ops[Rainfall],tbl_ops[Cost]),2,0)*(rng_machinery=1) ->  | F141: =VLOOKUP(r[0]c3&var_rain,CHOOSE({1,2},tbl_ops[Name]&tbl_ops[Rainfall],tbl_ops[Cost]),2,0)*(rng_machinery=1) | G141: =VLOOKUP($C141,tbl_ops[],MATCH("Unit",tbl_ops[#Headers],0),0) -> $/ha | H141: =VLOOKUP(r[0]c3,tbl_ops,match("Unit",tbl_ops[#Headers],0),0) | I141: <--Reset Cost/No | J141: 4 | M141: =D141 -> 4 | O141: =M141*E141 ->  | P141: =D141 -> 4
B142: =VLOOKUP(r[0]c3&"No Ops",CHOOSE({1,2},tbl_ops[Name]&tbl_ops[Category],INDIRECT("tbl_ops["&var_crop&"]")),2,0) | C142: Harvest | D142: =VLOOKUP($C142&"No Ops",CHOOSE({1,2},tbl_ops[Name]&tbl_ops[Category],INDIRECT("tbl_ops["&var_crop&"]")),2,0) -> 1 | E142: =VLOOKUP($C142&"Low",CHOOSE({1,2},tbl_ops[Name]&tbl_ops[Rainfall],INDIRECT("tbl_ops["&var_crop&"]")),2,0)*(rng_machinery=1) -> 0 | F142: =VLOOKUP(r[0]c3&"Low",CHOOSE({1,2},tbl_ops[Name]&tbl_ops[Rainfall],INDIRECT("tbl_ops["&var_crop&"]")),2,0)*(rng_machinery=1) | G142: =VLOOKUP($C142,tbl_ops[],MATCH("Unit",tbl_ops[#Headers],0),0) -> $/ha | H142: =VLOOKUP(r[0]c3,tbl_ops,match("Unit",tbl_ops[#Headers],0),0) | I142: <--Reset Cost/No | J142: 1 | L142: 0 | M142: =D142 -> 1 | O142: =M142*E142 -> 0 | P142: =D142 -> 1 | R142: 0 | U142: 0
B143: =VLOOKUP(r[0]c3&"No Ops",CHOOSE({1,2},tbl_ops[Name]&tbl_ops[Category],INDIRECT("tbl_ops["&var_crop&"]")),2,0) | C143: dummy | D143: =VLOOKUP($C143&"No Ops",CHOOSE({1,2},tbl_ops[Name]&tbl_ops[Category],INDIRECT("tbl_ops["&var_crop&"]")),2,0) -> 0 | E143: =VLOOKUP($C143&var_rain,CHOOSE({1,2},tbl_ops[Name]&tbl_ops[Rainfall],tbl_ops[Cost]),2,0)*(rng_machinery=1) ->  | F143: =VLOOKUP(r[0]c3&var_rain,CHOOSE({1,2},tbl_ops[Name]&tbl_ops[Rainfall],tbl_ops[Cost]),2,0)*(rng_machinery=1) | G143: =VLOOKUP($C143,tbl_ops[],MATCH("Unit",tbl_ops[#Headers],0),0) -> 0 | H143: =VLOOKUP(r[0]c3,tbl_ops,match("Unit",tbl_ops[#Headers],0),0) | I143: <--Reset Cost/No | J143: 0 | M143: =D143 -> 0 | O143: =M143*E143 ->  | P143: =D143 -> 0 | R143: =P143*E143 ->  | U143: =$U$6*(IF(rng_rainfall=1,L143,IF(rng_rainfall=2,O143,R143))) -> 
B144: =VLOOKUP(r[0]c3&"No Ops",CHOOSE({1,2},tbl_ops[Name]&tbl_ops[Category],INDIRECT("tbl_ops["&var_crop&"]")),2,0) | C144: dummy | D144: =VLOOKUP($C144&"No Ops",CHOOSE({1,2},tbl_ops[Name]&tbl_ops[Category],INDIRECT("tbl_ops["&var_crop&"]")),2,0) -> 0 | E144: =VLOOKUP($C144&var_rain,CHOOSE({1,2},tbl_ops[Name]&tbl_ops[Rainfall],tbl_ops[Cost]),2,0)*(rng_machinery=1) ->  | F144: =VLOOKUP(r[0]c3&var_rain,CHOOSE({1,2},tbl_ops[Name]&tbl_ops[Rainfall],tbl_ops[Cost]),2,0)*(rng_machinery=1) | G144: =VLOOKUP($C144,tbl_ops[],MATCH("Unit",tbl_ops[#Headers],0),0) -> 0 | H144: =VLOOKUP(r[0]c3,tbl_ops,match("Unit",tbl_ops[#Headers],0),0) | I144: <--Reset Cost/No | J144: 0 | M144: 0 | P144: 0
B145: =VLOOKUP(r[0]c3&var_rain,CHOOSE({1,2},tbl_ops[Name]&tbl_ops[Rainfall],INDIRECT("tbl_ops["&var_crop&"]")),2,0) | C145: Aerial spraying | D145: =VLOOKUP($C145&var_rain,CHOOSE({1,2},tbl_ops[Name]&tbl_ops[Rainfall],INDIRECT("tbl_ops["&var_crop&"]")),2,0) ->  | E145: =VLOOKUP($C145&var_rain,CHOOSE({1,2},tbl_ops[Name]&tbl_ops[Rainfall],tbl_ops[Cost]),2,0) ->  | F145: =VLOOKUP(r[0]c3&var_rain,CHOOSE({1,2},tbl_ops[Name]&tbl_ops[Rainfall],tbl_ops[Cost]),2,0) | G145: =VLOOKUP($C145,tbl_ops[],MATCH("Unit",tbl_ops[#Headers],0),0) -> $/ha | H145: =VLOOKUP(r[0]c3,tbl_ops,match("Unit",tbl_ops[#Headers],0),0) | I145: <--Reset Cost/No | M145: =D145 ->  | O145: =M145*E145 ->  | P145: =D145 ->  | R145: =P145*E145 -> 
B146: =VLOOKUP(r[0]c3&var_rain,CHOOSE({1,2},tbl_ops[Name]&tbl_ops[Rainfall],INDIRECT("tbl_ops["&var_crop&"]")),2,0) | C146: Urea Spreading | D146: =VLOOKUP($C146&var_rain,CHOOSE({1,2},tbl_ops[Name]&tbl_ops[Rainfall],INDIRECT("tbl_ops["&var_crop&"]")),2,0) ->  | E146: =VLOOKUP($C146&var_rain,CHOOSE({1,2},tbl_ops[Name]&tbl_ops[Rainfall],tbl_ops[Cost]),2,0) ->  | F146: =VLOOKUP(r[0]c3&var_rain,CHOOSE({1,2},tbl_ops[Name]&tbl_ops[Rainfall],tbl_ops[Cost]),2,0) | G146: =VLOOKUP($C146,tbl_ops[],MATCH("Unit",tbl_ops[#Headers],0),0) -> $/ha | H146: =VLOOKUP(r[0]c3,tbl_ops,match("Unit",tbl_ops[#Headers],0),0) | I146: <--Reset Cost/No | J146: =D146 ->  | L146: =J146*E146 ->  | M146: =D146 ->  | O146: =M146*E146 ->  | P146: =D146 ->  | R146: =P146*E146 -> 
B147: =VLOOKUP(r[0]c3&var_rain,CHOOSE({1,2},tbl_ops[Name]&tbl_ops[Rainfall],INDIRECT("tbl_ops["&var_crop&"]")),2,0) | C147: dummy | D147: =VLOOKUP($C147&var_rain,CHOOSE({1,2},tbl_ops[Name]&tbl_ops[Rainfall],INDIRECT("tbl_ops["&var_crop&"]")),2,0) ->  | E147: =VLOOKUP($C147&var_rain,CHOOSE({1,2},tbl_ops[Name]&tbl_ops[Rainfall],tbl_ops[Cost]),2,0) ->  | F147: =VLOOKUP(r[0]c3&var_rain,CHOOSE({1,2},tbl_ops[Name]&tbl_ops[Rainfall],tbl_ops[Cost]),2,0) | G147: =VLOOKUP($C147,tbl_ops[],MATCH("Unit",tbl_ops[#Headers],0),0) -> 0 | H147: =VLOOKUP(r[0]c3,tbl_ops,match("Unit",tbl_ops[#Headers],0),0) | I147: <--Reset Cost/No
B148: =VLOOKUP(r[0]c3&var_rain,CHOOSE({1,2},tbl_ops[Name]&tbl_ops[Rainfall],INDIRECT("tbl_ops["&var_crop&"]")),2,0) | C148: dummy | D148: =VLOOKUP($C148&var_rain,CHOOSE({1,2},tbl_ops[Name]&tbl_ops[Rainfall],INDIRECT("tbl_ops["&var_crop&"]")),2,0) ->  | E148: =VLOOKUP($C148&var_rain,CHOOSE({1,2},tbl_ops[Name]&tbl_ops[Rainfall],tbl_ops[Cost]),2,0) ->  | F148: =VLOOKUP(r[0]c3&var_rain,CHOOSE({1,2},tbl_ops[Name]&tbl_ops[Rainfall],tbl_ops[Cost]),2,0) | G148: =VLOOKUP($C148,tbl_ops[],MATCH("Unit",tbl_ops[#Headers],0),0) -> 0 | H148: =VLOOKUP(r[0]c3,tbl_ops,match("Unit",tbl_ops[#Headers],0),0) | I148: <--Reset Cost/No
J149: =D149 -> 0 | L149: =J149*E149 -> 0 | M149: =D149 -> 0 | O149: =M149*E149 -> 0 | P149: =D149 -> 0 | R149: =P149*E149 -> 0 | U149: 0
J150: =D150 -> 0 | L150: =J150*E150 -> 0 | M150: =D150 -> 0 | O150: =M150*E150 -> 0 | P150: =D150 -> 0 | R150: =P150*E150 -> 0 | U150: 0
C151: Insurance | E151: =VLOOKUP($C151,tbl_ops[],MATCH(var_crop,tbl_ops[#Headers],0),0) -> 9 | F151: =VLOOKUP(r[0]c3,tbl_ops,MATCH(var_crop,tbl_ops[#Headers],0),0) | G151: =VLOOKUP($C151,tbl_ops[],MATCH("Unit",tbl_ops[#Headers],0),0) -> $/$1000 | H151: =VLOOKUP(r[0]c3,tbl_ops,match("Unit",tbl_ops[#Headers],0),0) | I151: <--Reset Cost | L151: =L11/1000*$E151 -> 5.67 | O151: =O11/1000*$E151 -> 10.08 | R151: =R11/1000*$E151 -> 15.12 | U151: 0
C152: Other | D152: No of Operations
J153: =D153 -> 0 | L153: =J153*E153 -> 0 | M153: =D153 -> 0 | O153: =M153*E153 -> 0 | P153: =D153 -> 0 | R153: =P153*E153 -> 0 | U153: =$U$6*(IF(rng_rainfall=1,L153,IF(rng_rainfall=2,O153,R153))) -> 0
J154: =D154 -> 0 | L154: =J154*E154 -> 0 | M154: =D154 -> 0 | O154: =M154*E154 -> 0 | P154: =D154 -> 0 | R154: =P154*E154 -> 0 | U154: =$U$6*(IF(rng_rainfall=1,L154,IF(rng_rainfall=2,O154,R154))) -> 0
J155: =D155 -> 0 | L155: =J155*E155 -> 0 | M155: =D155 -> 0 | O155: =M155*E155 -> 0 | P155: =D155 -> 0 | R155: =P155*E155 -> 0 | U155: =$U$6*(IF(rng_rainfall=1,L155,IF(rng_rainfall=2,O155,R155))) -> 0
J156: =D156 -> 0 | L156: =J156*E156 -> 0 | M156: =D156 -> 0 | O156: =M156*E156 -> 0 | P156: =D156 -> 0 | R156: =P156*E156 -> 0 | U156: =$U$6*(IF(rng_rainfall=1,L156,IF(rng_rainfall=2,O156,R156))) -> 0
C160: TOTAL VARIABLE COSTS | L160: =SUM(SUMIF(L15:L157,{"<0",">0"})) -> 270.2281 | O160: =SUM(SUMIF(O15:O157,{"<0",">0"})) -> 560.57346 | R160: =SUM(SUMIF(R15:R157,{"<0",">0"})) -> 860.37066 | U160: =$U$6*(IF(rng_rainfall=1,L160,IF(rng_rainfall=2,O160,R160))) -> 0
C162: GROSS MARGIN/hectare | L162: =L11-L160 -> 359.7719 | O162: =O11-O160 -> 559.42654 | R162: =R11-R160 -> 819.62934 | U162: =$U$6*(IF(rng_rainfall=1,L162,IF(rng_rainfall=2,O162,R162))) -> 0
C164: Break Even Price (to cover variable costs only) | L164: =L160/L10 -> 150.1267222 | O164: =O160/O10 -> 175.1792062 | R164: =R160/R10 -> 179.2438875
C166: Break Even Yield (to cover variable costs only) | L166: =L160/L8 -> 0.7720802857 | O166: =O160/O8 -> 1.601638457 | R166: =R160/R8 -> 2.458201886

Sheet WHEAT R2 (hidden)
C1: Wheat | F1: hide | G1: show | H1: hide | I1: show | J1: =IF(rng_rainfall=1,"show","hide") -> hide | K1: hide | L1: =IF(rng_rainfall=1,"show","hide") -> hide | M1: =IF(rng_rainfall=2,"show","hide") -> hide | N1: hide | O1: =IF(rng_rainfall=2,"show","hide") -> hide | P1: =IF(rng_rainfall=3,"show","hide") -> hide | Q1: hide | R1: =IF(rng_rainfall=3,"show","hide") -> hide | S1: hide
C2: =UPPER(var_crop)&" ROTATION 2 GROSS MARGIN - "&TEXT(m_year,"0000") -> WHEAT ROTATION 2 GROSS MARGIN - 2022
Y3: Reset Yellow Cell Formulas Below
C4: INCOME | L4: RAINFALL | O4: RAINFALL | R4: RAINFALL | U4: YOUR | Z4: ="GM SENSITIVITY-"&var_crop -> GM SENSITIVITY-Wheat | AD4: Cash Price $/t
C5: =IF(rng_rainfall="","PLEASE SELECT A RAINFALL ZONE ON THE MAIN SHEET!","") -> PLEASE SELECT A RAINFALL ZONE ON THE MAIN SHEET! | L5: ZONE | O5: ZONE | R5: ZONE | U5: ESTIMATE | Z5: =var_rain&" Rainfall" ->  | AB5: Poor | AC5: Below Average | AD5: Average | AE5: Above Average | AF5: Very Good
C6: =IF(rng_machinery="","PLEASE SELECT A MACHINERY METHOD ON THE MAIN SHEET!","") -> PLEASE SELECT A MACHINERY METHOD ON THE MAIN SHEET! | L6: LOW | O6: MEDIUM | R6: HIGH | V6: =IF(ISBLANK(U6),"<-Enter Crop Size in Ha","Ha") -> <-Enter Crop Size in Ha | AA6: Yield $/t | AB6: =VLOOKUP(var_crop,tbl_hist_prices[],MATCH("Price_"&var_rain&"_"&AB$5,tbl_hist_prices[#Headers],0),0) ->  | AC6: =VLOOKUP(var_crop,tbl_hist_prices[],MATCH("Price_"&var_rain&"_"&AC$5,tbl_hist_prices[#Headers],0),0) ->  | AD6: =VLOOKUP(var_crop,tbl_hist_prices[],MATCH("Price_"&var_rain&"_"&AD$5,tbl_hist_prices[#Headers],0),0) ->  | AE6: =VLOOKUP(var_crop,tbl_hist_prices[],MATCH("Price_"&var_rain&"_"&AE$5,tbl_hist_prices[#Headers],0),0) ->  | AF6: =VLOOKUP(var_crop,tbl_hist_prices[],MATCH("Price_"&var_rain&"_"&AF$5,tbl_hist_prices[#Headers],0),0) -> 
Z7: Poor | AA7: =VLOOKUP(var_crop,tbl_hist_prices[],MATCH(var_rain&"_"&Z7,tbl_hist_prices[#Headers],0),0) ->  | AB7: =AB$6*$AA7-SUM(OFFSET($L$15,0,(rng_rainfall*3)-3,15),OFFSET($L$38,0,(rng_rainfall*3)-3,98),OFFSET($L$137,0,(rng_rainfall*3)-3,11),OFFSET($L$153,0,(rng_rainfall*3)-3,4))-AB$6*$AA7*($E$32+$E$151/1000)-$AA7*($E$33+$E$136) -> 
C8: ="Price ("&Year_Short&" Forecast)" -> Price (22/23 Forecast) | I8: Reset Price | L8: =VLOOKUP(var_crop,tbl_hist_prices[#Data],MATCH("Price_"&L6&"_Average",tbl_hist_prices[#Headers],0),0) -> 350 | M8: =VLOOKUP(var_crop,tbl_hist_prices[#Data],MATCH("Price_"&R[-2]C&"_Average",tbl_hist_prices[#Headers],0),0) | O8: =VLOOKUP(var_crop,tbl_hist_prices[#Data],MATCH("Price_"&O6&"_Average",tbl_hist_prices[#Headers],0),0) -> 350 | P8: =VLOOKUP(var_crop,tbl_hist_prices[#Data],MATCH("Price_"&R[-2]C&"_Average",tbl_hist_prices[#Headers],0),0) | R8: =VLOOKUP(var_crop,tbl_hist_prices[#Data],MATCH("Price_"&R6&"_Average",tbl_hist_prices[#Headers],0),0) -> 350 | S8: =VLOOKUP(var_crop,tbl_hist_prices[#Data],MATCH("Price_"&R[-2]C&"_Average",tbl_hist_prices[#Headers],0),0) | U8: =$U$6*(IF(rng_rainfall=1,L8*L10,IF(rng_rainfall=2,O8*O10,R8*R10))) -> 0 | Z8: Below Average | AA8: =VLOOKUP(var_crop,tbl_hist_prices[],MATCH(var_rain&"_"&Z8,tbl_hist_prices[#Headers],0),0) -> 
Z9: Average | AA9: =VLOOKUP(var_crop,tbl_hist_prices[],MATCH(var_rain&"_"&Z9,tbl_hist_prices[#Headers],0),0) -> 
C10: Yield (t/ha) | I10: Reset Yield | L10: =VLOOKUP(var_crop,tbl_hist_prices[],MATCH("LOW"&"_AVERAGE",tbl_hist_prices[[#Headers],[Commodity]:[High_Very Good]],0),0) -> 1.8 | M10: =VLOOKUP(var_crop,tbl_hist_prices,MATCH("LOW"&"_AVERAGE",tbl_hist_prices[[#Headers],[Commodity]:[High_Very Good]],0),0) | O10: =VLOOKUP(var_crop,tbl_hist_prices[],MATCH("MEDIUM"&"_AVERAGE",tbl_hist_prices[[#Headers],[Commodity]:[High_Very Good]],0),0) -> 3.2 | P10: =VLOOKUP(var_crop,tbl_hist_prices,MATCH("MEDIUM"&"_AVERAGE",tbl_hist_prices[[#Headers],[Commodity]:[High_Very Good]],0),0) | R10: =VLOOKUP(var_crop,tbl_hist_prices[],MATCH("HIGH"&"_AVERAGE",tbl_hist_prices[[#Headers],[Commodity]:[High_Very Good]],0),0) -> 4.8 | S10: =VLOOKUP(var_crop,tbl_hist_prices,MATCH("HIGH"&"_AVERAGE",tbl_hist_prices[[#Headers],[Commodity]:[High_Very Good]],0),0) | Z10: Above Average | AA10: =VLOOKUP(var_crop,tbl_hist_prices[],MATCH(var_rain&"_"&Z10,tbl_hist_prices[#Headers],0),0) -> 
C11: GROSS INCOME | L11: =L8*L10 -> 630 | O11: =O8*O10 -> 1120 | R11: =R8*R10 -> 1680 | U11: =SUM(U8:U10) -> 0 | Z11: Very Good | AA11: =VLOOKUP(var_crop,tbl_hist_prices[],MATCH(var_rain&"_"&Z11,tbl_hist_prices[#Headers],0),0) -> 
C12: VARIABLE COSTS
C14: Seed | E14: Cost | G14: Unit | J14: Rate/ha | L14: $/ha | M14: Rate/ha | O14: $/ha | P14: Rate/ha | R14: $/ha | U14: $
C15: Seed | D15: Reset Cost | E15: =VLOOKUP($C15&"Cost",CHOOSE({1,2},tbl_seed[Name]&tbl_seed[Type],INDIRECT("tbl_seed["&var_crop&"]")),2,0) -> 0.41 | F15: =VLOOKUP(R[0]C3&"Cost",CHOOSE({1,2},tbl_seed[Name]&tbl_seed[Type],INDIRECT("tbl_seed["&var_crop&"]")),2,0) | G15: =VLOOKUP($C15&"Cost",CHOOSE({1,2},tbl_seed[Name]&tbl_seed[Type],tbl_seed[Unit]),2,0) -> $/kg | H15: =VLOOKUP(r[0]c3&"Cost",CHOOSE({1,2},tbl_seed[Name]&tbl_seed[Type],tbl_seed[Unit]),2,0) | I15: Reset Rate | J15: =VLOOKUP($C15&"Low",CHOOSE({1,2},tbl_seed[Name]&tbl_seed[Rainfall],INDIRECT("tbl_seed["&var_crop&"]")),2,0) -> 60 | K15: =VLOOKUP(r[0]c3&"Low",CHOOSE({1,2},tbl_seed[Name]&tbl_seed[Rainfall],INDIRECT("tbl_seed["&var_crop&"]")),2,0) | L15: =(J15*E15) -> 24.6 | M15: =VLOOKUP($C15&"Medium",CHOOSE({1,2},tbl_seed[Name]&tbl_seed[Rainfall],INDIRECT("tbl_seed["&var_crop&"]")),2,0) -> 80 | N15: =VLOOKUP(r[0]c3&"Medium",CHOOSE({1,2},tbl_seed[Name]&tbl_seed[Rainfall],INDIRECT("tbl_seed["&var_crop&"]")),2,0) | O15: =(M15*E15) -> 32.8 | P15: =VLOOKUP($C15&"High",CHOOSE({1,2},tbl_seed[Name]&tbl_seed[Rainfall],INDIRECT("tbl_seed["&var_crop&"]")),2,0) -> 100 | Q15: =VLOOKUP(r[0]c3&"High",CHOOSE({1,2},tbl_seed[Name]&tbl_seed[Rainfall],INDIRECT("tbl_seed["&var_crop&"]")),2,0) | R15: =P15*E15 -> 41 | U15: =$U$6*(IF(rng_rainfall=1,L15,IF(rng_rainfall=2,O15,R15))) -> 0
C16: Seed Treatment(1) Smuts and Bunts | D16: Reset Cost | E16: =VLOOKUP($C16&"Cost",CHOOSE({1,2},tbl_seed[Name]&tbl_seed[Type],INDIRECT("tbl_seed["&var_crop&"]")),2,0) -> 0.046 | F16: =VLOOKUP(R[0]C3&"Cost",CHOOSE({1,2},tbl_seed[Name]&tbl_seed[Type],INDIRECT("tbl_seed["&var_crop&"]")),2,0) | G16: =VLOOKUP($C16&"Cost",CHOOSE({1,2},tbl_seed[Name]&tbl_seed[Type],tbl_seed[Unit]),2,0) -> $/kg | H16: =VLOOKUP(r[0]c3&"Cost",CHOOSE({1,2},tbl_seed[Name]&tbl_seed[Type],tbl_seed[Unit]),2,0) | I16: Reset Rate | J16: =VLOOKUP($C16&"Low",CHOOSE({1,2},tbl_seed[Name]&tbl_seed[Rainfall],INDIRECT("tbl_seed["&var_crop&"]")),2,0) -> 60 | K16: =VLOOKUP(r[0]c3&"Low",CHOOSE({1,2},tbl_seed[Name]&tbl_seed[Rainfall],INDIRECT("tbl_seed["&var_crop&"]")),2,0) | L16: 2.76 | M16: =VLOOKUP($C16&"Medium",CHOOSE({1,2},tbl_seed[Name]&tbl_seed[Rainfall],INDIRECT("tbl_seed["&var_crop&"]")),2,0) -> 80 | N16: =VLOOKUP(r[0]c3&"Medium",CHOOSE({1,2},tbl_seed[Name]&tbl_seed[Rainfall],INDIRECT("tbl_seed["&var_crop&"]")),2,0) | O16: 3.68 | P16: =VLOOKUP($C16&"High",CHOOSE({1,2},tbl_seed[Name]&tbl_seed[Rainfall],INDIRECT("tbl_seed["&var_crop&"]")),2,0) -> 100 | Q16: =VLOOKUP(r[0]c3&"High",CHOOSE({1,2},tbl_seed[Name]&tbl_seed[Rainfall],INDIRECT("tbl_seed["&var_crop&"]")),2,0) | R16: 4.6 | U16: 0
C17: Seed Treatment(2) Systiva Seed Dressing | D17: Reset Cost | E17: =VLOOKUP($C17&"Cost",CHOOSE({1,2},tbl_seed[Name]&tbl_seed[Type],INDIRECT("tbl_seed["&var_crop&"]")),2,0) -> 0.10476 | F17: =VLOOKUP(R[0]C3&"Cost",CHOOSE({1,2},tbl_seed[Name]&tbl_seed[Type],INDIRECT("tbl_seed["&var_crop&"]")),2,0) | G17: =VLOOKUP($C17&"Cost",CHOOSE({1,2},tbl_seed[Name]&tbl_seed[Type],tbl_seed[Unit]),2,0) -> $/kg | H17: =VLOOKUP(r[0]c3&"Cost",CHOOSE({1,2},tbl_seed[Name]&tbl_seed[Type],tbl_seed[Unit]),2,0) | I17: Reset Rate | J17: =VLOOKUP($C17&"Low",CHOOSE({1,2},tbl_seed[Name]&tbl_seed[Rainfall],INDIRECT("tbl_seed["&var_crop&"]")),2,0) -> 60 | K17: =VLOOKUP(r[0]c3&"Low",CHOOSE({1,2},tbl_seed[Name]&tbl_seed[Rainfall],INDIRECT("tbl_seed["&var_crop&"]")),2,0) | L17: 6.2856 | M17: =VLOOKUP($C17&"Medium",CHOOSE({1,2},tbl_seed[Name]&tbl_seed[Rainfall],INDIRECT("tbl_seed["&var_crop&"]")),2,0) -> 80 | N17: =VLOOKUP(r[0]c3&"Medium",CHOOSE({1,2},tbl_seed[Name]&tbl_seed[Rainfall],INDIRECT("tbl_seed["&var_crop&"]")),2,0) | O17: 8.3808 | P17: =VLOOKUP($C17&"High",CHOOSE({1,2},tbl_seed[Name]&tbl_seed[Rainfall],INDIRECT("tbl_seed["&var_crop&"]")),2,0) -> 100 | Q17: =VLOOKUP(r[0]c3&"High",CHOOSE({1,2},tbl_seed[Name]&tbl_seed[Rainfall],INDIRECT("tbl_seed["&var_crop&"]")),2,0) | R17: 10.476 | U17: 0
D18: Reset Cost | F18: =VLOOKUP(R[0]C3&"Cost",CHOOSE({1,2},tbl_seed[Name]&tbl_seed[Type],INDIRECT("tbl_seed["&var_crop&"]")),2,0) | H18: =VLOOKUP(r[0]c3&"Cost",CHOOSE({1,2},tbl_seed[Name]&tbl_seed[Type],tbl_seed[Unit]),2,0) | I18: Reset Rate | K18: =VLOOKUP(r[0]c3&"Low",CHOOSE({1,2},tbl_seed[Name]&tbl_seed[Rainfall],INDIRECT("tbl_seed["&var_crop&"]")),2,0) | L18: 0 | N18: =VLOOKUP(r[0]c3&"Medium",CHOOSE({1,2},tbl_seed[Name]&tbl_seed[Rainfall],INDIRECT("tbl_seed["&var_crop&"]")),2,0) | O18: 0 | Q18: =VLOOKUP(r[0]c3&"High",CHOOSE({1,2},tbl_seed[Name]&tbl_seed[Rainfall],INDIRECT("tbl_seed["&var_crop&"]")),2,0) | R18: 0 | U18: 0
D19: Reset Cost | F19: =VLOOKUP(R[0]C3&"Cost",CHOOSE({1,2},tbl_seed[Name]&tbl_seed[Type],INDIRECT("tbl_seed["&var_crop&"]")),2,0) | H19: =VLOOKUP(r[0]c3&"Cost",CHOOSE({1,2},tbl_seed[Name]&tbl_seed[Type],tbl_seed[Unit]),2,0) | I19: Reset Rate | K19: =VLOOKUP(r[0]c3&"Low",CHOOSE({1,2},tbl_seed[Name]&tbl_seed[Rainfall],INDIRECT("tbl_seed["&var_crop&"]")),2,0) | L19: 0 | N19: =VLOOKUP(r[0]c3&"Medium",CHOOSE({1,2},tbl_seed[Name]&tbl_seed[Rainfall],INDIRECT("tbl_seed["&var_crop&"]")),2,0) | O19: 0 | Q19: =VLOOKUP(r[0]c3&"High",CHOOSE({1,2},tbl_seed[Name]&tbl_seed[Rainfall],INDIRECT("tbl_seed["&var_crop&"]")),2,0) | R19: 0 | U19: 0
D20: Reset Cost | F20: =VLOOKUP(R[0]C3&"Cost",CHOOSE({1,2},tbl_seed[Name]&tbl_seed[Type],INDIRECT("tbl_seed["&var_crop&"]")),2,0) | H20: =VLOOKUP(r[0]c3&"Cost",CHOOSE({1,2},tbl_seed[Name]&tbl_seed[Type],tbl_seed[Unit]),2,0) | I20: Reset Rate | K20: =VLOOKUP(r[0]c3&"Low",CHOOSE({1,2},tbl_seed[Name]&tbl_seed[Rainfall],INDIRECT("tbl_seed["&var_crop&"]")),2,0) | L20: 0 | N20: =VLOOKUP(r[0]c3&"Medium",CHOOSE({1,2},tbl_seed[Name]&tbl_seed[Rainfall],INDIRECT("tbl_seed["&var_crop&"]")),2,0) | O20: 0 | Q20: =VLOOKUP(r[0]c3&"High",CHOOSE({1,2},tbl_seed[Name]&tbl_seed[Rainfall],INDIRECT("tbl_seed["&var_crop&"]")),2,0) | R20: 0 | U20: 0
D21: Reset Cost | F21: =VLOOKUP(R[0]C3&"Cost",CHOOSE({1,2},tbl_seed[Name]&tbl_seed[Type],INDIRECT("tbl_seed["&var_crop&"]")),2,0) | H21: =VLOOKUP(r[0]c3&"Cost",CHOOSE({1,2},tbl_seed[Name]&tbl_seed[Type],tbl_seed[Unit]),2,0) | I21: Reset Rate | K21: =VLOOKUP(r[0]c3&"Low",CHOOSE({1,2},tbl_seed[Name]&tbl_seed[Rainfall],INDIRECT("tbl_seed["&var_crop&"]")),2,0) | L21: 0 | N21: =VLOOKUP(r[0]c3&"Medium",CHOOSE({1,2},tbl_seed[Name]&tbl_seed[Rainfall],INDIRECT("tbl_seed["&var_crop&"]")),2,0) | O21: 0 | Q21: =VLOOKUP(r[0]c3&"High",CHOOSE({1,2},tbl_seed[Name]&tbl_seed[Rainfall],INDIRECT("tbl_seed["&var_crop&"]")),2,0) | R21: 0 | U21: 0
D22: Reset Cost | F22: =VLOOKUP(R[0]C3&"Cost",CHOOSE({1,2},tbl_seed[Name]&tbl_seed[Type],INDIRECT("tbl_seed["&var_crop&"]")),2,0) | H22: =VLOOKUP(r[0]c3&"Cost",CHOOSE({1,2},tbl_seed[Name]&tbl_seed[Type],tbl_seed[Unit]),2,0) | I22: Reset Rate | K22: =VLOOKUP(r[0]c3&"Low",CHOOSE({1,2},tbl_seed[Name]&tbl_seed[Rainfall],INDIRECT("tbl_seed["&var_crop&"]")),2,0) | L22: 0 | N22: =VLOOKUP(r[0]c3&"Medium",CHOOSE({1,2},tbl_seed[Name]&tbl_seed[Rainfall],INDIRECT("tbl_seed["&var_crop&"]")),2,0) | O22: 0 | Q22: =VLOOKUP(r[0]c3&"High",CHOOSE({1,2},tbl_seed[Name]&tbl_seed[Rainfall],INDIRECT("tbl_seed["&var_crop&"]")),2,0) | R22: 0 | U22: 0
D23: Reset Cost | F23: =VLOOKUP(R[0]C3&"Cost",CHOOSE({1,2},tbl_seed[Name]&tbl_seed[Type],INDIRECT("tbl_seed["&var_crop&"]")),2,0) | H23: =VLOOKUP(r[0]c3&"Cost",CHOOSE({1,2},tbl_seed[Name]&tbl_seed[Type],tbl_seed[Unit]),2,0) | I23: Reset Rate | K23: =VLOOKUP(r[0]c3&"Low",CHOOSE({1,2},tbl_seed[Name]&tbl_seed[Rainfall],INDIRECT("tbl_seed["&var_crop&"]")),2,0) | L23: 0 | N23: =VLOOKUP(r[0]c3&"Medium",CHOOSE({1,2},tbl_seed[Name]&tbl_seed[Rainfall],INDIRECT("tbl_seed["&var_crop&"]")),2,0) | O23: 0 | Q23: =VLOOKUP(r[0]c3&"High",CHOOSE({1,2},tbl_seed[Name]&tbl_seed[Rainfall],INDIRECT("tbl_seed["&var_crop&"]")),2,0) | R23: 0 | U23: 0
D24: Reset Cost | F24: =VLOOKUP(R[0]C3&"Cost",CHOOSE({1,2},tbl_seed[Name]&tbl_seed[Type],INDIRECT("tbl_seed["&var_crop&"]")),2,0) | H24: =VLOOKUP(r[0]c3&"Cost",CHOOSE({1,2},tbl_seed[Name]&tbl_seed[Type],tbl_seed[Unit]),2,0) | I24: Reset Rate | K24: =VLOOKUP(r[0]c3&"Low",CHOOSE({1,2},tbl_seed[Name]&tbl_seed[Rainfall],INDIRECT("tbl_seed["&var_crop&"]")),2,0) | L24: 0 | N24: =VLOOKUP(r[0]c3&"Medium",CHOOSE({1,2},tbl_seed[Name]&tbl_seed[Rainfall],INDIRECT("tbl_seed["&var_crop&"]")),2,0) | O24: 0 | Q24: =VLOOKUP(r[0]c3&"High",CHOOSE({1,2},tbl_seed[Name]&tbl_seed[Rainfall],INDIRECT("tbl_seed["&var_crop&"]")),2,0) | R24: 0 | U24: 0
D25: Reset Cost | F25: =VLOOKUP(R[0]C3&"Cost",CHOOSE({1,2},tbl_seed[Name]&tbl_seed[Type],INDIRECT("tbl_seed["&var_crop&"]")),2,0) | H25: =VLOOKUP(r[0]c3&"Cost",CHOOSE({1,2},tbl_seed[Name]&tbl_seed[Type],tbl_seed[Unit]),2,0) | I25: Reset Rate | K25: =VLOOKUP(r[0]c3&"Low",CHOOSE({1,2},tbl_seed[Name]&tbl_seed[Rainfall],INDIRECT("tbl_seed["&var_crop&"]")),2,0) | L25: 0 | N25: =VLOOKUP(r[0]c3&"Medium",CHOOSE({1,2},tbl_seed[Name]&tbl_seed[Rainfall],INDIRECT("tbl_seed["&var_crop&"]")),2,0) | O25: 0 | Q25: =VLOOKUP(r[0]c3&"High",CHOOSE({1,2},tbl_seed[Name]&tbl_seed[Rainfall],INDIRECT("tbl_seed["&var_crop&"]")),2,0) | R25: 0 | U25: 0
D26: Reset Cost | F26: =VLOOKUP(R[0]C3&"Cost",CHOOSE({1,2},tbl_seed[Name]&tbl_seed[Type],INDIRECT("tbl_seed["&var_crop&"]")),2,0) | H26: =VLOOKUP(r[0]c3&"Cost",CHOOSE({1,2},tbl_seed[Name]&tbl_seed[Type],tbl_seed[Unit]),2,0) | I26: Reset Rate | K26: =VLOOKUP(r[0]c3&"Low",CHOOSE({1,2},tbl_seed[Name]&tbl_seed[Rainfall],INDIRECT("tbl_seed["&var_crop&"]")),2,0) | L26: 0 | N26: =VLOOKUP(r[0]c3&"Medium",CHOOSE({1,2},tbl_seed[Name]&tbl_seed[Rainfall],INDIRECT("tbl_seed["&var_crop&"]")),2,0) | O26: 0 | Q26: =VLOOKUP(r[0]c3&"High",CHOOSE({1,2},tbl_seed[Name]&tbl_seed[Rainfall],INDIRECT("tbl_seed["&var_crop&"]")),2,0) | R26: 0 | U26: 0
D27: Reset Cost | F27: =VLOOKUP(R[0]C3&"Cost",CHOOSE({1,2},tbl_seed[Name]&tbl_seed[Type],INDIRECT("tbl_seed["&var_crop&"]")),2,0) | H27: =VLOOKUP(r[0]c3&"Cost",CHOOSE({1,2},tbl_seed[Name]&tbl_seed[Type],tbl_seed[Unit]),2,0) | I27: Reset Rate | K27: =VLOOKUP(r[0]c3&"Low",CHOOSE({1,2},tbl_seed[Name]&tbl_seed[Rainfall],INDIRECT("tbl_seed["&var_crop&"]")),2,0) | L27: 0 | N27: =VLOOKUP(r[0]c3&"Medium",CHOOSE({1,2},tbl_seed[Name]&tbl_seed[Rainfall],INDIRECT("tbl_seed["&var_crop&"]")),2,0) | O27: 0 | Q27: =VLOOKUP(r[0]c3&"High",CHOOSE({1,2},tbl_seed[Name]&tbl_seed[Rainfall],INDIRECT("tbl_seed["&var_crop&"]")),2,0) | R27: 0 | U27: 0
D28: Reset Cost | F28: =VLOOKUP(R[0]C3&"Cost",CHOOSE({1,2},tbl_seed[Name]&tbl_seed[Type],INDIRECT("tbl_seed["&var_crop&"]")),2,0) | H28: =VLOOKUP(r[0]c3&"Cost",CHOOSE({1,2},tbl_seed[Name]&tbl_seed[Type],tbl_seed[Unit]),2,0) | I28: Reset Rate | K28: =VLOOKUP(r[0]c3&"Low",CHOOSE({1,2},tbl_seed[Name]&tbl_seed[Rainfall],INDIRECT("tbl_seed["&var_crop&"]")),2,0) | L28: 0 | N28: =VLOOKUP(r[0]c3&"Medium",CHOOSE({1,2},tbl_seed[Name]&tbl_seed[Rainfall],INDIRECT("tbl_seed["&var_crop&"]")),2,0) | O28: 0 | Q28: =VLOOKUP(r[0]c3&"High",CHOOSE({1,2},tbl_seed[Name]&tbl_seed[Rainfall],INDIRECT("tbl_seed["&var_crop&"]")),2,0) | R28: 0 | U28: 0
D29: Reset Cost | F29: =VLOOKUP(R[0]C3&"Cost",CHOOSE({1,2},tbl_seed[Name]&tbl_seed[Type],INDIRECT("tbl_seed["&var_crop&"]")),2,0) | H29: =VLOOKUP(r[0]c3&"Cost",CHOOSE({1,2},tbl_seed[Name]&tbl_seed[Type],tbl_seed[Unit]),2,0) | I29: Reset Rate | K29: =VLOOKUP(r[0]c3&"Low",CHOOSE({1,2},tbl_seed[Name]&tbl_seed[Rainfall],INDIRECT("tbl_seed["&var_crop&"]")),2,0) | L29: 0 | N29: =VLOOKUP(r[0]c3&"Medium",CHOOSE({1,2},tbl_seed[Name]&tbl_seed[Rainfall],INDIRECT("tbl_seed["&var_crop&"]")),2,0) | O29: 0 | Q29: =VLOOKUP(r[0]c3&"High",CHOOSE({1,2},tbl_seed[Name]&tbl_seed[Rainfall],INDIRECT("tbl_seed["&var_crop&"]")),2,0) | R29: 0 | U29: 0
C31: Levies
C32: GRDC Levies | E32: =var_grdc_levy -> 0.01 | G32: Gross Income | L32: =L11*$E$32 -> 6.3 | O32: =E32*O11 -> 11.2 | R32: =E32*R11 -> 16.8 | U32: =U11*E32 -> 0
C33: EPR & state levies | D33: Reset Levy | E33: =IFERROR(VLOOKUP($C33,tbl_seed[],MATCH(var_crop,tbl_seed[#Headers],0),0),0) -> 3.5 | F33: =IFERROR(VLOOKUP(r[0]c3,tbl_seed,MATCH(var_crop,tbl_seed[#Headers],0),0),0) | G33: tonne sold | L33: =E33*L10 -> 6.3 | O33: =E33*O10 -> 11.2 | R33: =E33*R10 -> 16.8 | U33: =$U$6*(IF(rng_rainfall=1,L33,IF(rng_rainfall=2,O33,R33))) -> 0
C37: Fertiliser (Bulk) | E37: Cost | G37: Unit | J37: Rate/ha | L37: $/ha | M37: Rate/ha | O37: $/ha | P37: Rate/ha | R37: $/ha | U37: $
C38: DAP 18:20 | D38: Reset Cost | E38: =VLOOKUP($C38,tbl_fert[[Name]:[Cost]],MATCH("Cost",tbl_fert[#Headers],0),0) -> 1.3 | F38: =VLOOKUP(r[0]c3,tbl_fert[[Name]:[Cost]],MATCH("Cost",tbl_fert[#Headers],0),0) | G38: =VLOOKUP($C38,tbl_fert[[Name]:[Cost]],MATCH("Units",tbl_fert[#Headers],0),0) -> kg | H38: =VLOOKUP(r[0]c3,tbl_fert[[Name]:[Cost]],MATCH("Units",tbl_fert[#Headers],0),0) | I38: Reset Rate | J38: =VLOOKUP($C38&"Low",CHOOSE({1,2},tbl_fert[Name]&tbl_fert[Rainfall],INDIRECT("tbl_fert["&var_crop&"]")),2,0) -> 45 | K38: =VLOOKUP(r[0]c3&"Low",CHOOSE({1,2},tbl_fert[Name]&tbl_fert[Rainfall],INDIRECT("tbl_fert["&var_crop&"]")),2,0) | L38: =(J38*E38) -> 58.5 | M38: =VLOOKUP($C38&"Medium",CHOOSE({1,2},tbl_fert[Name]&tbl_fert[Rainfall],INDIRECT("tbl_fert["&var_crop&"]")),2,0) -> 70 | N38: =VLOOKUP(r[0]c3&"Medium",CHOOSE({1,2},tbl_fert[Name]&tbl_fert[Rainfall],INDIRECT("tbl_fert["&var_crop&"]")),2,0) | O38: =(M38*E38) -> 91 | P38: =VLOOKUP($C38&"High",CHOOSE({1,2},tbl_fert[Name]&tbl_fert[Rainfall],INDIRECT("tbl_fert["&var_crop&"]")),2,0) -> 100 | Q38: =VLOOKUP(r[0]c3&"High",CHOOSE({1,2},tbl_fert[Name]&tbl_fert[Rainfall],INDIRECT("tbl_fert["&var_crop&"]")),2,0) | R38: =P38*E38 -> 130 | U38: =$U$6*(IF(rng_rainfall=1,L38,IF(rng_rainfall=2,O38,R38))) -> 0
C39: Urea | D39: Reset Cost | E39: =VLOOKUP($C39,tbl_fert[[Name]:[Cost]],MATCH("Cost",tbl_fert[#Headers],0),0) -> 1.5 | F39: =VLOOKUP(r[0]c3,tbl_fert[[Name]:[Cost]],MATCH("Cost",tbl_fert[#Headers],0),0) | G39: =VLOOKUP($C39,tbl_fert[[Name]:[Cost]],MATCH("Units",tbl_fert[#Headers],0),0) -> kg | H39: =VLOOKUP(r[0]c3,tbl_fert[[Name]:[Cost]],MATCH("Units",tbl_fert[#Headers],0),0) | I39: Reset Rate | J39: =VLOOKUP($C39&"Low",CHOOSE({1,2},tbl_fert[Name]&tbl_fert[Rainfall],INDIRECT("tbl_fert["&var_crop&"]")),2,0) -> 0 | K39: =VLOOKUP(r[0]c3&"Low",CHOOSE({1,2},tbl_fert[Name]&tbl_fert[Rainfall],INDIRECT("tbl_fert["&var_crop&"]")),2,0) | L39: 0 | M39: =VLOOKUP($C39&"Medium",CHOOSE({1,2},tbl_fert[Name]&tbl_fert[Rainfall],INDIRECT("tbl_fert["&var_crop&"]")),2,0) -> 100 | N39: =VLOOKUP(r[0]c3&"Medium",CHOOSE({1,2},tbl_fert[Name]&tbl_fert[Rainfall],INDIRECT("tbl_fert["&var_crop&"]")),2,0) | O39: 150 | P39: =VLOOKUP($C39&"High",CHOOSE({1,2},tbl_fert[Name]&tbl_fert[Rainfall],INDIRECT("tbl_fert["&var_crop&"]")),2,0) -> 200 | Q39: =VLOOKUP(r[0]c3&"High",CHOOSE({1,2},tbl_fert[Name]&tbl_fert[Rainfall],INDIRECT("tbl_fert["&var_crop&"]")),2,0) | R39: 300 | U39: 0
C40: Flutriafol (on fert) | D40: Reset Cost | E40: =VLOOKUP($C40,tbl_fert[[Name]:[Cost]],MATCH("Cost",tbl_fert[#Headers],0),0) -> 45 | F40: =VLOOKUP(r[0]c3,tbl_fert[[Name]:[Cost]],MATCH("Cost",tbl_fert[#Headers],0),0) | G40: =VLOOKUP($C40,tbl_fert[[Name]:[Cost]],MATCH("Units",tbl_fert[#Headers],0),0) -> litre | H40: =VLOOKUP(r[0]c3,tbl_fert[[Name]:[Cost]],MATCH("Units",tbl_fert[#Headers],0),0) | I40: Reset Rate | J40: =VLOOKUP($C40&"Low",CHOOSE({1,2},tbl_fert[Name]&tbl_fert[Rainfall],INDIRECT("tbl_fert["&var_crop&"]")),2,0) -> 0.2 | K40: =VLOOKUP(r[0]c3&"Low",CHOOSE({1,2},tbl_fert[Name]&tbl_fert[Rainfall],INDIRECT("tbl_fert["&var_crop&"]")),2,0) | L40: 9 | M40: =VLOOKUP($C40&"Medium",CHOOSE({1,2},tbl_fert[Name]&tbl_fert[Rainfall],INDIRECT("tbl_fert["&var_crop&"]")),2,0) -> 0.2 | N40: =VLOOKUP(r[0]c3&"Medium",CHOOSE({1,2},tbl_fert[Name]&tbl_fert[Rainfall],INDIRECT("tbl_fert["&var_crop&"]")),2,0) | O40: 9 | P40: =VLOOKUP($C40&"High",CHOOSE({1,2},tbl_fert[Name]&tbl_fert[Rainfall],INDIRECT("tbl_fert["&var_crop&"]")),2,0) -> 0.2 | Q40: =VLOOKUP(r[0]c3&"High",CHOOSE({1,2},tbl_fert[Name]&tbl_fert[Rainfall],INDIRECT("tbl_fert["&var_crop&"]")),2,0) | R40: 9 | U40: 0
D41: Reset Cost | F41: =VLOOKUP(r[0]c3,tbl_fert[[Name]:[Cost]],MATCH("Cost",tbl_fert[#Headers],0),0) | H41: =VLOOKUP(r[0]c3,tbl_fert[[Name]:[Cost]],MATCH("Units",tbl_fert[#Headers],0),0) | I41: Reset Rate | K41: =VLOOKUP(r[0]c3&"Low",CHOOSE({1,2},tbl_fert[Name]&tbl_fert[Rainfall],INDIRECT("tbl_fert["&var_crop&"]")),2,0) | L41: 0 | N41: =VLOOKUP(r[0]c3&"Medium",CHOOSE({1,2},tbl_fert[Name]&tbl_fert[Rainfall],INDIRECT("tbl_fert["&var_crop&"]")),2,0) | O41: 0 | Q41: =VLOOKUP(r[0]c3&"High",CHOOSE({1,2},tbl_fert[Name]&tbl_fert[Rainfall],INDIRECT("tbl_fert["&var_crop&"]")),2,0) | R41: 0 | U41: 0
D42: Reset Cost | F42: =VLOOKUP(r[0]c3,tbl_fert[[Name]:[Cost]],MATCH("Cost",tbl_fert[#Headers],0),0) | H42: =VLOOKUP(r[0]c3,tbl_fert[[Name]:[Cost]],MATCH("Units",tbl_fert[#Headers],0),0) | I42: Reset Rate | K42: =VLOOKUP(r[0]c3&"Low",CHOOSE({1,2},tbl_fert[Name]&tbl_fert[Rainfall],INDIRECT("tbl_fert["&var_crop&"]")),2,0) | L42: 0 | N42: =VLOOKUP(r[0]c3&"Medium",CHOOSE({1,2},tbl_fert[Name]&tbl_fert[Rainfall],INDIRECT("tbl_fert["&var_crop&"]")),2,0) | O42: 0 | Q42: =VLOOKUP(r[0]c3&"High",CHOOSE({1,2},tbl_fert[Name]&tbl_fert[Rainfall],INDIRECT("tbl_fert["&var_crop&"]")),2,0) | R42: 0 | U42: 0
D43: Reset Cost | F43: =VLOOKUP(r[0]c3,tbl_fert[[Name]:[Cost]],MATCH("Cost",tbl_fert[#Headers],0),0) | H43: =VLOOKUP(r[0]c3,tbl_fert[[Name]:[Cost]],MATCH("Units",tbl_fert[#Headers],0),0) | I43: Reset Rate | K43: =VLOOKUP(r[0]c3&"Low",CHOOSE({1,2},tbl_fert[Name]&tbl_fert[Rainfall],INDIRECT("tbl_fert["&var_crop&"]")),2,0) | L43: 0 | N43: =VLOOKUP(r[0]c3&"Medium",CHOOSE({1,2},tbl_fert[Name]&tbl_fert[Rainfall],INDIRECT("tbl_fert["&var_crop&"]")),2,0) | O43: 0 | Q43: =VLOOKUP(r[0]c3&"High",CHOOSE({1,2},tbl_fert[Name]&tbl_fert[Rainfall],INDIRECT("tbl_fert["&var_crop&"]")),2,0) | R43: 0 | U43: 0
D44: Reset Cost | F44: =VLOOKUP(r[0]c3,tbl_fert[[Name]:[Cost]],MATCH("Cost",tbl_fert[#Headers],0),0) | H44: =VLOOKUP(r[0]c3,tbl_fert[[Name]:[Cost]],MATCH("Units",tbl_fert[#Headers],0),0) | I44: Reset Rate | K44: =VLOOKUP(r[0]c3&"Low",CHOOSE({1,2},tbl_fert[Name]&tbl_fert[Rainfall],INDIRECT("tbl_fert["&var_crop&"]")),2,0) | L44: 0 | N44: =VLOOKUP(r[0]c3&"Medium",CHOOSE({1,2},tbl_fert[Name]&tbl_fert[Rainfall],INDIRECT("tbl_fert["&var_crop&"]")),2,0) | O44: 0 | Q44: =VLOOKUP(r[0]c3&"High",CHOOSE({1,2},tbl_fert[Name]&tbl_fert[Rainfall],INDIRECT("tbl_fert["&var_crop&"]")),2,0) | R44: 0 | U44: 0
D45: Reset Cost | F45: =VLOOKUP(r[0]c3,tbl_fert[[Name]:[Cost]],MATCH("Cost",tbl_fert[#Headers],0),0) | H45: =VLOOKUP(r[0]c3,tbl_fert[[Name]:[Cost]],MATCH("Units",tbl_fert[#Headers],0),0) | I45: Reset Rate | K45: =VLOOKUP(r[0]c3&"Low",CHOOSE({1,2},tbl_fert[Name]&tbl_fert[Rainfall],INDIRECT("tbl_fert["&var_crop&"]")),2,0) | L45: 0 | N45: =VLOOKUP(r[0]c3&"Medium",CHOOSE({1,2},tbl_fert[Name]&tbl_fert[Rainfall],INDIRECT("tbl_fert["&var_crop&"]")),2,0) | O45: 0 | Q45: =VLOOKUP(r[0]c3&"High",CHOOSE({1,2},tbl_fert[Name]&tbl_fert[Rainfall],INDIRECT("tbl_fert["&var_crop&"]")),2,0) | R45: 0 | U45: 0
D46: Reset Cost | F46: =VLOOKUP(r[0]c3,tbl_fert[[Name]:[Cost]],MATCH("Cost",tbl_fert[#Headers],0),0) | H46: =VLOOKUP(r[0]c3,tbl_fert[[Name]:[Cost]],MATCH("Units",tbl_fert[#Headers],0),0) | I46: Reset Rate | K46: =VLOOKUP(r[0]c3&"Low",CHOOSE({1,2},tbl_fert[Name]&tbl_fert[Rainfall],INDIRECT("tbl_fert["&var_crop&"]")),2,0) | L46: 0 | N46: =VLOOKUP(r[0]c3&"Medium",CHOOSE({1,2},tbl_fert[Name]&tbl_fert[Rainfall],INDIRECT("tbl_fert["&var_crop&"]")),2,0) | O46: 0 | Q46: =VLOOKUP(r[0]c3&"High",CHOOSE({1,2},tbl_fert[Name]&tbl_fert[Rainfall],INDIRECT("tbl_fert["&var_crop&"]")),2,0) | R46: 0 | U46: 0
D47: Reset Cost | F47: =VLOOKUP(r[0]c3,tbl_fert[[Name]:[Cost]],MATCH("Cost",tbl_fert[#Headers],0),0) | H47: =VLOOKUP(r[0]c3,tbl_fert[[Name]:[Cost]],MATCH("Units",tbl_fert[#Headers],0),0) | I47: Reset Rate | K47: =VLOOKUP(r[0]c3&"Low",CHOOSE({1,2},tbl_fert[Name]&tbl_fert[Rainfall],INDIRECT("tbl_fert["&var_crop&"]")),2,0) | L47: 0 | N47: =VLOOKUP(r[0]c3&"Medium",CHOOSE({1,2},tbl_fert[Name]&tbl_fert[Rainfall],INDIRECT("tbl_fert["&var_crop&"]")),2,0) | O47: 0 | Q47: =VLOOKUP(r[0]c3&"High",CHOOSE({1,2},tbl_fert[Name]&tbl_fert[Rainfall],INDIRECT("tbl_fert["&var_crop&"]")),2,0) | R47: 0 | U47: 0
D48: Reset Cost | F48: =VLOOKUP(r[0]c3,tbl_fert[[Name]:[Cost]],MATCH("Cost",tbl_fert[#Headers],0),0) | H48: =VLOOKUP(r[0]c3,tbl_fert[[Name]:[Cost]],MATCH("Units",tbl_fert[#Headers],0),0) | I48: Reset Rate | K48: =VLOOKUP(r[0]c3&"Low",CHOOSE({1,2},tbl_fert[Name]&tbl_fert[Rainfall],INDIRECT("tbl_fert["&var_crop&"]")),2,0) | L48: 0 | N48: =VLOOKUP(r[0]c3&"Medium",CHOOSE({1,2},tbl_fert[Name]&tbl_fert[Rainfall],INDIRECT("tbl_fert["&var_crop&"]")),2,0) | O48: 0 | Q48: =VLOOKUP(r[0]c3&"High",CHOOSE({1,2},tbl_fert[Name]&tbl_fert[Rainfall],INDIRECT("tbl_fert["&var_crop&"]")),2,0) | R48: 0 | U48: 0
D49: Reset Cost | F49: =VLOOKUP(r[0]c3,tbl_fert[[Name]:[Cost]],MATCH("Cost",tbl_fert[#Headers],0),0) | H49: =VLOOKUP(r[0]c3,tbl_fert[[Name]:[Cost]],MATCH("Units",tbl_fert[#Headers],0),0) | I49: Reset Rate | K49: =VLOOKUP(r[0]c3&"Low",CHOOSE({1,2},tbl_fert[Name]&tbl_fert[Rainfall],INDIRECT("tbl_fert["&var_crop&"]")),2,0) | L49: 0 | N49: =VLOOKUP(r[0]c3&"Medium",CHOOSE({1,2},tbl_fert[Name]&tbl_fert[Rainfall],INDIRECT("tbl_fert["&var_crop&"]")),2,0) | O49: 0 | Q49: =VLOOKUP(r[0]c3&"High",CHOOSE({1,2},tbl_fert[Name]&tbl_fert[Rainfall],INDIRECT("tbl_fert["&var_crop&"]")),2,0) | R49: 0 | U49: 0
D50: Reset Cost | F50: =VLOOKUP(r[0]c3,tbl_fert[[Name]:[Cost]],MATCH("Cost",tbl_fert[#Headers],0),0) | H50: =VLOOKUP(r[0]c3,tbl_fert[[Name]:[Cost]],MATCH("Units",tbl_fert[#Headers],0),0) | I50: Reset Rate | K50: =VLOOKUP(r[0]c3&"Low",CHOOSE({1,2},tbl_fert[Name]&tbl_fert[Rainfall],INDIRECT("tbl_fert["&var_crop&"]")),2,0) | L50: 0 | N50: =VLOOKUP(r[0]c3&"Medium",CHOOSE({1,2},tbl_fert[Name]&tbl_fert[Rainfall],INDIRECT("tbl_fert["&var_crop&"]")),2,0) | O50: 0 | Q50: =VLOOKUP(r[0]c3&"High",CHOOSE({1,2},tbl_fert[Name]&tbl_fert[Rainfall],INDIRECT("tbl_fert["&var_crop&"]")),2,0) | R50: 0 | U50: 0
D51: Reset Cost | F51: =VLOOKUP(r[0]c3,tbl_fert[[Name]:[Cost]],MATCH("Cost",tbl_fert[#Headers],0),0) | H51: =VLOOKUP(r[0]c3,tbl_fert[[Name]:[Cost]],MATCH("Units",tbl_fert[#Headers],0),0) | I51: Reset Rate | K51: =VLOOKUP(r[0]c3&"Low",CHOOSE({1,2},tbl_fert[Name]&tbl_fert[Rainfall],INDIRECT("tbl_fert["&var_crop&"]")),2,0) | L51: 0 | N51: =VLOOKUP(r[0]c3&"Medium",CHOOSE({1,2},tbl_fert[Name]&tbl_fert[Rainfall],INDIRECT("tbl_fert["&var_crop&"]")),2,0) | O51: 0 | Q51: =VLOOKUP(r[0]c3&"High",CHOOSE({1,2},tbl_fert[Name]&tbl_fert[Rainfall],INDIRECT("tbl_fert["&var_crop&"]")),2,0) | R51: 0 | U51: 0
D52: Reset Cost | F52: =VLOOKUP(r[0]c3,tbl_fert[[Name]:[Cost]],MATCH("Cost",tbl_fert[#Headers],0),0) | H52: =VLOOKUP(r[0]c3,tbl_fert[[Name]:[Cost]],MATCH("Units",tbl_fert[#Headers],0),0) | I52: Reset Rate | K52: =VLOOKUP(r[0]c3&"Low",CHOOSE({1,2},tbl_fert[Name]&tbl_fert[Rainfall],INDIRECT("tbl_fert["&var_crop&"]")),2,0) | L52: 0 | N52: =VLOOKUP(r[0]c3&"Medium",CHOOSE({1,2},tbl_fert[Name]&tbl_fert[Rainfall],INDIRECT("tbl_fert["&var_crop&"]")),2,0) | O52: 0 | Q52: =VLOOKUP(r[0]c3&"High",CHOOSE({1,2},tbl_fert[Name]&tbl_fert[Rainfall],INDIRECT("tbl_fert["&var_crop&"]")),2,0) | R52: 0 | U52: 0
C57: Herbicides | E57: Cost | G57: Unit | J57: Rate/ha | L57: $/ha | M57: Rate/ha | O57: $/ha | P57: Rate/ha | R57: $/ha | U57: $
C58: Summer Weed Control | G58: Various | I58: Reset $/ha | L58: =var_summer_weed -> 40 | M58: =var_summer_weed | O58: =var_summer_weed -> 40 | P58: =var_summer_weed | R58: =var_summer_weed -> 40 | S58: =var_summer_weed | U58: =$U$6*(IF(rng_rainfall=1,L58,IF(rng_rainfall=2,O58,R58))) -> 0
C59: Herbicides
C60: Trifluralin 480g/L | D60: Reset Cost | E60: =VLOOKUP($C60,tbl_chemicals[[Name]:[Cost]],MATCH("Cost",tbl_chemicals[#Headers],0),0) -> 8 | F60: =VLOOKUP(r[0]c3,tbl_chemicals[[Name]:[Cost]],MATCH("Cost",tbl_chemicals[#Headers],0),0) | G60: =VLOOKUP($C60,tbl_chemicals[[Name]:[Cost]],MATCH("Units",tbl_chemicals[#Headers],0),0) -> litre | H60: =VLOOKUP(r[0]c3,tbl_chemicals[[Name]:[Cost]],MATCH("Units",tbl_chemicals[#Headers],0),0) | I60: Reset Rate | J60: =VLOOKUP($C60&"Low",CHOOSE({1,2},tbl_chemicals[Name]&tbl_chemicals[Rainfall],INDIRECT("tbl_chemicals["&var_crop&"]")),2,0) -> 1.5 | K60: =VLOOKUP(r[0]c3&"Low",CHOOSE({1,2},tbl_chemicals[Name]&tbl_chemicals[Rainfall],INDIRECT("tbl_chemicals["&var_crop&"]")),2,0) | L60: =(J60*$E60)+IFERROR(VLOOKUP($C60,tbl_chemicals[],MATCH("Adjuvant Cost/ha",tbl_chemicals[#Headers],0),0),0)*(J60<>0) -> 12 | M60: =VLOOKUP($C60&"Medium",CHOOSE({1,2},tbl_chemicals[Name]&tbl_chemicals[Rainfall],INDIRECT("tbl_chemicals["&var_crop&"]")),2,0) -> 0 | N60: =VLOOKUP(r[0]c3&"Medium",CHOOSE({1,2},tbl_chemicals[Name]&tbl_chemicals[Rainfall],INDIRECT("tbl_chemicals["&var_crop&"]")),2,0) | O60: =(M60*$E60)+IFERROR(VLOOKUP($C60,tbl_chemicals[],MATCH("Adjuvant Cost/ha",tbl_chemicals[#Headers],0),0),0)*(M60<>0) -> 0 | P60: =VLOOKUP($C60&"High",CHOOSE({1,2},tbl_chemicals[Name]&tbl_chemicals[Rainfall],INDIRECT("tbl_chemicals["&var_crop&"]")),2,0) -> 0 | Q60: =VLOOKUP(r[0]c3&"High",CHOOSE({1,2},tbl_chemicals[Name]&tbl_chemicals[Rainfall],INDIRECT("tbl_chemicals["&var_crop&"]")),2,0) | R60: =(P60*$E60)+IFERROR(VLOOKUP($C60,tbl_chemicals[],MATCH("Adjuvant Cost/ha",tbl_chemicals[#Headers],0),0),0)*(P60<>0) -> 0 | U60: =$U$6*(IF(rng_rainfall=1,L60,IF(rng_rainfall=2,O60,R60))) -> 0
C61: Tri-allate 500g/L | D61: Reset Cost | E61: =VLOOKUP($C61,tbl_chemicals[[Name]:[Cost]],MATCH("Cost",tbl_chemicals[#Headers],0),0) -> 12.8 | F61: =VLOOKUP(r[0]c3,tbl_chemicals[[Name]:[Cost]],MATCH("Cost",tbl_chemicals[#Headers],0),0) | G61: =VLOOKUP($C61,tbl_chemicals[[Name]:[Cost]],MATCH("Units",tbl_chemicals[#Headers],0),0) -> litre | H61: =VLOOKUP(r[0]c3,tbl_chemicals[[Name]:[Cost]],MATCH("Units",tbl_chemicals[#Headers],0),0) | I61: Reset Rate | J61: =VLOOKUP($C61&"Low",CHOOSE({1,2},tbl_chemicals[Name]&tbl_chemicals[Rainfall],INDIRECT("tbl_chemicals["&var_crop&"]")),2,0) -> 1.6 | K61: =VLOOKUP(r[0]c3&"Low",CHOOSE({1,2},tbl_chemicals[Name]&tbl_chemicals[Rainfall],INDIRECT("tbl_chemicals["&var_crop&"]")),2,0) | L61: =(J61*$E61)+IFERROR(VLOOKUP($C61,tbl_chemicals[],MATCH("Adjuvant Cost/ha",tbl_chemicals[#Headers],0),0),0)*(J61<>0) -> 20.48 | M61: =VLOOKUP($C61&"Medium",CHOOSE({1,2},tbl_chemicals[Name]&tbl_chemicals[Rainfall],INDIRECT("tbl_chemicals["&var_crop&"]")),2,0) -> 0 | N61: =VLOOKUP(r[0]c3&"Medium",CHOOSE({1,2},tbl_chemicals[Name]&tbl_chemicals[Rainfall],INDIRECT("tbl_chemicals["&var_crop&"]")),2,0) | O61: =(M61*$E61)+IFERROR(VLOOKUP($C61,tbl_chemicals[],MATCH("Adjuvant Cost/ha",tbl_chemicals[#Headers],0),0),0)*(M61<>0) -> 0 | P61: =VLOOKUP($C61&"High",CHOOSE({1,2},tbl_chemicals[Name]&tbl_chemicals[Rainfall],INDIRECT("tbl_chemicals["&var_crop&"]")),2,0) -> 2 | Q61: =VLOOKUP(r[0]c3&"High",CHOOSE({1,2},tbl_chemicals[Name]&tbl_chemicals[Rainfall],INDIRECT("tbl_chemicals["&var_crop&"]")),2,0) | R61: =(P61*$E61)+IFERROR(VLOOKUP($C61,tbl_chemicals[],MATCH("Adjuvant Cost/ha",tbl_chemicals[#Headers],0),0),0)*(P61<>0) -> 25.6 | U61: 0
C62: Glyphosate 540g/L | D62: Reset Cost | E62: =VLOOKUP($C62,tbl_chemicals[[Name]:[Cost]],MATCH("Cost",tbl_chemicals[#Headers],0),0) -> 15 | F62: =VLOOKUP(r[0]c3,tbl_chemicals[[Name]:[Cost]],MATCH("Cost",tbl_chemicals[#Headers],0),0) | G62: =VLOOKUP($C62,tbl_chemicals[[Name]:[Cost]],MATCH("Units",tbl_chemicals[#Headers],0),0) -> litre | H62: =VLOOKUP(r[0]c3,tbl_chemicals[[Name]:[Cost]],MATCH("Units",tbl_chemicals[#Headers],0),0) | I62: Reset Rate | J62: =VLOOKUP($C62&"Low",CHOOSE({1,2},tbl_chemicals[Name]&tbl_chemicals[Rainfall],INDIRECT("tbl_chemicals["&var_crop&"]")),2,0) -> 1.2 | K62: =VLOOKUP(r[0]c3&"Low",CHOOSE({1,2},tbl_chemicals[Name]&tbl_chemicals[Rainfall],INDIRECT("tbl_chemicals["&var_crop&"]")),2,0) | L62: =(J62*$E62)+IFERROR(VLOOKUP($C62,tbl_chemicals[],MATCH("Adjuvant Cost/ha",tbl_chemicals[#Headers],0),0),0)*(J62<>0) -> 18 | M62: =VLOOKUP($C62&"Medium",CHOOSE({1,2},tbl_chemicals[Name]&tbl_chemicals[Rainfall],INDIRECT("tbl_chemicals["&var_crop&"]")),2,0) -> 1.2 | N62: =VLOOKUP(r[0]c3&"Medium",CHOOSE({1,2},tbl_chemicals[Name]&tbl_chemicals[Rainfall],INDIRECT("tbl_chemicals["&var_crop&"]")),2,0) | O62: =(M62*$E62)+IFERROR(VLOOKUP($C62,tbl_chemicals[],MATCH("Adjuvant Cost/ha",tbl_chemicals[#Headers],0),0),0)*(M62<>0) -> 18 | P62: =VLOOKUP($C62&"High",CHOOSE({1,2},tbl_chemicals[Name]&tbl_chemicals[Rainfall],INDIRECT("tbl_chemicals["&var_crop&"]")),2,0) -> 1.2 | Q62: =VLOOKUP(r[0]c3&"High",CHOOSE({1,2},tbl_chemicals[Name]&tbl_chemicals[Rainfall],INDIRECT("tbl_chemicals["&var_crop&"]")),2,0) | R62: =(P62*$E62)+IFERROR(VLOOKUP($C62,tbl_chemicals[],MATCH("Adjuvant Cost/ha",tbl_chemicals[#Headers],0),0),0)*(P62<>0) -> 18 | U62: 0
C63: Carfentrazone 400g/L (Hammer) | D63: Reset Cost | E63: =VLOOKUP($C63,tbl_chemicals[[Name]:[Cost]],MATCH("Cost",tbl_chemicals[#Headers],0),0) -> 149.5 | F63: =VLOOKUP(r[0]c3,tbl_chemicals[[Name]:[Cost]],MATCH("Cost",tbl_chemicals[#Headers],0),0) | G63: =VLOOKUP($C63,tbl_chemicals[[Name]:[Cost]],MATCH("Units",tbl_chemicals[#Headers],0),0) -> litre | H63: =VLOOKUP(r[0]c3,tbl_chemicals[[Name]:[Cost]],MATCH("Units",tbl_chemicals[#Headers],0),0) | I63: Reset Rate | J63: =VLOOKUP($C63&"Low",CHOOSE({1,2},tbl_chemicals[Name]&tbl_chemicals[Rainfall],INDIRECT("tbl_chemicals["&var_crop&"]")),2,0) -> 0.02 | K63: =VLOOKUP(r[0]c3&"Low",CHOOSE({1,2},tbl_chemicals[Name]&tbl_chemicals[Rainfall],INDIRECT("tbl_chemicals["&var_crop&"]")),2,0) | L63: =(J63*$E63)+IFERROR(VLOOKUP($C63,tbl_chemicals[],MATCH("Adjuvant Cost/ha",tbl_chemicals[#Headers],0),0),0)*(J63<>0) -> 2.99 | M63: =VLOOKUP($C63&"Medium",CHOOSE({1,2},tbl_chemicals[Name]&tbl_chemicals[Rainfall],INDIRECT("tbl_chemicals["&var_crop&"]")),2,0) -> 0.02 | N63: =VLOOKUP(r[0]c3&"Medium",CHOOSE({1,2},tbl_chemicals[Name]&tbl_chemicals[Rainfall],INDIRECT("tbl_chemicals["&var_crop&"]")),2,0) | O63: =(M63*$E63)+IFERROR(VLOOKUP($C63,tbl_chemicals[],MATCH("Adjuvant Cost/ha",tbl_chemicals[#Headers],0),0),0)*(M63<>0) -> 2.99 | P63: =VLOOKUP($C63&"High",CHOOSE({1,2},tbl_chemicals[Name]&tbl_chemicals[Rainfall],INDIRECT("tbl_chemicals["&var_crop&"]")),2,0) -> 0.02 | Q63: =VLOOKUP(r[0]c3&"High",CHOOSE({1,2},tbl_chemicals[Name]&tbl_chemicals[Rainfall],INDIRECT("tbl_chemicals["&var_crop&"]")),2,0) | R63: =(P63*$E63)+IFERROR(VLOOKUP($C63,tbl_chemicals[],MATCH("Adjuvant Cost/ha",tbl_chemicals[#Headers],0),0),0)*(P63<>0) -> 2.99 | U63: 0
C64: Sakura® | D64: Reset Cost | E64: =VLOOKUP($C64,tbl_chemicals[[Name]:[Cost]],MATCH("Cost",tbl_chemicals[#Headers],0),0) -> 357.12 | F64: =VLOOKUP(r[0]c3,tbl_chemicals[[Name]:[Cost]],MATCH("Cost",tbl_chemicals[#Headers],0),0) | G64: =VLOOKUP($C64,tbl_chemicals[[Name]:[Cost]],MATCH("Units",tbl_chemicals[#Headers],0),0) -> kg | H64: =VLOOKUP(r[0]c3,tbl_chemicals[[Name]:[Cost]],MATCH("Units",tbl_chemicals[#Headers],0),0) | I64: Reset Rate | J64: =VLOOKUP($C64&"Low",CHOOSE({1,2},tbl_chemicals[Name]&tbl_chemicals[Rainfall],INDIRECT("tbl_chemicals["&var_crop&"]")),2,0) -> 0 | K64: =VLOOKUP(r[0]c3&"Low",CHOOSE({1,2},tbl_chemicals[Name]&tbl_chemicals[Rainfall],INDIRECT("tbl_chemicals["&var_crop&"]")),2,0) | L64: =(J64*$E64)+IFERROR(VLOOKUP($C64,tbl_chemicals[],MATCH("Adjuvant Cost/ha",tbl_chemicals[#Headers],0),0),0)*(J64<>0) -> 0 | M64: =VLOOKUP($C64&"Medium",CHOOSE({1,2},tbl_chemicals[Name]&tbl_chemicals[Rainfall],INDIRECT("tbl_chemicals["&var_crop&"]")),2,0) -> 0.118 | N64: =VLOOKUP(r[0]c3&"Medium",CHOOSE({1,2},tbl_chemicals[Name]&tbl_chemicals[Rainfall],INDIRECT("tbl_chemicals["&var_crop&"]")),2,0) | O64: =(M64*$E64)+IFERROR(VLOOKUP($C64,tbl_chemicals[],MATCH("Adjuvant Cost/ha",tbl_chemicals[#Headers],0),0),0)*(M64<>0) -> 42.14016 | P64: =VLOOKUP($C64&"High",CHOOSE({1,2},tbl_chemicals[Name]&tbl_chemicals[Rainfall],INDIRECT("tbl_chemicals["&var_crop&"]")),2,0) -> 0.118 | Q64: =VLOOKUP(r[0]c3&"High",CHOOSE({1,2},tbl_chemicals[Name]&tbl_chemicals[Rainfall],INDIRECT("tbl_chemicals["&var_crop&"]")),2,0) | R64: =(P64*$E64)+IFERROR(VLOOKUP($C64,tbl_chemicals[],MATCH("Adjuvant Cost/ha",tbl_chemicals[#Headers],0),0),0)*(P64<>0) -> 42.14016 | U64: 0
C65: Topik® EC | D65: Reset Cost | E65: =VLOOKUP($C65,tbl_chemicals[[Name]:[Cost]],MATCH("Cost",tbl_chemicals[#Headers],0),0) -> 34 | F65: =VLOOKUP(r[0]c3,tbl_chemicals[[Name]:[Cost]],MATCH("Cost",tbl_chemicals[#Headers],0),0) | G65: =VLOOKUP($C65,tbl_chemicals[[Name]:[Cost]],MATCH("Units",tbl_chemicals[#Headers],0),0) -> litre | H65: =VLOOKUP(r[0]c3,tbl_chemicals[[Name]:[Cost]],MATCH("Units",tbl_chemicals[#Headers],0),0) | I65: Reset Rate | J65: =VLOOKUP($C65&"Low",CHOOSE({1,2},tbl_chemicals[Name]&tbl_chemicals[Rainfall],INDIRECT("tbl_chemicals["&var_crop&"]")),2,0) -> 0 | K65: =VLOOKUP(r[0]c3&"Low",CHOOSE({1,2},tbl_chemicals[Name]&tbl_chemicals[Rainfall],INDIRECT("tbl_chemicals["&var_crop&"]")),2,0) | L65: =(J65*$E65)+IFERROR(VLOOKUP($C65,tbl_chemicals[],MATCH("Adjuvant Cost/ha",tbl_chemicals[#Headers],0),0),0)*(J65<>0) -> 0 | M65: =VLOOKUP($C65&"Medium",CHOOSE({1,2},tbl_chemicals[Name]&tbl_chemicals[Rainfall],INDIRECT("tbl_chemicals["&var_crop&"]")),2,0) -> 0.085 | N65: =VLOOKUP(r[0]c3&"Medium",CHOOSE({1,2},tbl_chemicals[Name]&tbl_chemicals[Rainfall],INDIRECT("tbl_chemicals["&var_crop&"]")),2,0) | O65: =(M65*$E65)+IFERROR(VLOOKUP($C65,tbl_chemicals[],MATCH("Adjuvant Cost/ha",tbl_chemicals[#Headers],0),0),0)*(M65<>0) -> 6.54625 | P65: =VLOOKUP($C65&"High",CHOOSE({1,2},tbl_chemicals[Name]&tbl_chemicals[Rainfall],INDIRECT("tbl_chemicals["&var_crop&"]")),2,0) -> 0.085 | Q65: =VLOOKUP(r[0]c3&"High",CHOOSE({1,2},tbl_chemicals[Name]&tbl_chemicals[Rainfall],INDIRECT("tbl_chemicals["&var_crop&"]")),2,0) | R65: =(P65*$E65)+IFERROR(VLOOKUP($C65,tbl_chemicals[],MATCH("Adjuvant Cost/ha",tbl_chemicals[#Headers],0),0),0)*(P65<>0) -> 6.54625 | U65: 0
C66: M.C.P.A. LVE | D66: Reset Cost | E66: =VLOOKUP($C66,tbl_chemicals[[Name]:[Cost]],MATCH("Cost",tbl_chemicals[#Headers],0),0) -> 15.3 | F66: =VLOOKUP(r[0]c3,tbl_chemicals[[Name]:[Cost]],MATCH("Cost",tbl_chemicals[#Headers],0),0) | G66: =VLOOKUP($C66,tbl_chemicals[[Name]:[Cost]],MATCH("Units",tbl_chemicals[#Headers],0),0) -> litre | H66: =VLOOKUP(r[0]c3,tbl_chemicals[[Name]:[Cost]],MATCH("Units",tbl_chemicals[#Headers],0),0) | I66: Reset Rate | J66: =VLOOKUP($C66&"Low",CHOOSE({1,2},tbl_chemicals[Name]&tbl_chemicals[Rainfall],INDIRECT("tbl_chemicals["&var_crop&"]")),2,0) -> 0.5 | K66: =VLOOKUP(r[0]c3&"Low",CHOOSE({1,2},tbl_chemicals[Name]&tbl_chemicals[Rainfall],INDIRECT("tbl_chemicals["&var_crop&"]")),2,0) | L66: =(J66*$E66)+IFERROR(VLOOKUP($C66,tbl_chemicals[],MATCH("Adjuvant Cost/ha",tbl_chemicals[#Headers],0),0),0)*(J66<>0) -> 7.65 | M66: =VLOOKUP($C66&"Medium",CHOOSE({1,2},tbl_chemicals[Name]&tbl_chemicals[Rainfall],INDIRECT("tbl_chemicals["&var_crop&"]")),2,0) -> 0.5 | N66: =VLOOKUP(r[0]c3&"Medium",CHOOSE({1,2},tbl_chemicals[Name]&tbl_chemicals[Rainfall],INDIRECT("tbl_chemicals["&var_crop&"]")),2,0) | O66: =(M66*$E66)+IFERROR(VLOOKUP($C66,tbl_chemicals[],MATCH("Adjuvant Cost/ha",tbl_chemicals[#Headers],0),0),0)*(M66<>0) -> 7.65 | P66: =VLOOKUP($C66&"High",CHOOSE({1,2},tbl_chemicals[Name]&tbl_chemicals[Rainfall],INDIRECT("tbl_chemicals["&var_crop&"]")),2,0) -> 0.5 | Q66: =VLOOKUP(r[0]c3&"High",CHOOSE({1,2},tbl_chemicals[Name]&tbl_chemicals[Rainfall],INDIRECT("tbl_chemicals["&var_crop&"]")),2,0) | R66: =(P66*$E66)+IFERROR(VLOOKUP($C66,tbl_chemicals[],MATCH("Adjuvant Cost/ha",tbl_chemicals[#Headers],0),0),0)*(P66<>0) -> 7.65 | U66: 0
